Workbook

Sheet Tab List (hidden)
A2: List of the Tab in the Inputs Sheet
A4: 1. Electricity
A5: 2. NG
A6: 3. Petroleum
A7: 4. Coal
A8: 5. Uranium
A9: 6. Ag_Inputs
A10: 7. Enzymes and Yeast
A11: 8. Fuel Specifications
A12: 9. Loss Factors
A13: 10. User Defined Parameters
A14: 11. Ethanol
A15: 12. RNG
A16: 13. BD RD Feedstock Production
A17: 14. BD RD Production
A18: 15. Bio Oil
A19: 16. Flow Chart
A20: 17. Report
A21: 18. References

Sheet EtOH Summary
C1: Summary of the Starch Ethanol Pathway for the California Low Carbon Fuel Standard Program
C3: Applicant: | D3: =EtOH!D22 -> ABC Company, Inc. | G3: =CONCATENATE("Location: ",EtOH!D25) -> Location: City, State, Country
C4: Description: | D4: =EtOH!C10 -> Corn, Sorghum, and Corn Fiber Ethanol from Midwest, transported 1,800 miles to California to be used as transportation fuel in California
C6: Feedstock Production Electricity Mix | E6: 1- U.S Ave Mix | G6: Fuel Production Electricity Mix | H6: =EtOH!BF31 -> 7-MROW Mix
C7: Feedstock Production | G7: Fuel Production | J7: Different Scenarios of Starch Ethanol Production | L7: Carbon Intensity (gCO2e/MJ) | M7: Correspondent Volumes (gallons)
C8: Feedstock Production | D8: Column2 | E8: Column1 | G8: Fuel Production | H8: Column1 | J8: Different Scenarios of Ethanol Production | K8: Column1 | L8: Carbon Intensity, g/MJ | M8: Correspondent Volumes, gallons
C9: Corn Use, bushels | E9: =EtOH!D59 -> 6840000 | G9: Total Undenatured Ethanol, gallons | H9: =EtOH!AU59+EtOH!BB59 -> 103200000 | K9: Dry DG | L9: =EtOH!I246 -> 0 | M9: =EtOH!J198 -> 0
C10: Sorghum Use, bushels | E10: =EtOH!K59 -> 16170000 | G10: Total Undenatured Starch Ethanol, gallons | H10: =EtOH!AU59 -> 103200000 | J10: Corn Ethanol | K10: Modified DG | L10: =EtOH!I247 -> 0 | M10: =EtOH!J205 -> 0
C11: Ethanol Yield, gal/bu | E11: =EtOH!E71 -> 4.485006519 | G11: Total Undenatured Fiber Ethanol, gallons | H11: =EtOH!BB59 -> 0 | K11: Wet DG | L11: =EtOH!I248 -> 0 | M11: =EtOH!J211 -> 0
J12: Subtotal | M12: =SUBTOTAL(109,M9:M11) -> 0
C13: Feedstock Transport (Weighted Average) | G13: Energy Consumption | K13: Dry DG | L13: =EtOH!I250 -> 0 | M13: =EtOH!J250 -> 0
C14: Corn Transport by HD Truck, miles | E14: =EtOH!G59 -> 80 | G14: Natural, HHV in MMBtu | H14: =EtOH!BD60 -> 2400000 | J14: Sorghum Ethanol | K14: Modified DG | L14: =EtOH!I251 -> 0 | M14: =EtOH!J251 -> 0
C15: Corn Transport by Rail, miles | E15: =EtOH!H59 -> 0 | G15: Coal, HHV in tons | H15: =EtOH!BJ59 -> 0 | K15: Wet DG | L15: =EtOH!I252 -> 0 | M15: =EtOH!J252 -> 0
C16: Corn Transport by Barge, miles | E16: =EtOH!I59 -> 0 | G16: Biomass, HHV in dry tons | H16: =EtOH!BG59 -> 0 | J16: Subtotal | M16: =SUBTOTAL(109,M13:M15) -> 0
C17: Sorghum Transport by HD Truck, miles | E17: =EtOH!N59 -> 80 | G17: Biomethane, HHV in MMBtu | H17: =EtOH!BE59 -> 0 | J17: Corn Fiber Ethanol | L17: =EtOH!I253 -> 0 | M17: =EtOH!BB59 -> 0
C18: Sorghum Transport by Rail, miles | E18: =EtOH!O59 -> 0 | G18: Electricity, kWh | H18: =EtOH!BK59 -> 48000000 | J18: Subtotal | M18: =SUBTOTAL(109,M17) -> 0
C19: Sorghum Transport by Barge, miles | E19: =EtOH!P59 -> 0 | G19: Other Electricity, kWh | H19: =EtOH!BL59 -> 0 | J19: Corn Ethanol | K19: Composite DG | L19: =EtOH!I245 -> 62.54052065 | M19: =EtOH!N198 -> 30677444.59
J20: Sorghum Ethanol | K20: Composite DG | L20: =EtOH!N200 -> 69.80368641 | M20: =EtOH!N205 -> 72522555.41
C21: Co-Product Yield, bone-dry lb./gal | E21: =(E22*(1-E23)+E25*(1-E26)+E28*(1-E29)+E30*(1-References!C168)+E31*(1-References!C169))*2000/H9 -> 4.889504845 | G21: Chemical Usage for Cellulosic | J21: Subtotal | M21: =SUBTOTAL(109,M19:M20) -> 103200000
C22: Dry Distiller Grains, tons | E22: =EtOH!R59 -> 96000 | G22: Cellulosic Enzyme, lbs. | H22: =EtOH!AY59 -> 0 | J22: Other Ethanol | M22: 0
C23: Moisture, % | E23: =EtOH!U59 -> 0.1132583333 | M23: =SUBTOTAL(109,M22) -> 0
C24: Drying Energy, HHV in MMBtu | E24: =EtOH!V59 -> 0 | G24: Fuel Transport
C25: Modified Distiller Grains, tons | E25: =EtOH!X59 -> 0 | G25: By HD Truck, miles | H25: =EtOH!BN37 -> 100 | J25: Total Undenatured Ethanol Production, gallons | M25: =M12+M16+M18+M21+M23 -> 103200000
C26: Moisture, % | E26: =EtOH!AA59 -> 0.55 | G26: By Rail, miles | H26: =EtOH!BN35 -> 1800
C27: Drying Energy, HHV in MMBtu | E27: =EtOH!AB59 -> 0 | G27: By Barge, miles | H27: =EtOH!BN39 -> 0
C28: Wet Distiller Grains, tons | E28: =EtOH!AD59 -> 480000
C29: Moisture, % | E29: =EtOH!AG59 -> 0.6636375 | G29: Denaturant Usage
C30: Syrup DGS, tons | E30: =EtOH!AI59 -> 0 | G30: Denaturant, gallons | H30: =EtOH!AV59 -> 2400000
C31: Corn Oil, tons | E31: =EtOH!AM59/2000 -> 5775

Sheet LFG Summary (hidden)
C1: Summary of the Renewable Natural Gas Pathway for the California Low Carbon Fuel Standard Program
C3: Applicant: | D3: =LFG!D1 -> ABC Company | G3: =CONCATENATE("Landfill Location: ",LFG!F1) -> Landfill Location: AAA Landfill in City , State
C6: Landfill Gas Production Electricity Mix | E6: =LFG!D4 -> 1-U.S Ave Mix | G6: Fuel Production Electricity Mix | H6: Various | J6: Pathway Descriptions and Results
C7: Landfill Gas Production | G7: Fuel Production | J7: Finished Fuels | L7: Carbon Intensity (gCO2e/MJ) | M7: Correspondent Volumes (SCF or gallons)
C8: Feedstock Production | D8: Column2 | E8: Column1 | G8: Fuel Production | H8: Column1 | J8: Different Scenarios of Ethanol Production | K8: Column1 | L8: Carbon Intensity, g/MJ | M8: Correspondent Volumes, gallons
C9: Biogas Production | G9: Compressed Natural Gas (CNG) Production | J9: Compressed Natural Gas (CNG) | L9: =LFG!D2 -> 58.14640317 | M9: =LFG!L72 -> 0
C10: Raw Inlet Gas as Feedstock, SCF at 60°F | E10: =LFG!B32 -> 3353516920 | G10: CNG Production Electricity Mix | H10: =LFG!O4 -> 3-CAMX Mix | J10: =LFG!E2 -> Pathway Description: Landfill Gas extracted from Landfill City (XX), processed in (YY), pipelined to California for Compressed Natural Gas
C11: Average Methane Content, % CH4 | E11: =LFG!C32 -> 0.5597375 | G11: Total CNG, HHV in SCF | H11: =LFG!F72 -> 250000
C12: Biogas Processing | G12: Liquefied Natural Gas (LNG) Production
C13: Natural, HHV in MMBtu | E13: =LFG!D32 -> 2202.224806 | G13: LNG Production Electricity Mix | H13: 3-CAMX Mix
C14: Diesel, HHV in Gallons | E14: =LFG!E32 -> 0 | G14: Total LNG, HHV in gallons | H14: =LFG!L32 -> 74053051 | J14: Liquefied Natural Gas (LNG) | L14: =LFG!I2 -> 63.77081605 | M14: =LFG!R32 -> 0
C15: Propane as Fuel Use, HHV in MMBtu | E15: =LFG!F32 -> 0 | G15: Total Natural Gas Purchase, HHV in MMBtu | H15: =LFG!K32 -> 7498724 | J15: =LFG!J2 -> Pathway Description: Landfill Gas extracted from Landfill City (XX), processed in (YY), pipelined to California for liquefaction, then transported by truck to California LNG stations
C16: Propane as Sale Gas Booster, HHV in MMBtu | E16: =EtOH!I59 -> 0 | G16: Natural Gas as Process Fuel, HHV in MMBtu | H16: =LFG!M32 -> 1217544.214
C17: Electricity, kWh | E17: =LFG!H32 -> 59611220 | G17: Natural Gas as Feedstock, HHV in MMBtu | H17: =H14-H15 -> 66554327
C18: Other Electricity, kWh | E18: =LFG!G32 -> 0 | G18: Electricity, kWh | H18: =LFG!N32 -> 13414200 | J18: Liquefied CNG (or L-CNG) | L18: =LFG!O2 -> 66.96681605
C19: Other Thermal energy, HHV in MMBtu | E19: =LFG!G32 -> 0 | G19: Other Electricity, kWh | H19: =LFG!O32 -> 0 | J19: =LFG!P2 -> Pathway Description: Landfill Gas extracted from Landfill City (XX), processed in (YY), pipelined to California for liquefaction, then transported by truck to California LNG stations, re-gasified and compresses to Liquefied CNG
C21: Biomethane Production
C22: Biomethane, HHV MMBtu | E22: =LFG!I32 -> 2770905 | G22: LNG Transport
C23: Methane Content, % CH4 | G23: By HDD Truck, miles | H23: =LFG!Q11 -> 200
C24: Natural Gas Transport | G24: By LNG Truck, miles | H24: =LFG!Q14 -> 0
C25: NG Transport Electricity Mix | E25: =LFG!A105 -> 1-US Ave Mix
C26: Pipeline Distance to Centroid of CNG stations, miles | E26: =LFG!J14 -> 2500 | G26: Liquefied CNG(or L-CNG) Production
C27: Pipeline Distance to LNG facility, miles | E27: =LFG!J20 -> 2000 | G27: Total L-CNG, HHV in SCU | H27: =LFG!F131 -> 0

Sheet Summary old (hidden)
A1: Summary of the Fuel Pathway (For ARB Staff Use Only)
A2: Applicant: | D2: Fuel | E2: CNG | G2: Fuel Production Electricity Mix | I2: =EtOH!BF31 -> 7-MROW Mix
A3: Description:
A4: Feedstock Production | D4: Fuel Production | G4: Different Scenarios of Ethanol Production | I4: Carbon Intensity, g/MJ | J4: Correspondent Volumes, gallons
A5: Corn Use, bushels | B5: =EtOH!D59 -> 6840000 | D5: Total Undenatured Ethanol, gallons | E5: =EtOH!AU59+EtOH!BB59 -> 103200000 | G5: Corn Ethanol | H5: Dry DG | I5: =EtOH!I246 -> 0 | J5: =EtOH!J198 -> 0
A6: Sorghum Use, bushels | B6: =EtOH!K59 -> 16170000 | D6: Starch Ethanol, gallons | E6: =EtOH!AU59 -> 103200000 | H6: Modified DG | I6: =EtOH!I247 -> 0 | J6: =EtOH!J205 -> 0
A7: Ethanol Yield, gal/bu | B7: =EtOH!E71 -> 4.485006519 | D7: Fiber Ethanol, gallons | E7: =EtOH!BB59 -> 0 | H7: Wet DG | I7: =EtOH!I248 -> 0 | J7: =EtOH!J211 -> 0
A8: Feedstock Transport | D8: Energy Consumption | G8: Sorghum Ethanol | H8: Dry DG | I8: =EtOH!I250 -> 0 | J8: =EtOH!J250 -> 0
D9: Natural, HHV in MMBtu | E9: =EtOH!BD59 -> 2400000 | H9: Modified DG | I9: =EtOH!I251 -> 0 | J9: =EtOH!J251 -> 0
A10: Corn Transport by HD Truck, miles | B10: =EtOH!G59 -> 80 | D10: Coal, HHV in tons | E10: =EtOH!BJ59 -> 0 | H10: Wet DG | I10: =EtOH!I252 -> 0 | J10: =EtOH!J252 -> 0
A11: Corn Transport by Rail, miles | B11: =EtOH!I59 -> 0 | D11: Electricity, kWh | E11: =EtOH!BK59 -> 48000000 | G11: Corn Fiber Ethanol | I11: =EtOH!#REF! ->  | J11: =EtOH!BB59 -> 0
G12: Corn Ethanol | H12: Composite DG | I12: =EtOH!I245 -> 62.54052065 | J12: =EtOH!F198+EtOH!BB59 -> 103200000
A13: Sorghum Transport by HD Truck, miles | B13: =EtOH!N59 -> 80 | G13: Sorghum Ethanol | H13: Composite DG | I13: =EtOH!N200 -> 69.80368641 | J13: =EtOH!N205 -> 72522555.41
A14: Sorghum Transport by Rail, miles | B14: =EtOH!P59 -> 0
D15: Chemical Usage for Cellulosic
A16: Other Feedstock Transport by HD Truck, miles | D16: Cellulosic Enzyme, lbs | E16: =EtOH!AY59 -> 0
A17: Other Feedstock Transport by Rail, miles
A18: Co-Product Yield, bone-dry lb/gal | B18: =(B19*(1-B20)+B22*(1-B23)+B25*(1-B26)+B27*(1-References!C168)+B28*(1-References!C169))*2000/E5 -> 4.889504845
A19: Dry Distiller Grains, tons | B19: =EtOH!R59 -> 96000 | D19: Fuel Transport
A20: Moisture, % | B20: =EtOH!U59 -> 0.1132583333 | D20: By HD Truck, miles | E20: =EtOH!BN37 -> 100
A21: Drying Energy, HHV in MMBtu | B21: =EtOH!V59 -> 0 | D21: By Rail, miles | E21: =EtOH!BN35 -> 1800
A22: Modified Distiller Grains, tons | B22: =EtOH!X59 -> 0 | D22: By Barge, miles | E22: =EtOH!BN39 -> 0
A23: Moisture, % | B23: =EtOH!AA59 -> 0.55
A24: Drying Energy, HHV in MMBtu | B24: =EtOH!AB59 -> 0
A25: Wet Distiller Grains, tons | B25: =EtOH!AD59 -> 480000
A26: Moisture, % | B26: =EtOH!AG59 -> 0.6636375
A27: Syrup DGS, tons | B27: =EtOH!AI59 -> 0
A28: Corn Oil, tons | B28: =EtOH!AM59/2000 -> 5775
A29: Select Feedstock | B29: Feedstock 1 | C29: Feedstock 2 | D29: Feedstock 3 | E29: Feedstock 4 | F29: Feedstock 5 | G29: Feedstock 6 | H29: Feedstock 7 | I29: Feedstock 8 | J29: Feedstock 9 | K29: Feedstock 10 | L29: Feedstock 11 | M29: Feedstock 12
B30: Corn | C30: Corn | D30: Corn | E30: Corn | F30: Cellulosic (Fiber) | G30: Grain Sorghum | H30: Grain Sorghum | I30: Grain Sorghum | J30: Grain Sorghum | K30: None | L30: None | M30: None
A31: Feedstock Production Electricity Mix Resources | B31: 1-U.S Ave Mix | C31: 1-U.S Ave Mix | D31: 1-U.S Ave Mix | E31: 1-U.S Ave Mix | F31: 1-U.S Ave Mix | G31: 1-U.S Ave Mix | H31: 1-U.S Ave Mix | I31: 1-U.S Ave Mix | J31: 1-U.S Ave Mix
A32: Crude Sources | B32: U.S Crude | C32: U.S Crude | D32: U.S Crude | E32: U.S Crude | F32: U.S Crude | G32: U.S Crude | H32: U.S Crude | I32: U.S Crude | J32: U.S Crude | K32: U.S Crude | L32: U.S Crude | M32: U.S Crude | R32: Position | S32: ID
A33: Natural Gas Sources | B33: North American NG | C33: North American NG | D33: North American NG | E33: North American NG | F33: North American NG | G33: North American NG | H33: North American NG | I33: North American NG | J33: North American NG | K33: North American NG | L33: North American NG | M33: North American NG | R33: 1 | S33: =B30&" "&R33 -> Corn 1
A34: Types of Co-products | B34: =B127 -> Composite DGS | C34: =C127 -> Wet DGS | D34: Modified DGS | E34: Dry DGS | G34: Composite DGS | H34: Wet DGS | I34: Modified DGS | J34: Dry DGS | R34: 2 | S34: =C30&" "&R34 -> Corn 2
A35: Composite Distiller Grains CI | B35: =B152 -> 57.65462997 | F35: =F152 ->  | G35: =G152 -> 96.28676328 | R35: 3 | S35: =D30&" "&R35 -> Corn 3
A36: Fuel Volumes, gallons | B36: =E48 -> 66778004 | F36: =E58 -> 307870 | R36: 4 | S36: =E30&" "&R36 -> Corn 4
A37: Dry Distiller Grains | E37: =E152 ->  | J37: =J152 -> 89.12979039 | R37: 5 | S37: =F30&" "&R37 -> Cellulosic (Fiber) 5
A38: Fuel Volumes, gallons | E38: =E48*C104 -> 3506074.56 | R38: 6 | S38: =G30&" "&R38 -> Grain Sorghum 6
A39: Modified Distiller Grains | D39: =D152 -> N/A | I39: =I152 -> 81.97281751 | R39: 7 | S39: =H30&" "&R39 -> Grain Sorghum 7
A40: Fuel Volumes, gallons | D40: =E48*C106 -> 0 | R40: 8 | S40: =I30&" "&R40 -> Grain Sorghum 8
A41: Wet Distiller Grains | C41: =C152 -> 46.62234949 | H41: =H152 -> 74.81584462 | R41: 9 | S41: =J30&" "&R41 -> Grain Sorghum 9
A42: Fuel Volumes, gallons | C42: =E48*C108 -> 1488116.105 | R42: 10 | S42: =K30&" "&R42 -> None 10
A43: Feedstock Use, bushels | B43: =B5 -> 6840000 | G43: =B6 -> 16170000 | R43: 11 | S43: =L30&" "&R43 -> None 11
R44: 12 | S44: =M30&" "&R44 -> None 12
A46: Feedstock Production | D46: Fuel Production
A47: Feedstock 1 Transport | C47: Shares | D47: Fuel Yield | E47: =E49/(B43+G43)*0+2.75 -> 2.75 | F47: =CONCATENATE(F48,"/bushels") -> Gallons/bushels
A48: By Heavy Duty Truck, miles | B48: =B10 -> 80 | C48: 0.5 | D48: Total Ethanol Production | E48: =E49+E58 -> 66778004 | F48: Gallons
A49: By Rail, miles | B49: =B11 -> 0 | C49: 0.5 | D49: Corn Ethanol (Composite DG) | E49: 66470134 | F49: Gallons
A50: By Barge, miles | B50: 0 | C50: 0 | D50: Corn Ethanol (Wet DG) | E50: =E49*C104 -> 3489910.327 | F50: Gallons
A51: Feedstock 2 Transport | D51: Corn Ethanol (Modified DG) | E51: =E49*C106 -> 0 | F51: Gallons
A52: By Heavy Duty Truck, miles | B52: 0 | D52: Corn Ethanol (Dry DG) | E52: =E49*C108 -> 1481255.368 | F52: Gallons
A53: By Rail, miles | B53: 0 | D53: Sorghum Ethanol (Composite DG) | F53: Gallons
A54: By Barge, miles | B54: 0 | D54: Sorghum Ethanol (Wet DG) | F54: Gallons
A55: Feedstock 3 Transport | D55: Sorghum Ethanol (Modified DG) | F55: Gallons
A56: By Heavy Duty Truck, miles | B56: 0 | D56: Sorghum Ethanol (Dry DG) | F56: Gallons
A57: By Rail, miles | B57: 0
A58: By Barge, miles | B58: 0 | D58: Cellulosic Ethanol | E58: 307870 | F58: Gallons
A59: Feedstock 4 Transport
A60: By Heavy Duty Truck, miles | B60: 0
A61: By Rail, miles | B61: 0
A62: By Barge, miles | B62: 0
D64: Energy Usage (in High Heating Values)
D65: Residual oil | E65: 0 | F65: Gallons
D66: Diesel fuel | E66: 0 | F66: Gallons
D67: Gasoline | E67: 0 | F67: Gallons
D68: Natural gas | E68: =E9 -> 2400000 | F68: MMBtu | G68: =E68*Fuel_Specs!I59*10^6/E48 -> 32453.80021
D69: Coal | E69: =EtOH!BJ59 -> 0 | F69: Dry Tons | G69: =E69*Fuel_Specs!B66/E48 -> 0
D70: Liquefied petroleum gas | E70: 0 | F70: Gallons
D71: Biomass | E71: 0 | F71: Dry Tons
D72: Electricity | E72: =E11 -> 48000000 | F72: kWh | G72: =E72*Fuel_Specs!F140/E48 -> 2452.645916
D73: Renewable natural gas | E73: 0 | F73: MMBtu
D74: Other | F74: Gallons
D75: Drying Energy
D76: NG use for Mod. DGS | E76: 500000 | F76: MMBtu
D77: NG use for Dry DGS | E77: 1000000 | F77: MMBtu
D78: Chemicals Usage
D79: Alpha Amylase | E79: 2.612692051 | F79: grams
D80: Gluco Amylase | E80: 5.621246534 | F80: grams
D81: Cellulase | E81: 0 | F81: grams
D82: Yeast | E82: 2.85020951 | F82: grams
D83: Sulfuric acid (H2SO4 | E83: 4.835380434 | F83: grams
D84: Urea | E84: 18.52636182 | F84: grams
D85: NaOH | E85: 23.23712476 | F85: grams
D86: CaO | E86: 11.0841481 | F86: grams
D91: Other - Specify here (grams)
A100: Corn Oil Displaced Soy Oil | B100: 14750000
A102: Co-Product Credit | B102: =(B103*(1-B104)+B105*(1-B106)+(B107+B109+B110/2000)*(1-B108))*2000/E48 -> 3.486562731 | C102: Bone-dry lbs.
A103: Wet DGS, ton | B103: 232019 | C103: =B103*(1-B104) -> 81206.65
A104: Moisture Content, % | B104: 0.65 | C104: =C103/($C$103+$C$105+$C$107+$C$109+$C$110) -> 0.05250343451
A105: Medium DGS, ton | B105: 0 | C105: =B105*(1-B106) -> 0
A106: Moisture Content, % | B106: 0.55 | C106: =C105/($C$103+$C$105+$C$107+$C$109+$C$110) -> 0
A107: Dry DGS, ton | B107: 38297 | C107: =B107*(1-B108) -> 34467.3
A108: Moisture Content, % | B108: 0.1 | C108: =C107/($C$103+$C$105+$C$107+$C$109+$C$110) -> 0.02228452508
A109: Syrup DGS, ton | B109: 26 | C109: =B109*(1-30%) -> 18.2
A110: Corn Oil,lbs | B110: 1590000 | C110: =B110*(1-10%) -> 1431000
A111: Ethanol Transport
A112: By Heavy Duty Truck, miles | B112: 100 | C112: 1
A113: By Rail, miles | B113: 1000 | C113: 1
A114: By Barge, miles | B114: 0 | C114: 1
A115: By Ocean Tanker, miles | B115: 0 | C115: 1
A116: By Pipeline, miles | B116: 0 | C116: 1
A118: Indirect Land Use
A120: Denaturant
A122: Tailpipe Emissions
B124: Feedstock 1 | C124: Feedstock 2 | D124: Feedstock 3 | E124: Feedstock 4 | F124: Feedstock 5 | G124: Feedstock 6 | H124: Feedstock 7 | I124: Feedstock 8 | J124: Feedstock 9 | K124: Feedstock 10 | L124: Feedstock 11 | M124: Feedstock 12
A125: Fuel | B125: =E2 -> CNG
A126: Feedstock | B126: =B30 -> Corn | C126: =IF(B107=0,"None",C30) -> Corn | D126: =IF(B105=0,"None",D30) -> None | E126: =IF(B107=0,"None",E30) -> Corn | F126: =F30 -> Cellulosic (Fiber) | G126: =G30 -> Grain Sorghum | H126: =H30 -> Grain Sorghum | I126: =I30 -> Grain Sorghum | J126: =J30 -> Grain Sorghum | K126: =K30 -> None | L126: None | M126: None
A127: Co-product Types | B127: Composite DGS | C127: Wet DGS | D127: Modified DGS | E127: Dry DGS | G127: Composite DGS | H127: Wet DGS | I127: Modified DGS | J127: Dry DGS
A128: Farming | B128: =HLOOKUP(References!$P$15,'EF Table'!$C$2:$AF$107,3,FALSE)*$E$47/2.75 -> 0 | C128: =HLOOKUP(References!$P$15,'EF Table'!$C$2:$AF$107,3,FALSE)*$E$47/2.75 -> 0 | D128: =HLOOKUP(References!$P$15,'EF Table'!$C$2:$AF$107,3,FALSE)*$E$47/2.75 -> 0 | E128: =HLOOKUP(References!$P$15,'EF Table'!$C$2:$AF$107,3,FALSE)*$E$47/2.75 -> 0 | F128: 0 | G128: =HLOOKUP(References!$P$15,'EF Table'!$C$2:$AF$107,38,FALSE)*$E$47/2.75 -> 0 | H128: =HLOOKUP(References!$P$15,'EF Table'!$C$2:$AF$107,38,FALSE)*$E$47/2.75 -> 0 | I128: =HLOOKUP(References!$P$15,'EF Table'!$C$2:$AF$107,38,FALSE)*$E$47/2.75 -> 0 | J128: =HLOOKUP(References!$P$15,'EF Table'!$C$2:$AF$107,38,FALSE)*$E$47/2.75 -> 0
A129: Fertilizers | B129: =HLOOKUP(References!$P$15,'EF Table'!$C$2:$AF$107,4,FALSE)*$E$47/2.75 -> 0 | C129: =HLOOKUP(References!$P$15,'EF Table'!$C$2:$AF$107,4,FALSE)*$E$47/2.75 -> 0 | D129: =HLOOKUP(References!$P$15,'EF Table'!$C$2:$AF$107,4,FALSE)*$E$47/2.75 -> 0 | E129: =HLOOKUP(References!$P$15,'EF Table'!$C$2:$AF$107,4,FALSE)*$E$47/2.75 -> 0 | F129: 0 | G129: =HLOOKUP(References!$P$15,'EF Table'!$C$2:$AF$107,39,FALSE)*$E$47/2.75 -> 7.031202707 | H129: =HLOOKUP(References!$P$15,'EF Table'!$C$2:$AF$107,39,FALSE)*$E$47/2.75 -> 7.031202707 | I129: =HLOOKUP(References!$P$15,'EF Table'!$C$2:$AF$107,39,FALSE)*$E$47/2.75 -> 7.031202707 | J129: =HLOOKUP(References!$P$15,'EF Table'!$C$2:$AF$107,39,FALSE)*$E$47/2.75 -> 7.031202707
A130: N2O in Soil | B130: =HLOOKUP(References!$P$15,'EF Table'!$C$2:$AF$107,5,FALSE)*$E$47/2.75 -> 0 | C130: =HLOOKUP(References!$P$15,'EF Table'!$C$2:$AF$107,5,FALSE)*$E$47/2.75 -> 0 | D130: =HLOOKUP(References!$P$15,'EF Table'!$C$2:$AF$107,5,FALSE)*$E$47/2.75 -> 0 | E130: =HLOOKUP(References!$P$15,'EF Table'!$C$2:$AF$107,5,FALSE)*$E$47/2.75 -> 0 | F130: 0 | G130: =HLOOKUP(References!$P$15,'EF Table'!$C$2:$AF$107,40,FALSE)*$E$47/2.75 -> 15.82401988 | H130: =HLOOKUP(References!$P$15,'EF Table'!$C$2:$AF$107,40,FALSE)*$E$47/2.75 -> 15.82401988 | I130: =HLOOKUP(References!$P$15,'EF Table'!$C$2:$AF$107,40,FALSE)*$E$47/2.75 -> 15.82401988 | J130: =HLOOKUP(References!$P$15,'EF Table'!$C$2:$AF$107,40,FALSE)*$E$47/2.75 -> 15.82401988
A131: Feedstock Transport | B131: =HLOOKUP(References!$P$15,'EF Table'!$C$2:$AF$40,7,FALSE)+HLOOKUP(References!$P$15,'EF Table'!$C$2:$AF$40,8,FALSE)*$B$48/50*$C$48+HLOOKUP(References!$P$15,'EF Table'!$C$2:$AF$40,9,FALSE)*$B$49/500*$C$49+HLOOKUP(References!$P$15,'EF Table'!$C$2:$AF$40,10,FALSE)*$B$50/500*$C$50 -> 0 | C131: =HLOOKUP(References!$P$15,'EF Table'!$C$2:$AF$40,7,FALSE)+HLOOKUP(References!$P$15,'EF Table'!$C$2:$AF$40,8,FALSE)*$B$48/50+HLOOKUP(References!$P$15,'EF Table'!$C$2:$AF$40,9,FALSE)*$B$49/1000 -> 0 | D131: =HLOOKUP(References!$P$15,'EF Table'!$C$2:$AF$40,7,FALSE)+HLOOKUP(References!$P$15,'EF Table'!$C$2:$AF$40,8,FALSE)*$B$48/50+HLOOKUP(References!$P$15,'EF Table'!$C$2:$AF$40,9,FALSE)*$B$49/1000 -> 0 | E131: =HLOOKUP(References!$P$15,'EF Table'!$C$2:$AF$40,7,FALSE)+HLOOKUP(References!$P$15,'EF Table'!$C$2:$AF$40,8,FALSE)*$B$48/50+HLOOKUP(References!$P$15,'EF Table'!$C$2:$AF$40,9,FALSE)*$B$49/1000 -> 0 | F131: 0 | G131: =HLOOKUP(References!$P$15,'EF Table'!$C$2:$AF$40,7,FALSE)+HLOOKUP(References!$P$15,'EF Table'!$C$2:$AF$40,8,FALSE)*$B$52/50+HLOOKUP(References!$P$15,'EF Table'!$C$2:$AF$40,9,FALSE)*$B$49/1000 -> 0 | H131: =HLOOKUP(References!$P$15,'EF Table'!$C$2:$AF$40,7,FALSE)+HLOOKUP(References!$P$15,'EF Table'!$C$2:$AF$40,8,FALSE)*$B$52/50+HLOOKUP(References!$P$15,'EF Table'!$C$2:$AF$40,9,FALSE)*$B$49/1000 -> 0 | I131: =HLOOKUP(References!$P$15,'EF Table'!$C$2:$AF$40,7,FALSE)+HLOOKUP(References!$P$15,'EF Table'!$C$2:$AF$40,8,FALSE)*$B$52/50+HLOOKUP(References!$P$15,'EF Table'!$C$2:$AF$40,9,FALSE)*$B$49/1000 -> 0 | J131: =HLOOKUP(References!$P$15,'EF Table'!$C$2:$AF$40,7,FALSE)+HLOOKUP(References!$P$15,'EF Table'!$C$2:$AF$40,8,FALSE)*$B$52/50+HLOOKUP(References!$P$15,'EF Table'!$C$2:$AF$40,9,FALSE)*$B$49/1000 -> 0
A132: Co-product Credits | B132: =HLOOKUP(References!$P$15,'EF Table'!$C$2:$AF$107,11,FALSE)*$B$102/5.5636 -> 0 | C132: 0
A133: Soy Oil Displacement Credit
A134: Ethanol Production | B134: =SUM(B135:B143) -> 17.59384112 | C134: =SUM(C135:C143) -> 6.561560643 | D134: =SUM(D135:D143) -> 10.20687211 | E134: =SUM(E135:E143) -> 13.85218358 | F134: =B134 -> 17.59384112 | G134: =SUM(G135:G143) -> 17.49749505 | H134: =SUM(H135:H143) -> 6.561560643 | I134: =SUM(I135:I143) -> 10.20687211 | J134: 13.85218358
A135: Residual oil | B135: =($E$65*Fuel_Specs!$B$28/$E$48*(100%*EF!$L16+'EF Table'!$C$202*LossFactor!$G$11+'EF Table'!$C$19))/10^6 -> 0 | C135: =(E65*Fuel_Specs!$B$28/$E$49*(100%*EF!$L$16+'EF Table'!$C$202*LossFactor!$G$11+'EF Table'!$C$19))/10^6 -> 0 | D135: =($E65*Fuel_Specs!$B$28/$E$49*(100%*EF!$L$16+'EF Table'!$C$202*LossFactor!$G$11+'EF Table'!$C$19))/10^6 -> 0 | E135: =($E65*Fuel_Specs!$B$28/$E$49*(100%*EF!$L$16+'EF Table'!$C$202*LossFactor!$G$11+'EF Table'!$C$19))/10^6 -> 0 | G135: =($E$65*Fuel_Specs!$B$28/$E$49*(100%*EF!$L16+'EF Table'!$C$202*LossFactor!$G$11+'EF Table'!$C$19))/10^6 -> 0 | H135: =($E$65*Fuel_Specs!$B$28/$E$49*(100%*EF!$L16+'EF Table'!$C$202*LossFactor!$G$11+'EF Table'!$C$19))/10^6 -> 0 | I135: =($E$65*Fuel_Specs!$B$28/$E$49*(100%*EF!$L16+'EF Table'!$C$202*LossFactor!$G$11+'EF Table'!$C$19))/10^6 -> 0 | J135: =($E$65*Fuel_Specs!$B$28/$E$49*(100%*EF!$L16+'EF Table'!$C$202*LossFactor!$G$11+'EF Table'!$C$19))/10^6 -> 0
A136: Diesel fuel | B136: =($E$66*Fuel_Specs!$B$20/$E$48*(20%*EF!$R6+80%*EF!$S6+'EF Table'!$C$202*LossFactor!$H$11+HLOOKUP(References!$S$15,'EF Table'!$C$2:$AF$40,16,FALSE)))/10^6 -> 0 | C136: =(E66*Fuel_Specs!$B$20/$E$49*(20%*EF!$R$6+80%*EF!$S6+'EF Table'!$C$202*LossFactor!$H$11+HLOOKUP(References!$S$15,'EF Table'!$C$2:$AF$40,16,FALSE)))/10^6 -> 0 | D136: =($E66*Fuel_Specs!$B$20/$E$49*(20%*EF!$R$6+80%*EF!$S6+'EF Table'!$C$202*LossFactor!$H$11+HLOOKUP(References!$S$15,'EF Table'!$C$2:$AF$40,16,FALSE)))/10^6 -> 0 | E136: =($E66*Fuel_Specs!$B$20/$E$49*(20%*EF!$R$6+80%*EF!$S6+'EF Table'!$C$202*LossFactor!$H$11+HLOOKUP(References!$S$15,'EF Table'!$C$2:$AF$40,16,FALSE)))/10^6 -> 0 | G136: =($E$66*Fuel_Specs!$B$20/$E$49*(20%*EF!$R6+80%*EF!$S6+'EF Table'!$C$202*LossFactor!$H$11+HLOOKUP(References!$S$15,'EF Table'!$C$2:$AF$40,16,FALSE)))/10^6 -> 0 | H136: =($E$66*Fuel_Specs!$B$20/$E$49*(20%*EF!$R6+80%*EF!$S6+'EF Table'!$C$202*LossFactor!$H$11+HLOOKUP(References!$S$15,'EF Table'!$C$2:$AF$40,16,FALSE)))/10^6 -> 0 | I136: =($E$66*Fuel_Specs!$B$20/$E$49*(20%*EF!$R6+80%*EF!$S6+'EF Table'!$C$202*LossFactor!$H$11+HLOOKUP(References!$S$15,'EF Table'!$C$2:$AF$40,16,FALSE)))/10^6 -> 0 | J136: =($E$66*Fuel_Specs!$B$20/$E$49*(20%*EF!$R6+80%*EF!$S6+'EF Table'!$C$202*LossFactor!$H$11+HLOOKUP(References!$S$15,'EF Table'!$C$2:$AF$40,16,FALSE)))/10^6 -> 0
A137: Gasoline | B137: =$E$67*Fuel_Specs!$B$16/$E$48*(EF!$U6+'EF Table'!$C$202*LossFactor!$B$11+HLOOKUP(References!$S$15,'EF Table'!$C$2:$AF$40,17,FALSE))/10^6 -> 0 | C137: =E67*Fuel_Specs!$B$16/$E$49*(EF!$U6+'EF Table'!$C$202*LossFactor!$B$11+HLOOKUP(References!$S$15,'EF Table'!$C$2:$AF$40,17,FALSE))/10^6 -> 0 | D137: =$E67*Fuel_Specs!$B$16/$E$49*(EF!$U6+'EF Table'!$C$202*LossFactor!$B$11+HLOOKUP(References!$S$15,'EF Table'!$C$2:$AF$40,17,FALSE))/10^6 -> 0 | E137: =$E67*Fuel_Specs!$B$16/$E$49*(EF!$U6+'EF Table'!$C$202*LossFactor!$B$11+HLOOKUP(References!$S$15,'EF Table'!$C$2:$AF$40,17,FALSE))/10^6 -> 0 | G137: =$E$67*Fuel_Specs!$B$16/$E$49*(EF!$U6+'EF Table'!$C$202*LossFactor!$B$11+HLOOKUP(References!$S$15,'EF Table'!$C$2:$AF$40,17,FALSE))/10^6 -> 0 | H137: =$E$67*Fuel_Specs!$B$16/$E$49*(EF!$U6+'EF Table'!$C$202*LossFactor!$B$11+HLOOKUP(References!$S$15,'EF Table'!$C$2:$AF$40,17,FALSE))/10^6 -> 0 | I137: =$E$67*Fuel_Specs!$B$16/$E$49*(EF!$U6+'EF Table'!$C$202*LossFactor!$B$11+HLOOKUP(References!$S$15,'EF Table'!$C$2:$AF$40,17,FALSE))/10^6 -> 0 | J137: =$E$67*Fuel_Specs!$B$16/$E$49*(EF!$U6+'EF Table'!$C$202*LossFactor!$B$11+HLOOKUP(References!$S$15,'EF Table'!$C$2:$AF$40,17,FALSE))/10^6 -> 0
A138: Natural gas | B138: =$E$68*Fuel_Specs!$I$59*10^6/$E$48*(50%*EF!$B$16+50%*EF!$C$16+HLOOKUP(References!$S$15,'EF Table'!$C$2:$AF$40,23,FALSE))*LossFactor!$J$4/Fuel_Specs!$B$31 -> 17.41615208 | C138: =(E68-E76-E77)*Fuel_Specs!$I$59*10^6/$E$49*(50%*EF!$B$16+50%*EF!$C$16+HLOOKUP(References!$S$15,'EF Table'!$C$2:$AF$40,18,FALSE))/Fuel_Specs!$B$31*LossFactor!$J$4*LossFactor!$L$4 -> 6.561560643 | D138: =($E68-E77)*Fuel_Specs!$I$59*10^6/$E$49*(50%*EF!$B$16+50%*EF!$C$16+HLOOKUP(References!$S$15,'EF Table'!$C$2:$AF$40,18,FALSE))/Fuel_Specs!$B$31*LossFactor!$J$4*LossFactor!$L$4 -> 10.20687211 | E138: =($E68-$E76)*Fuel_Specs!$I$59*10^6/$E$49*(50%*EF!$B$16+50%*EF!$C$16+HLOOKUP(References!$S$15,'EF Table'!$C$2:$AF$40,18,FALSE))/Fuel_Specs!$B$31*LossFactor!$J$4*LossFactor!$L$4 -> 13.85218358 | G138: =($E$68)*Fuel_Specs!$I$59*10^6/$E$49*(50%*EF!$B$16+50%*EF!$C$16+HLOOKUP(References!$S$15,'EF Table'!$C$2:$AF$40,18,FALSE))/Fuel_Specs!$B$31*LossFactor!$J$4*LossFactor!$L$4 -> 17.49749505 | H138: =($E$68-$E$76-$E$77)*Fuel_Specs!$I$59*10^6/$E$49*(50%*EF!$B$16+50%*EF!$C$16+HLOOKUP(References!$S$15,'EF Table'!$C$2:$AF$40,18,FALSE))/Fuel_Specs!$B$31*LossFactor!$J$4*LossFactor!$L$4 -> 6.561560643 | I138: =($E$68-$E$77)*Fuel_Specs!$I$59*10^6/$E$49*(50%*EF!$B$16+50%*EF!$C$16+HLOOKUP(References!$S$15,'EF Table'!$C$2:$AF$40,18,FALSE))/Fuel_Specs!$B$31*LossFactor!$J$4*LossFactor!$L$4 -> 10.20687211 | J138: =($E$68-$E$76)*Fuel_Specs!$I$59*10^6/$E$49*(50%*EF!$B$16+50%*EF!$C$16+HLOOKUP(References!$S$15,'EF Table'!$C$2:$AF$40,18,FALSE))/Fuel_Specs!$B$31*LossFactor!$J$4*LossFactor!$L$4 -> 13.85218358
A139: Coal | B139: =$E$69*Fuel_Specs!$B$66/$E$48*(100%*EF!$AC16+HLOOKUP(References!$S$15,'EF Table'!$C$2:$AF$40,24,FALSE))/Fuel_Specs!$B$31*LossFactor!$J$4 -> 0 | C139: =E69*Fuel_Specs!$B$66/$E$49*(100%*EF!$AC6+HLOOKUP(References!$S$15,'EF Table'!$C$2:$AF$40,19,FALSE))/Fuel_Specs!$B$31*LossFactor!$J$4*LossFactor!$L$4 -> 0 | D139: =E69*Fuel_Specs!$B$66/$E$49*(100%*EF!$AC6+HLOOKUP(References!$S$15,'EF Table'!$C$2:$AF$40,19,FALSE))/Fuel_Specs!$B$31*LossFactor!$J$4*LossFactor!$L$4 -> 0 | E139: =E69*Fuel_Specs!$B$66/$E$49*(100%*EF!$AC6+HLOOKUP(References!$S$15,'EF Table'!$C$2:$AF$40,19,FALSE))/Fuel_Specs!$B$31*LossFactor!$J$4*LossFactor!$L$4 -> 0 | G139: =$E$69*Fuel_Specs!$B$66/$E$49*(100%*EF!$AC6+HLOOKUP(References!$S$15,'EF Table'!$C$2:$AF$40,19,FALSE))/Fuel_Specs!$B$31*LossFactor!$J$4*LossFactor!$L$4 -> 0 | H139: =$E$69*Fuel_Specs!$B$66/$E$49*(100%*EF!$AC6+HLOOKUP(References!$S$15,'EF Table'!$C$2:$AF$40,19,FALSE))/Fuel_Specs!$B$31*LossFactor!$J$4*LossFactor!$L$4 -> 0 | I139: =$E$69*Fuel_Specs!$B$66/$E$49*(100%*EF!$AC6+HLOOKUP(References!$S$15,'EF Table'!$C$2:$AF$40,19,FALSE))/Fuel_Specs!$B$31*LossFactor!$J$4*LossFactor!$L$4 -> 0 | J139: =$E$69*Fuel_Specs!$B$66/$E$49*(100%*EF!$AC6+HLOOKUP(References!$S$15,'EF Table'!$C$2:$AF$40,19,FALSE))/Fuel_Specs!$B$31*LossFactor!$J$4*LossFactor!$L$4 -> 0
A140: Liquefied petroleum gas | B140: =$E$70*Fuel_Specs!$B$35/$E$48*(EF!$Z6+35%*('EF Table'!$C$202*LossFactor!$F$11+'EF Table'!$C$22)+65%*('EF Table'!C23))/10^6 -> 0 | C140: =E70*Fuel_Specs!$B$35/$E$49*(EF!$Z6+35%*('EF Table'!$C$202*LossFactor!$F$11+'EF Table'!$C$22)+65%*('EF Table'!C23))/10^6 -> 0 | D140: =E70*Fuel_Specs!$B$35/$E$49*(EF!$Z6+35%*('EF Table'!$C$202*LossFactor!$F$11+'EF Table'!$C$22)+65%*('EF Table'!D23))/10^6 -> 0 | E140: =E70*Fuel_Specs!$B$35/$E$49*(EF!$Z6+35%*('EF Table'!$C$202*LossFactor!$F$11+'EF Table'!$C$22)+65%*('EF Table'!E23))/10^6 -> 0 | G140: =$E$70*Fuel_Specs!$B$35/$E$49*(EF!$Z6+35%*('EF Table'!$C$202*LossFactor!$F$11+'EF Table'!$C$22)+65%*('EF Table'!H23))/10^6 -> 0 | H140: =$E$70*Fuel_Specs!$B$35/$E$49*(EF!$Z6+35%*('EF Table'!$C$202*LossFactor!$F$11+'EF Table'!$C$22)+65%*('EF Table'!I23))/10^6 -> 0 | I140: =$E$70*Fuel_Specs!$B$35/$E$49*(EF!$Z6+35%*('EF Table'!$C$202*LossFactor!$F$11+'EF Table'!$C$22)+65%*('EF Table'!J23))/10^6 -> 0 | J140: =$E$70*Fuel_Specs!$B$35/$E$49*(EF!$Z6+35%*('EF Table'!$C$202*LossFactor!$F$11+'EF Table'!$C$22)+65%*('EF Table'!K23))/10^6 -> 0
A141: Biomass | B141: =$E$71*Fuel_Specs!$B$79/$E$48*(100%*EF!$AV$16+HLOOKUP(References!$S$15,'EF Table'!$C$2:$AF$40,21,FALSE)/Fuel_Specs!$B$79)/Fuel_Specs!$B$31*LossFactor!$J$4 -> 0 | C141: =E71*Fuel_Specs!$B$79/$E$49*(100%*EF!$AV$16+HLOOKUP(References!$S$15,'EF Table'!$C$2:$AF$40,21,FALSE)/Fuel_Specs!$B$79)/Fuel_Specs!$B$31*LossFactor!$J$4*LossFactor!$L$4 -> 0 | D141: =E71*Fuel_Specs!$B$79/$E$49*(100%*EF!$AV$16+HLOOKUP(References!$S$15,'EF Table'!$C$2:$AF$40,21,FALSE)/Fuel_Specs!$B$79)/Fuel_Specs!$B$31*LossFactor!$J$4*LossFactor!$L$4 -> 0 | E141: =E71*Fuel_Specs!$B$79/$E$49*(100%*EF!$AV$16+HLOOKUP(References!$S$15,'EF Table'!$C$2:$AF$40,21,FALSE)/Fuel_Specs!$B$79)/Fuel_Specs!$B$31*LossFactor!$J$4*LossFactor!$L$4 -> 0 | G141: =$E$71*Fuel_Specs!$B$79/$E$49*(100%*EF!$AV$16+HLOOKUP(References!$S$15,'EF Table'!$C$2:$AF$40,21,FALSE)/Fuel_Specs!$B$79)/Fuel_Specs!$B$31*LossFactor!$J$4*LossFactor!$L$4 -> 0 | H141: =$E$71*Fuel_Specs!$B$79/$E$49*(100%*EF!$AV$16+HLOOKUP(References!$S$15,'EF Table'!$C$2:$AF$40,21,FALSE)/Fuel_Specs!$B$79)/Fuel_Specs!$B$31*LossFactor!$J$4*LossFactor!$L$4 -> 0 | I141: =$E$71*Fuel_Specs!$B$79/$E$49*(100%*EF!$AV$16+HLOOKUP(References!$S$15,'EF Table'!$C$2:$AF$40,21,FALSE)/Fuel_Specs!$B$79)/Fuel_Specs!$B$31*LossFactor!$J$4*LossFactor!$L$4 -> 0 | J141: =$E$71*Fuel_Specs!$B$79/$E$49*(100%*EF!$AV$16+HLOOKUP(References!$S$15,'EF Table'!$C$2:$AF$40,21,FALSE)/Fuel_Specs!$B$79)/Fuel_Specs!$B$31*LossFactor!$J$4*LossFactor!$L$4 -> 0
A142: Electricity | B142: =$E$72*Fuel_Specs!$F$140/$E$48*(HLOOKUP(References!$S$15,'EF Table'!$C$2:$AF$47,27,FALSE))/Fuel_Specs!$B$31*LossFactor!$J$4 -> 0.1776890432 | C142: =E72*Fuel_Specs!$F$140/$E$49*(HLOOKUP(References!$S$15,'EF Table'!$C$2:$AF$47,22,FALSE))/Fuel_Specs!$B$31*LossFactor!$J$4*LossFactor!$L$4 -> 0 | D142: =E72*Fuel_Specs!$F$140/$E$49*(HLOOKUP(References!$S$15,'EF Table'!$C$2:$AF$47,22,FALSE))/Fuel_Specs!$B$31*LossFactor!$J$4*LossFactor!$L$4 -> 0 | E142: =E72*Fuel_Specs!$F$140/$E$49*(HLOOKUP(References!$S$15,'EF Table'!$C$2:$AF$47,22,FALSE))/Fuel_Specs!$B$31*LossFactor!$J$4*LossFactor!$L$4 -> 0 | G142: =$E$72*Fuel_Specs!$F$140/$E$49*(HLOOKUP(References!$S$15,'EF Table'!$C$2:$AF$47,22,FALSE))/Fuel_Specs!$B$31*LossFactor!$J$4*LossFactor!$L$4 -> 0 | H142: =$E$72*Fuel_Specs!$F$140/$E$49*(HLOOKUP(References!$S$15,'EF Table'!$C$2:$AF$47,22,FALSE))/Fuel_Specs!$B$31*LossFactor!$J$4*LossFactor!$L$4 -> 0 | I142: =$E$72*Fuel_Specs!$F$140/$E$49*(HLOOKUP(References!$S$15,'EF Table'!$C$2:$AF$47,22,FALSE))/Fuel_Specs!$B$31*LossFactor!$J$4*LossFactor!$L$4 -> 0 | J142: =$E$72*Fuel_Specs!$F$140/$E$49*(HLOOKUP(References!$S$15,'EF Table'!$C$2:$AF$47,22,FALSE))/Fuel_Specs!$B$31*LossFactor!$J$4*LossFactor!$L$4 -> 0
A143: Renewable natural gas | B143: =$E$73*Fuel_Specs!$I$59*10^6/$E$48*(100%*EF!$BH$16+HLOOKUP(References!$S$15,'EF Table'!$C$2:$AF$40,23,FALSE))/Fuel_Specs!$B$31*LossFactor!$J$4*LossFactor!$L$4 -> 0 | C143: =E73*Fuel_Specs!$I$59*10^6/$E$49*(100%*EF!$BH$16+HLOOKUP(References!$S$15,'EF Table'!$C$2:$AF$40,23,FALSE))/Fuel_Specs!$B$31*LossFactor!$J$4*LossFactor!$L$4 -> 0 | D143: =E73*Fuel_Specs!$I$59*10^6/$E$49*(100%*EF!$BH$16+HLOOKUP(References!$S$15,'EF Table'!$C$2:$AF$40,23,FALSE))/Fuel_Specs!$B$31*LossFactor!$J$4*LossFactor!$L$4 -> 0 | E143: =E73*Fuel_Specs!$I$59*10^6/$E$49*(100%*EF!$BH$16+HLOOKUP(References!$S$15,'EF Table'!$C$2:$AF$40,23,FALSE))/Fuel_Specs!$B$31*LossFactor!$J$4*LossFactor!$L$4 -> 0 | G143: =$E$73*Fuel_Specs!$I$59*10^6/$E$49*(100%*EF!$BH$16+HLOOKUP(References!$S$15,'EF Table'!$C$2:$AF$40,23,FALSE))/Fuel_Specs!$B$31*LossFactor!$J$4*LossFactor!$L$4 -> 0 | H143: =$E$73*Fuel_Specs!$I$59*10^6/$E$49*(100%*EF!$BH$16+HLOOKUP(References!$S$15,'EF Table'!$C$2:$AF$40,23,FALSE))/Fuel_Specs!$B$31*LossFactor!$J$4*LossFactor!$L$4 -> 0 | I143: =$E$73*Fuel_Specs!$I$59*10^6/$E$49*(100%*EF!$BH$16+HLOOKUP(References!$S$15,'EF Table'!$C$2:$AF$40,23,FALSE))/Fuel_Specs!$B$31*LossFactor!$J$4*LossFactor!$L$4 -> 0 | J143: =$E$73*Fuel_Specs!$I$59*10^6/$E$49*(100%*EF!$BH$16+HLOOKUP(References!$S$15,'EF Table'!$C$2:$AF$40,23,FALSE))/Fuel_Specs!$B$31*LossFactor!$J$4*LossFactor!$L$4 -> 0
A144: Other
A145: Chemical Use | B145: 1.803353946 | C145: =B145 -> 1.803353946 | D145: 1.803353946 | E145: 1.803353946 | F145: 1.803353946 | G145: 1.803353946 | H145: 1.803353946 | I145: =H145 -> 1.803353946 | J145: =I145 -> 1.803353946
A148: Ethanol Transport | B148: =$B$112*'EF Table'!C32/50*$C$112+$B$113/500*'EF Table'!$C$33*$C$113 -> 16.328 | C148: =$B$112*'EF Table'!$C$32/50*$C$112+$B$113/500*'EF Table'!$C$33*$C$113 -> 16.328 | D148: =$B$112*'EF Table'!$C$32/50*$C$112+$B$113/500*'EF Table'!$C$33*$C$113+$B$114/500*'EF Table'!C34*$C$114+B115/5000*'EF Table'!C35*$C$115 -> 16.328 | E148: =$B$112*'EF Table'!$C$32/50*$C$112+$B$113/500*'EF Table'!$C$33*$C$113+$B$114/500*'EF Table'!D34*$C$114+C115/5000*'EF Table'!#REF!*$C$115 ->  | F148: =$B$112*'EF Table'!$C$32/50*$C$112+$B$113/500*'EF Table'!$C$33*$C$113+$B$114/500*'EF Table'!E34*$C$114+D115/5000*'EF Table'!#REF!*$C$115 ->  | G148: =$B$112*'EF Table'!$C$32/50*$C$112+$B$113/500*'EF Table'!$C$33*$C$113+$B$114/500*'EF Table'!F34*$C$114+E115/5000*'EF Table'!F35*$C$115 -> 16.328 | H148: =$B$112*'EF Table'!$C$32/50*$C$112+$B$113/500*'EF Table'!$C$33*$C$113+$B$114/500*'EF Table'!G34*$C$114+F115/5000*'EF Table'!G35*$C$115 -> 16.328 | I148: =$B$112*'EF Table'!$C$32/50*$C$112+$B$113/500*'EF Table'!$C$33*$C$113+$B$114/500*'EF Table'!H34*$C$114+G115/5000*'EF Table'!H35*$C$115 -> 16.328 | J148: =$B$112*'EF Table'!$C$32/50*$C$112+$B$113/500*'EF Table'!$C$33*$C$113+$B$114/500*'EF Table'!I34*$C$114+H115/5000*'EF Table'!I35*$C$115 -> 16.328
A149: Indirect Land Use | B149: 19.8 | C149: 19.8 | D149: 19.8 | E149: 19.8 | F149: 0 | G149: 19.4 | H149: =G149 -> 19.4 | I149: =H149 -> 19.4 | J149: =I149 -> 19.4
A150: Denaturant | B150: =(1-Misc.!$B$23)*(C128+C129+C130+C131+C132+C134+C148+C149)+Misc.!$B$23*Misc.!$B$24-(C128+C129+C130+C131+C132+C134+C148+C149) -> 2.129434903 | C150: =(1-Misc.!$B$23)*(C128+C129+C130+C131+C132+C134+C148+C149)+Misc.!$B$23*Misc.!$B$24-(C128+C129+C130+C131+C132+C134+C148+C149) -> 2.129434903 | D150: =(1-Misc.!$B$23)*(D128+D129+D130+D131+D132+D134+D148+D149)+Misc.!$B$23*Misc.!$B$24-(D128+D129+D130+D131+D132+D134+D148+D149) -> 1.995784856 | E150: =(1-Misc.!$B$23)*(E128+E129+E130+E131+E132+E134+E148+E149)+Misc.!$B$23*Misc.!$B$24-(E128+E129+E130+E131+E132+E134+E148+E149) ->  | F150: =(1-Misc.!$B$23)*(F128+F129+F130+F131+F132+F134+F148+F149)+Misc.!$B$23*Misc.!$B$24-(F128+F129+F130+F131+F132+F134+F148+F149) ->  | G150: =(1-Misc.!$B$23)*(G128+G129+G130+G131+G132+G134+G148+G149)+Misc.!$B$23*Misc.!$B$24-(G128+G129+G130+G131+G132+G134+G148+G149) -> 0.9051966582 | H150: =(1-Misc.!$B$23)*(H128+H129+H130+H131+H132+H134+H148+H149)+Misc.!$B$23*Misc.!$B$24-(H128+H129+H130+H131+H132+H134+H148+H149) -> 1.3061468 | I150: =(1-Misc.!$B$23)*(I128+I129+I130+I131+I132+I134+I148+I149)+Misc.!$B$23*Misc.!$B$24-(I128+I129+I130+I131+I132+I134+I148+I149) -> 1.172496753 | J150: =(1-Misc.!$B$23)*(J128+J129+J130+J131+J132+J134+J148+J149)+Misc.!$B$23*Misc.!$B$24-(J128+J129+J130+J131+J132+J134+J148+J149) -> 1.038846706
A151: Tailpipe Emissions | B151: 0 | C151: =B151 -> 0 | D151: 0 | E151: 0 | F151: 0 | G151: 0 | H151: 0 | I151: 0 | J151: 0
A152: Total CI | B152: =SUM(B128:B134,B145,B148,B149,B150,B151) -> 57.65462997 | C152: =SUM(C128:C134,C145,C148,C149,C150,C151) -> 46.62234949 | D152: =IF(D126="None","N/A",SUM(D128:D134,D145,D148,D149,D150,D151)) -> N/A | E152: =IF(E126="None","N/A",SUM(E128:E134,E145,E148,E149,E150,E151)) ->  | F152: =SUM(F128:F151) ->  | G152: 96.28676328 | H152: 74.81584462 | I152: 81.97281751 | J152: 89.12979039
A157: =$E$68*Fuel_Specs!$I$59*10^6/$E$48*(50%*EF!$B$16+50%*EF!$C$16+HLOOKUP(References!$S$15,'EF Table'!$C$2:$AF$40,23,FALSE))/Fuel_Specs!$B$31*LossFactor!$J$4*LossFactor!$L$4 -> 17.41682546 | B157: =$E$68*Fuel_Specs!$I$59*10^6/$E$48 -> 32453.80021 | C157: =(50%*EF!$B$16+50%*EF!$C$16+HLOOKUP(References!$S$15,'EF Table'!$C$2:$AF$40,23,FALSE))/Fuel_Specs!$B$31*LossFactor!$J$4 -> 0.0005366444598 | D157: =HLOOKUP(References!$S$15,'EF Table'!$C$2:$AF$40,23,FALSE) -> 0

Sheet EtOH
E2: DRAFT - FOR DISCUSSION ONLY - DO NOT USE | K2: Yellow Cells require user input
K3: Light Blue Cells show CI results
K4: Green Cells show the calculation button
K5: Gray Cells are Calculated Values
B6: Version: SIMCAL_STFIB_001
G7: LCFS Starch Ethanol Simplified Carbon Intensity Calculator
B9: Pathway Summary and Estimated CI (g/MJ)
B10: Pathway Summary: | C10: Corn, Sorghum, and Corn Fiber Ethanol from Midwest, transported 1,800 miles to California to be used as transportation fuel in California
B11: Corn Ethanol Composite CI, g/MJ | D11: =I245 -> 62.54052065 | E11: Sorghum Ethanol (Composite CI), g/MJ | G11: =IF($K$59=0," ",I249) -> 69.80368641 | H11: Corn Fiber Ethanol CI, g/MJ | J11: =IF(BB59=0," ",I253) -> 
B12: Volume, gal | D12: =J245 -> 30677444.59 | E12: Volume, gal | G12: =IF($K$59=0," ",J249) -> 72522555.41 | H12: Ethanol Volume, gal | J12: =IF(BB59=0," ",J253) -> 
B13: Corn Ethanol (Dry DGS) CI, g/MJ | D13: =IF($V$59=0," ",I246) ->  | E13: Sorghum Ethanol (Dry DGS) CI, g/MJ | G13: =IF($V$59=0," ",I250) -> 
B14: Volume, gal | D14: =IF($V$59=0," ",J246) ->  | E14: Volume, gal | G14: =IF($V$59=0," ",J250) -> 
B15: Corn Ethanol (Modified DGS) CI, g/MJ | D15: =IF($AB$59=0," ",I247) ->  | E15: Sorghum Ethanol (Modified DGS) CI, g/MJ | G15: =IF($AB$59=0," ",I251) -> 
B16: Volume, gal | D16: =IF($UAE$59=0," ",J247) ->  | E16: Volume, gal | G16: =IF($V$59=0," ",J251) -> 
B17: Corn Ethanol (Wet DGS) CI, g/MJ | D17: =IF(I248=0, " ", I248) ->  | E17: Sorghum Ethanol (Wet DGS) CI, g/MJ | G17: =IF(I252=0," ",I252) -> 
B18: Volume, gal | D18: =IF(V59=0," ",J248) ->  | E18: Volume, gal | G18: =IF(V59=0," ",J252) -> 
B21: Section 1. Enter Applicant Information
B22: 1.1. Company Name | D22: ABC Company, Inc.
B23: 1.2. Company ID | D23: EFGH
B24: 1.3. Facility ID | D24: VWXYZ
B25: 1.4. Feedstock Production Location | D25: City, State, Country
B26: 1.5. Ethanol Production Location | D26: City, State, Country
B27: 1.6. Electricity Mix Region for Feedstock | D27: 1-U.S Ave Mix
B28: 1.7. Provisional Pathway? | D28: No | E28: =IF(D28="Yes","Enter the Data Month/Year","") -> 
B30: Section 2. Enter Feedstock and Co-Product Data for Ethanol Production | BD30: Section 3. Enter Fuel Production Energy Consumption and Fuel Transport Data
B31: Corn as Feedstock | G31: Corn Transport | J31: Sorghum as Feedstock | N31: Sorghum Transport | Q31: Co-Product Production | AQ31: Fuel Production | BD31: 3.1. Electricity Mix Region for Fuel | BF31: 7-MROW Mix
B32: Corn Inventory | G32: 2.6. Corn Transport Data Category | H32: Conditional Default for Corn Transport Outside of CA | J32: Sorghum Inventory | N32: 2.12. Sorghum Transport Data Category | O32: Conditional Default for Sorghum Transport Outside of CA | Q32: Dry Distiller Grains | W32: Modified Distiller Grains | AC32: Wet Distiller Grains | AH32: Syrup | AL32: Corn/Sorghum Oil | AQ32: Starch Ethanol Production | AV32: 2.45. Denaturant Data Category | AW32: Cellulosic Ethanol Production | BD32: Energy Consumption (Natural Gas, Biomass, Coal, and Electricity) | BM32: Fuel Transport and Distribution
B33: 2.1. Monthly Data | C33: 2.2. Beginning Corn Inventory | D33: 2.3. Corn Used (Calculated) | E33: 2.4. Corn Received | F33: 2.5. Ending Corn Inventory | G33: 2.7. Corn Transport from Collection Center to Ethanol Plant (Monthly weighted average) | J33: 2.8. Beginning Sorghum Inventory | K33: 2.9. Sorghum Used (Calculated) | L33: 2.10. Sorghum Received | M33: 2.11. Ending Sorghum Inventory | N33: 2.13. Sorghum Transport from Collection Center to Ethanol Plant (Monthly weighted average) | Q33: 2.14. Dry DG Beginning Inventory | R33: 2.15. Dry Distiller Grains Produced | S33: 2.16. Dry Distiller Grains Sales | T33: 2.17. Dry DG Ending Inventory | U33: 2.18. Moisture Content (Monthly weighted average) | V33: 2.19. Drying Energy (Monthly weighted average) | W33: 2.20. Modified DG Beginning Inventory | X33: 2.21. Modified Distiller Grains Produced | Y33: 2.22. Modified Distiller Grains Sales | Z33: 2.23. Modified DG Ending Inventory | AA33: 2.24. Moisture Content (Monthly weighted average) | AB33: 2.25. Drying Energy (Monthly weighted average) | AC33: 2.26. Wet DG Beginning Inventory | AD33: 2.27. Wet Distiller Grains Produced | AE33: 2.28. Wet Distiller Grains Sales | AF33: 2.29. Wet DG Ending Inventory | AG33: 2.30. Moisture Content (Monthly weighted average) | AH33: 2.31. Syrup Beginning Inventory | AI33: 2.32. Syrup Produced | AJ33: 2.33. Syrup Sales | AK33: 2.34. Syrup Ending Inventory | AL33: 2.35. Beginning Oil Inventory | AM33: 2.36. Oil Produced | AN33: 2.37. Oil Sales | AO33: 2.38. Ending Oil Inventory | AP33: 2.39. Co-product Yield | AQ33: 2.40. Beginning Undenatured Ethanol | AR33: 2.41. Denatured Ethanol Sales | AS33: 2.42. Undenatured Ethanol Sales | AT33: 2.43. Ending Undenatured Ethanol | AU33: 2.44. Undenatured Ethanol Produced | AV33: Denaturant as Standard Value | AW33: 2.46. Beginning Cellulosic Enzyme | AX33: 2.47. Cellulosic Enzyme Purchase | AY33: 2.48. Cellulosic Enzyme Use | AZ33: 2.49. Ending Cellulosic Enzyme | BA33: 2.50. Corn Fiber Allocation | BB33: 2.51. Undenatured Corn Fiber Ethanol | BD33: 3.2. NG Use | BE33: 3.3. Biogas Use | BG33: 3.4. Biomass Use | BH33: 3.5. Biomass Moisture | BI33: 3.6. Biomass Transport Distance | BJ33: 3.7. Coal Use from Invoices | BK33: 3.8. Electricity Use from grid | BL33: 3.9. Electricity from Co-located Solar or Wind | BM33: 3.10. Finished Fuel Transport
B34: Unit | C34: Bushels | D34: Bushels | E34: Bushels | F34: Bushels | G34: By HDDT, miles | H34: By Rail, miles | I34: By Barge, miles | J34: Bushels | K34: Bushels | L34: Bushels | M34: Bushels | N34: By HDDT, miles | O34: By Rail, miles | P34: By Barge, miles | Q34: Tons | R34: Tons | S34: Tons | T34: Tons | U34: % | V34: MMBtu, HHV | W34: Tons | X34: Tons | Y34: Tons | Z34: Tons | AA34: % | AB34: MMBtu, HHV | AD34: Tons | AE34: Tons | AF34: Tons | AG34: % | AH34: Tons | AI34: Tons | AJ34: Tons | AK34: Tons | AL34: lbs. | AM34: lbs. | AN34: lbs. | AO34: lbs. | AP34: Dry matter lbs./gal EtOH | AQ34: Gallons @ 60o F | AR34: Gallons @ 60o F | AS34: Gallons @ 60o F | AT34: Gallons @ 60o F | AU34: Gallons @ 60o F | AV34: Gallons | AW34: lbs. | AX34: lbs. | AY34: lbs. | AZ34: lbs. | BA34: % | BB34: Gallons @ 60o F | BD34: MMBtu (HHV) | BE34: MMBtu (HHV) | BG34: Dry Tons | BH34: % | BI34: miles | BJ34: Dry Tons | BK34: kWh | BL34: kWh | BM34: Mode | BN34: Miles
B35: Month 1 | C35: 1000000 | D35: =C35+E35-F35 -> 0 | E35: 0 | F35: 1000000 | G35: 80 | H35: 0 | J35: 0 | K35: =J35+L35-M35 -> 1000000 | L35: 1000000 | M35: 0 | N35: 80 | O35: 0 | Q35: 100000 | R35: =S35+T35-Q35 -> 4000 | S35: 4000 | T35: 100000 | U35: 0.1089 | V35: 0 | W35: 0 | X35: =Y35+Z35-W35 -> 0 | Y35: 0 | Z35: 0 | AA35: 0.55 | AB35: 0 | AC35: 100000 | AD35: =AE35+AF35-AC35 -> 20000 | AE35: 20000 | AF35: 100000 | AG35: 0.6622 | AH35: 8 | AI35: =AJ35+AK35-AH35 -> 0 | AJ35: 0 | AK35: 8 | AL35: 80000 | AM35: =AN35+AO35-AL35 -> 400000 | AN35: 400000 | AO35: 80000 | AP35: =(((R35*(1-U35)+X35*(1-AA35)+AD35*(1-AG35)+AI35*(1-0.3))*2000))/(AU35+BB35) -> 10.3204 | AQ35: 13000000 | AR35: 4000000 | AS35: 100000 | AT35: 11000000 | AU35: =AT35-AQ35+AR35+AS35-AV35 -> 2000000 | AV35: 100000 | AW35: 8 | AX35: 0 | AY35: =AW35-AZ35+AX35 -> 0 | AZ35: 8 | BA35: 0 | BB35: =BA35*AU35 -> 0 | BD35: 100000 | BK35: 2000000 | BM35: 3.10.a. By Rail | BN35: 1800
B36: Month 2 | C36: =F35 -> 1000000 | D36: =C36+E36-F36 -> 0 | E36: 0 | F36: 1000000 | G36: 80 | H36: 0 | J36: =M35 -> 0 | K36: =J36+L36-M36 -> 1000000 | L36: 1000000 | M36: 0 | N36: 80 | O36: 0 | Q36: =T35 -> 100000 | R36: =S36+T36-Q36 -> 4000 | S36: 4000 | T36: 100000 | U36: 0.1133 | V36: 0 | W36: =Z35 -> 0 | X36: =Y36+Z36-W36 -> 0 | Y36: 0 | Z36: 0 | AA36: 0.55 | AB36: 0 | AC36: =AF35 -> 100000 | AD36: =AE36+AF36-AC36 -> 20000 | AE36: 20000 | AF36: 100000 | AG36: 0.6675 | AH36: =AK35 -> 8 | AI36: =AJ36+AK36-AH36 -> 0 | AJ36: 0 | AK36: 8 | AL36: =AO35 -> 80000 | AM36: =AN36+AO36-AL36 -> 500000 | AN36: 500000 | AO36: 80000 | AP36: 4.634909091 | AQ36: =AT35 -> 11000000 | AR36: 4000000 | AS36: 500000 | AT36: 11000000 | AU36: =AT36-AQ36+AR36+AS36-AV36 -> 4400000 | AV36: 100000 | AW36: =AZ35 -> 8 | AX36: 0 | AY36: =AW36-AZ36+AX36 -> 0 | AZ36: 8 | BA36: 0 | BB36: =BA36*AU36 -> 0 | BD36: 100000 | BK36: 2000000
B37: Month 3 | C37: =F36 -> 1000000 | D37: 0 | E37: 0 | F37: 1000000 | G37: 80 | H37: 0 | J37: =M36 -> 0 | K37: 1000000 | L37: 1000000 | M37: 0 | N37: 80 | O37: 0 | Q37: =T36 -> 100000 | R37: =S37+T37-Q37 -> 4000 | S37: 4000 | T37: 100000 | U37: 0.1112 | V37: 0 | W37: =Z36 -> 0 | X37: 0 | Y37: 0 | Z37: 0 | AA37: 0.55 | AB37: 0 | AC37: =AF36 -> 100000 | AD37: 20000 | AE37: 20000 | AF37: 100000 | AG37: 0.6697 | AH37: =AK36 -> 8 | AI37: 0 | AJ37: 0 | AK37: 8 | AL37: =AO36 -> 80000 | AM37: =AN37+AO37-AL37 -> 500000 | AN37: 500000 | AO37: 80000 | AP37: 4.618727273 | AQ37: 11000000 | AR37: 4000000 | AS37: 500000 | AT37: 11000000 | AU37: 4400000 | AV37: 100000 | AW37: =AZ36 -> 8 | AX37: 0 | AY37: 0 | AZ37: 8 | BA37: 0 | BB37: 0 | BD37: 100000 | BK37: 2000000 | BM37: 3.10.b. By HDD Truck | BN37: 100
B38: Month 4 | C38: 1000000 | D38: 0 | E38: 0 | F38: 1000000 | G38: 80 | H38: 0 | J38: 0 | K38: 1000000 | L38: 1000000 | M38: 0 | N38: 80 | O38: 0 | Q38: 100000 | R38: 4000 | S38: 4000 | T38: 100000 | U38: 0.1109 | V38: 0 | W38: 0 | X38: 0 | Y38: 0 | Z38: 0 | AA38: 0.55 | AB38: 0 | AC38: 100000 | AD38: 20000 | AE38: 20000 | AF38: 100000 | AG38: 0.6677 | AH38: 8 | AI38: 0 | AJ38: 0 | AK38: 8 | AL38: 80000 | AM38: 500000 | AN38: 500000 | AO38: 80000 | AP38: 4.637454545 | AQ38: 11000000 | AR38: 4000000 | AS38: 500000 | AT38: 11000000 | AU38: 4400000 | AV38: 100000 | AW38: 8 | AX38: 0 | AY38: =AW38-AZ38+AX38 -> 0 | AZ38: 8 | BA38: 0 | BB38: 0 | BD38: 100000 | BK38: 2000000
B39: Month 5 | C39: 1000000 | D39: 0 | E39: 0 | F39: 1000000 | G39: 80 | H39: 0 | J39: 0 | K39: 1000000 | L39: 1000000 | M39: 0 | N39: 80 | O39: 0 | Q39: 100000 | R39: 4000 | S39: 4000 | T39: 100000 | U39: 0.1227 | V39: 0 | W39: 0 | X39: 0 | Y39: 0 | Z39: 0 | AA39: 0.55 | AB39: 0 | AC39: 100000 | AD39: 20000 | AE39: 20000 | AF39: 100000 | AG39: 0.6669 | AH39: 8 | AI39: 0 | AJ39: 0 | AK39: 8 | AL39: 80000 | AM39: 500000 | AN39: 500000 | AO39: 80000 | AP39: 4.623272727 | AQ39: 11000000 | AR39: 4000000 | AS39: 500000 | AT39: 11000000 | AU39: 4400000 | AV39: 100000 | AW39: 8 | AX39: 0 | AY39: =AW39-AZ39+AX39 -> 0 | AZ39: 8 | BA39: 0 | BB39: 0 | BD39: 100000 | BK39: 2000000 | BM39: 3.10.c. By Barge | BN39: 0
B40: Month 6 | C40: 1000000 | D40: 0 | E40: 0 | F40: 1000000 | G40: 80 | H40: 0 | J40: 0 | K40: 1000000 | L40: 1000000 | M40: 0 | N40: 80 | O40: 0 | Q40: 100000 | R40: 4000 | S40: 4000 | T40: 100000 | U40: 0.1239 | V40: 0 | W40: 0 | X40: 0 | Y40: 0 | Z40: 0 | AA40: 0.55 | AB40: 0 | AC40: 100000 | AD40: 20000 | AE40: 20000 | AF40: 100000 | AG40: 0.6675 | AH40: 8 | AI40: 0 | AJ40: 0 | AK40: 8 | AL40: 80000 | AM40: 500000 | AN40: 500000 | AO40: 80000 | AP40: 4.615636364 | AQ40: 11000000 | AR40: 4000000 | AS40: 500000 | AT40: 11000000 | AU40: 4400000 | AV40: 100000 | AW40: 8 | AX40: 0 | AY40: 0 | AZ40: 8 | BA40: 0 | BB40: 0 | BD40: 100000 | BK40: 2000000
B41: Month 7 | C41: 1000000 | D41: =C41+E41-F41 -> 0 | E41: 0 | F41: 1000000 | G41: 80 | H41: 0 | J41: 0 | K41: 1000000 | L41: 1000000 | M41: 0 | N41: 80 | O41: 0 | Q41: 100000 | R41: 4000 | S41: 4000 | T41: 100000 | U41: 0.1213 | V41: 0 | W41: 0 | X41: 0 | Y41: 0 | Z41: 0 | AA41: 0.55 | AB41: 0 | AC41: 100000 | AD41: 20000 | AE41: 20000 | AF41: 100000 | AG41: 0.6622 | AH41: 8 | AI41: 0 | AJ41: 0 | AK41: 8 | AL41: 80000 | AM41: =AN41+AO41-AL41 -> 500000 | AN41: 500000 | AO41: 80000 | AP41: 4.668545455 | AQ41: 11000000 | AR41: 4000000 | AS41: 500000 | AT41: 11000000 | AU41: 4400000 | AV41: 100000 | AW41: 8 | AX41: 0 | AY41: 0 | AZ41: 8 | BA41: 0 | BB41: 0 | BD41: 100000 | BK41: 2000000
B42: Month 8 | C42: 1000000 | D42: 0 | E42: 0 | F42: 1000000 | G42: 80 | H42: 0 | J42: 0 | K42: 1000000 | L42: 1000000 | M42: 0 | N42: 80 | O42: 0 | Q42: 100000 | R42: 4000 | S42: 4000 | T42: 100000 | U42: 0.1253 | V42: 0 | W42: 0 | X42: 0 | Y42: 0 | Z42: 0 | AA42: 0.55 | AB42: 0 | AC42: 100000 | AD42: 20000 | AE42: 20000 | AF42: 100000 | AG42: 0.6778 | AH42: 8 | AI42: 0 | AJ42: 0 | AK42: 8 | AL42: 80000 | AM42: 500000 | AN42: 500000 | AO42: 80000 | AP42: 4.519454545 | AQ42: 11000000 | AR42: 4000000 | AS42: 500000 | AT42: 11000000 | AU42: 4400000 | AV42: 100000 | AW42: 8 | AX42: 0 | AY42: 0 | AZ42: 8 | BA42: 0 | BB42: 0 | BD42: 100000 | BK42: 2000000
B43: Month 9 | C43: 1000000 | D43: 0 | E43: 0 | F43: 1000000 | G43: 80 | H43: 0 | J43: 0 | K43: 1000000 | L43: 1000000 | M43: 0 | N43: 80 | O43: 0 | Q43: 100000 | R43: 4000 | S43: 4000 | T43: 100000 | U43: 0.1247 | V43: 0 | W43: 0 | X43: 0 | Y43: 0 | Z43: 0 | AA43: 0.55 | AB43: 0 | AC43: 100000 | AD43: 20000 | AE43: 20000 | AF43: 100000 | AG43: 0.665 | AH43: 8 | AI43: 0 | AJ43: 0 | AK43: 8 | AL43: 80000 | AM43: 500000 | AN43: 500000 | AO43: 80000 | AP43: 4.636909091 | AQ43: 11000000 | AR43: 4000000 | AS43: 500000 | AT43: 11000000 | AU43: 4400000 | AV43: 100000 | AW43: 8 | AX43: 0 | AY43: 0 | AZ43: 8 | BA43: 0 | BB43: 0 | BD43: 100000 | BK43: 2000000 | BM43: Finished Fuel Distribution Standard Value is at 90 miles by HDDT
B44: Month 10 | C44: 1000000 | D44: 0 | E44: 0 | F44: 1000000 | G44: 80 | H44: 0 | J44: 0 | K44: 1000000 | L44: 1000000 | M44: 0 | N44: 80 | O44: 0 | Q44: 100000 | R44: 4000 | S44: 4000 | T44: 100000 | U44: 0.1176 | V44: 0 | W44: 0 | X44: 0 | Y44: 0 | Z44: 0 | AA44: 0.55 | AB44: 0 | AC44: 100000 | AD44: 20000 | AE44: 20000 | AF44: 100000 | AG44: 0.6647 | AH44: 8 | AI44: 0 | AJ44: 0 | AK44: 8 | AL44: 80000 | AM44: 500000 | AN44: 500000 | AO44: 80000 | AP44: 4.652545455 | AQ44: 11000000 | AR44: 4000000 | AS44: 500000 | AT44: 11000000 | AU44: 4400000 | AV44: 100000 | AW44: 8 | AX44: 0 | AY44: 0 | AZ44: 8 | BA44: 0 | BB44: 0 | BD44: 100000 | BK44: 2000000
B45: Month 11 | C45: 1000000 | D45: 0 | E45: 0 | F45: 1000000 | G45: 80 | H45: 0 | J45: 0 | K45: 1000000 | L45: 1000000 | M45: 0 | N45: 80 | O45: 0 | Q45: 100000 | R45: 4000 | S45: 4000 | T45: 100000 | U45: 0.1161 | V45: 0 | W45: 0 | X45: 0 | Y45: 0 | Z45: 0 | AA45: 0.55 | AB45: 0 | AC45: 100000 | AD45: 20000 | AE45: 20000 | AF45: 100000 | AG45: 0.661 | AH45: 8 | AI45: 0 | AJ45: 0 | AK45: 8 | AL45: 80000 | AM45: 500000 | AN45: 500000 | AO45: 80000 | AP45: 4.688909091 | AQ45: 11000000 | AR45: 4000000 | AS45: 500000 | AT45: 11000000 | AU45: 4400000 | AV45: 100000 | AW45: 8 | AX45: 0 | AY45: 0 | AZ45: 8 | BA45: 0 | BB45: 0 | BD45: 100000 | BK45: 2000000
B46: Month 12 | C46: 1000000 | D46: 100000 | E46: 100000 | F46: 1000000 | G46: 80 | H46: 0 | J46: 0 | K46: 1000000 | L46: 1000000 | M46: 0 | N46: 80 | O46: 0 | Q46: 100000 | R46: 4000 | S46: 4000 | T46: 100000 | U46: 0.114 | V46: 0 | W46: 0 | X46: 0 | Y46: 0 | Z46: 0 | AA46: 0.55 | AB46: 0 | AC46: 100000 | AD46: 20000 | AE46: 20000 | AF46: 100000 | AG46: 0.6633 | AH46: 8 | AI46: 0 | AJ46: 0 | AK46: 8 | AL46: 80000 | AM46: 500000 | AN46: 500000 | AO46: 80000 | AP46: 4.671818182 | AQ46: 11000000 | AR46: 4000000 | AS46: 500000 | AT46: 11000000 | AU46: 4400000 | AV46: 100000 | AW46: 8 | AX46: 0 | AY46: 0 | AZ46: 8 | BA46: 0 | BB46: 0 | BD46: 100000 | BK46: 2000000
B47: Month 13 | C47: 1000000 | D47: 0 | E47: 0 | F47: 1000000 | G47: 80 | H47: 0 | J47: 0 | K47: 1000000 | L47: 1000000 | M47: 0 | N47: 80 | O47: 0 | Q47: 100000 | R47: 4000 | S47: 4000 | T47: 100000 | U47: 0.1015 | V47: 0 | W47: 0 | X47: 0 | Y47: 0 | Z47: 0 | AA47: 0 | AB47: 0 | AC47: 100000 | AD47: 20000 | AE47: 20000 | AF47: 100000 | AG47: 0.6685 | AH47: 8 | AI47: 0 | AJ47: 0 | AK47: 8 | AL47: 80000 | AM47: 500000 | AN47: 500000 | AO47: 80000 | AP47: 4.647272727 | AQ47: 11000000 | AR47: 4000000 | AS47: 500000 | AT47: 11000000 | AU47: 4400000 | AV47: 100000 | AW47: 8 | AX47: 0 | AY47: 0 | AZ47: 8 | BA47: 0 | BB47: 0 | BD47: 100000 | BK47: 2000000
B48: Month 14 | C48: 1000000 | D48: 160000 | E48: 160000 | F48: 1000000 | G48: 80 | H48: 0 | J48: 0 | K48: 1000000 | L48: 1000000 | M48: 0 | N48: 80 | O48: 0 | Q48: 100000 | R48: 4000 | S48: 4000 | T48: 100000 | U48: 0.1074 | V48: 0 | W48: 0 | X48: 0 | Y48: 0 | Z48: 0 | AA48: 0 | AB48: 0 | AC48: 100000 | AD48: 20000 | AE48: 20000 | AF48: 100000 | AG48: 0.669 | AH48: 8 | AI48: 0 | AJ48: 0 | AK48: 8 | AL48: 80000 | AM48: 500000 | AN48: 500000 | AO48: 80000 | AP48: 4.632 | AQ48: 11000000 | AR48: 4000000 | AS48: 500000 | AT48: 11000000 | AU48: 4400000 | AV48: 100000 | AW48: 8 | AX48: 0 | AY48: 0 | AZ48: 8 | BA48: 0 | BB48: 0 | BD48: 100000 | BK48: 2000000
B49: Month 15 | C49: 1000000 | D49: 80000 | E49: 80000 | F49: 1000000 | G49: 80 | H49: 0 | J49: 0 | K49: 1000000 | L49: 1000000 | M49: 0 | N49: 80 | O49: 0 | Q49: 100000 | R49: 4000 | S49: 4000 | T49: 100000 | U49: 0.1105 | V49: 0 | W49: 0 | X49: 0 | Y49: 0 | Z49: 0 | AA49: 0 | AB49: 0 | AC49: 100000 | AD49: 20000 | AE49: 20000 | AF49: 100000 | AG49: 0.6671 | AH49: 8 | AI49: 0 | AJ49: 0 | AK49: 8 | AL49: 80000 | AM49: 500000 | AN49: 500000 | AO49: 80000 | AP49: 4.643636364 | AQ49: 11000000 | AR49: 4000000 | AS49: 500000 | AT49: 11000000 | AU49: 4400000 | AV49: 100000 | AW49: 8 | AX49: 0 | AY49: 0 | AZ49: 8 | BA49: 0 | BB49: 0 | BD49: 100000 | BK49: 2000000
B50: Month 16 | C50: =F49 -> 1000000 | D50: 900000 | E50: 900000 | F50: 1000000 | G50: 80 | H50: 0 | J50: 0 | K50: 80000 | L50: 80000 | M50: 0 | N50: 80 | O50: 0 | Q50: 100000 | R50: 4000 | S50: 4000 | T50: 100000 | U50: 0.1164 | V50: 0 | W50: 0 | X50: 0 | Y50: 0 | Z50: 0 | AA50: 0 | AB50: 0 | AC50: 100000 | AD50: 20000 | AE50: 20000 | AF50: 100000 | AG50: 0.6698 | AH50: 8 | AI50: 0 | AJ50: 0 | AK50: 8 | AL50: 80000 | AM50: 500000 | AN50: 500000 | AO50: 80000 | AP50: 4.608363636 | AQ50: 11000000 | AR50: 4000000 | AS50: 500000 | AT50: 11000000 | AU50: 4400000 | AV50: 100000 | AW50: 8 | AX50: 0 | AY50: 0 | AZ50: 8 | BA50: 0 | BB50: 0 | BD50: 100000 | BK50: 2000000
B51: Month 17 | C51: 1000000 | D51: 800000 | E51: 800000 | F51: 1000000 | G51: 80 | H51: 0 | J51: 0 | K51: 0 | L51: 0 | M51: 0 | N51: 80 | O51: 0 | Q51: 100000 | R51: 4000 | S51: 4000 | T51: 100000 | U51: 0.111 | V51: 0 | W51: 0 | X51: 0 | Y51: 0 | Z51: 0 | AA51: 0 | AB51: 0 | AC51: 100000 | AD51: 20000 | AE51: 20000 | AF51: 100000 | AG51: 0.6596 | AH51: 8 | AI51: 0 | AJ51: 0 | AK51: 8 | AL51: 80000 | AM51: 500000 | AN51: 500000 | AO51: 80000 | AP51: 4.710909091 | AQ51: 11000000 | AR51: 4000000 | AS51: 500000 | AT51: 11000000 | AU51: 4400000 | AV51: 100000 | AW51: 8 | AX51: 0 | AY51: 0 | AZ51: 8 | BA51: 0 | BB51: 0 | BD51: 100000 | BK51: 2000000
B52: Month 18 | C52: 1000000 | D52: 800000 | E52: 800000 | F52: 1000000 | G52: 80 | H52: 0 | J52: 0 | K52: 0 | L52: 0 | M52: 0 | N52: 80 | O52: 0 | Q52: 100000 | R52: 4000 | S52: 4000 | T52: 100000 | U52: 0.1077 | V52: 0 | W52: 0 | X52: 0 | Y52: 0 | Z52: 0 | AA52: 0 | AB52: 0 | AC52: 100000 | AD52: 20000 | AE52: 20000 | AF52: 100000 | AG52: 0.6557 | AH52: 8 | AI52: 0 | AJ52: 0 | AK52: 8 | AL52: 80000 | AM52: 500000 | AN52: 500000 | AO52: 80000 | AP52: 4.752363636 | AQ52: 11000000 | AR52: 4000000 | AS52: 500000 | AT52: 11000000 | AU52: 4400000 | AV52: 100000 | AW52: 8 | AX52: 0 | AY52: 0 | AZ52: 8 | BA52: 0 | BB52: 0 | BD52: 100000 | BK52: 2000000
B53: Month 19 | C53: 1000000 | D53: 800000 | E53: 800000 | F53: 1000000 | G53: 80 | H53: 0 | J53: 0 | K53: 0 | L53: 0 | M53: 0 | N53: 80 | O53: 0 | Q53: 100000 | R53: 4000 | S53: 4000 | T53: 100000 | U53: 0.1101 | V53: 0 | W53: 0 | X53: 0 | Y53: 0 | Z53: 0 | AA53: 0 | AB53: 0 | AC53: 100000 | AD53: 20000 | AE53: 20000 | AF53: 100000 | AG53: 0.6461 | AH53: 8 | AI53: 0 | AJ53: 0 | AK53: 8 | AL53: 80000 | AM53: 500000 | AN53: 500000 | AO53: 80000 | AP53: 4.835272727 | AQ53: 11000000 | AR53: 4000000 | AS53: 500000 | AT53: 11000000 | AU53: 4400000 | AV53: 100000 | AW53: 8 | AX53: 0 | AY53: 0 | AZ53: 8 | BA53: 0 | BB53: 0 | BD53: 100000 | BK53: 2000000
B54: Month 20 | C54: 1000000 | D54: 800000 | E54: 800000 | F54: 1000000 | G54: 80 | H54: 0 | J54: 0 | K54: 0 | L54: 0 | M54: 0 | N54: 80 | O54: 0 | Q54: 100000 | R54: 4000 | S54: 4000 | T54: 100000 | U54: 0.1102 | V54: 0 | W54: 0 | X54: 0 | Y54: 0 | Z54: 0 | AA54: 0 | AB54: 0 | AC54: 100000 | AD54: 20000 | AE54: 20000 | AF54: 100000 | AG54: 0.656 | AH54: 8 | AI54: 0 | AJ54: 0 | AK54: 8 | AL54: 80000 | AM54: 500000 | AN54: 500000 | AO54: 80000 | AP54: 4.745090909 | AQ54: 11000000 | AR54: 4000000 | AS54: 500000 | AT54: 11000000 | AU54: 4400000 | AV54: 100000 | AW54: 8 | AX54: 0 | AY54: 0 | AZ54: 8 | BA54: 0 | BB54: 0 | BD54: 100000 | BK54: 2000000
B55: Month 21 | C55: 1000000 | D55: 800000 | E55: 800000 | F55: 1000000 | G55: 80 | H55: 0 | J55: 0 | K55: 0 | L55: 0 | M55: 0 | N55: 80 | O55: 0 | Q55: 100000 | R55: 4000 | S55: 4000 | T55: 100000 | U55: 0.1101 | V55: 0 | W55: 0 | X55: 0 | Y55: 0 | Z55: 0 | AA55: 0 | AB55: 0 | AC55: 100000 | AD55: 20000 | AE55: 20000 | AF55: 100000 | AG55: 0.6622 | AH55: 8 | AI55: 0 | AJ55: 0 | AK55: 8 | AL55: 80000 | AM55: 500000 | AN55: 500000 | AO55: 80000 | AP55: 4.688909091 | AQ55: 11000000 | AR55: 4000000 | AS55: 500000 | AT55: 11000000 | AU55: 4400000 | AV55: 100000 | AW55: 8 | AX55: 0 | AY55: 0 | AZ55: 8 | BA55: 0 | BB55: 0 | BD55: 100000 | BK55: 2000000
B56: Month 22 | C56: 1000000 | D56: 800000 | E56: 800000 | F56: 1000000 | G56: 80 | H56: 0 | J56: 0 | K56: 100000 | L56: 100000 | M56: 0 | N56: 80 | O56: 0 | Q56: 100000 | R56: 4000 | S56: 4000 | T56: 100000 | U56: 0.1073 | V56: 0 | W56: 0 | X56: 0 | Y56: 0 | Z56: 0 | AA56: 0 | AB56: 0 | AC56: 100000 | AD56: 20000 | AE56: 20000 | AF56: 100000 | AG56: 0.6562 | AH56: 8 | AI56: 0 | AJ56: 0 | AK56: 8 | AL56: 80000 | AM56: 500000 | AN56: 500000 | AO56: 80000 | AP56: 4.748545455 | AQ56: 11000000 | AR56: 4000000 | AS56: 500000 | AT56: 11000000 | AU56: 4400000 | AV56: 100000 | AW56: 8 | AX56: 0 | AY56: 0 | AZ56: 8 | BA56: 0 | BB56: 0 | BD56: 100000 | BK56: 2000000
B57: Month 23 | C57: 1000000 | D57: 800000 | E57: 800000 | F57: 1000000 | G57: 80 | H57: 0 | J57: 0 | K57: 90000 | L57: 90000 | M57: 0 | N57: 80 | O57: 0 | Q57: 100000 | R57: 4000 | S57: 4000 | T57: 100000 | U57: 0.1083 | V57: 0 | W57: 0 | X57: 0 | Y57: 0 | Z57: 0 | AA57: 0 | AB57: 0 | AC57: 100000 | AD57: 20000 | AE57: 20000 | AF57: 100000 | AG57: 0.6622 | AH57: 8 | AI57: 0 | AJ57: 0 | AK57: 8 | AL57: 80000 | AM57: 500000 | AN57: 500000 | AO57: 80000 | AP57: 4.692181818 | AQ57: 11000000 | AR57: 4000000 | AS57: 500000 | AT57: 11000000 | AU57: 4400000 | AV57: 100000 | AW57: 8 | AX57: 0 | AY57: 0 | AZ57: 8 | BA57: 0 | BB57: 0 | BD57: 100000 | BK57: 2000000
B58: Month 24 | C58: 1000000 | D58: 0 | E58: 0 | F58: 1000000 | G58: 80 | H58: 0 | J58: 0 | K58: 900000 | L58: 900000 | M58: 0 | N58: 80 | O58: 0 | Q58: 100000 | R58: 4000 | S58: 4000 | T58: 100000 | U58: 0.1078 | V58: 0 | W58: 0 | X58: 0 | Y58: 0 | Z58: 0 | AA58: 0 | AB58: 0 | AC58: 100000 | AD58: 20000 | AE58: 20000 | AF58: 100000 | AG58: 0.6594 | AH58: 8 | AI58: 0 | AJ58: 0 | AK58: 8 | AL58: 80000 | AM58: 150000 | AN58: 150000 | AO58: 80000 | AP58: 4.718545455 | AQ58: 11000000 | AR58: 4000000 | AS58: 500000 | AT58: 11000000 | AU58: 4400000 | AV58: 100000 | AW58: 8 | AX58: 0 | AY58: 0 | AZ58: 8 | BA58: 0 | BB58: =BA58*AU58 -> 0 | BD58: 100000 | BK58: 2000000
B59: Total or Ave. | C59: =SUM(C35:C58) -> 24000000 | D59: =SUM(D35:D58) -> 6840000 | E59: =SUM(E35:E58) -> 6840000 | F59: =SUM(F35:F58) -> 24000000 | G59: =IFERROR(SUMPRODUCT($E$35:$E$58,G35:G58)/SUM($E$35:$E$58),"0") -> 80 | H59: =IFERROR(SUMPRODUCT($E$35:$E$58,H35:H58)/SUM($E$35:$E$58),"0") -> 0 | I59: 0 | J59: 0 | K59: =SUM(K35:K58) -> 16170000 | L59: 16170000 | M59: 0 | N59: =IFERROR(SUMPRODUCT($E$35:$E$58,N35:N58)/SUM($E$35:$E$58),"0") -> 80 | O59: =IFERROR(SUMPRODUCT($E$35:$E$58,O35:O58)/SUM($E$35:$E$58),"0") -> 0 | P59: =IFERROR(SUMPRODUCT($E$35:$E$58,P35:P58)/SUM($E$35:$E$58),"0") -> 0 | Q59: =SUM(Q35:Q58) -> 2400000 | R59: =SUM(R35:R58) -> 96000 | S59: =SUM(S35:S58) -> 96000 | T59: =SUM(T35:T58) -> 2400000 | U59: =IF(MAX($U35:$U58)<=0,"0",SUMIF($U35:$U58,">0")/COUNTIF($U35:$U58,">0")) -> 0.1132583333 | V59: =SUM(V36:V58) -> 0 | W59: =SUM(W35:W58) -> 0 | X59: =SUM(X35:X58) -> 0 | Y59: =SUM(Y35:Y58) -> 0 | Z59: =SUM(Z35:Z58) -> 0 | AA59: =IF(MAX($AA35:$AA58)<=0,"0",SUMIF($AA35:$AA58,">0")/COUNTIF($AA35:$AA58,">0")) -> 0.55 | AB59: =SUM(AB35:AB58) -> 0 | AC59: =SUM(AC35:AC58) -> 2400000 | AD59: =SUM(AD35:AD58) -> 480000 | AE59: =SUM(AE35:AE58) -> 480000 | AF59: =SUM(AF35:AF58) -> 2400000 | AG59: =IF(MAX($AG35:$AG58)<=0,"0",SUMIF($AG35:$AG58,">0")/COUNTIF($AG35:$AG58,">0")) -> 0.6636375 | AH59: =SUM(AH35:AH58) -> 192 | AI59: =SUM(AI35:AI58) -> 0 | AJ59: 0 | AK59: 192 | AL59: =SUM(AL35:AL58) -> 1920000 | AM59: =SUM(AM35:AM58) -> 11550000 | AN59: 11550000 | AO59: =SUM(AO35:AO58) -> 1920000 | AP59: 4.778705426 | AQ59: =SUM(AQ35:AQ58) -> 266000000 | AR59: 96000000 | AS59: =SUM(AS35:AS58) -> 11600000 | AT59: 264000000 | AU59: =SUM(AU35:AU58) -> 103200000 | AV59: =0.025*AR59 -> 2400000 | AW59: 192 | AX59: 0 | AY59: 0 | AZ59: 192 | BA59: =AVERAGE(BA33:BA58) -> 0 | BB59: =SUM(BB35:BB58) -> 0 | BD59: =SUM(BD35:BD58) -> 2400000 | BE59: =SUM(BE35:BE58) -> 0 | BG59: 0 | BH59: =IFERROR(AVERAGE(BH35:BH58),0) -> 0 | BI59: =IFERROR(AVERAGE(BI35:BI58),0) -> 0 | BJ59: =SUM(BJ35:BJ58) -> 0 | BK59: =SUM(BK35:BK58) -> 48000000 | BL59: =SUM(BL35:BL58) -> 0
B60: Total MMBtu in HHV | V60: =V59 -> 0 | AB60: =AB59 -> 0 | AU60: =AU59*Fuel_Specs!$D$31/10^6 -> 8723496 | BB60: =BB59*Fuel_Specs!$D$31/10^6 -> 0 | BD60: =IF(BD34="MMBtu (HHV)",BD59,IF(BD34="SCF (HHV)",BD59*983/10^6,IF(BD34="Therms (HHV)",BD59*10))) -> 2400000 | BG60: =BG59*BH59*Fuel_Specs!D79 -> 0 | BJ60: =BJ59*Fuel_Specs!$D$66/10^6 -> 0 | BK60: =SUM(BK35:BK58)*Fuel_Specs!$F$140/10^6 -> 163782.7988
B61: Convert to MMBtu, in LHV | V61: =V60*Fuel_Specs!$I$59 -> 0 | AB61: =AB60*Fuel_Specs!$I$59 -> 0 | AU61: =AU60*Fuel_Specs!$I$31 -> 7877256 | BD61: =BD60*Fuel_Specs!$I$59 -> 2167200 | BE61: =BE59*Fuel_Specs!$B$59/10^6 -> 0 | BG61: =BG59*BH59*Fuel_Specs!B79 -> 0 | BJ61: =BJ60*Fuel_Specs!$I$66 -> 0 | BK61: =BK60 -> 163782.7988
B62: Convert to Btu/gallons fuel throughput | V62: =V61*10^6/$AU$59 -> 0 | AB62: =AB61*10^6/$AU$59 -> 0 | BD62: =BD61*10^6/($AU$59+$BB$59) -> 21000 | BE62: =BE61*10^6/($AU$59+$BB$59) -> 0 | BG62: =BG61*10^6/($AU$59+$BB$59) -> 0 | BJ62: =BJ61/($AU$59+BB59)*10^6 -> 0 | BK62: =BK61*10^6/($AU$59+BB59) -> 1587.042624
B63: Process Shares and Efficiency, % | D63: =D59/($D$59+$K$59) -> 0.29726206 | K63: =K59/($D$59+$K$59) -> 0.70273794 | R63: =R59/($R$59+$X$59+$AD$59+$AI$59+$AM$59/2000) -> 0.165012247 | X63: =X59/($R$59+$X$59+$AD$59+$AI$59+$AM$59/2000) -> 0 | AD63: =AD59/($R$59+$X$59+$AD$59+$AI$59+$AM$59/2000) -> 0.825061235 | AI63: =AI59/($R$59+$X$59+$AD$59+$AI$59+$AM$59/2000) -> 0 | AM63: =AM59/2000/($R$59+$X$59+$AD$59+$AI$59+$AM$59/2000) -> 0.009926517984 | AV63: =AV59/AR59 -> 0.025 | BD63: =BD62/($BD$62+$BE$62+$BG$62+$BK$62+$BJ$62+$BL$62) -> 0.9297365906 | BE63: =BE62/($BD$62+$BE$62+$BG$62+$BK$62+$BJ$62+$BL$62) -> 0 | BG63: =BG62/($BD$62+$BE$62+$BG$62+$BK$62+$BJ$62+$BL$62) -> 0 | BJ63: =BJ62/($BD$62+$BE$62+$BG$62+$BK$62+$BJ$62+$BL$62) -> 0 | BK63: =BK62/($BD$62+$BE$62+$BG$62+$BK$62+$BJ$62+$BL$62) -> 0.07026340944 | BL63: =BL62/($BD$62+$BE$62+$BG$62+$BK$62+$BJ$62+$BL$62) -> 0
BL64: kWh/gal
BL65: =BK59/AU59 -> 0.4651162791
B67: CI Calculation
B69: Corn Ethanol - Dry Mill | H69: Sorghum Ethanol - Dry Mill | K69: Corn Fiber
B70: eGRID (Electricity Mix) region | E70: =D27 -> 1-U.S Ave Mix | F70: Shares | G70: CI Outputs, g/MJ | H70: =D27 -> 1-U.S Ave Mix | I70: Shares | J70: CI Outputs, g/MJ | K70: =D27 -> 1-U.S Ave Mix | L70: Shares | M70: CI Outputs, g/MJ
B71: Feedstock Production | C71: Ethanol Yield, gal/bu | E71: =IF(D59=0,0,(AU59+BB59)/(D59+K59)) -> 4.485006519 | G71: =G73+G75+G76+G78+G84+G97 -> 13.6292683 | H71: =IF(K59=0,0,(AU59+BB59)/(D59+K59)) -> 4.485006519 | J71: =J73+J75+J76+J78+J84+IF(G97=0,J97,0) -> 21.56886232 | K71: =BB59/$D$59 -> 0 | M71: =M73 -> 0
C72: DGS Yield | E72: =AP59 -> 4.778705426 | H72: =IF(K59=0,0,AP59) -> 4.778705426 | K72: 0
C73: Corn or Sorghum Farming | G73: =IFERROR('EF Table'!$C$4/$E$71*2.75,0) -> 1.995449898 | J73: =IFERROR('EF Table'!$C$40/$H$71*2.75,0) -> 4.283465298 | M73: 0
C74: Farming Energy, Btu/bu | E74: 9608 | H74: 16741
C75: Fertilizers and Ag Chemicals | G75: ='EF Table'!$C$5/$E$71*2.75 -> 7.300428526 | J75: =IFERROR('EF Table'!$C$41/$H$71*2.75,0) -> 9.347820766
C76: N2O in Soil | G76: ='EF Table'!$C$6/E71*2.75 -> 9.820606545 | J76: =IFERROR('EF Table'!$C$42/$H$71*2.75,0) -> 12.69623633
C77: N content above and below ground, g N2/bu | E77: 141.6 | H77: 141.6
C78: Corn or Sorghum Transport | G78: =(G79+G80+G81+G82) -> 6.8995 | J78: =IF(H71=0,0,J79+J80+J81) -> 6.8995
D79: Corn or Sorghum transport by MDT, miles | E79: 10 | F79: 1 | G79: =HLOOKUP($E$70,'EF Table'!$C$2:$AF$52,7,FALSE)*E79/10 -> 0.3875 | H79: 10 | I79: 1 | J79: =IFERROR(HLOOKUP($H$70,'EF Table'!$C$2:$AF$52,7,FALSE)*H79/10,0) -> 0.3875
D80: Corn or Sorghum transport by HDDT, miles | E80: =G59 -> 80 | F80: 1 | G80: =HLOOKUP($E$70,'EF Table'!$C$2:$AF$52,8,FALSE)*F80*E80/50 -> 6.512 | H80: =N59 -> 80 | I80: 1 | J80: =IFERROR(HLOOKUP($H$70,'EF Table'!$C$2:$AF$52,8,FALSE)*H80/50,0) -> 6.512
D81: Corn or Sorghum transport by Rail, miles | E81: =H59 -> 0 | F81: 1 | G81: =HLOOKUP($E$70,'EF Table'!$C$2:$AF$100,9,FALSE)*F81*E81/500 -> 0 | H81: =O59 -> 0 | I81: 1 | J81: =IFERROR(HLOOKUP($H$70,'EF Table'!$C$2:$AF$100,9,FALSE)*$I$81*$H$81/500,0) -> 0
D82: Corn or Sorghum transport by Barge, miles | E82: =I59 -> 0 | F82: 1 | G82: =HLOOKUP($E$70,'EF Table'!$C$2:$AF$52,10,FALSE)*F82*E82/500 -> 0 | H82: =P59 -> 0 | I82: 1
D83: Corn or Sorghum transport locally, miles | E83: 0 | F83: 1 | I83: 1
C84: Co-product Credit | G84: ='EF Table'!C12*$E$72/5.5636 -> -11.65816007 | J84: ='EF Table'!C12*$H$72/5.5636 -> -11.65816007
D85: Dry Distiller Grains (DDGS), tons | E85: =R59 -> 96000 | F85: =E85*(1-E86)/(($E$85*(1-$E$86)+$E$87*(1-$E$88)+$E$89*(1-$E$90)+$E$91/2000*(1-$E$92)+$E$93*(1-$E$94))) -> 0.3374067498 | H85: =R59 -> 96000 | I85: =H85*(1-H86)/(($H$85*(1-$H$86)+$H$87*(1-$H$88)+$H$89*(1-$H$90)+$H$91/2000*(1-$H$92)+$H$93*(1-$H$94))) -> 0.3374067498
D86: Moisture content of DDGS, % | E86: =U59 -> 0.1132583333 | H86: =U59 -> 0.1132583333
D87: Modified Distiller Grains (MDGS), tons | E87: =X59 -> 0 | F87: =E87*(1-E88)/(($E$85*(1-$E$86)+$E$87*(1-$E$88)+$E$89*(1-$E$90)+$E$91/2000*(1-$E$92)+$E$93*(1-$E$94))) -> 0 | H87: =X59 -> 0 | I87: =H87*(1-H88)/(($H$85*(1-$H$86)+$H$87*(1-$H$88)+$H$89*(1-$H$90)+$H$91/2000*(1-$H$92)+$H$93*(1-$H$94))) -> 0
D88: Moisture content of MDGS, % | E88: =AA59 -> 0.55 | H88: =AA59 -> 0.55
D89: Wet Distiller Grains (WDGS), tons | E89: =AD59 -> 480000 | F89: =E89*(1-E90)/(($E$85*(1-$E$86)+$E$87*(1-$E$88)+$E$89*(1-$E$90)+$E$91/2000*(1-$E$92)+$E$93*(1-$E$94))) -> 0.6399325878 | H89: =AD59 -> 480000 | I89: =H89*(1-H90)/(($H$85*(1-$H$86)+$H$87*(1-$H$88)+$H$89*(1-$H$90)+$H$91/2000*(1-$H$92)+$H$93*(1-$H$94))) -> 0.6399325878
D90: Moisture content of WDGS, % | E90: =AG59 -> 0.6636375 | H90: =AG59 -> 0.6636375
D91: Corn Oil, lbs. | E91: =AM59 -> 11550000 | F91: =E91/2000*(1-E92)/(($E$85*(1-$E$86)+$E$87*(1-$E$88)+$E$89*(1-$E$90)+$E$91/2000*(1-$E$92)+$E$93*(1-$E$94))) -> 0.0226606624 | H91: =E91 -> 11550000 | I91: =H91/2000*(1-H92)/(($H$85*(1-$H$86)+$H$87*(1-$H$88)+$H$89*(1-$H$90)+$H$91/2000*(1-$H$92)+$H$93*(1-$H$94))) -> 0.0226606624
D92: Moisture content of corn oil,% | E92: =References!C169 -> 0.01 | H92: =References!C169 -> 0.01
D93: Syrup, tons | E93: =AI59 -> 0 | F93: =E93*(1-E94)/(($E$85*(1-$E$86)+$E$87*(1-$E$88)+$E$89*(1-$E$90)+$E$91/2000*(1-$E$92)+$E$93*(1-$E$94))) -> 0 | H93: =AI59 -> 0 | I93: =H93*(1-H94)/(($H$85*(1-$H$86)+$H$87*(1-$H$88)+$H$89*(1-$H$90)+$H$91/2000*(1-$H$92)+$H$93*(1-$H$94))) -> 0
D94: Moisture content of syrup, % | E94: =References!C168 -> 0.3 | H94: =References!C168 -> 0.3
D95: Total lbs. of bone-dry DGS, lbs. | E95: =(E85*(1-E86)+E87*(1-E88)+E89*(1-E90)+E91*(1-E92)/2000+E93*(1-E94))*2000 -> 504596900 | H95: =IF(K59=0,0,(H85*(1-H86)+H87*(1-H88)+H89*(1-H90)+H91*(1-H92)/2000+H93*(1-H94))*2000) -> 504596900
C96: DGS Yield (bone-dry lbs./gal EtOH) | E96: =E95/($AU$59+$BB$59) -> 4.889504845 | H96: =H95/$AU$59 -> 4.889504845
C97: Corn Oil Displacement Soy Oi, lb./lb | E97: =References!C170 -> 1 | G97: =IF(E99=0,0,G100+G101+G102+G103+G104) -> -0.7285565991 | H97: =References!C170 -> 1 | J97: =IF(H99=0,0,J100+J101+J102+J103+J104) -> -0.7285565991
C98: Corn Oil yield, lbs. corn oil/gal EtOH | E98: =E91*E92/($AU$59+$BB$59) -> 0.001119186047 | H98: =H91*H92/($AU$59+$BB$59) -> 0.001119186047
C99: Total pounds of corn oil | E99: =AM59 -> 11550000 | H99: =AM59 -> 11550000
C100: Soy Farming | G100: =-('EF Table'!$C$56)/Fuel_Specs!$B$145*E98/Fuel_Specs!$B$31*10^6 -> -0.0006216183452 | J100: =-('EF Table'!$C$56)/Fuel_Specs!$B$145*$H$98/Fuel_Specs!$B$31*10^6 -> -0.0006216183452
D101: Fertilizers | G101: =-('EF Table'!$C$57)/Fuel_Specs!$B$145*E98/Fuel_Specs!$B$31*10^6 -> -0.0003885918705 | J101: =-('EF Table'!$C$57)/Fuel_Specs!$B$145*H98/Fuel_Specs!$B$31*10^6 -> -0.0003885918705
D102: Soy Transport | G102: =-('EF Table'!$C$60+'EF Table'!$C$61)/Fuel_Specs!$B$145*E98/Fuel_Specs!$B$31*10^6 -> -0.0001794888106 | J102: =-('EF Table'!$C$60+'EF Table'!$C$61)/Fuel_Specs!$B$145*H98/Fuel_Specs!$B$31*10^6 -> -0.0001794888106
D103: Soy Oil extraction | G103: =-('EF Table'!$C$65*Fuel_Specs!$B$145)/Fuel_Specs!$B$145*E98/Fuel_Specs!$B$31*10^6 -> -0.06424564848 | J103: =-('EF Table'!$C$65*Fuel_Specs!$B$145)/Fuel_Specs!$B$145*H98/Fuel_Specs!$B$31*10^6 -> -0.06424564848
D104: Indirect Land Use | G104: =-EtOH!E99/EtOH!E108/Fuel_Specs!$J$31*(Misc.!$B$16/Fuel_Specs!$D$140*Fuel_Specs!$B$39*Fuel_Specs!$E$148) -> -0.6631212516 | J104: =-H99/H108/Fuel_Specs!$J$31*(Misc.!$B$16/Fuel_Specs!$D$140*Fuel_Specs!$B$39*Fuel_Specs!$E$148) -> -0.6631212516
B105: Ethanol Production | E105: =BF31 -> 7-MROW Mix | G105: =G106+G152 -> 27.65627959 | H105: =BF31 -> 7-MROW Mix | J105: =J106+J145+J152 -> 27.65627959 | M105: =IF(BB59=0,0,M106+M145+M152+G105) -> 0
C106: Ethanol Production | G106: =G111+G113+G115+G117+G125+G127+G131+G133+G135+G136+G138+G140+G144+G145 -> 25.12220359 | J106: =IF(H71=0,0,J111+J113+J115+J117+J125+J127+J131+J133+J135+J136+J138+J140+J144+J145) -> 25.12220359 | M106: =M111+M113+M115+M119+M125+M127+M131+M133+M135+M147+M149+M151+M136 -> 0
C107: Total feedstock used, bushels | E107: =D59 -> 6840000 | H107: =K59 -> 16170000
C108: Total undenatured ethanol, gallons | E108: =AU59+BB59 -> 103200000 | H108: =AU59 -> 103200000
C109: Ethanol Yield, gal ethanol /bushel | E109: =E108/(D59+K59) -> 4.485006519 | H109: =H108/(D59+K59) -> 4.485006519
C110: Residual oil (HHV), gallons | E110: 0 | H110: 0
C111: Convert to Btu/gal EtOH | E111: =E110*Fuel_Specs!B28/$E$108 -> 0 | G111: =E111/10000*(HLOOKUP($E$105,'EF Table'!$C$2:$AF$401,18,FALSE)/Fuel_Specs!$B$31*Misc.!$B$39) -> 0 | H111: =H110*Fuel_Specs!E28/$E$108 -> 0 | J111: =H111/10000*(HLOOKUP($E$105,'EF Table'!$C$2:$AF$401,18,FALSE)/Fuel_Specs!$B$31*Misc.!$B$39) -> 0
C112: Diesel (HHV), gallons | E112: 0 | H112: 0
C113: Convert to Btu/gal EtOH | E113: =E112*Fuel_Specs!B20/$E$108 -> 0 | G113: =E113/10000*(HLOOKUP($E$105,'EF Table'!$C$2:$AF$401,19,FALSE)/Fuel_Specs!$B$31*Misc.!$B$39) -> 0 | H113: =H112*Fuel_Specs!E20/$E$108 -> 0 | J113: =H113/10000*(HLOOKUP($E$105,'EF Table'!$C$2:$AF$401,19,FALSE)/Fuel_Specs!$B$31*Misc.!$B$39) -> 0
C114: Gasoline (HHV), gallons | E114: 0 | H114: 0
C115: Convert to Btu/gal EtOH | E115: =E114*Fuel_Specs!B16/$E$108 -> 0 | G115: =E115/10000*(HLOOKUP($E$105,'EF Table'!$C$2:$AF$401,20,FALSE)/Fuel_Specs!$B$31*Misc.!$B$39) -> 0 | H115: =H114*Fuel_Specs!E16/$E$108 -> 0 | J115: =H115/10000*(HLOOKUP($E$105,'EF Table'!$C$2:$AF$401,20,FALSE)/Fuel_Specs!$B$31*Misc.!$B$39) -> 0
C116: NG use for Composite DGS, (HHV) Btu | E116: =IF(OR($V$59>0,$AB$59>0),0,BD60*10^6) -> 2400000000000 | H116: =IF(OR($V$59>0,$AB$59>0),0,BD60*10^6) -> 2400000000000
C117: Convert to Btu/gal EtOH | E117: =E116*Fuel_Specs!$I$60/$E$108 -> 20947.65264 | G117: =E117/10000*'EF Table'!$C$24*Misc.!$B$39 -> 19.49046657 | H117: =H116*Fuel_Specs!$I$60/$E$108 -> 20947.65264 | J117: =H117/10000*'EF Table'!$C$24*Misc.!$B$39 -> 19.49046657
C118: NG use for Dry DGS, (HHV) Btu | E118: =V59*10^6+E120 -> 0 | H118: =V59*10^6+E120 -> 0
C119: Convert to Btu/gal EtOH | E119: =E118*Fuel_Specs!$I$60/$E$108 -> 0 | G119: =E119/10000*'EF Table'!$C$24*Misc.!$B$39 -> 0 | H119: =H118*Fuel_Specs!$I$60/$E$108 -> 0 | J119: =H119/10000*'EF Table'!$C$24*Misc.!$B$39 -> 0
C120: NG use for Modified DGS, (HHV) Btu | E120: =AB59*10^6 -> 0 | H120: =AB59*10^6 -> 0
C121: Convert to Btu/gal EtOH | E121: =E120*Fuel_Specs!$I$60/$E$108 -> 0 | G121: =E121/10000*'EF Table'!$C$24*Misc.!$B$39 -> 0 | H121: =H120*Fuel_Specs!$I$60/$E$108 -> 0 | J121: =H121/10000*'EF Table'!$C$24*Misc.!$B$39 -> 0
C122: NG use for Wet DGS (or Facility Use), (HHV) Btu | E122: =IF(OR(E118=0,E120=0),0,$BD$60*10^6-E118-E120) -> 0 | H122: =IF(OR(H118=0,H120=0),0,$BD$60*10^6-H118-H120) -> 0
C123: Convert to Btu/gal EtOH | E123: =E122*Fuel_Specs!$I$59/$E$108 -> 0 | G123: =E123/10000*'EF Table'!$C$24*Misc.!$B$39 -> 0 | H123: =H122*Fuel_Specs!$I$60/$E$108 -> 0 | J123: =H123/10000*'EF Table'!$C$24*Misc.!$B$39 -> 0
C124: Coal (HHV), tons | E124: =BJ59 -> 0 | H124: =BJ59 -> 0
C125: Convert to Btu/gal EtOH | E125: =E124*Fuel_Specs!$B$66/$E$108 -> 0 | G125: =E125/10000*'EF Table'!$C$25*Misc.!$B$39 -> 0 | H125: =H124*Fuel_Specs!$B$66/$E$108 -> 0 | J125: =H125/10000*'EF Table'!$C$25*Misc.!$B$39 -> 0
C126: Liquefied petroleum gas (HHV), Btu | E126: 0 | H126: 0
C127: Convert to Btu/gal EtOH | E127: =E126/$E$108 -> 0 | G127: =E127/10000*'EF Table'!$C$26*Misc.!$B$39 -> 0 | H127: =H126/$E$108 -> 0 | J127: =H127/10000*'EF Table'!$C$26*Misc.!$B$39 -> 0
C128: Biomass (HHV), tons | E128: =BG59 -> 0 | H128: 0
D129: Average Moisture, % | E129: =BH59 -> 0
D130: Biomass Transport Distance, miles | E130: =BI59 -> 0
C131: Convert to Btu/gal EtOH | E131: =E128*Fuel_Specs!$B$79/$E$108 -> 0 | G131: =E131/10000*'EF Table'!$C$27*Misc.!$B$39 -> 0 | H131: =H128*Fuel_Specs!$B$79/$E$108 -> 0 | J131: =H131/10000*'EF Table'!$C$27*Misc.!$B$39 -> 0
C132: Electricity, kWh | E132: =BK59 -> 48000000 | H132: =BK59 -> 48000000
C133: Convert to kWh/gal EtOH | E133: =E132/$E$108 -> 0.4651162791 | G133: =E133*(HLOOKUP($E$105,'EF Table'!$C$2:$AF$40,27,FALSE)*Misc.!$B$39) -> 3.548883628 | H133: =H132/$E$108 -> 0.4651162791 | J133: =H133*(HLOOKUP($E$105,'EF Table'!$C$2:$AF$40,27,FALSE)*Misc.!$B$39) -> 3.548883628
C134: Renewable Natural gas (HHV), Btu | E134: =BE59 -> 0 | H134: 0
C135: Convert to Btu/gal EtOH | E135: =E134*Fuel_Specs!$B$60/$E$108 -> 0 | G135: =E135/10000*'EF Table'!$C$29*Misc.!$B$39 -> 0 | H135: =H134*Fuel_Specs!$B$60/$E$108 -> 0 | J135: =H135/10000*'EF Table'!$C$29*Misc.!$B$39 -> 0
C136: Non-combustion CI | G136: ='EF Table'!C30 -> 0.06285339377 | J136: ='EF Table'!C30 -> 0.06285339377
C137: Other Thermal Energy Sources (HHV) | E137: 0 | H137: =BM59 -> 0
C138: Convert to Btu/gal EtOH | E138: =E137/$E$108 -> 0 | H138: =H137/$E$108 -> 0
C139: Other Electricity Sources, kWh | E139: =BL59 -> 0 | H139: =BO59 -> 0
C140: Convert to kWh/gal EtOH | E140: =E139*Fuel_Specs!$F$140/$E$108 -> 0 | G140: 0 | H140: =H139*Fuel_Specs!$F$140/$E$108 -> 0 | J140: 0
C141: Total Thermal Energy, Btu/gal EtOH | E141: =E111+E113+E115+E119+E125+E127+E131+E135+E117 -> 20947.65264 | H141: =H111+H113+H115+H119+H125+H127+H131+H135+H138+H117 -> 20947.65264
C142: Total Electricity Energy, Btu/gal EtOH | E142: =E132*Fuel_Specs!$F$140/$E$108 -> 1587.042624 | H142: =H132*Fuel_Specs!$F$140/$E$108 -> 1587.042624
C143: Total Plant Energy Consumption, Btu/gal | E143: =E141+E142 -> 22534.69527 | H143: =H141+H142 -> 22534.69527
C144: Chemicals Usage (Standard) | G144: ='EF Table'!C37 -> 2.02 | J144: ='EF Table'!C37 -> 2.02
C145: Extra Chemicals Usage | G145: =SUM(G146:G151) -> 0 | J145: =SUM(J146:J151) -> 0
D146: Cellulase, lbs. | H146: =AK74 -> 0 | K146: =AY59 -> 0
C147: Convert to (grams/gal) | G147: =(E147*Enzymes_Yeast!$J$19)/Fuel_Specs!$F$121/Fuel_Specs!$B$31*10^6/Fuel_Specs!$H$137 -> 0 | H147: =H146*2000*Fuel_Specs!$E$121/$E$108 -> 0 | J147: =(H147*Enzymes_Yeast!M19)/Fuel_Specs!$F$121/Fuel_Specs!$B$31*10^6/Fuel_Specs!$H$137 -> 0 | K147: =K146*Fuel_Specs!$E$121/$E$108 -> 0 | M147: =(K147*'EF Table'!$C$54/2000/453.59/Fuel_Specs!$B$31*10^6/Fuel_Specs!$H$137) -> 0
D148: Yeast, lbs. | K148: 0
C149: Convert to (grams/gal) | G149: =(E149*Enzymes_Yeast!K19)/Fuel_Specs!$F$121/Fuel_Specs!$B$31*10^6/Fuel_Specs!$H$137 -> 0 | J149: =(H149*Enzymes_Yeast!N19)/Fuel_Specs!$F$121/Fuel_Specs!$B$31*10^6/Fuel_Specs!$H$137 -> 0 | K149: =K148*Fuel_Specs!$E$121/$E$108 -> 0
D150: Urea, lbs. | K150: 0
D151: Convert to (grams/gal) | G151: =(E151*Ag_Inputs!$C$22)/Fuel_Specs!$F$121/Fuel_Specs!$B$31*10^6/Fuel_Specs!$H$137 -> 0 | J151: =(H151*Ag_Inputs!$C$22)/Fuel_Specs!$F$121/Fuel_Specs!$B$31*10^6/Fuel_Specs!$H$137 -> 0 | K151: =K150*Fuel_Specs!$E$121/$E$108 -> 0
C152: Ethanol Transport | G152: =G154+G156+G158+G160+G162 -> 2.534076 | J152: =IF(K59=0,0,J154+J156+J158+J160+J162) -> 2.534076 | M152: =IF(BB59=0,0,M154+M156+M158+M160+M162) -> 0
D153: From EtOH Plant to railyard | E153: HDD Truck | F153: 1 | H153: HDD Truck | I153: 1 | K153: =E153 -> HDD Truck | L153: 1
D154: Miles | E154: =50*F153 -> 50 | G154: =HLOOKUP($E$105,'EF Table'!$C$2:$AF$104,33,FALSE)*(E154/100) -> 0.42395 | H154: 50 | J154: =HLOOKUP($H$105,'EF Table'!$C$2:$AF$104,33,FALSE)*(H154/100) -> 0.42395 | K154: 50 | M154: =G154 -> 0.42395
D155: From railyard to CA railyard | E155: Rail | F155: 1 | H155: Rail | I155: 1 | K155: Rail | L155: 1
D156: Miles | E156: =BN35*F155 -> 1800 | G156: =HLOOKUP($E$105,'EF Table'!$C$2:$AF$104,32,FALSE)*E156/1000 -> 1.007856 | H156: =BN35*I155 -> 1800 | J156: =HLOOKUP($E$105,'EF Table'!$C$2:$AF$104,32,FALSE)*H156/1000 -> 1.007856 | K156: 1800 | M156: =G156 -> 1.007856
D157: From railyard 80% to blending terminal | E157: HDD Truck | F157: 0.8 | H157: HDD Truck | I157: 0.8 | K157: HDD Truck | L157: 0.8
D158: Miles | E158: =BN37*F157 -> 80 | G158: =HLOOKUP($E$105,'EF Table'!$C$2:$AF$104,33,FALSE)*E158/100 -> 0.67832 | H158: =BN37*I157 -> 80 | J158: =HLOOKUP($E$105,'EF Table'!$C$2:$AF$104,33,FALSE)*H158/100 -> 0.67832 | K158: 80 | M158: =G158 -> 0.67832
D159: By Barge to CA | E159: By Barge | F159: 1 | H159: By Barge | I159: 1 | K159: By Barge | L159: 1
D160: Miles | E160: =BN45 -> 0 | G160: =HLOOKUP($E$105,'EF Table'!$C$2:$AF$104,31,FALSE)*E160/100 -> 0 | K160: 0 | M160: =G160 -> 0
C161: Ethanol Distribution | D161: From terminal to fuel stations | E161: HDD Truck | F161: 1 | H161: HDD Truck | I161: 1 | K161: HDD Truck | L161: 1
D162: Miles | E162: =References!C175 -> 50 | G162: =E162/100*'EF Table'!$E$34 -> 0.42395 | H162: =References!E175 -> 50 | J162: =H162/100*'EF Table'!$E$34 -> 0.42395 | K162: =References!E175 -> 50 | M162: =K162/100*0.45 -> 0.225
C163: Denaturant, g/MJ | G163: =Misc.!B31 -> 1.454972765 | J163: =IF($K$59=0,0,Misc.!C31) -> 1.178544507 | M163: =IF(BB59=0,0,Misc.!$B$31) -> 0
C164: Indirect Land Use, g/MJ | G164: =References!$C$172 -> 19.8 | J164: =IF($K$59=0,0,References!$E$173) -> 19.4 | M164: 0
C165: Total Well-to-Tank CI, g/MJ | G165: =G71+G105+G163+G164-G119-G121 -> 62.54052065 | J165: =J71+J105+J163+J164 -> 69.80368641 | M165: =M71+M105+M163+M164+M152 -> 0
C166: Feedstock Ratio, %
C167: The cells A176 through AI 241 provide calculation details for various combinations of input scenarios in the sheet above. There are 8 scenarios and they include: Scenario 1 is for corn only with a composite DGS. Scenario 2 is for corn with three separate streams of DGS (i.e., wet, modified and dry). Scenario 3 is corn and sorghum with a composite CI. Scenario 4 is for corn and sorghum with disaggregated DGS streams. Scenario 5 is corn and corn fiber with composite DGS. Scenario 6 is corn and corn fiber with disaggregated DGS. Scenario 7 is corn, corn fiber and sorghum with composite DGS. Scenario 8 is corn, corn fiber and sorghum with disaggregated DGS. The sample calculation in this sheet is for Scenario 2 with corn and sorghum with composite DGS. The calculation details are shown in cells K 192 through N 206.
C173: The sample calculation in this sheet is for Scenario 2 with corn and sorghum with composite DGS. The calculation details are shown in cells K 192 through N 206.
B177: Scenario 1 | C177: Corn (Composite DGS) | F177: 1
B178: Scenario 2 | C178: Corn (Segregated DGS)
B179: Scenario 3 | C179: Corn and Sorghum (Composite DGS) | F179: =D59/(D59+K59) -> 0.29726206 | I179: =K59/(D59+K59) -> 0.70273794
B180: Scenario 4 | C180: Corn and Sorghum (Segregated DGS) | F180: =D59/(D59+K59) -> 0.29726206 | I180: =K59/(D59+K59) -> 0.70273794
B181: Scenario 5 | C181: Corn and Corn Fiber (Composite DGS) | F181: =1-L181 -> 1 | L181: =$BA$59 -> 0
B182: Scenario 6 | C182: Corn and Corn Fiber (Segregated DGS) | F182: =1-L182 -> 1 | L182: =$BA$59 -> 0
B183: Scenario 7 | C183: Corn, Sorghum (Composite DGS) and Corn Fiber | F183: 1 | I183: =K59/(D59+K59) -> 0.70273794 | L183: =$BA$59 -> 0
B184: Scenario 8 | C184: Corn, Sorghum (Segregated DGS) and Corn Fiber | F184: 1 | I184: =K59/(D59+K59) -> 0.70273794 | L184: =$BA$59 -> 0
C192: Scenario 1 | D192: =C177 -> Corn (Composite DGS) | F192: =G245 -> 1 | G192: Scenario 2 | H192: =C178 -> Corn (Segregated DGS) | K192: Scenario 3 | L192: Corn and Sorghum (Composite CI) | O192: Scenario 4 | P192: =C180 -> Corn and Sorghum (Segregated DGS) | S192: Scenario 5 | T192: =$C$177 -> Corn (Composite DGS) | W192: Scenario 6 | X192: =C182 -> Corn and Corn Fiber (Segregated DGS) | AA192: Scenario 7 | AB192: Corn and Sorghum (Composite DGS) | AF192: Scenario 8 | AG192: =C184 -> Corn, Sorghum (Segregated DGS) and Corn Fiber
C193: Corn Ethanol Composite CI, g/MJ | F193: =SUM(F194:F197) -> 62.54052065 | G193: Corn Ethanol (Dry DGS) CI, g/MJ | J193: =IF($V$59=0,0,SUM(J194:J197)) -> 0 | K193: Corn (Composite CI), g/MJ | N193: =SUM(N194:N197) -> 62.54052065 | O193: Corn (Dry DGS), g/MJ | R193: =SUM(R194:R197) -> 62.54052065 | S193: Corn (Composite CI), g/MJ | V193: =SUM(V194:V197) -> 62.54052065 | W193: Corn (Dry DGS), g/MJ | Z193: =SUM(Z194:Z197) -> 62.54052065 | AA193: Corn (Composite CI), g/MJ | AE193: =SUM(AE194:AE197) -> 62.54052065 | AF193: Corn (Dry DGS), g/MJ | AI193: =SUM(AI194:AI197) -> 62.54052065
C194: Feedstock Production, gCO2e/MJ | F194: =$G$71 -> 13.6292683 | G194: Feedstock Production, gCO2e/MJ | J194: =$G$71 -> 13.6292683 | K194: Feedstock Production, gCO2e/MJ | N194: =$G$71 -> 13.6292683 | O194: Feedstock Production, gCO2e/MJ | R194: =$G$71 -> 13.6292683 | S194: Feedstock Production, gCO2e/MJ | V194: =$G$71 -> 13.6292683 | W194: Feedstock Production, gCO2e/MJ | Z194: =$G$71 -> 13.6292683 | AA194: Feedstock Production, gCO2e/MJ | AE194: =$G$71 -> 13.6292683 | AF194: Feedstock Production, gCO2e/MJ | AI194: =$G$71 -> 13.6292683
C195: Fuel Production, gCO2e/MJ | F195: =$G$105 -> 27.65627959 | G195: Fuel Production, gCO2e/MJ | J195: =$G$105+$G$119-G117+G123 -> 8.165813022 | K195: Fuel Production, gCO2e/MJ | N195: =$G$105 -> 27.65627959 | O195: Fuel Production, gCO2e/MJ | R195: =$G$105+$G$119 -> 27.65627959 | S195: Fuel Production, gCO2e/MJ | V195: =$G$105 -> 27.65627959 | W195: Fuel Production, gCO2e/MJ | Z195: =$G$105+$G$119 -> 27.65627959 | AA195: Fuel Production, gCO2e/MJ | AE195: =$G$105 -> 27.65627959 | AF195: Fuel Production, gCO2e/MJ | AI195: =$G$105+$G$119 -> 27.65627959
C196: Indirect Land Use, gCO2e/MJ | F196: =$G$164 -> 19.8 | G196: Indirect Land Use, gCO2e/MJ | J196: =$G$164 -> 19.8 | K196: Indirect Land Use, gCO2e/MJ | N196: =$G$164 -> 19.8 | O196: Indirect Land Use, gCO2e/MJ | R196: =$G$164 -> 19.8 | S196: Indirect Land Use, gCO2e/MJ | V196: =$G$164 -> 19.8 | W196: Indirect Land Use, gCO2e/MJ | Z196: =$G$164 -> 19.8 | AA196: Indirect Land Use, gCO2e/MJ | AE196: =$G$164 -> 19.8 | AF196: Indirect Land Use, gCO2e/MJ | AI196: =$G$164 -> 19.8
C197: Denaturant, gCO2e/MJ | F197: =(1-Misc.!$B$23)*(EtOH!F194+EtOH!F195+EtOH!F196)+Misc.!$B$23*Misc.!$B$24-(EtOH!F194+EtOH!F195+EtOH!F196) -> 1.454972765 | G197: Denaturant, gCO2e/MJ | J197: =(1-Misc.!$B$23)*(EtOH!J194+EtOH!J195+EtOH!J196)+Misc.!$B$23*Misc.!$B$24-(EtOH!J194+EtOH!J195+EtOH!J196) -> 2.169562397 | K197: Denaturant, gCO2e/MJ | N197: =(1-Misc.!$B$23)*(EtOH!N194+EtOH!N195+EtOH!N196)+Misc.!$B$23*Misc.!$B$24-(EtOH!N194+EtOH!N195+EtOH!N196) -> 1.454972765 | O197: Denaturant, gCO2e/MJ | R197: =(1-Misc.!$B$23)*(EtOH!R194+EtOH!R195+EtOH!R196)+Misc.!$B$23*Misc.!$B$24-(EtOH!R194+EtOH!R195+EtOH!R196) -> 1.454972765 | S197: Denaturant, gCO2e/MJ | V197: =(1-Misc.!$B$23)*(EtOH!V194+EtOH!V195+EtOH!V196)+Misc.!$B$23*Misc.!$B$24-(EtOH!V194+EtOH!V195+EtOH!V196) -> 1.454972765 | W197: Denaturant, gCO2e/MJ | Z197: =(1-Misc.!$B$23)*(EtOH!Z194+EtOH!Z195+EtOH!Z196)+Misc.!$B$23*Misc.!$B$24-(EtOH!Z194+EtOH!Z195+EtOH!Z196) -> 1.454972765 | AA197: Denaturant, gCO2e/MJ | AE197: =(1-Misc.!$B$23)*(EtOH!AE194+EtOH!AE195+EtOH!AE196)+Misc.!$B$23*Misc.!$B$24-(EtOH!AE194+EtOH!AE195+EtOH!AE196) -> 1.454972765 | AF197: Denaturant, gCO2e/MJ | AI197: =(1-Misc.!$B$23)*(EtOH!AI194+EtOH!AI195+EtOH!AI196)+Misc.!$B$23*Misc.!$B$24-(EtOH!AI194+EtOH!AI195+EtOH!AI196) -> 1.454972765
C198: Ethanol Volume associated with Corn only, gal | F198: =$AU$59 -> 103200000 | G198: Ethanol Volume associated with DDGS, gal | J198: =IF(J193=0,0,($AU$59+$BB$59)*(F85+F91+F93)) -> 0 | K198: Ethanol Volume associated with Corn only, gal | N198: =($AU$59)*$F$179 -> 30677444.59 | O198: Ethanol Volume associated with DDGS, gal | R198: =($AU$59)*($F$85+$F$91+$F$93)*$F$180 -> 11045948.09 | S198: Ethanol Volume associated with Corn only, gal | V198: =($AU$59)*$F$181 -> 103200000 | W198: Ethanol Volume associated with DDGS, gal | Z198: =($AU$59)*($F$85+$F$91+$F$93)*$F$181 -> 37158956.94 | AA198: Ethanol Volume associated with Corn only, gal | AE198: =($AU$59)*$F$183 -> 103200000 | AF198: Ethanol Volume associated with DDGS, gal | AI198: =($AU$59)*($F$85+$F$91+$F$93)*$F$184 -> 37158956.94
K199: Scenario 3 | L199: =C179 -> Corn and Sorghum (Composite DGS) | S199: Scenario 5 | T199: Corn Fiber | AA199: Scenario 7 | AB199: Corn and Sorghum (Composite DGS)
G200: Corn Ethanol (Modified DGS) CI, g/MJ | J200: =IF($AB$59=0,0,SUM(J201:J204)) -> 0 | K200: Sorghum Ethanol (Composite CI), g/MJ | N200: =SUM(N201:N204) -> 69.80368641 | O200: Corn (Modified DGS), g/MJ | R200: =SUM(R201:R204) -> 62.54052065 | S200: Corn Fiber, g/MJ | V200: =SUM(V201:V204) -> 3.694585605 | W200: Corn (Modified DGS), g/MJ | Z200: =SUM(Z201:Z204) -> 62.54052065 | AA200: Sorghum (Composite CI), g/MJ | AE200: =SUM(AE201:AE204) -> 69.80368641 | AF200: Corn (Modified DGS), g/MJ | AI200: =SUM(AI201:AI204) -> 62.54052065
G201: Feedstock Production, gCO2e/MJ | J201: =$G$71 -> 13.6292683 | K201: Feedstock Production, gCO2e/MJ | N201: =$J$71 -> 21.56886232 | O201: Feedstock Production, gCO2e/MJ | R201: =$G$71 -> 13.6292683 | S201: Feedstock Production, gCO2e/MJ | V201: 0 | W201: Feedstock Production, gCO2e/MJ | Z201: =$G$71 -> 13.6292683 | AA201: Feedstock Production, gCO2e/MJ | AE201: =$J$71 -> 21.56886232 | AF201: Feedstock Production, gCO2e/MJ | AI201: =$G$71 -> 13.6292683
G202: Fuel Production, gCO2e/MJ | J202: =$G$105+$G$121-G117+G123 -> 8.165813022 | K202: Fuel Production, gCO2e/MJ | N202: =$J$105 -> 27.65627959 | O202: Fuel Production, gCO2e/MJ | R202: =$G$105+$G$121 -> 27.65627959 | S202: Fuel Production, gCO2e/MJ | V202: =$M$105 -> 0 | W202: Fuel Production, gCO2e/MJ | Z202: =$G$105+$G$121 -> 27.65627959 | AA202: Fuel Production, gCO2e/MJ | AE202: =$J$105 -> 27.65627959 | AF202: Fuel Production, gCO2e/MJ | AI202: =$G$105+$G$121 -> 27.65627959
G203: Indirect Land Use, gCO2e/MJ | J203: =$G$164 -> 19.8 | K203: Indirect Land Use, gCO2e/MJ | N203: =$J$164 -> 19.4 | O203: Indirect Land Use, gCO2e/MJ | R203: =$G$164 -> 19.8 | S203: Indirect Land Use, gCO2e/MJ | V203: 0 | W203: Indirect Land Use, gCO2e/MJ | Z203: =$G$164 -> 19.8 | AA203: Indirect Land Use, gCO2e/MJ | AE203: =$J$164 -> 19.4 | AF203: Indirect Land Use, gCO2e/MJ | AI203: =$G$164 -> 19.8
G204: Denaturant, gCO2e/MJ | J204: =(1-Misc.!$B$23)*(EtOH!J201+EtOH!J202+EtOH!J203)+Misc.!$B$23*Misc.!$B$24-(EtOH!J201+EtOH!J202+EtOH!J203) -> 2.169562397 | K204: Denaturant, gCO2e/MJ | N204: =IF($K$59=0,0,(1-Misc.!$B$23)*(EtOH!N201+EtOH!N202+EtOH!N203)+Misc.!$B$23*Misc.!$B$24-(EtOH!N201+EtOH!N202+EtOH!N203)) -> 1.178544507 | O204: Denaturant, gCO2e/MJ | R204: =(1-Misc.!$B$23)*(EtOH!R201+EtOH!R202+EtOH!R203)+Misc.!$B$23*Misc.!$B$24-(EtOH!R201+EtOH!R202+EtOH!R203) -> 1.454972765 | S204: Denaturant, gCO2e/MJ | V204: =(1-Misc.!$B$23)*(EtOH!V201+EtOH!V202+EtOH!V203)+Misc.!$B$23*Misc.!$B$24-(EtOH!V201+EtOH!V202+EtOH!V203) -> 3.694585605 | W204: Denaturant, gCO2e/MJ | Z204: =(1-Misc.!$B$23)*(EtOH!Z201+EtOH!Z202+EtOH!Z203)+Misc.!$B$23*Misc.!$B$24-(EtOH!Z201+EtOH!Z202+EtOH!Z203) -> 1.454972765 | AA204: Denaturant, gCO2e/MJ | AE204: =IF($K$59=0,0,(1-Misc.!$B$23)*(EtOH!AE201+EtOH!AE202+EtOH!AE203)+Misc.!$B$23*Misc.!$B$24-(EtOH!AE201+EtOH!AE202+EtOH!AE203)) -> 1.178544507 | AF204: Denaturant, gCO2e/MJ | AI204: =(1-Misc.!$B$23)*(EtOH!AI201+EtOH!AI202+EtOH!AI203)+Misc.!$B$23*Misc.!$B$24-(EtOH!AI201+EtOH!AI202+EtOH!AI203) -> 1.454972765
G205: Ethanol Volume associated with MDGS, gal | J205: =IF(J200=0,0,($AU$59+$BB$59)*$F$87) -> 0 | K205: Ethanol Volume associated with Sorghum, gal | N205: =($AU$59+$BB$59)*I180 -> 72522555.41 | O205: Ethanol Volume associated with MDGS, gal | R205: =($AU$59)*$F$87*$F$180 -> 0 | S205: Ethanol Volume associated with Corn Fiber, gal | V205: =($AU$59)*$L$181 -> 0 | W205: Ethanol Volume associated with MDGS, gal | Z205: =($AU$59)*$F$87*$F$181 -> 0 | AA205: Ethanol Volume associated with Sorghum, gal | AE205: =($AU$59+$BB$59)*$I$183 -> 72522555.41 | AF205: Ethanol Volume associated with MDGS, gal | AI205: =($AU$59)*$F$87*$F$184 -> 0
G206: Corn Ethanol (Wet DGS) CI, g/MJ | J206: =IF(AND($J$193=0,$J$200=0),0,SUM(J207:J210)) -> 0 | K206: Total Ethanol Volume, gal | N206: =N198+N205 -> 103200000 | O206: Corn (Wet DGS), g/MJ | R206: =SUM(R207:R210) -> 62.54052065 | S206: Total Ethanol Volume, gal | V206: =V198+V205 -> 103200000 | W206: Corn (Wet DGS), g/MJ | Z206: =SUM(Z207:Z210) -> 62.54052065 | AA206: Scenario 7 | AB206: Corn Fiber | AF206: Corn (Wet DGS), g/MJ | AI206: =SUM(AI207:AI210) -> 62.54052065
G207: Feedstock Production, gCO2e/MJ | J207: =$G$71 -> 13.6292683 | O207: Feedstock Production, gCO2e/MJ | R207: =$G$71 -> 13.6292683 | W207: Feedstock Production, gCO2e/MJ | Z207: =$G$71 -> 13.6292683 | AA207: Corn Fiber, g/MJ | AE207: =SUM(AE208:AE211) -> 3.694585605 | AF207: Feedstock Production, gCO2e/MJ | AI207: =$G$71 -> 13.6292683
G208: Fuel Production, gCO2e/MJ | J208: =$G$105+$G$121-G117 -> 8.165813022 | O208: Fuel Production, gCO2e/MJ | R208: =$G$105 -> 27.65627959 | W208: Fuel Production, gCO2e/MJ | Z208: =$G$105 -> 27.65627959 | AA208: Feedstock Production, gCO2e/MJ | AE208: =M73 -> 0 | AF208: Fuel Production, gCO2e/MJ | AI208: =$G$105 -> 27.65627959
G209: Indirect Land Use, gCO2e/MJ | J209: =G164 -> 19.8 | O209: Indirect Land Use, gCO2e/MJ | R209: =$G$164 -> 19.8 | W209: Indirect Land Use, gCO2e/MJ | Z209: =$G$164 -> 19.8 | AA209: Fuel Production, gCO2e/MJ | AE209: =$M$105 -> 0 | AF209: Indirect Land Use, gCO2e/MJ | AI209: =$G$164 -> 19.8
G210: Denaturant, gCO2e/MJ | J210: =(1-Misc.!$B$23)*(EtOH!J207+EtOH!J208+EtOH!J209)+Misc.!$B$23*Misc.!$B$24-(EtOH!J207+EtOH!J208+EtOH!J209) -> 2.169562397 | O210: Denaturant, gCO2e/MJ | R210: =(1-Misc.!$B$23)*(EtOH!R207+EtOH!R208+EtOH!R209)+Misc.!$B$23*Misc.!$B$24-(EtOH!R207+EtOH!R208+EtOH!R209) -> 1.454972765 | W210: Denaturant, gCO2e/MJ | Z210: =(1-Misc.!$B$23)*(EtOH!Z207+EtOH!Z208+EtOH!Z209)+Misc.!$B$23*Misc.!$B$24-(EtOH!Z207+EtOH!Z208+EtOH!Z209) -> 1.454972765 | AA210: Indirect Land Use, gCO2e/MJ | AE210: 0 | AF210: Denaturant, gCO2e/MJ | AI210: =(1-Misc.!$B$23)*(EtOH!AI207+EtOH!AI208+EtOH!AI209)+Misc.!$B$23*Misc.!$B$24-(EtOH!AI207+EtOH!AI208+EtOH!AI209) -> 1.454972765
G211: Ethanol Volume associated with WDGS, gal | J211: =IF(J206=0,0,($AU$59+$BB$59)*$F$89) -> 0 | O211: Ethanol Volume associated with WDGS, gal | R211: =($AU$59)*$F$89*$F$180 -> 19631496.5 | W211: Ethanol Volume associated with WDGS, gal | Z211: =($AU$59)*$F$89*$F$181 -> 66041043.06 | AA211: Denaturant, gCO2e/MJ | AE211: =(1-Misc.!$B$23)*(EtOH!AE208+EtOH!AE209+EtOH!AE210)+Misc.!$B$23*Misc.!$B$24-(EtOH!AE208+EtOH!AE209+EtOH!AE210) -> 3.694585605 | AF211: Ethanol Volume associated with WDGS, gal | AI211: =($AU$59)*$F$89*$F$184 -> 66041043.06
G212: Total Ethanol Volume, gal | J212: =J198+J205+J211 -> 0 | O212: Sub Total Ethanol Volume, gal | R212: =R198+R205+R211 -> 30677444.59 | W212: Total Ethanol Volume, gal | Z212: =Z198+Z205+Z211 -> 103200000 | AA212: Ethanol Volume, gal | AE212: =($AU$59)*$L$181 -> 0 | AF212: Total Ethanol Volume, gal | AI212: =AI198+AI205+AI211 -> 103200000
O213: Scenario 4 | P213: =C180 -> Corn and Sorghum (Segregated DGS) | W213: Scenario 6 | X213: Corn Fiber | AA213: Total Ethanol Volume, gal | AE213: =AE198+AE205+AE212 -> 175722555.4 | AF213: Scenario 8 | AG213: =C184 -> Corn, Sorghum (Segregated DGS) and Corn Fiber
O214: Sorghum Ethanol (Dry DGS) CI, g/MJ | R214: =IF($V$59=0,0,SUM(R215:R218)) -> 0 | W214: Corn Fiber, g/MJ | Z214: =SUM(Z215:Z218) -> 3.694585605 | AF214: Sorghum Ethanol (Dry DGS) CI, g/MJ | AI214: =SUM(AI215:AI218) -> 69.80368641
O215: Feedstock Production, gCO2e/MJ | R215: =$J$71 -> 21.56886232 | W215: Feedstock Production, gCO2e/MJ | Z215: 0 | AF215: Feedstock Production, gCO2e/MJ | AI215: =$J$71 -> 21.56886232
O216: Fuel Production, gCO2e/MJ | R216: =$J$105 -> 27.65627959 | W216: Fuel Production, gCO2e/MJ | Z216: =$M$105 -> 0 | AF216: Fuel Production, gCO2e/MJ | AI216: =$J$105+$J$123 -> 27.65627959
O217: Indirect Land Use, gCO2e/MJ | R217: =$J$164 -> 19.4 | W217: Indirect Land Use, gCO2e/MJ | Z217: =$AI$70 -> 0 | AF217: Indirect Land Use, gCO2e/MJ | AI217: =$J$164 -> 19.4
O218: Denaturant, gCO2e/MJ | R218: =IF($K$59=0,0,(1-Misc.!$B$23)*(EtOH!R215+EtOH!R216+EtOH!R217)+Misc.!$B$23*Misc.!$B$24-(EtOH!R215+EtOH!R216+EtOH!R217)) -> 1.178544507 | W218: Denaturant, gCO2e/MJ | Z218: =(1-Misc.!$B$23)*(EtOH!Z215+EtOH!Z216+EtOH!Z217)+Misc.!$B$23*Misc.!$B$24-(EtOH!Z215+EtOH!Z216+EtOH!Z217) -> 3.694585605 | AF218: Denaturant, gCO2e/MJ | AI218: =IF($K$59=0,0,(1-Misc.!$B$23)*(EtOH!AI215+EtOH!AI216+EtOH!AI217)+Misc.!$B$23*Misc.!$B$24-(EtOH!AI215+EtOH!AI216+EtOH!AI217)) -> 1.178544507
O219: Ethanol Volume, gal | R219: =IF(R214=0,0,($AU$59)*($F$85+$F$91+$F$93)*$I$180) -> 0 | W219: Ethanol Volume, gal | Z219: =$AU$59*$L$181 -> 0 | AF219: Ethanol Volume, gal | AI219: =($AU$59+$BB$59)*($F$85+$F$91+$F$93)*$I$184 -> 26113008.85
W220: Total Ethanol Volume, gal | Z220: =Z212+Z219 -> 103200000
O221: Sorghum Ethanol (Modified DGS) CI, g/MJ | R221: =IF($V$59=0,0,SUM(R222:R225)) -> 0 | AF221: Sorghum Ethanol (Modified DGS) CI, g/MJ | AI221: =SUM(AI222:AI225) -> 69.80368641
O222: Feedstock Production, gCO2e/MJ | R222: =$J$71 -> 21.56886232 | AF222: Feedstock Production, gCO2e/MJ | AI222: =$J$71 -> 21.56886232
... 28 more rows

Sheet LFG (hidden)
A1: Producer Operational Data Summary | C1: Applicant: | D1: ABC Company | E1: Landfill Location: | F1: AAA Landfill in City , State | H1: CNG Dispensing Location: | I1: California CNG Stations (for more than one station, use the Standard Centroid Location) | K1: LNG Production Location: | L1: Street, City, State | N1: LNG and/or L-CNG Dispensing Location: | O1: LNG/CNG Stations in California | P1: DRAFT - FOR DICUSSION ONLY - DO NOT USE
A2: Estimated Landfill Gas CI, g/MJ | C2: CNG CI | D2: =H136 -> 58.14640317 | E2: Pathway Description: Landfill Gas extracted from Landfill City (XX), processed in (YY), pipelined to California for Compressed Natural Gas | H2: LNG CI | I2: =H137 -> 63.77081605 | J2: Pathway Description: Landfill Gas extracted from Landfill City (XX), processed in (YY), pipelined to California for liquefaction, then transported by truck to California LNG stations | N2: L-CNG CI | O2: =H138 -> 66.96681605 | P2: Pathway Description: Landfill Gas extracted from Landfill City (XX), processed in (YY), pipelined to California for liquefaction, then transported by truck to California LNG stations, re-gasified and compresses to Liquefied CNG
A3: Data Years | B3: Step 1) Select Region for Biomethane Production | K3: Step 2) Select Region for CNG, LNG, and L-CNG Production
B4: Select Regional Electricity Mix for Biomethane | D4: 1-U.S Ave Mix | I4: Provisional Pathway? | J4: No | K4: Select Regional Electricity Mix for LNG Production | O4: 3-CAMX Mix
A5: Process | B5: Biogas Feedstock (at Inlet to Processing) | D5: Biogas Processing | I5: Biomethane | K5: Inputs to Liquefaction | R5: Inputs to Dispensing Stations
A6: Monthly Data | B6: Inlet Raw LFG Extraction Flow, (metered) | C6: Methane Content (% Methane) | D6: Facility Total NG from Utility Invoices | E6: Facility Total Diesel from Invoices | F6: Facility Total Propane (LPG) from Invoices | G6: ='User Defined'!B39 -> Oil | H6: Facility Total Electricity from Utility Invoices | I6: Biomethane Product Gas, (metered) | J6: NG pipeline Transmission | K6: NG from NG purchase invoices | L6: LNG Production from Production Log | M6: NG as process fuel from Calculation (Calculated) | N6: Electricity from Utility Invoices | O6: Eletricity from Other Sources | P6: LNG Transport and Distribution | R6: Standard values are applied to fueling facilities for all CNG, LNG, and L-CNG pathways
A7: Unit | B7: SCF at 60oF | C7: % | D7: MMBtu | E7: Gallons | F7: Gallons | G7: MMBtu | H7: kWh | I7: MMBtu | J7: Miles | K7: MMBtu | L7: Gallons | M7: MMBtu | N7: kWh | O7: kWh | Q7: miles
A8: Month 1 | B8: 141253676.2 | C8: 0.5588 | D8: 1920.27907 | E8: 0 | F8: 0 | G8: 0 | H8: 2736337 | I8: 118489 | K8: 285000 | L8: 2800192 | M8: =K8-L8*Fuel_Specs!$D$36/10^6 -> 47487.71456 | N8: 619200 | P8: Select to affirm truck and storage tanks are equipped with Boil-Off Recovery | Q8: No
A9: Month 2 | B9: 122824800.9 | C9: 0.5616 | D9: 1.088593577 | E9: 0 | F9: 0 | G9: 0 | H9: 2745531 | I9: 97008 | K9: 242000 | L9: 2545121 | M9: =K9-L9*Fuel_Specs!$D$36/10^6 -> 26122.83678 | N9: 631800
A10: Month 3 | B10: 135901080.2 | C10: 0.5637 | D10: 1.088593577 | E10: 0 | F10: 0 | G10: 0 | H10: 2747026 | I10: 105733 | J10: From processing facility to the Standard Centroid CNG stations. | K10: 208000 | L10: 2117008 | M10: =K10-L10*Fuel_Specs!$D$36/10^6 -> 28435.38144 | N10: 653400
A11: Month 4 | B11: 137089995.3 | C11: 0.5581 | D11: 0 | E11: 0 | F11: 0 | G11: 0 | H11: 2710139 | I11: 109350 | K11: 240000 | L11: 2449512 | M11: =K11-L11*Fuel_Specs!$D$36/10^6 -> 32232.39216 | N11: 660000 | O11: 0 | P11: Enter LNG Transport Distance from Liquefaction Plant to stations by Heavy Duty Diesel Truck | Q11: 200
A12: Month 5 | B12: 134030495.4 | C12: 0.5615 | D12: 0 | E12: 0 | F12: 0 | G12: 0 | H12: 3107681 | I12: 104763 | K12: 244000 | L12: 2470395 | M12: =K12-L12*Fuel_Specs!$D$36/10^6 -> 34461.0961 | N12: 547800 | O12: 0
A13: Month 6 | B13: 147100478.5 | C13: 0.5588 | D13: 0 | E13: 0 | F13: 0 | G13: 0 | H13: 3196800 | I13: 116624 | K13: 233500 | L13: 2426316 | M13: =K13-L13*Fuel_Specs!$D$36/10^6 -> 27699.87688 | N13: 504000 | O13: 0
A14: Month 7 | B14: 123501204.1 | C14: 0.5604 | D14: 0 | E14: 0 | F14: 0 | G14: 0 | H14: 2615924 | I14: 113579 | J14: 2500 | K14: 250500 | L14: 2411691 | M14: =K14-L14*Fuel_Specs!$D$36/10^6 -> 45940.36938 | N14: 528000 | O14: 0 | P14: Enter LNG Transport Distance from Liquefaction Plant to stations by Heavy Duty LNG Truck | Q14: 0
A15: Month 8 | B15: 115071200.9 | C15: 0.5625 | D15: 0 | E15: 0 | F15: 0 | G15: 0 | H15: 2302271 | I15: 95351 | K15: 340539 | L15: 3479019 | M15: =K15-L15*Fuel_Specs!$D$36/10^6 -> 45448.60842 | N15: 493200 | O15: 0
A16: Month 9 | B16: 137595275.5 | C16: 0.5645 | D16: 153.4916944 | E16: 0 | F16: 0 | G16: 0 | H16: 2271792 | I16: 109857 | J16: From processing facility to LNG plant | K16: 356500 | L16: 3406312 | M16: =K16-L16*Fuel_Specs!$D$36/10^6 -> 67576.61616 | N16: 341400 | O16: 0
A17: Month 10 | B17: 139461968.9 | C17: 0.5594 | D17: 2.177187154 | E17: 0 | F17: 0 | G17: 0 | H17: 2952036 | I17: 121663 | K17: 330000 | L17: 3207724 | M17: =K17-L17*Fuel_Specs!$D$36/10^6 -> 57920.85032 | N17: 412200 | O17: 0
A18: Month 11 | B18: 142253537.2 | C18: 0.5639 | D18: 1.088593577 | E18: 0 | F18: 0 | G18: 0 | H18: 2505884 | I18: 120683 | K18: 338150 | L18: 3439473 | M18: =K18-L18*Fuel_Specs!$D$36/10^6 -> 46413.90014 | N18: 539400 | O18: 0
A19: Month 12 | B19: 143136216.8 | C19: 0.5557 | D19: 3.265780731 | E19: 0 | F19: 0 | G19: 0 | H19: 1998069 | I19: 115680 | K19: 330500 | L19: 3042856 | M19: =K19-L19*Fuel_Specs!$D$36/10^6 -> 72404.95408 | N19: 490200 | O19: 0
A20: Month 13 | B20: 145042024.4 | C20: 0.5597 | D20: 4.354374308 | E20: 0 | F20: 0 | G20: 0 | H20: 2226468 | I20: 116780 | J20: 2000 | K20: 330485 | L20: 3209747 | M20: =K20-L20*Fuel_Specs!$D$36/10^6 -> 58234.25946 | N20: 537000 | O20: 0
A21: Month 14 | B21: 152305466.8 | C21: 0.5582 | D21: 5.442967885 | E21: 0 | F21: 0 | G21: 0 | H21: 2089124 | I21: 126887 | K21: 312250 | L21: 3211840 | M21: =K21-L21*Fuel_Specs!$D$36/10^6 -> 39821.7312 | N21: 634800 | O21: 0
A22: Month 15 | B22: 138444409.1 | C22: 0.555 | D22: 3.265780731 | E22: 0 | F22: 0 | G22: 0 | H22: 2228597 | I22: 116937 | K22: 336750 | L22: 3310713 | M22: =K22-L22*Fuel_Specs!$D$36/10^6 -> 55935.32334 | N22: 643800 | O22: 0
A23: Month 16 | B23: 143938360.5 | C23: 0.5596 | D23: 2.177187154 | E23: 0 | F23: 0 | G23: 0 | H23: 2043597 | I23: 117203 | K23: 353250 | L23: 3538071 | M23: =K23-L23*Fuel_Specs!$D$36/10^6 -> 53150.81778 | N23: 702000 | O23: 0
A24: Month 17 | B24: 141573370.6 | C24: 0.5569 | D24: 3.265780731 | E24: 0 | F24: 0 | G24: 0 | H24: 2220868 | I24: 116056 | K24: 347500 | L24: 3424887 | M24: =K24-L24*Fuel_Specs!$D$36/10^6 -> 57001.08466 | N24: 572400 | O24: 0
A25: Month 18 | B25: 148889379 | C25: 0.5656 | D25: 5.442967885 | E25: 0 | F25: 0 | G25: 0 | H25: 2642066 | I25: 122998 | K25: 360550 | L25: 3511286 | M25: =K25-L25*Fuel_Specs!$D$36/10^6 -> 62722.72148 | N25: 577200 | O25: 0
A26: Month 19 | B26: 147399014.9 | C26: 0.564 | D26: 4.354374308 | E26: 0 | F26: 0 | G26: 0 | H26: 2023714 | I26: 120808 | K26: 338500 | L26: 3243788 | M26: =K26-L26*Fuel_Specs!$D$36/10^6 -> 63361.90184 | N26: 578400 | O26: 0
A27: Month 20 | B27: 127802360.2 | C27: 0.5669 | D27: 35.92358804 | E27: 0 | F27: 0 | G27: 0 | H27: 2394035 | I27: 115457 | K27: 351850 | L27: 3286247 | M27: =K27-L27*Fuel_Specs!$D$36/10^6 -> 73110.52946 | N27: 595800 | O27: 0
A28: Month 21 | B28: 155272199.4 | C28: 0.5695 | D28: 43.54374308 | E28: 0 | F28: 0 | G28: 0 | H28: 2307706 | I28: 125625 | K28: 333600 | L28: 3511583 | M28: =K28-L28*Fuel_Specs!$D$36/10^6 -> 35747.52994 | N28: 637800 | O28: 0
A29: Month 22 | B29: 141792001 | C29: 0.5645 | D29: 8.708748616 | E29: 0 | F29: 0 | G29: 0 | H29: 2266497 | I29: 112905 | K29: 342000 | L29: 3355404 | M29: =K29-L29*Fuel_Specs!$D$36/10^6 -> 57394.63272 | N29: 666000 | O29: 0
A30: Month 23 | B30: 150965979 | C30: 0.5275 | D30: 0 | E30: 0 | F30: 0 | G30: 0 | H30: 2828446 | I30: 131522 | K30: 378300 | L30: 3595517 | M30: =K30-L30*Fuel_Specs!$D$36/10^6 -> 73328.24806 | N30: 340800 | O30: 0
A31: Month 24 | B31: 140872425 | C31: 0.5574 | D31: 3.265780731 | E31: 0 | F31: 0 | G31: 0 | H31: 2450612 | I31: 118947 | K31: 315000 | L31: 3058349 | M31: =K31-L31*Fuel_Specs!$D$36/10^6 -> 55590.83782 | N31: 507600
A32: Total in HHV | B32: =SUM(B8:B31) -> 3353516920 | C32: =IF(MAX($C8:$C31)<=0,"0",SUMIF($C8:$C31,">0")/COUNTIF($C8:$C31,">0")) -> 0.5597375 | D32: =SUM(D8:D31) -> 2202.224806 | E32: 0 | F32: 0 | G32: 0 | H32: 59611220 | I32: 2770905 | K32: =SUM(K8:K31) -> 7498724 | L32: =SUM(L8:L31) -> 74053051 | M32: =SUM(M8:M31) -> 1217544.214 | N32: =SUM(N8:N31) -> 13414200 | O32: =SUM(O8:O31) -> 0
A33: Total MMBtu in HHV | B33: =B32*Fuel_Specs!$D$60/10^6 -> 3581556.071 | D33: =SUM(D8:D31) -> 2202.224806 | E33: =SUM(E8:E31)*Fuel_Specs!$D$20/10^6 -> 0 | F33: =IF(F7="Gallons",F32*Fuel_Specs!$D$35/10^6,IF(F7="MMBtu",F32)) -> 0 | G33: =IF(G7="MMBtu",SUM(G8:G31),SUM(G8:G31)*3412.14) -> 0 | H33: =SUM(H8:H31)*Fuel_Specs!$F$140/10^6 -> 203401.9261 | I33: =SUM(I8:I31) -> 2770905 | K33: =(IF(K7="MMBtu",SUM(K8:K31),IF(K7="Therms",SUM(K8:K31)*10,IF(K7="SCF",SUM(K8:K31)*Fuel_Specs!$D$59)))) -> 7498724 | L33: =L32*Fuel_Specs!$D$36/10^6 -> 6281179.786 | M33: =(IF(M7="MMBtu",SUM(M8:M31),IF(M7="Therms",SUM(M8:M31)*10,IF(M7="SCF",SUM(M8:M31)*Fuel_Specs!$D$59)))) -> 1217544.214 | N33: =SUM(N8:N31)*Fuel_Specs!$F$140/10^6 -> 45771.15041 | O33: =SUM(O8:O31)*Fuel_Specs!$F$140/10^6 -> 0
A34: Convert to MMBtu, in LHV | B34: =B33*Fuel_Specs!$I$60 -> 3226083.277 | C34: =B34*C32 -> 1805759.788 | D34: =D33*Fuel_Specs!$I$59 -> 1988.609 | E34: =E33*Fuel_Specs!$I$20 -> 0 | F34: =F33*Fuel_Specs!$I$35 -> 0 | G34: =IF(G7="MMBtu",G33*0.9,G33) -> 0 | H34: =H33 -> 203401.9261 | I34: =I33*Fuel_Specs!$I$60-D34-F34 -> 2493901.475 | K34: =K33*Fuel_Specs!$I$59 -> 6771347.772 | L34: =L33*Fuel_Specs!$I$36 -> 5533243.971 | M34: =M33*Fuel_Specs!$I$59 -> 1099442.425 | N34: =N33 -> 45771.15041 | O34: =O33 -> 0
A35: Convert to Btu/MMBtu fuel throughput | C35: 4621.26 | D35: =D34*10^6/$I$34 -> 797.388758 | E35: =E34*10^6/$I$34 -> 0 | F35: =F34*10^6/$I$34 -> 0 | G35: =G34*10^6/$I$34 -> 0 | H35: =H34*10^6/$I$34 -> 81559.72803 | I35: =(B34-I34)/$I$34*10^6 -> 293588.9044 | M35: =M34*10^6/L34 -> 198697.6232 | N35: =N34*10^6/$L$34 -> 8272.028244 | O35: =O34*10^6/$L$34 -> 0
A36: Process Shares and Efficiency, % | B36: 0.9954 | C36: =(B34-I34)/($D$34+$E$34+$F$34+$G$34+$H$34+$B$34-$I$34) -> 0.7809336656 | D36: =D34/($D$34+$E$34+$F$34+$G$34+$H$34+$B$34-$I$34) -> 0.002121019277 | E36: =E34/($D$34+$E$34+$F$34+$G$34+$H$34+$B$34-$I$34) -> 0 | F36: =F34/($D$34+$E$34+$F$34+$G$34+$H$34+$B$34-$I$34) -> 0 | G36: =G34/($D$34+$E$34+$F$34+$G$34+$H$34+$B$34-$I$34) -> 0 | H36: =H34/($D$34+$E$34+$F$34+$G$34+$H$34+$B$34-$I$34) -> 0.2169453151 | I36: =($B$34-$I$34)/($D$34+$E$34+$F$34+$G$34+$H$34+$B$34-$I$34) -> 0.7809336656 | J36: =I34/(B34+D34+E34+F34+G34+H34) -> 0.7267726965 | M36: =M35/(M35+N35+O35) -> 0.9600326512 | N36: =N35/(M35+N35+O35) -> 0.03996734878 | O36: =O35/(N35+O35+P35) -> 0 | P36: =L34/(L34+M34+N34+O34) -> 0.8285212464
A38: Carbon Intensity Breakdown to each Process
A39: eGRID region | B39: Process | D39: Inputs | F39: Values | G39: Shares | H39: CI Outputs, g/MJ
A40: Landfill Gas to Compressed NG (CNG) Off-site Refueling
A41: =References!$F$37 -> 1-U.S Ave Mix | B41: Raw Biogas Extraction | C41: Raw biogas extraction, MMBtu (HHV) | F41: =B33 -> 3581556.071
C42: Methane content, Mole % | F42: =C32 -> 0.5597375
C43: Adjusted raw biogas, MMBtu (LHV) | F43: =F41*F42*Fuel_Specs!I60 -> 1805759.788
C44: Convert to ft3 | F44: =F43*10^6/Fuel_Specs!$B$60 -> 1877089177
C45: Electricity, kWh | F45: =F46/Fuel_Specs!$F$140/10^6*Fuel_Specs!$B$59*F44 -> 2499031.762 | G45: 1
C46: Convert to Btu/MMBtu | F46: =C35 -> 4621.26 | H46: =F46*(HLOOKUP($A$41,'EF Table'!$C$2:$AF$401,149,FALSE))*Misc.!$J$38/Fuel_Specs!$F$140 -> 0
C47: Energy Efficiency, % | F47: =B36 -> 0.9954
B48: Gas Processing | C48: Outlet Biomethane, MMBtu (HHV) | F48: =I32 -> 2770905 | H48: =SUM(H53:H65) -> 43.09098798
C49: Convert to, MMBtu (LHV) | F49: =F48*Fuel_Specs!$I$60 -> 2495890.084
C50: Convert to ft3 | F50: =F48*10^6/Fuel_Specs!$B$60 -> 2880358628
C51: Leakage rate | F51: 0.01
C52: Process fuel share use
C53: Biomethane use, Btu (HHV) | F53: =(B33-I33)*10^6 -> 8.106510705e+11 | G53: =C36 -> 0.7809336656
D54: Convert to Btu/MMBtu (LHV) | F54: =I35 -> 293588.9044 | H54: =F54*(HLOOKUP($A$41,'EF Table'!$C$2:$AF$401,154,FALSE))*Misc.!$J$38/10000 -> 22.20642499
C55: NG use in TOX, Btu (HHV) | F55: =D33 -> 2202.224806 | G55: =D36 -> 0.002121019277
D56: Convert to Btu/MMBtu (LHV) | F56: =D35 -> 797.388758 | H56: =F56*(HLOOKUP($A$41,'EF Table'!$C$2:$AF$401,152,FALSE))*Misc.!$J$38/10000+F65*Fuel_Specs!$E$60/Fuel_Specs!$B$60*Fuel_Specs!$B$92/Fuel_Specs!$H$137*Misc.!$J$38 -> 5.040559124
C57: Diesel use in TOX, gallons (HHV) | F57: =E33 -> 0 | G57: =E36 -> 0
D58: Convert to Btu/MMBtu (LHV) | F58: =E35 -> 0 | H58: =F58*(HLOOKUP($A$41,'EF Table'!$C$2:$AF$401,151,FALSE))*Misc.!$J$38/10000 -> 0
C59: LPG use in TOX, Btu (HHV) | F59: =F33 -> 0 | G59: =F36 -> 0
D60: Convert to Btu/MMBtu (LHV) | F60: =F35 -> 0 | H60: =F60*(HLOOKUP($A$41,'EF Table'!$C$2:$AF$401,153,FALSE))*Misc.!$J$38/10000 -> 0
C61: Electricity, kWh | F61: =H32 -> 59611220 | G61: =H36 -> 0.2169453151
D62: Convert to Btu/MMBtu | F62: =H35 -> 81559.72803 | H62: =F62*(HLOOKUP($A$41,'EF Table'!$C$2:$AF$401,155,FALSE))*Misc.!$J$38/Fuel_Specs!$F$140 -> 15.84400386
C63: Other Fuel use, Btu (HHV) | E63: ='User Defined'!$B$39 -> Oil | F63: =G32 -> 0
D64: Convert to Btu/MMBtu | F64: =G35 -> 0 | G64: =G36 -> 0 | H64: =F64*(HLOOKUP($A$41,'EF Table'!$C$2:$AF$401,156,FALSE))*Misc.!$J$38/10000 -> 0
C65: Methane leakage | F65: =G65*10^6 -> 10000 | G65: 0.01
C66: Energy Efficiency, % | F66: =J36 -> 0.7267726965
B67: Flaring Credit | H67: 0
A69: 1-US Ave Mix | B69: NG Transmission | D69: by pipeline, miles | F69: 1000 | H69: =(F69/1000*'EF Table'!$C$142)*Misc.!$J$38 -> 6.948415197
A71: =References!$F$39 -> 3-CAMX Mix | B71: CNG production | C71: Processed NG as feedstock, ft3 | F71: 250000 | H71: ='EF Table'!E160 -> 3.16
C72: CNG produced, (as ft3 of NG) | F72: 250000
C73: Process fuel share use
C74: Electricity, kWh | F74: 2229
D75: Convert to Btu/MMBtu | F75: =F74*Fuel_Specs!$F$140/(F72*Fuel_Specs!$B$59/10^6) -> 30948.78421
D76: Convert to kWh/ft3 | F76: =F74/F72 -> 0.008916
C77: Compression Efficiency, % | F77: =F72*Fuel_Specs!B59/(F71*Fuel_Specs!B59+LFG!F74*Fuel_Specs!F140) -> 0.9699802893
A78: Landfill Gas to LNG | D78: Inputs | F78: Values | G78: Shares | H78: CI, g/MJ
A79: =References!$F$37 -> 1-U.S Ave Mix | B79: Raw Biogas Extraction | C79: Raw biogas extraction, MMscf (LHV) | F79: =F41 -> 3581556.071
C80: Methane content, Mole % | F80: =F42 -> 0.5597375
C81: Adjusted raw biogas, MMBtu | F81: =F79*F80*Fuel_Specs!$B$60/Fuel_Specs!$D$60 -> 1805759.788 | H81: =F84*(HLOOKUP($A$41,'EF Table'!$C$2:$AF$401,149,FALSE))*Misc.!$J$38/Fuel_Specs!$F$140 -> 0
C82: Convert to ft3 | F82: =F81/Fuel_Specs!$B$60*10^6 -> 1877089177
C83: Electricity, kWh | F83: =F46/Fuel_Specs!$F$140/10^6*Fuel_Specs!$B$59*F44 -> 2499031.762
D84: Convert to Btu/MMBtu | F84: =C35 -> 4621.26
C85: Energy Efficiency, % | F85: =F47 -> 0.9954
B86: Gas Processing | C86: Outlet Biomethane, MMBtu (HHV) | F86: =F48 -> 2770905 | H86: =SUM(H92:H103) -> 43.03067523
C87: Adjusted raw biogas, MMBtu (LHV) | F87: =F86*Fuel_Specs!$I$60 -> 2495890.084
C88: Convert to ft3 (LHV) | F88: =F86/Fuel_Specs!$B$60*10^6 -> 2880358628
C89: Leakage rate | F89: 0.01
C90: Process fuel share use
C91: Biomethane use, Btu (HHV) | F91: =(I32-B33*C32)*10^6 -> 7.66173759e+11 | G91: =F92/($F$92+$F$94+$F$96+$F$98+$F$100+$F$102) -> 0.7804680341
D92: Convert to Btu/MMBtu | F92: =F53*Fuel_Specs!$I$60/I34 -> 292791.5156 | H92: =F92*(HLOOKUP($A$41,'EF Table'!$C$2:$AF$401,154,FALSE))*Misc.!$J$38/10000 -> 22.14611224
C93: NG use in TOX, Btu (HHV) | F93: =D33 -> 2202.224806 | G93: =F94/($F$92+$F$94+$F$96+$F$98+$F$100+$F$102) -> 0.002125527562
D94: Convert to Btu/MMBtu (LHV) | F94: =D35 -> 797.388758 | H94: =F94*(HLOOKUP($A$41,'EF Table'!$C$2:$AF$401,152,FALSE))*Misc.!$J$38/10000+F103*Fuel_Specs!$E$60/Fuel_Specs!$B$60*Fuel_Specs!$B$92/Fuel_Specs!$H$137*Misc.!$J$38 -> 5.040559124
C95: Diesel use, gallons (HHV) | F95: =E33 -> 0 | G95: =F96/($F$92+$F$94+$F$96+$F$98+$F$100+$F$102) -> 0
D96: Convert to Btu/MMBtu (LHV) | F96: =E35 -> 0 | H96: =F96*(HLOOKUP($A$41,'EF Table'!$C$2:$AF$401,151,FALSE))*Misc.!$J$38/10000 -> 0
C97: LPG use in TOX, Btu (HHV) | F97: =F33 -> 0 | G97: =F98/($F$92+$F$94+$F$96+$F$98+$F$100+$F$102) -> 0
D98: Convert to Btu/MMBtu (LHV) | F98: =F35 -> 0 | H98: =F98*(HLOOKUP($A$41,'EF Table'!$C$2:$AF$401,153,FALSE))*Misc.!$J$38/10000 -> 0
C99: Electricity, kWh | F99: =H32 -> 59611220 | G99: =F100/($F$92+$F$94+$F$96+$F$98+$F$100+$F$102) -> 0.2174064384
D100: Convert to Btu/MMBtu | F100: =H35 -> 81559.72803 | H100: =F100*(HLOOKUP($A$41,'EF Table'!$C$2:$AF$401,155,FALSE))*Misc.!$J$38/Fuel_Specs!$F$140 -> 15.84400386
C101: Other Fuel/Electricity, kWh | F101: =G32 -> 0 | G101: =F102/($F$92+$F$94+$F$96+$F$98+$F$100+$F$102) -> 0
D102: Convert to Btu/MMBtu | F102: =G35 -> 0 | H102: =F102*(HLOOKUP($A$41,'EF Table'!$C$2:$AF$401,156,FALSE))*Misc.!$J$38/10000 -> 0
C103: Leakage, Btu/MMBtu | F103: =F89*10^6 -> 10000
D104: Energy Efficiency, % | F104: =J36 -> 0.7267726965
A105: =References!$F$41 -> 1-US Ave Mix | B105: NG Transmission | C105: by pipeline, miles | F105: 1000 | H105: =(F105/1000*'EF Table'!$C$142)*Misc.!$J$42*Misc.!$J$43 -> 6.916345751
A107: =References!$F$39 -> 3-CAMX Mix | B107: LNG Production | C107: Processed NG as feedstock, MMBtu | F107: =K32 -> 7498724 | H107: =SUM(H110:H120) -> 4.187567196
D108: Convert to ft3 | F108: =F107*10^6/Fuel_Specs!$B$59 -> 7628406918
C109: LNG produced, gallons | F109: =L32 -> 74053051
D110: Process fuel share use
C111: NG use, Btu (LHV) | F111: =M34*10^6 -> 1.099442425e+12 | G111: =M36 -> 0.9600326512
D112: Convert to Btu/MMBtu | F112: =M35 -> 198697.6232 | H112: =(F112*(HLOOKUP($A$107,'EF Table'!$C$2:$AF$401,161,FALSE)))*Misc.!J42*Misc.!J43/10000+'EF Table'!E167*Misc.!J42*Misc.!J43 -> 2.58387114
D113: Convert to Btu/gal | F113: =F111/F109 -> 14846.6864
C114: Electricity, kWh | F114: =N32 -> 13414200 | G114: =N36 -> 0.03996734878
D115: Convert to Btu/MMBtu | F115: =N35 -> 8272.028244 | H115: =F115*(HLOOKUP($A$107,'EF Table'!$C$2:$AF$401,162,FALSE))*Misc.!$J$38/Fuel_Specs!$F$140 -> 1.603696056
D116: Convert to kWh/gal | F116: =F114/F109 -> 0.1811431105
C117: Other Electricity, kWh | F117: =O32 -> 0 | G117: =O36 -> 0 | H117: =F118*('User Defined'!$B$65+'User Defined'!$B$66)/1000000*LossFactor!$D$4*LossFactor!$E$4 -> 0
D118: Convert to Btu/MMBtu | F118: =$O$35 -> 0
D119: Convert to kWh/gal | F119: =F117/$F$109 -> 0
C121: Liquefaction Efficiency, % | F121: =P36 -> 0.8285212464
B122: LNG Transport and Distribution | H122: =SUM(H123:H128) -> 1.631627877
C123: By Rail, miles
D124: Mode Share
C125: By HDDT Truck, miles | F125: =Q11 -> 200 | H125: =F125/50*'EF Table'!$E$146*F126*LossFactor!$D$4*LossFactor!$E$4 -> 1.631627877
D126: Mode Share | F126: 1
C127: By LNG Truck, miles | F127: =Q14 -> 0 | H127: =F127/50*'EF Table'!$E$147*F128*LossFactor!$D$4*LossFactor!$E$4 -> 0
D128: Mode Share | F128: 1
B129: LNG Storage | D129: With LNG Boil-off Recovery System | F129: =Q8 -> No | H129: =IF(F129="Yes",'EF Table'!E166,'EF Table'!E165) -> 3.0936
A130: Landfill Gas to Liquefied CNG (L-CNG) | F130: Values | G130: Shares | H130: CI, g/MJ
A131: 3-CAMX Mix | B131: L-CNG Production | C131: L-CNG Produced, SCF
F132: Compression | H132: =H71 -> 3.16
B133: Tailpipe Emissions
C134: CNG Vehicles | H134: 4.947
C135: LNG Vehicles | H135: 4.911
F136: Final CNG CI, g/MJ | H136: =H46+H48+H67+H69+H71+H134 -> 58.14640317
F137: Final LNG CI, g/MJ | H137: =H81+H86+H105+H107+H122+H135+H129 -> 63.77081605
F138: Final L-CNG CI, g/MJ | H138: =H81+H86+H105+H107+H131+H132+H134+H122+H129 -> 66.96681605

Sheet EF Table
B1: Greenhouse Gases Emissions Factors Used in CA-GREET 3.0 for Carbon Intensity Calculations (see "CA-GREET 3.0 for EF Table")
A2: 1 | B2: GHG Emission Factors (gCO2e/MJ) | C2: 1-U.S Ave Mix | D2: 2-User Defined Mix | E2: 3-CAMX Mix | F2: 4-NWPP Mix | G2: 5-AZNM Mix | H2: 6-RMPA Mix | I2: 7-MROW Mix | J2: 8-SPNO Mix | K2: 9-SPSO Mix | L2: 10-ERCT Mix | M2: 11-MROE Mix | N2: 12-SRMW Mix | O2: 13-SRMV Mix | P2: 14-RFCM Mix | Q2: 15-RFCW Mix | R2: 16-SRTV Mix | S2: 17-SRSO Mix | T2: 18-NEWE Mix | U2: 19-NYUP Mix | V2: 20-RFCE Mix | W2: 21-NYLI Mix | X2: 22-NYCW Mix | Y2: 23-SRVC Mix | Z2: 24-FRCC Mix | AA2: 25-AKMS Mix | AB2: 26-AKGD Mix | AC2: 27-HIOA Mix | AD2: 28-HIMS Mix | AE2: 29-Brazilian Mix | AF2: 30-Canadian Mix
A3: 2 | B3: Corn Farming (assumes yield of 2.75 gallons per bushel. For other yields, proportionally scales emissions)
A4: 3 | B4: Farming (at 2.75 gal/bu) | C4: 3.254402109
A5: 4 | B5: Fertilizers (at 2.75 gal/bu) | C5: 11.90635256
A6: 5 | B6: N2O in Soil (at 2.75 gal/bu) | C6: 16.01653977
A7: 6 | B7: Corn/Sorghum Transport (different transport distance proportionally scales emissions)
A8: 7 | B8: by MDT, every 10 miles | C8: 0.3875
A9: 8 | B9: by HDT, every 100 miles | C9: 4.07
A10: 9 | B10: by Rail, every 1000 miles | C10: 3.460867632
A11: 10 | B11: by Barge, every 100 miles | C11: 0.9395933147
A12: 11 | B12: Co-products | C12: -13.57299385
A13: 12 | B13: co-product assumed to be 5.5636 bone dry lbs. per gallon of ethanol. Other yields proportionally scales emissions
A14: 13
A15: 14
A16: 15
A17: 16
A18: 17 | B18: Ethanol Production (for each 10,000 Btu of energy used. For other energy use values, proportionally scales emissions)
A19: 18 | B19: Residual Oil | C19: 12.55188735
A20: 19 | B20: Diesel
A21: 20 | B21: Gasoline
A22: 21 | B22: LPG (from Petroleum)
A23: 22 | B23: LPG (from NG)
A24: 23 | B24: Natural gas | C24: 9.299676172
A25: 24 | B25: Coal | C25: 13.14962223
A26: 25
A27: 26 | B27: Biomass (Forest Residue) | C27: 0.6014669805
A28: 27 | B28: Electricity (for each kWh) | C28: 7.599350727 | E28: 4.571550962 | F28: 5.925858223 | G28: 5.721898866 | H28: 10.921303 | I28: 7.626252369 | J28: 8.8316548 | K28: 10.23388259 | L28: 7.44121587 | M28: 8.143883698 | N28: 10.43316457 | O28: 8.029917964 | P28: 9.826313862 | Q28: 9.964551062 | R28: 8.59353349 | S28: 7.851176945 | T28: 4.443541209 | U28: 2.851467129 | V28: 5.789256856 | W28: 7.865871058 | X28: 4.475648904 | Y28: 6.158283096 | Z28: 7.544576963 | AA28: 2.029464985 | AB28: 8.84338422 | AC28: 12.65081317 | AD28: 8.285623855 | AE28: 2.385303301 | AF28: 5.749125257
A29: 28 | B29: Renewable natural gas | C29: 10.35822353
A30: 29 | B30: Non-combustion | C30: =2.239*Fuel_Specs!$B$94/Fuel_Specs!$H$137/Fuel_Specs!$B$31*10^6*LossFactor!$J$4*LossFactor!$K$4 -> 0.06285339377 | D30: =2.239*Fuel_Specs!$B$94/Fuel_Specs!$H$137/Fuel_Specs!$B$31*10^6*LossFactor!$J$4*LossFactor!$K$4 -> 0.06285339377 | E30: =2.239*Fuel_Specs!$B$94/Fuel_Specs!$H$137/Fuel_Specs!$B$31*10^6*LossFactor!$J$4*LossFactor!$K$4 -> 0.06285339377 | F30: =2.239*Fuel_Specs!$B$94/Fuel_Specs!$H$137/Fuel_Specs!$B$31*10^6*LossFactor!$J$4*LossFactor!$K$4 -> 0.06285339377 | G30: =2.239*Fuel_Specs!$B$94/Fuel_Specs!$H$137/Fuel_Specs!$B$31*10^6*LossFactor!$J$4*LossFactor!$K$4 -> 0.06285339377 | H30: =2.239*Fuel_Specs!$B$94/Fuel_Specs!$H$137/Fuel_Specs!$B$31*10^6*LossFactor!$J$4*LossFactor!$K$4 -> 0.06285339377 | I30: =2.239*Fuel_Specs!$B$94/Fuel_Specs!$H$137/Fuel_Specs!$B$31*10^6*LossFactor!$J$4*LossFactor!$K$4 -> 0.06285339377 | J30: =2.239*Fuel_Specs!$B$94/Fuel_Specs!$H$137/Fuel_Specs!$B$31*10^6*LossFactor!$J$4*LossFactor!$K$4 -> 0.06285339377 | K30: =2.239*Fuel_Specs!$B$94/Fuel_Specs!$H$137/Fuel_Specs!$B$31*10^6*LossFactor!$J$4*LossFactor!$K$4 -> 0.06285339377 | L30: =2.239*Fuel_Specs!$B$94/Fuel_Specs!$H$137/Fuel_Specs!$B$31*10^6*LossFactor!$J$4*LossFactor!$K$4 -> 0.06285339377 | M30: =2.239*Fuel_Specs!$B$94/Fuel_Specs!$H$137/Fuel_Specs!$B$31*10^6*LossFactor!$J$4*LossFactor!$K$4 -> 0.06285339377 | N30: =2.239*Fuel_Specs!$B$94/Fuel_Specs!$H$137/Fuel_Specs!$B$31*10^6*LossFactor!$J$4*LossFactor!$K$4 -> 0.06285339377 | O30: =2.239*Fuel_Specs!$B$94/Fuel_Specs!$H$137/Fuel_Specs!$B$31*10^6*LossFactor!$J$4*LossFactor!$K$4 -> 0.06285339377 | P30: =2.239*Fuel_Specs!$B$94/Fuel_Specs!$H$137/Fuel_Specs!$B$31*10^6*LossFactor!$J$4*LossFactor!$K$4 -> 0.06285339377 | Q30: =2.239*Fuel_Specs!$B$94/Fuel_Specs!$H$137/Fuel_Specs!$B$31*10^6*LossFactor!$J$4*LossFactor!$K$4 -> 0.06285339377 | R30: =2.239*Fuel_Specs!$B$94/Fuel_Specs!$H$137/Fuel_Specs!$B$31*10^6*LossFactor!$J$4*LossFactor!$K$4 -> 0.06285339377 | S30: =2.239*Fuel_Specs!$B$94/Fuel_Specs!$H$137/Fuel_Specs!$B$31*10^6*LossFactor!$J$4*LossFactor!$K$4 -> 0.06285339377 | T30: =2.239*Fuel_Specs!$B$94/Fuel_Specs!$H$137/Fuel_Specs!$B$31*10^6*LossFactor!$J$4*LossFactor!$K$4 -> 0.06285339377 | U30: =2.239*Fuel_Specs!$B$94/Fuel_Specs!$H$137/Fuel_Specs!$B$31*10^6*LossFactor!$J$4*LossFactor!$K$4 -> 0.06285339377 | V30: =2.239*Fuel_Specs!$B$94/Fuel_Specs!$H$137/Fuel_Specs!$B$31*10^6*LossFactor!$J$4*LossFactor!$K$4 -> 0.06285339377 | W30: =2.239*Fuel_Specs!$B$94/Fuel_Specs!$H$137/Fuel_Specs!$B$31*10^6*LossFactor!$J$4*LossFactor!$K$4 -> 0.06285339377 | X30: =2.239*Fuel_Specs!$B$94/Fuel_Specs!$H$137/Fuel_Specs!$B$31*10^6*LossFactor!$J$4*LossFactor!$K$4 -> 0.06285339377 | Y30: =2.239*Fuel_Specs!$B$94/Fuel_Specs!$H$137/Fuel_Specs!$B$31*10^6*LossFactor!$J$4*LossFactor!$K$4 -> 0.06285339377 | Z30: =2.239*Fuel_Specs!$B$94/Fuel_Specs!$H$137/Fuel_Specs!$B$31*10^6*LossFactor!$J$4*LossFactor!$K$4 -> 0.06285339377 | AA30: =2.239*Fuel_Specs!$B$94/Fuel_Specs!$H$137/Fuel_Specs!$B$31*10^6*LossFactor!$J$4*LossFactor!$K$4 -> 0.06285339377 | AB30: =2.239*Fuel_Specs!$B$94/Fuel_Specs!$H$137/Fuel_Specs!$B$31*10^6*LossFactor!$J$4*LossFactor!$K$4 -> 0.06285339377 | AC30: =2.239*Fuel_Specs!$B$94/Fuel_Specs!$H$137/Fuel_Specs!$B$31*10^6*LossFactor!$J$4*LossFactor!$K$4 -> 0.06285339377 | AD30: =2.239*Fuel_Specs!$B$94/Fuel_Specs!$H$137/Fuel_Specs!$B$31*10^6*LossFactor!$J$4*LossFactor!$K$4 -> 0.06285339377 | AE30: =2.239*Fuel_Specs!$B$94/Fuel_Specs!$H$137/Fuel_Specs!$B$31*10^6*LossFactor!$J$4*LossFactor!$K$4 -> 0.06285339377 | AF30: =2.239*Fuel_Specs!$B$94/Fuel_Specs!$H$137/Fuel_Specs!$B$31*10^6*LossFactor!$J$4*LossFactor!$K$4 -> 0.06285339377
A31: 30 | B31: Ethanol Transport (different transport distance proportionally scales emissions)
A32: 31 | B32: by Barge, every 100 miles | C32: 7.044 | E32: 0.4486089659 | F32: 0.4513806931 | G32: 0.4507087365 | H32: 0.4593562445 | I32: 0.4532 | J32: 0.455959286 | K32: 0.4574561378 | L32: 0.453096732 | M32: 0.453096732 | N32: 0.453096732 | O32: 0.453096732 | P32: 0.453096732 | Q32: 0.453096732 | R32: 0.453096732 | S32: 0.453096732 | T32: 0.453096732 | U32: 0.453096732 | V32: 0.453096732 | W32: 0.453096732 | X32: 0.453096732 | Y32: 0.453096732 | Z32: 0.453096732 | AA32: 0.453096732 | AB32: 0.453096732 | AC32: 0.453096732 | AD32: 0.453096732 | AE32: 0.453096732 | AF32: 0.453096732
A33: 32 | B33: by Rail, every 1,000 miles | C33: 1.12 | E33: 1.002018071 | F33: 1.008706791 | G33: 1.007085229 | H33: 1.027953358 | I33: 0.55992 | J33: 1.019755832 | K33: 1.023368029 | L33: 1.012847929 | M33: 1.012847929 | N33: 1.012847929 | O33: 1.012847929 | P33: 1.012847929 | Q33: 1.012847929 | R33: 1.012847929 | S33: 1.012847929 | T33: 1.012847929 | U33: 1.012847929 | V33: 1.012847929 | W33: 1.012847929 | X33: 1.012847929 | Y33: 1.012847929 | Z33: 1.012847929 | AA33: 1.012847929 | AB33: 1.012847929 | AC33: 1.012847929 | AD33: 1.012847929 | AE33: 1.012847929 | AF33: 1.012847929
A34: 33 | B34: by HDT, every 100 miles | C34: 0.8479 | E34: 0.8479 | F34: 0.8479 | G34: 0.8479 | H34: 0.8479 | I34: 0.8479 | J34: 0.8479 | K34: 0.8479 | L34: 0.8479 | M34: 0.8479 | N34: 0.8479 | O34: 0.8479 | P34: 0.8479 | Q34: 0.8479 | R34: 0.8479 | S34: 0.8479 | T34: 0.8479 | U34: 0.8479 | V34: 0.8479 | W34: 0.8479 | X34: 0.8479 | Y34: 0.8479 | Z34: 0.8479 | AA34: 0.8479 | AB34: 0.8479 | AC34: 0.8479 | AD34: 0.8479 | AE34: 0.8479 | AF34: 0.8479
A35: 34 | B35: by Ocean Tanker, every 5,000 miles
A36: 35 | B36: By Pipeline, every 1,000 miles
A37: 36 | B37: Enzymes and Yeast | C37: 2.02
A38: 37 | B38: The 2.02 gCO2e/MJ value in cell C37 is the average CI contribution from starch ethanol applications certified in the LCFS program between January 2016 and July 2017. This is a standard value for all starch ethanol applicants.
A39: 38 | B39: Sorghum Farming (assumes yield of 2.75 gallons per bushel. For other yields, proportionally scales emissions)
A40: 39 | B40: Farming | C40: 6.985952649 | E40: 6.930293346 | F40: 6.961053484 | G40: 6.953596229 | H40: 7.049564737 | I40: 6.990889528 | J40: 7.011865895 | K40: 7.02847769 | L40: 6.980097778 | M40: 6.997823851 | N40: 7.041909158 | O40: 6.987772107 | P40: 7.027318928 | Q40: 7.031202707 | R40: 7.005751508 | S40: 6.987276994 | T40: 6.924797521 | U40: 6.901476933 | V40: 6.95198598 | W40: 6.975825244 | X40: 6.923853063 | Y40: 6.960352478 | Z40: 6.982091699 | AA40: 6.888502225 | AB40: 6.97502844 | AC40: 7.075346602 | AD40: 7.001906836 | AE40: 6.895754368 | AF40: 6.95198598
A41: 40 | B41: Fertilizers | C41: 15.24546803 | E41: 14.53382712 | F41: 14.92711577 | G41: 14.83176984 | H41: 16.05879055 | I41: 15.30858928 | J41: 15.57678597 | K41: 15.78917874 | L41: 15.17060964 | M41: 15.39745819 | N41: 15.96090892 | O41: 15.26873101 | P41: 15.7743632 | Q41: 15.82401988 | R41: 15.49860951 | S41: 15.26240066 | T41: 14.46355938 | U41: 14.16539025 | V41: 14.81118175 | W41: 15.11598249 | X41: 14.45148384 | Y41: 14.91815296 | Z41: 15.19610324 | AA41: 13.99950004 | AB41: 15.10579481 | AC41: 16.38842871 | AD41: 15.44945284 | AE41: 14.09222349 | AF41: 14.81118175
A42: 41 | B42: N2O in Soil | C42: 20.70643734 | E42: 20.70643734 | F42: 20.70643734 | G42: 20.70643734 | H42: 20.70643734 | I42: 20.70643734 | J42: 20.70643734 | K42: 20.70643734 | L42: 20.70643734 | M42: 20.70643734 | N42: 20.70643734 | O42: 20.70643734 | P42: 20.70643734 | Q42: 20.70643734 | R42: 20.70643734 | S42: 20.70643734 | T42: 20.70643734 | U42: 20.70643734 | V42: 20.70643734 | W42: 20.70643734 | X42: 20.70643734 | Y42: 20.70643734 | Z42: 20.70643734 | AA42: 20.70643734 | AB42: 20.70643734 | AC42: 20.70643734 | AD42: 20.70643734 | AE42: 20.70643734 | AF42: 20.70643734
A43: 41 | B43: Sorghum Transport
A44: 42 | B44: by MDT, every 10 miles
A45: 43 | B45: by HDT, every 50 miles
A46: 44 | B46: by Rail, every 500 miles
A47: 45 | B47: by Barge, every 500 miles
A48: 46 | B48: Co-products at 5.5636 bone dry lbs/gal
A49: 47
A50: 48
A51: 49
A52: 50
A53: 51
A54: 52 | B54: Cellulase for Fiber, | C54: 3.140780608
A55: 53 | B55: Soybean, gCO2e/MJ BD
A56: 54 | B56: Farming, (allocated) | C56: 2.21303 | E56: 2.221764 | F56: 2.271839 | G56: 2.262975 | H56: 2.442713 | I56: 2.332561 | J56: 2.332561 | K56: 2.332561 | L56: 2.332561 | M56: 2.332561 | N56: 2.332561 | O56: 2.332561 | P56: 2.332561 | Q56: 2.332561 | R56: 2.332561 | S56: 2.332561 | T56: 2.332561 | U56: 2.332561 | V56: 2.332561 | W56: 2.332561 | X56: 2.332561 | Y56: 2.332561 | Z56: 2.332561 | AA56: 2.332561 | AB56: 2.332561 | AC56: 2.332561 | AD56: 2.332561 | AE56: 2.332561 | AF56: 2.332561
A57: 55 | B57: Fertilizers, (allocated) | C57: 1.38343 | E57: 1.290634 | F57: 1.368273 | G57: 1.354532 | H57: 1.633209 | I57: 1.462462 | J57: 1.462462 | K57: 1.462462 | L57: 1.462462 | M57: 1.462462 | N57: 1.462462 | O57: 1.462462 | P57: 1.462462 | Q57: 1.462462 | R57: 1.462462 | S57: 1.462462 | T57: 1.462462 | U57: 1.462462 | V57: 1.462462 | W57: 1.462462 | X57: 1.462462 | Y57: 1.462462 | Z57: 1.462462 | AA57: 1.462462 | AB57: 1.462462 | AC57: 1.462462 | AD57: 1.462462 | AE57: 1.462462 | AF57: 1.462462
A58: 56 | B58: N2O in Soil, (allocated) | C58: 6.317048 | E58: 6.64507 | F58: 6.64507 | G58: 6.64507 | H58: 6.64507 | I58: 6.64507 | J58: 6.64507 | K58: 6.64507 | L58: 6.64507 | M58: 6.64507 | N58: 6.64507 | O58: 6.64507 | P58: 6.64507 | Q58: 6.64507 | R58: 6.64507 | S58: 6.64507 | T58: 6.64507 | U58: 6.64507 | V58: 6.64507 | W58: 6.64507 | X58: 6.64507 | Y58: 6.64507 | Z58: 6.64507 | AA58: 6.64507 | AB58: 6.64507 | AC58: 6.64507 | AD58: 6.64507 | AE58: 6.64507 | AF58: 6.64507
A59: 57 | B59: Soybean Transport, (allocated)
A60: 58 | B60: by MDT, every 10 miles | C60: 0.10226 | E60: 0.106179 | F60: 0.106837 | G60: 0.10672 | H60: 0.109079 | I60: 0.107632 | J60: 0.107632 | K60: 0.107632 | L60: 0.107632 | M60: 0.107632 | N60: 0.107632 | O60: 0.107632 | P60: 0.107632 | Q60: 0.107632 | R60: 0.107632 | S60: 0.107632 | T60: 0.107632 | U60: 0.107632 | V60: 0.107632 | W60: 0.107632 | X60: 0.107632 | Y60: 0.107632 | Z60: 0.107632 | AA60: 0.107632 | AB60: 0.107632 | AC60: 0.107632 | AD60: 0.107632 | AE60: 0.107632 | AF60: 0.106732
A61: 59 | B61: by HDT, every 50 miles | C61: 0.53674 | E61: 0.557324 | F61: 0.560763 | G61: 0.560154 | H61: 0.572498 | I61: 0.564926 | J61: 0.564926 | K61: 0.564926 | L61: 0.564926 | M61: 0.564926 | N61: 0.564926 | O61: 0.564926 | P61: 0.564926 | Q61: 0.564926 | R61: 0.564926 | S61: 0.564926 | T61: 0.564926 | U61: 0.564926 | V61: 0.564926 | W61: 0.564926 | X61: 0.564926 | Y61: 0.564926 | Z61: 0.564926 | AA61: 0.564926 | AB61: 0.564926 | AC61: 0.564926 | AD61: 0.564926 | AE61: 0.564926 | AF61: 0.564926
A62: 60 | B62: by Rail, every 500 miles
A63: 61 | B63: by Barge, every 500 miles
A64: 62 | B64: by Ocean Tanker, every 5,000 miles
A65: 63 | B65: Soy Oil Extraction | C65: 4.38164 | E65: 3.9687 | F65: 4.16343 | G65: 4.12897 | H65: 4.82793 | I65: 4.39969 | J65: 4.39969 | K65: 4.39969 | L65: 4.39969 | M65: 4.39969 | N65: 4.39969 | O65: 4.39969 | P65: 4.39969 | Q65: 4.39969 | R65: 4.39969 | S65: 4.39969 | T65: 4.39969 | U65: 4.39969 | V65: 4.39969 | W65: 4.39969 | X65: 4.39969 | Y65: 4.39969 | Z65: 4.39969 | AA65: 4.39969 | AB65: 4.39969 | AC65: 4.39969 | AD65: 4.39969 | AE65: 4.39969 | AF65: 4.39969
A66: 64
A67: 65 | B67: Canola, gCO2e/MJ BD
A68: 66 | B68: Farming, (allocated)
A69: 67 | B69: Fertilizers, (allocated)
A70: 68 | B70: N2O in Soil, (allocated)
A71: 69 | B71: Soybean Transport, (allocated)
A72: 70 | B72: by MDT, every 10 miles
A73: 71 | B73: by HDT, every 50 miles
A74: 72 | B74: by Rail, every 500 miles
A75: 73 | B75: by Barge, every 500 miles
A76: 74 | B76: by Ocean Tanker, every 5,000 miles
A77: 75 | B77: Canola Oil Extraction
A78: 76 | B78: Canola Oil Transport, (allocated)
A79: 77
A80: 78 | B80: Used Cooking Oil, gCO2e/MJ BD
A81: 79 | B81: Raw UCO Transport
A82: 80 | B82: by MDT, every 10 miles
A83: 81 | B83: by HDDT, every 50 miles
A84: 82 | B84: by Rail, every 500 miles
A85: 83 | B85: Rendering Energy, every 10,000 Btu/lb BD
A86: 84 | B86: Diesel
A87: 85 | B87: Gasoline
A88: 86 | B88: Natural gas
A89: 87 | B89: Coal
A90: 88 | B90: Biomass (Forest Residue)
A91: 89 | B91: Electricity (for each kWh)
A92: 90 | B92: Renewable natural gas
A93: 91
A94: 92 | B94: Tallow/Animal Fat, gCO2e/MJ BD
A95: 93 | B95: Raw Tallow Transport
A96: 94 | B96: by MDT, every 10 miles
A97: 95 | B97: by HDDT, every 50 miles
A98: 96 | B98: by Rail, every 500 miles
A99: 97 | B99: Rendering Energy, every 10,000 Btu/lb BD
A100: 98 | B100: Diesel
A101: 99 | B101: Gasoline
A102: 100 | B102: Natural gas
A103: 101 | B103: Coal
A104: 102 | B104: Biomass (Forest Residue)
A105: 103 | B105: Electricity (for each kWh)
A106: 104 | B106: Renewable natural gas
A107: 105
A108: 106 | B108: Corn Oil, gCO2e/MJ BD
A109: 107 | B109: Corn Oil Extraction, every 10,000 Btu/lb oil
A110: 108 | B110: DGS Debit for corn oil extraction
A111: 109
A112: 110 | B112: Oil Transport
A113: 111 | B113: Rendered Oil Transport, (allocated)
A114: 112 | B114: by MDT, every 10 miles
A115: 113 | B115: by HDDT, every 50 miles
A116: 114 | B116: by Rail, every 500 miles
A117: 115 | B117: by Barge, every 500 miles
A118: 116 | B118: by Ocean Tanker, every 5,000 miles
A119: 117
A120: 118 | B120: Transesterification, every 10,000 Btu/lb BD except electricity
A121: 119 | B121: Diesel
A122: 120 | B122: Gasoline
A123: 121 | B123: Natural gas
A124: 122 | B124: Coal
A125: 123 | B125: Biomass (Forest Residue)
A126: 124 | B126: Electricity (for each kWh)
A127: 125 | B127: Renewable natural gas
A128: 126
A129: 127 | B129: Natural Gas Production
A130: 128 | B130: NG Recovery for every 10,000 Btu/MMBtu NG
A131: 129 | B131: Residual Oil
A132: 130 | B132: Diesel
A133: 131 | B133: Gasoline
A134: 132 | B134: Natural gas
A135: 133 | B135: Electricity (for each kWh)
A136: 134 | B136: NG Processing
A137: 135 | B137: Diesel
A138: 136 | B138: Natural gas
A139: 137 | B139: Electricity (for each kWh)
A140: 138
A141: 139 | B141: Natural Pipelined for each 1,000 mi
A142: 140 | B142: to Centroid of CA CNG stations | C142: 6.914542949
A143: 141 | B143: to liquefaction facility
A144: 142
A145: 143 | B145: LNG Transport
A146: 144 | B146: by HDD Truck, every 50 miles | E146: 0.4078006451
A147: 145 | B147: by LNG Truck, every 50 miles | E147: 0.324
A148: 146 | B148: by Rail, every 500 miles
A149: 147 | B149: Renewable Natural Gas Production
A150: 148 | B150: Biogas Extraction
A151: 149 | B151: Electricity (for each kWh) | C151: 0.5797648311 | E151: 0.3473328528 | F151: 0.4517744045 | G151: 0.4360683739 | H151: 0.8345334774 | I151: 0.5864773467 | J151: 0.681322009 | K151: 0.7880724731 | L151: 0.5676842979 | M151: 0.6263988592 | N151: 0.7934601345 | O151: 0.6111531613 | P151: 0.7476707313 | Q151: 0.758035351 | R151: 0.6531851407 | S151: 0.597045102 | T151: 0.3392396173 | U151: 0.2180140309 | V151: 0.4388316534 | W151: 0.6002736083 | X151: 0.3387989978 | Y151: 0.4667545216 | Z151: 0.5749342909 | AA151: 0.1532557118 | AB151: 0.7145955819 | AC151: 1.08860981 | AD151: 0.6421057755 | AE151: 0.1805067239 | AF151: 0.4370931392
A152: 150 | B152: Biogas Processing for each 10,000 Btu at 80% energy efficiency
A153: 151 | B153: Diesel | C153: 0.1982550686 | E153: 0.1868301429 | F153: 0.1920769412 | G153: 0.1912878384 | H153: 0.2113040716 | I153: 0.1988318619 | J153: 0.203598098 | K153: 0.2089605736 | L153: 0.1978969161 | M153: 0.2008372868 | N153: 0.2092361287 | O153: 0.2000782704 | P153: 0.2069372334 | Q153: 0.2074578812 | R153: 0.2021896702 | S153: 0.1993695778 | T153: 0.1864200626 | U153: 0.1803305353 | V153: 0.1914232656 | W153: 0.1995325882 | X153: 0.186397929 | Y153: 0.1928246681 | Z153: 0.1982635894 | AA153: 0.1770530287 | AB153: 0.2052504409 | AC153: 0.2240493532 | AD153: 0.2016206403 | AE153: 0.1784473137 | AF153: 0.1913364607
A154: 152 | B154: Natural gas | C154: 0.6746127587 | E154: 0.6743813638 | F154: 0.6743813638 | G154: 0.6743813638 | H154: 0.6743813638 | I154: 0.6743813638 | J154: 0.6743813638 | K154: 0.6743813638 | L154: 0.6743813638 | M154: 0.6743813638 | N154: 0.6743813638 | O154: 0.6743813638 | P154: 0.6743813638 | Q154: 0.6743813638 | R154: 0.6743813638 | S154: 0.6743813638 | T154: 0.6743813638 | U154: 0.6743813638 | V154: 0.6743813638 | W154: 0.6743813638 | X154: 0.6743813638 | Y154: 0.6743813638 | Z154: 0.6743813638 | AA154: 0.6743813638 | AB154: 0.6743813638 | AC154: 0.6743813638 | AD154: 0.6743813638 | AE154: 0.6743813638 | AF154: 0.6747552919
A155: 153 | B155: LPG (from 35% Petroleum+65% NG) | C155: 0.7526910049 | E155: 0.7514967102 | F155: 0.752248906 | G155: 0.7521374484 | H155: 0.7550075575 | I155: 0.7532264105 | J155: 0.753912184 | K155: 0.754681726 | L155: 0.7530836202 | M155: 0.753514213 | N155: 0.7547067169 | O155: 0.7533927189 | P155: 0.7543766921 | Q155: 0.7544513963 | R155: 0.7536956692 | S155: 0.7532910335 | T155: 0.7514836539 | U155: 0.7506099074 | V155: 0.7521507001 | W155: 0.7533650849 | X155: 0.7514804781 | Y155: 0.7523519498 | Z155: 0.7531339748 | AA155: 0.7503637091 | AB155: 0.7544096253 | AC155: 0.7572710403 | AD155: 0.7540528166 | AE155: 0.750293369 | AF155: 0.7521427439
A156: 154 | B156: RNG | C156: 0.6596201875 | E156: 0.6596201875 | F156: 0.6596201875 | G156: 0.6596201875 | H156: 0.6596201875 | I156: 0.6596201875 | J156: 0.6596201875 | K156: 0.6596201875 | L156: 0.6596201875 | M156: 0.6596201875 | N156: 0.6596201875 | O156: 0.6596201875 | P156: 0.6596201875 | Q156: 0.6596201875 | R156: 0.6596201875 | S156: 0.6596201875 | T156: 0.6596201875 | U156: 0.6596201875 | V156: 0.6596201875 | W156: 0.6596201875 | X156: 0.6596201875 | Y156: 0.6596201875 | Z156: 0.6596201875 | AA156: 0.6596201875 | AB156: 0.6596201875 | AC156: 0.6596201875 | AD156: 0.6596201875 | AE156: 0.6596201875 | AF156: 0.6596201875
A157: 155 | B157: Electricity (for each kWh) | C157: 0.5797622387 | E157: 0.3473326857 | F157: 0.4517741871 | G157: 0.4360681641 | H157: 0.8345330759 | I157: 0.5864770645 | J157: 0.6813216812 | K157: 0.788072094 | L157: 0.5676840248 | M157: 0.6263985578 | N157: 0.7934597527 | O157: 0.6111528672 | P157: 0.7476703716 | Q157: 0.7580349863 | R157: 0.6531848264 | S157: 0.5970448148 | T157: 0.3392394541 | U157: 0.218013926 | V157: 0.4388314422 | W157: 0.6002733195 | X157: 0.3387988348 | Y157: 0.466754297 | Z157: 0.5749340143 | AA157: 0.153255638 | AB157: 0.7145952381 | AC157: 1.088609287 | AD157: 0.6421054666 | AE157: 0.180506637 | AF157: 0.4370929289
A158: 156 | B158: Other Fuel | C158: 1
A159: 157 | B159: CNG Production
A160: 158 | B160: Compression at 97% compression eff | E160: 3.16
A161: 159
A162: 160 | B162: LNG Production
A163: 161 | B163: Natural gas for each 10,000 Btu | C163: 0.6582863055 | E163: 0.6582863055 | G163: 0.6582863055
A164: 162 | B164: Electricity (for each kWh) | C164: 0.58677 | E164: 0.3502128185 | G164: 0.438735605
A165: 163 | B165: LNG Storage without Recovery System | E165: 3.0936
A166: 164 | B166: LNG Storage with Recovery System | E166: 0.6187
A167: 165 | B167: Boil-off at Liquefaction | E167: =Misc.!B65 -> 2.583197633
A168: 166
A169: 167
B201: GHG Emission Factors of Fuel Only
B202: US Crude | C202: 6.1780704
B203: CA Crude
B204: Residual Oil
B205: Diesel
B206: Gasoline
B207: LPG (from Petroleum)
B208: LPG (from NG)
B209: Natural gas
B210: Coal
B211: Liquefied petroleum gas
B212: Biomass (Forest Residue)
B213: Electricity for each kWh
B214: Renewable natural gas
B244: The 3.14 gCO2e/MJ per gram of cellulase enzyme per gallon.

Sheet References
A1: Reference Use in the Input Sheets | Q1: Corn | R1: Ethanol
P2: Unit | Q2: Feedstock Selection | R2: Fuel Selection | S2: Unit | U2: Feedstock 1 | V2: Feedstock 2 | W2: Feedstock 3 | X2: Feedstock 4 | Y2: Feedstock 5 | Z2: Feedstock 6 | AA2: Feedstock 7 | AB2: Feedstock 8 | AC2: Feedstock 9 | AD2: Feedstock 10 | AE2: Feedstock 11 | AF2: Feedstock 12
B3: Fuel Selection | E3: Electricity Selection | I3: Oil Extraction Selection | J3: =IF('BD RD Feedstock'!C6="Use Standard Values", 1,2) -> 2 | P3: Bushels | Q3: SELECT Feedstock for ETHANOL----- | S3: Gallons | T3: Feedstock | U3: ='Summary old'!B30 -> Corn | V3: ='Summary old'!C30 -> Corn | W3: ='Summary old'!D30 -> Corn | X3: ='Summary old'!E30 -> Corn | Y3: ='Summary old'!F30 -> Cellulosic (Fiber) | Z3: ='Summary old'!G30 -> Grain Sorghum | AA3: ='Summary old'!H30 -> Grain Sorghum | AB3: ='Summary old'!I30 -> Grain Sorghum | AC3: ='Summary old'!J30 -> Grain Sorghum | AD3: ='Summary old'!K30 -> None | AE3: ='Summary old'!L30 -> None | AF3: ='Summary old'!M30 -> None
B4: SELECT ETHANOL----- | D4: 1 | E4: 1-U.S Ave Mix | F4: 1 | G4: 1-U.S Ave Mix | H4: 1 | I4: Use Standard Values | J4: 1 | P4: Dry Ton | Q4: Corn | R4: CARBOB (Gasoline) | S4: Lbs. | T4: Electricity
B5: Corn Ethanol - Dry Mill | C5: Ethanol | D5: 2 | E5: 2-User Defined Mix | F5: 2 | G5: 2-User Defined Mix | H5: 2 | I5: Use Site-Specific | J5: 2 | P5: Wet Ton | Q5: Grain Sorghum | R5: Low Sulfur Diesel | S5: SCF | T5: Crude
B6: Grain Sorghum Ethanol | C6: Ethanol | D6: 3 | E6: 3-CAMX Mix | F6: 3 | G6: 3-CAMX Mix | H6: 3 | P6: Dry Metric Ton | Q6: Sugarcane | R6: Dry Mill Ethanol | S6: Liters | T6: NG
B7: Sugarcane EtOH w/Mech Harvesting & Power Exp | C7: Ethanol | D7: 4 | E7: 4-NWPP Mix | F7: 4 | G7: 4-NWPP Mix | H7: 4 | I7: Yield Unit | J7: Gallon/bushel | P7: Wet Metric Ton | Q7: Molasses | R7: Wet Mill Ethanol | S7: Kg
B8: Sugarcane EtOH w/Mech Harvesting | C8: Ethanol | D8: 5 | E8: 5-AZNM Mix | F8: 5 | G8: 5-AZNM Mix | H8: 5 | P8: Cubic Feet | Q8: Cellulosic (Fiber) | R8: Ethanol | T8: Fuel | U8: =R1 -> Ethanol
B9: Sugarcane EtOH w/Power Exp | C9: Ethanol | D9: 6 | E9: 6-RMPA Mix | F9: 6 | G9: 6-RMPA Mix | H9: 6 | I9: Process Fuel Units | J9: Gallons | P9: SCF | Q9: Corn Stover | R9: Biodiesel | T9: Electricity
B10: Sugarcane Ethanol - Base Case | C10: Ethanol | D10: 7 | E10: 7-MROW Mix | F10: 7 | G10: 7-MROW Mix | H10: 7 | J10: Lbs. | P10: Lbs. | Q10: Farmed Tree | R10: Renewable Diesel via Hydrotreating | T10: Crude
B11: Molasses Ethanol | C11: Ethanol | D11: 8 | E11: 8-SPNO Mix | F11: 8 | G11: 8-SPNO Mix | H11: 8 | J11: SCF | Q11: Switchgrass | R11: CNG | T11: NG
B12: Cellulosic Ethanol | C12: Ethanol | D12: 9 | E12: 9-SPSO Mix | F12: 9 | G12: 9-SPSO Mix | H12: 9 | J12: Therms | Q12: Miscanthus | R12: LNG
B13: SELECT BD or RD---- | D13: 10 | E13: 10-ERCT Mix | F13: 10 | G13: 10-ERCT Mix | H13: 10 | J13: MMBtu | Q13: Forage Sorghum | R13: L-CNG
B14: Soybean Biodiesel | C14: Biodiesel | D14: 11 | E14: 11-MROE Mix | F14: 11 | G14: 11-MROE Mix | H14: 11 | J14: Dry Tons | P14: Region Selection | Q14: Sweet Sorghum | R14: Gaseous Hydrogen | S14: Region Selection
B15: Tallow Biodiesel | C15: Biodiesel | D15: 12 | E15: 12-SRMW Mix | F15: 12 | G15: 12-SRMW Mix | H15: 12 | J15: kWh | P15: =F63 -> 15-RFCW Mix | Q15: Other | R15: Liquid Hydrogen | S15: =F64 -> 7-MROW Mix
B16: UCO Biodiesel | C16: Biodiesel | D16: 13 | E16: 13-SRMV Mix | F16: 13 | G16: 13-SRMV Mix | H16: 13 | Q16: SELECT Feedstock for BD or RD---- | R16: LPG
B17: Canola Biodiesel | C17: Biodiesel | D17: 14 | E17: 14-RFCM Mix | F17: 14 | G17: 14-RFCM Mix | H17: 14 | I17: Chemical Usage | Q17: Soybean | R17: Methanol
B18: Corn Oil Biodiesel | C18: Biodiesel | D18: 15 | E18: 15-RFCW Mix | F18: 15 | G18: 15-RFCW Mix | H18: 15 | I18: Alpha Amylase (grams) | Q18: Tallow | R18: DME
B19: Soybean Renewable Diesel | C19: Renewable Diesel | D19: 16 | E19: 16-SRTV Mix | F19: 16 | G19: 16-SRTV Mix | H19: 16 | I19: Gluco Amylase (grams) | Q19: UCO | R19: Fischer-Tropsch
B20: Tallow Renewable Diesel | C20: Renewable Diesel | D20: 17 | E20: 17-SRSO Mix | F20: 17 | G20: 17-SRSO Mix | H20: 17 | I20: Cellulase (grams) | Q20: Canola | R20: Naphtha
B21: UCO Renewable Diesel | C21: Renewable Diesel | D21: 18 | E21: 18-NEWE Mix | F21: 18 | G21: 18-NEWE Mix | H21: 18 | I21: Yeast (grams) | Q21: Corn Oil from Distiller Grains | R21: Renewable Gasoline
B22: Canola Renewable Diesel | C22: Renewable Diesel | D22: 19 | E22: 19-NYUP Mix | F22: 19 | G22: 19-NYUP Mix | H22: 19 | I22: Sulfuric acid (H2SO4, grams) | Q22: Other
B23: Corn Oil Renewable Diesel | C23: Renewable Diesel | D23: 20 | E23: 20-RFCE Mix | F23: 20 | G23: 20-RFCE Mix | H23: 20 | I23: Ammonia (NH3, grams) | Q23: Soybean
D24: 21 | E24: 21-NYLI Mix | F24: 21 | G24: 21-NYLI Mix | H24: 21 | I24: Corn steep liquor (grams) | Q24: Tallow
B25: SELECT NG or RNG ---- | D25: 22 | E25: 22-NYCW Mix | F25: 22 | G25: 22-NYCW Mix | H25: 22 | I25: DAP (grams) | Q25: Used Cooking Oil
B26: North American NG - CNG | C26: NG | D26: 23 | E26: 23-SRVC Mix | F26: 23 | G26: 23-SRVC Mix | H26: 23 | I26: NaOH (grams) | Q26: Canola
B27: North American NG - LNG | C27: NG | D27: 24 | E27: 24-FRCC Mix | F27: 24 | G27: 24-FRCC Mix | H27: 24 | I27: CaO (grams) | Q27: Corn Oil from Distiller Grains
B28: North American NG - L-CNG | C28: NG | D28: 25 | E28: 25-AKMS Mix | F28: 25 | G28: 25-AKMS Mix | H28: 25 | I28: Urea (grams) | Q28: Jatropha
B29: Landfill Gas - CNG | C29: RNG | D29: 26 | E29: 26-AKGD Mix | F29: 26 | G29: 26-AKGD Mix | H29: 26 | I29: Synthesis catalyst (grams) | Q29: Camelina
B30: Landfill Gas - LNG | C30: RNG | D30: 27 | E30: 27-HIOA Mix | F30: 27 | G30: 27-HIOA Mix | H30: 27 | I30: DEPG (grams) | Q30: Other
B31: Landfill Gas - L-CNG | C31: RNG | D31: 28 | E31: 28-HIMS Mix | F31: 28 | G31: 28-HIMS Mix | H31: 28 | I31: Olivine (grams) | Q31: SELECT Feedstock for NG or RNG ----
B32: Renewable Natural Gas Sources CNG | D32: 29 | E32: 29-Brazilian Mix | F32: 29 | G32: 29-Brazilian Mix | H32: 29 | I32: Tar catalyst (grams) | Q32: North American NG
D33: 30 | E33: 30-Canadian Mix | F33: 30 | G33: 30-Canadian Mix | H33: 30 | I33: Lime (grams) | Q33: Landfill Gas
D34: 31 | E34: None | F34: 31 | G34: None | H34: 31 | I34: LDPE (lbs) | Q34: Waste Water
I35: HDPE (lbs) | Q35: Food Waste
B36: For RNG | E36: # | F36: Feedstock Production Electricity Mix Selection | I36: Methanol | Q36: Green Waste
B37: Feedstock | E37: =VLOOKUP(LFG!D4,$E$4:$F$34,2,FALSE) -> 1 | F37: =LFG!D4 -> 1-U.S Ave Mix | I37: N-butane | Q37: Flare Gas
F38: Fuel Production Electricity Mix Selection | I38: Hydrogen | Q38: Other RNG Sources
B39: Fuel | E39: =VLOOKUP(LFG!O4,$G$4:$H$34,2,FALSE) -> 3 | F39: =LFG!O4 -> 3-CAMX Mix | I39: Sodium hydroxide (grams) | Q39: SELECT Feedstock for Hydrogen
I40: Sodium methoxide (grams) | Q40: North American NG
B41: Pipeline Transport | E41: =VLOOKUP(LFG!A69,$E$4:$F$34,2,FALSE) ->  | F41: =LFG!A69 -> 1-US Ave Mix | I41: Hydrochloric acid (grams) | Q41: Landfill Gas
B42: L-CNG Production | F42: L-CNG Production Electricity Mix Selection | I42: Phosphoric acid (grams) | Q42: Solar
E43: =VLOOKUP(LFG!A131,$E$4:$F$34,2,FALSE) -> 3 | F43: =LFG!A131 -> 3-CAMX Mix | I43: Citric acid (grams) | Q43: Nuclear
B44: For Ethanol | F44: Feedstock Production Electricity Mix Selection | Q44: Electrolysis (HTGR)
B45: Corn | E45: =VLOOKUP(F45,$E$4:$F$34,2,FALSE) -> 1 | F45: =EtOH!D27 -> 1-U.S Ave Mix | Q45: Petroleum Coke Gas
B46: Sorghum | E46: =VLOOKUP(F46,$E$4:$F$34,2,FALSE) -> 1 | F46: =EtOH!D27 -> 1-U.S Ave Mix | Q46: Coal
F47: Fuel Production Electricity Mix Selection | Q47: Other
B48: Fuel | E48: =VLOOKUP(EtOH!BF31,$E$4:$F$34,2,FALSE) -> 7 | F48: =VLOOKUP(EtOH!BF31,$E$4:$F$32,1,FALSE) -> 7-MROW Mix | Q48: None
B49: For BD RD - Farming/Rendering - Feedstock | D49: Feedstock 1 | E49: =VLOOKUP(F49,$E$4:$F$34,2,FALSE) -> 2 | F49: ='BD RD Feedstock'!C8 -> 2-User Defined Mix
D50: Feedstock 2 | E50: =VLOOKUP(F50,$E$4:$F$34,2,FALSE) -> 3 | F50: ='BD RD Feedstock'!D8 -> 3-CAMX Mix
D51: Feedstock 3 | E51: 31 | F51: ='BD RD Feedstock'!E8 -> None
D52: Feedstock 4 | E52: 2 | F52: ='BD RD Feedstock'!F8 -> 2-User Defined Mix
D53: Feedstock 5 | E53: 31 | F53: ='BD RD Feedstock'!G8 -> None
D54: Feedstock 6 | E54: 31 | F54: ='BD RD Feedstock'!H8 -> None
D55: Feedstock 7 | E55: 31 | F55: ='BD RD Feedstock'!I8 -> None
D56: Feedstock 8 | E56: 31 | F56: ='BD RD Feedstock'!J8 -> None
D57: Feedstock 9 | E57: 31 | F57: ='BD RD Feedstock'!K8 -> None
D58: Feedstock 10 | E58: 31 | F58: ='BD RD Feedstock'!L8 -> None
D59: Feedstock 11 | E59: 31 | F59: ='BD RD Feedstock'!M8 -> None
D60: Feedstock 12 | E60: 31 | F60: ='BD RD Feedstock'!N8 -> None
B61: For BD RD Production - Fuel | E61: =VLOOKUP('BD-Production'!H5,$G$4:$H$33,2,FALSE) -> 1 | F61: ='BD-Production'!$H$5 -> 1-U.S Ave Mix
B63: For Summary Sheet | D63: Feedstock | E63: =VLOOKUP(F63,$E$4:$F$34,2,FALSE) -> 15 | F63: 15-RFCW Mix
D64: Fuel | E64: =VLOOKUP(F64,$E$4:$F$34,2,FALSE) -> 7 | F64: =EtOH!E105 -> 7-MROW Mix
B66: Reference for RNG Pathways
B67: 1. LFG Extraction
B68: Extraction Energy Efficiency | C68: 0.9954 | J68: CA-GREET 2.0
B69: Electricity usage, kWh/MMBtu | C69: =4621/3412.14 -> 1.354282063
B71: 2. LFG Upgrading
B72: Methane Leakage Rate | C72: 1% of fuel throuput | J72: CA-GREET 2.0
B74: 3. Pipeline Transport | C74: Highway Distance form Landfill
B76: 4. Compression Efficiency | C76: 0.97 | J76: From LCFS Applications
B77: Compression Electricity usage, kWh/MMBtu | C77: 9.054
B78: 5. Liquefaction parameters
C79: Storage at Production Plant | D79: Transportation from Plant to Bulk Terminal | E79: Bulk Terminal Storage | F79: Distribution from Bulk Terminal to Refueling Station | G79: Storage at Landfill Gas Plant | H79: Distribution from Landfill Gas Plant to Refueling Station | I79: Refueling Station Storage for CNG from RNG pathway | J79: CA-GREET 2.0
B80: Boil-Off Rate: % per Day
B81: Liquefied Natural Gas | C81: 0.001 | D81: 0.001 | E81: 0.001 | F81: 0.001 | G81: 0.001 | H81: 0.001 | I81: 0.001
B82: Liquid H2 | C82: 0.003 | D82: 0.003 | E82: 0.003 | F82: 0.003 | G82: 0.003 | H82: 0.003 | I82: 0.003
B83: Duration of Storage or Transit: Days
B84: LNG as a final transportation fuel | C84: 5 | D84: 0 | E84: 5 | F84: 0.1 | G84: 3 | H84: 0.1 | I84: 3
B85: Recovery Rate for Boil-Off Gas
B86: LNG | C86: 0.8 | D86: 0.8 | E86: 0.8 | F86: 0.8 | G86: 0.8 | H86: 0.8 | I86: 0.8
B87: 6. L-CNG Production
B88: Regasification at the small scale stations, kWh/MMBtu | C88: 2.119 | J88: Calculations
B89: Station Energy Efficiency | C89: 0.97 | J89: CA-GREET 2.0
B90: Compression Electricity usage, kWh/MMBtu | C90: 9.054
B92: References for Biodiesel and Renewable Diesel Pathways
B93: Feedstock Type | C93: 1) Soybean | E93: 2) Canola | G93: 3) Corn Oil from DGS of an Ethanol Plant | I93: 4) Used Cooking Oil | K93: 5) Tallow
B94: a. Farming Energy
B95: Total Farming Energy | C95: 16,718 Btu/bushel | D95: Sources | E95: 519,148 Btu/dry MT | F95: Sources
B96: Diesel fuel | C96: 10766.392 | D96: GREET 1 2016 | E96: 519148 | F96: GREET 1 2016
B97: Gasoline | C97: 2975.804
B98: Natural gas | C98: 1220.414
B99: Liquefied petroleum gas | C99: 1270.568
B100: Electricity | C100: 484.822
B101: b. Fertilizer Use
B102: Nitrogen | C102: 49.9 g/bushel | D102: GREET 1 2016 | E102: 54,699 g/dry MT | F102: GREET 1 2016
B103: P2O5 | C103: 206.7 | E103: 15299
B104: K2O | C104: 344.4 | E104: 2946
B105: CaCO3 | C105: 0
B106: Herbicide | C106: 20.7 | E106: 300
B107: Pesticide | C107: 0.63 | E107: 42.86
B108: c. N2O in soil
B109: N in N2O as % of N in N fertilizer | C109: 0.01325 | D109: GREET 1 2016 | E109: 0.01325 | F109: GREET 1 2016
B110: N in N2O as % of N in biomass | C110: 0.01225 | D110: GREET 1 2016 | E110: 0.01225 | F110: GREET 1 2016
B111: d. Transport
B112: Raw feedstock to collection point by MDT, mi | C112: 10 | D112: GREET 1 2016 | E112: 10 | F112: GREET 1 2016
B113: To crushing/rendering plant by HDDT mi | C113: User defined | E113: User defined
B114: e. Oil Extraction
B115: Total Extraction Energy | C115: 3,592 Btu/lb oil | D115: GREET 1 2016 | E115: 1,238 Btu/lb oil | F115: GREET 1 2016 | G115: 924 Btu/lb oil | H115: GREET 1 2016 | I115: 1,073 Btu/lb oil | J115: GREET 1 2016 | K115: 3,944 Btu/lb oil | L115: GREET 1 2016
B116: Natural gas | C116: 2068 | E116: 1005 | G116: 767 | I116: 963 | K116: 3500
B117: Coal | C117: 1018
B118: Electricity | C118: 447 | E118: 178 | G118: =0.046*3412.14 -> 156.95844 | I118: =0.046*3412.14 -> 156.95844 | K118: =0.13*3412.14 -> 443.5782
B119: N-Hexane | C119: 59 | E119: 54
B120: f. Yield
B121: Oil Yield, lb oil/lb feedstock | C121: 0.2 | D121: CA-GREET 2.0 | E121: 0.428 | F121: CA-GREET 2.0 | G121: 0.02 gal/gal EtOH | H121: From LCFS applications | I121: 0.80 lb oil/lb raw UCO | J121: CA-GREET 2.0 | K121: 0.286lb oil/lb tallow | L121: CA-GREET 2.0
B122: Biodiesel Yield, lb BD/lb oil | C122: User Defined | E122: User defined | G122: User defined | I122: User defined | K122: User defined
B123: Glycerin energy allocation | C123: 0.0494 | D123: CA-GREET 2.0 | E123: 0.0494 | F123: CA-GREET 2.0 | G123: 0.0494 | H123: CA-GREET 2.0 | I123: 0.0494 | J123: CA-GREET 2.0 | K123: 0.0494 | L123: CA-GREET 2.0
B124: RD Yield, lb BD/lb oil | C124: User defined | E124: User defined | G124: User defined | I124: User defined | K124: User defined
B125: Propane energy allocation | C125: 0.0548 | D125: CA-GREET 2.0 | E125: 0.0548 | F125: CA-GREET 2.0 | G125: 0.0548 | H125: CA-GREET 2.0 | I125: 0.0548 | J125: CA-GREET 2.0 | K125: 0.0548 | L125: CA-GREET 2.0
B126: g. Biodiesel via Transesterification
B127: Chemical Use, gCO2e/MJ | C127: 2.62 | D127: From LCFS applications | E127: 2.62 | F127: From LCFS applications | G127: 2.62 | H127: From LCFS applications | I127: 2.62 | J127: From LCFS applications | K127: 2.62 | L127: From LCFS applications
B128: Methanol Use | C128: User defined | E128: User defined | G128: User defined | I128: User defined | K128: User defined
B129: h. Renewable Diesel via Hydrotreating
B130: Chemical Use, gCO2e/MJ | C130: 0.32 | D130: From LCFS applications | E130: =C130 -> 0.32 | F130: From LCFS applications | G130: =C130 -> 0.32 | H130: From LCFS applications | I130: =C130 -> 0.32 | J130: From LCFS applications | K130: =C130 -> 0.32 | L130: From LCFS applications
B131: Hydrogen Use | C131: User defined | E131: User defined | G131: User defined | I131: User defined | K131: User defined
B132: i. Fuel Distribution
B133: Distribution by HDT to blending terminal, miles | C133: 50 | D133: CA-GREET 2.0
B134: Distribution by HDT to stations, miles | C134: 90 | D134: CA-GREET 2.0
B135: g. Fuel Properties | D135: Sources
B136: Density of BD, lbs/gal | C136: =Fuel_Specs!E39/Fuel_Specs!$E$121 -> 7.409736632 | D136: CA-GREET 2.0
B137: Density of RD, lbs/gal | C137: =Fuel_Specs!E42/Fuel_Specs!$E$121 -> 6.499227489 | D137: CA-GREET 2.0
B139: References for Corn and Sorghum Pathways (adapted from GREET 1 2016)
B140: Feedstock Type | C140: 1) Corn | E140: 2) Sorghum | G140: 3) Corn Fiber
B141: a. Farming Energy
B142: Total Farming Energy, Btu/bushel | C142: 9608 | D142: Sources | E142: 16741 | F142: Sources | G142: 0
B143: Diesel, Btu/bushel | C143: 4730 | D143: GREET 1 2016 | E143: 5983 | F143: GREET 1 2016
B144: Gasoline , Btu/bushel | C144: 1413 | E144: 3100
B145: Natural gas, Btu/bushel | C145: 1301 | E145: 7645
B146: Liquefied petroleum gas, Btu/bushel | C146: 1723
B147: Electricity, Btu/bushel | C147: 441 | E147: 14
B148: b. Fertilizer Use
B149: Nitrogen, g/bushel | C149: 423.3 | D149: GREET 1 2016 | E149: 521.97 | F149: GREET 1 2016 | G149: 0
B150: P2O5, g/bushel | C150: 145.8 | E150: 123.2 | G150: 0
B151: K2O g/bushel | C151: 151.3 | E151: 19.02 | G151: 0
B152: CaCO3, g/bushel | C152: 1149.87 | G152: 0
B153: Herbicide, g/bushel | C153: 7 | E153: 28.67 | G153: 0
B154: Pesticide, g/bushel | C154: 0.06 | E154: 0
B155: c. N2O in soil
B156: N in N2O as % of N in N fertilizer | C156: 0.01325 | D156: GREET 1 2016 | E156: 0.01325 | F156: GREET 1 2016 | G156: 0
B157: N in N2O as % of N in biomass | C157: 0.01225 | E157: 0.01225 | G157: 0
B158: d. Transport
B159: Feedstock from farm to collection point by MDT, mi | C159: 10 | D159: GREET 1 2016 | E159: 10 | F159: GREET 1 2016
B160: to Ethanol plant by HDDT, mi | C160: User defined | E160: User defined
B161: g. Ethanol Production
B162: Chemical Use (Yeast and Enzymes), gCO2e/MJ | C162: 2.02 | D162: From LCFS applications | E162: 2.02 | F162: From LCFS applications | G162: User Defined
B164: h. Co-product
B165: Wet Distiller Grains Moisture Content | C165: User Defined | E165: User Defined
B166: Modified Distiller Grains Moisture Content | C166: User Defined | E166: User Defined
B167: Dry Distiller Grains Moisture Content | C167: User Defined | E167: User Defined
B168: Syrup Moisture content | C168: 0.3 | E168: 0.3
B169: Corn Oil Moisture content | C169: 0.01 | E169: 0.01 | F169: assumed to be the same as corn oil
B170: Corn Oil Displace Soy Oil, lb/lb | C170: 1 | E170: 1 | F170: assumed to be the same as corn oil
B171: i. Indirect Land Use (ILUC)
B172: Corn, gCO2e/MJ | C172: 19.8 | G172: 0
B173: Sorghum, gCO2e/MJ | E173: 19.4
B174: j. Ethanol Distribution
B175: From Blending Terminal to Fueling Stations, miles | C175: 50 | E175: 50 | G175: 50

Sheet BD RD Feedstock (hidden)
A1: Feedstock Production Data Summary | D1: Applicant: | E1: ABC Energy | G1: Facility Location: | I1: City, State | Q1: =IF(F3="None",0,1) -> 1 | AG1: Soy Oil | AH1: 1 | AI1: DNAVSO | AO1: Assumptions or Defaults
A2: Feedstock Production | C2: Feedstock 1 | D2: Feedstock 2 | E2: Feedstock 3 | F2: Feedstock 4 | G2: Feedstock 5 | H2: Feedstock 6 | I2: Feedstock 7 | J2: Feedstock 8 | K2: Feedstock 9 | L2: Feedstock 10 | M2: Feedstock 11 | N2: Feedstock 12 | AG2: Canola Oil | AH2: 2 | AI2: DNAVCAO | AO2: 1) Soybean Farming | AP2: Values | AQ2: 1) Canola Farming | AR2: Values | AS2: Note
B3: Step 1) Click to Select Feedstock | C3: Tallow | D3: Tallow | E3: Corn Oil | F3: Other | G3: None | H3: None | I3: None | J3: None | K3: None | L3: None | M3: None | N3: None | AG3: Corn Oil | AH3: 3 | AI3: DNAVDCO | AO3: a) Electricity Mix - US Ave | AQ3: a) Electricity Mix - US Ave
A4: For the same feedstock, specify each unique features (location, process…) | AG4: Used Cooking Oil | AH4: 4 | AI4: DNAVUCO | AO4: b) Energy Consumption (Btu/bushel) | AQ4: b) Energy Consumption (Btu/MT of rapeseed)
A5: If Other selected, specify feedstock type here | F5: Palm Oil | AG5: Tallow | AH5: 5 | AI5: DNAVTAL | AO5: Residual oil | AP5: 0 | AQ5: Residual oil | AR5: 0
B6: Step 2) Click to Select Oil Extraction | C6: Standard Values | D6: Site-Specific | E6: Site-Specific | F6: Site-Specific | G6: None | H6: None | I6: None | J6: None | K6: None | L6: None | M6: None | N6: None
A7: Step 3) Click to Select Feedstock and Electricity Source(s) | B7: Feedstock Sources | C7: User Defined | D7: California | E7: None | F7: U.S | G7: None | H7: None | I7: None | J7: None | K7: None | L7: None | M7: None | N7: None | AG7: Other | AH7: 6 | AI7: DNAVOTHER2 | AO7: Diesel fuel | AP7: 10766 | AQ7: Diesel fuel | AR7: 505339
B8: Electricity Sources | C8: 2-User Defined Mix | D8: 3-CAMX Mix | E8: None | F8: 2-User Defined Mix | G8: None | H8: None | I8: None | J8: None | K8: None | L8: None | M8: None | N8: None | AG8: Other | AH8: 7 | AI8: DNAVOTHER3 | AO8: Gasoline | AP8: 2976 | AQ8: Gasoline | AR8: 0
B9: Crude Sources | C9: User Defined Crude | D9: U.S. Ave Crude | E9: None | F9: U.S. Ave Crude | G9: None | H9: None | I9: None | J9: None | K9: None | L9: None | M9: None | N9: None | AG9: Other | AH9: 8 | AI9: DNAVOTHER4 | AO9: Natural gas | AP9: 1220 | AQ9: Natural gas | AR9: 1090 | CQ9: User Defined NG
B10: Natural Gas Sources | C10: User Defined NG | D10: U.S. Ave NG | E10: None | F10: U.S. Ave NG | G10: None | H10: None | I10: None | J10: None | K10: None | L10: None | M10: None | N10: None | AG10: Other | AH10: 9 | AI10: DNAVOTHER5 | AO10: Coal | AP10: 0 | AQ10: Coal | AR10: 0
A11: Step 4) Click Enter Data button to navigate to the selected feedstock for entering data | R11: Feedstock Transport (weighted average) | AE11: Other | AH11: 10 | AI11: DNAVOTHER6 | AL11: Liquefied petroleum gas | AM11: 1271 | AN11: Liquefied petroleum gas | AO11: 0
A12: Monthly Data Feedstock 1 | B12: Beginning Tallow Oil Inventory | C12: Oil Received | D12: Oil Used (Calculated) | E12: Ending Tallow Oil Inventory | F12: Moisture Content | G12: Thermal Energy Usage for Oil Extraction | H12: Eletricity Usage | I12: Total Energy for Oil Extraction | R12: by MDDT | S12: by HDDT | T12: by Ocean Tanker | U12: by Rail | V12: by Barge | AF12: Other | AH12: 11 | AI12: DNAVOTHER7 | AM12: Biomass | AN12: 0 | AO12: Biomass | AP12: 0
A13: Unit | B13: lbs. | C13: lbs. | D13: lbs. | E13: lbs. | F13: % | G13: Btu/lb Oil | H13: kWh/lb Oil | I13: Btu/lb Oil | R13: miles | S13: miles | T13: miles | U13: miles | V13: miles | AF13: Other | AH13: 12 | AI13: DNAVOTHER8 | AM13: Electricity | AN13: 485 | AO13: Electricity | AP13: 12771
A14: Month 1 | B14: 100000 | G14: 3500 | H14: 0.13 | I14: 3944 | R14: 0 | S14: 50 | T14: 1000 | U14: 10000 | V14: 1000 | AF14: Other | AH14: 13 | AI14: DNAVOTHER9 | AM14: Renewable natural gas | AN14: 0.3781718709 | AO14: Renewable natural gas | AP14: 0.3781718709
A15: Month 2 | B15: 100000 | C15: 100000 | D15: =B15+C15-E15 -> 155365 | E15: 44635 | F15: 0.05 | R15: 0 | S15: 50 | T15: 1000 | U15: 10000 | V15: 1000 | AM15: c) Fertilizer Use by Nutrient (grams/bushel) | AO15: c) Fertilizer Use by Nutrient (grams/dry MT)
A16: Month 3 | B16: 100000 | C16: 100000 | D16: =B16+C16-E16 -> 198744 | E16: 1256 | F16: 0.08 | R16: 0 | S16: 50 | T16: 1000 | U16: 10000 | V16: 1000 | AM16: Nitrogen | AN16: 49.9 | AO16: Nitrogen | AP16: 54698.9
A17: Month 4 | B17: 100000 | C17: 100000 | D17: 198441 | E17: 1559 | F17: 0.06 | R17: 0 | S17: 50 | T17: 1000 | U17: 10000 | V17: 1000 | AM17: P2O5 | AN17: 206.7 | AO17: P2O5 | AP17: 15298.9
A18: Month 5 | B18: 100000 | C18: 100000 | D18: 100000 | E18: 100000 | F18: 0.04 | R18: 0 | S18: 50 | T18: 1000 | U18: 10000 | V18: 1000 | AM18: K2O | AN18: 344.4 | AO18: K2O | AP18: 2946.15
A19: Month 6 | B19: 100000 | C19: 100000 | D19: 0 | E19: 200000 | F19: 0.08 | R19: 0 | S19: 50 | T19: 1000 | U19: 10000 | V19: 1000 | AM19: CaCO3 | AN19: 0 | AO19: CaCO3 | AP19: 0
A20: Month 7 | B20: 100000 | C20: 100000 | D20: 0 | E20: 200000 | F20: 0.1 | R20: 0 | S20: 50 | T20: 1000 | U20: 10000 | V20: 1000 | AM20: Herbicide | AN20: 20.7 | AO20: Herbicide | AP20: 300
A21: Month 8 | B21: 100000 | C21: 100000 | D21: 0 | E21: 200000 | F21: 0.09 | R21: 0 | S21: 50 | T21: 1000 | U21: 10000 | V21: 1000 | AM21: Insecticide | AN21: 0.6 | AO21: Insecticide | AP21: 42.86
A22: Month 9 | B22: 200000 | C22: 300000 | D22: 480000 | E22: 20000 | F22: 0.07 | R22: 0 | S22: 50 | T22: 1000 | U22: 10000 | V22: 1000 | AM22: d) N2O in Soil | AO22: d) N2O in Soil
A23: Month 10 | B23: 100000 | C23: 300000 | D23: 200000 | E23: 200000 | F23: 0.06 | R23: 0 | S23: 50 | T23: 1000 | U23: 10000 | V23: 1000 | AM23: N2O Emissions: N in N2O as % of N in N fertilizer | AN23: 0.01325 | AO23: N2O Emissions: N in N2O as % of N in N fertilizer | AP23: 0.01325
A24: Month 11 | B24: 100000 | C24: 300000 | D24: 200000 | E24: 200000 | F24: 0.08 | R24: 0 | S24: 50 | T24: 1000 | U24: 10000 | V24: 1000 | AM24: N2O Emissions: N in N2O as % of N biomass | AN24: 0.01225 | AO24: N2O Emissions: N in N2O as % of N biomass | AP24: 0.01225
A25: Month 12 | B25: 100000 | C25: 300000 | D25: 200000 | E25: 200000 | F25: 0.1 | R25: 0 | S25: 50 | T25: 1000 | U25: 10000 | V25: 1000 | AM25: N content of above and below ground biomass: (grams/bushel) | AN25: 200.7 | AO25: N content of above and below ground biomass: (grams/bushel) | AP25: 7125
A26: Month 13 | B26: 100000 | C26: 300000 | D26: 200000 | E26: 200000 | F26: 0.05 | R26: 0 | S26: 50 | T26: 1000 | U26: 10000 | V26: 1000 | AM26: e) Soybean Transport (miles) | AO26: e) Canola Transport (miles)
A27: Month 14 | B27: 100000 | C27: 300000 | D27: 200000 | E27: 200000 | F27: 0.04 | R27: 0 | S27: 50 | T27: 1000 | U27: 10000 | V27: 1000 | AM27: From field to collection center by Medium HD Truck | AN27: 10 | AO27: From field to collection center by Medium HD Truck | AP27: 10
A28: Month 15 | B28: 100000 | C28: 300000 | D28: 200000 | E28: 200000 | F28: 0.05 | R28: 0 | S28: 50 | T28: 1000 | U28: 10000 | V28: 1000 | AM28: From collection center to oil extraction plant HHD Truck | AN28: 50 | AO28: From collection center to oil extraction plant HHD Truck | AP28: 50
A29: Month 16 | B29: 100000 | C29: 300000 | D29: 200000 | E29: 200000 | F29: 0.03 | R29: 0 | S29: 50 | T29: 1000 | U29: 10000 | V29: 1000 | AM29: From oil extraction plant to BD plant by rail | AN29: ? | AO29: From oil extraction plant to BD plant by rail | AP29: ?
A30: Month 17 | B30: 100000 | C30: 300000 | D30: 200000 | E30: 200000 | F30: 0.01 | R30: 0 | S30: 50 | T30: 1000 | U30: 10000 | V30: 1000 | AM30: From oil extraction plant to BD plant by HDD truck | AN30: ? | AO30: From oil extraction plant to BD plant by HDD truck | AP30: ?
A31: Month 18 | B31: 100000 | C31: 300000 | D31: 200000 | E31: 200000 | F31: 0.05 | R31: 0 | S31: 50 | T31: 1000 | U31: 10000 | V31: 1000 | AM31: f) Soy Oil Extraction (BTU/lb oil) | AO31: f) Canola Oil Extraction (BTU/lb oil)
A32: Month 19 | B32: 100000 | C32: 200000 | D32: 100000 | E32: 200000 | F32: 0.08 | R32: 0 | S32: 50 | T32: 1000 | U32: 10000 | V32: 1000 | AM32: Residual Oil | AN32: 32.08 | AO32: Residual Oil | AP32: 0
A33: Month 20 | B33: 100000 | C33: 200000 | D33: 100000 | E33: 200000 | F33: 0.09 | R33: 0 | S33: 50 | T33: 1000 | U33: 10000 | V33: 1000 | AM33: Diesel Fuel | AN33: 15.85 | AO33: Diesel Fuel | AP33: 0
A34: Month 21 | B34: 100000 | C34: 200000 | D34: 100000 | E34: 200000 | F34: 0.04 | R34: 0 | S34: 50 | T34: 1000 | U34: 10000 | V34: 1000 | AM34: Gasoline | AN34: 0 | AO34: Gasoline | AP34: 0
A35: Month 22 | B35: 100000 | C35: 200000 | D35: 100000 | E35: 200000 | F35: 0.03 | R35: 0 | S35: 50 | T35: 1000 | U35: 10000 | V35: 1000 | AM35: Natural Gas | AN35: 2068.04 | AO35: Natural Gas | AP35: 1005
A36: Month 23 | B36: 100000 | C36: 200000 | D36: 100000 | E36: 200000 | F36: 0.02 | R36: 0 | S36: 50 | T36: 1000 | U36: 10000 | V36: 1000 | AM36: Coal | AN36: 1017.98 | AO36: Coal | AP36: 0
A37: Month 24 | B37: 100000 | C37: 200000 | D37: 100000 | E37: 200000 | F37: 0.02 | R37: 0 | S37: 50 | T37: 1000 | U37: 10000 | V37: 1000 | AM37: Liquefied petroleum gas | AN37: 0 | AO37: Liquefied petroleum gas | AP37: 0
A38: Total | B38: =SUM(B14:B37) -> 2500000 | C38: =SUM(C14:C37)*F38 -> 281217.3913 | D38: =SUM(D14:D37) -> 3532550 | E38: =SUM(E14:E37) -> 3767450 | F38: =IF(MAX($F14:$F37)<=0,"No Data",SUMIF($F14:$F37,">0")/COUNTIF($F14:$F37,">0")) -> 0.05739130435 | G38: 1000 | H38: 1000 | I38: =SUM(I14:I37) -> 3944 | J38: 1000 | K38: =SUM(K14:K37) -> 0 | L38: =SUM(L14:L37)+1000 -> 1000 | M38: =SUM(M14:M37) -> 0 | N38: =SUM(N14:N37) -> 0 | O38: =SUM(O14:O37) -> 0 | P38: =SUM(P14:P37) -> 0 | Q38: =SUM(Q14:Q37) -> 0 | R38: =IF(MAX(R14:R37)<=0,"No Data",SUMIF(R14:R37,">0")/COUNTIF(R14:R37,">0")) -> No Data | S38: =IF(MAX(S14:S37)<=0,"No Data",SUMIF(S14:S37,">0")/COUNTIF(S14:S37,">0")) -> 50 | T38: =IF(MAX(T14:T37)<=0,"No Data",SUMIF(T14:T37,">0")/COUNTIF(T14:T37,">0")) -> 1000 | U38: =IF(MAX(U14:U37)<=0,"No Data",SUMIF(U14:U37,">0")/COUNTIF(U14:U37,">0")) -> 10000 | V38: =IF(MAX(V14:V37)<=0,"No Data",SUMIF(V14:V37,">0")/COUNTIF(V14:V37,">0")) -> 1000 | AM38: Biomass | AN38: 32.08 | AO38: Biomass | AP38: 0
A39: Monthly Data Feedstock 2 | B39: Beginning Tallow Oil Inventory | C39: Oil Purchased | D39: Oil Used (Calculated) | E39: Ending Tallow Oil Inventory | F39: Moisture Content | R39: by MDDT | S39: by HDDT | T39: by Ocean Tanker | U39: by Rail | V39: by Barge | AM39: Electricity | AN39: 446.13 | AO39: Electricity | AP39: 178
A40: Unit | B40: lbs. | C40: lbs. | D40: lbs. | E40: lbs. | F40: % | R40: miles | S40: miles | T40: miles | U40: miles | V40: miles | AM40: Renewable gas | AN40: 15.85 | AO40: Renewable gas | AP40: 0
A41: Month 1 | B41: 0 | C41: 0 | D41: =B41+C41-E41 -> 0 | E41: 0 | F41: 0 | AM41: N-Hexane | AN41: 58.99 | AO41: N-Hexane | AP41: 54
A42: Month 2 | B42: 0 | C42: 0 | D42: =B42+C42-E42 -> 0 | E42: 0 | F42: 0 | AM42: g) Co-product displacement credit | AO42: g)Co-product displacement credit
A43: Month 3 | B43: 0 | C43: 0 | D43: =B43+C43-E43 -> 0 | E43: 0 | F43: 0 | AM43: Allocation Method: Hybrid (Mass for soy oil and energy for glycerine) | AO43: Allocation Method: Hybrid (Mass for canoal oil and energy for glycerine)
A44: Month 4 | B44: 0 | C44: 0 | D44: 0 | E44: 0 | F44: 0 | AM44: Soy Oil Mass allocation | AN44: 0.2 | AO44: Canola oil mass allocation | AP44: 0.428
A45: Month 5 | B45: 0 | C45: 0 | D45: 0 | E45: 0 | F45: 0 | H45: Please Use Tier 2 for Oil Extraction CI Calculation | AM45: Glycerine yield, lb/lb BD | AN45: 0.105 | AO45: Glycerine yield, lb/lb BD | AP45: 0.105
A46: Month 6 | B46: 0 | C46: 0 | D46: 0 | E46: 0 | F46: 0
A47: Month 7 | B47: 0 | C47: 0 | D47: 0 | E47: 0 | F47: 0 | S47: 100 | AM47: System energy allocation to BD | AN47: 0.9506 | AO47: System energy allocation to BD | AP47: 0.9506
A48: Month 8 | B48: 0 | C48: 0 | D48: 0 | E48: 0 | F48: 0 | T48: 0 | U48: 1500 | V48: 1000 | AM48: System energy allocation to glycerine | AN48: 0.0494 | AO48: System energy allocation to glycerine | AP48: 0.0494
A49: Month 9 | B49: 0 | C49: 0 | D49: 0 | E49: 0 | F49: 0
A50: Month 10 | B50: 0 | C50: 0 | D50: 0 | E50: 0 | F50: 0 | S50: 0
A51: Month 11 | B51: 0 | C51: 0 | D51: 0 | E51: 0 | F51: 0
A52: Month 12 | B52: 0 | C52: 0 | D52: 0 | E52: 0 | F52: 0
A53: Month 13 | B53: 0 | C53: 0 | D53: 0 | E53: 0 | F53: 0
A54: Month 14 | B54: 0 | C54: 0 | D54: 0 | E54: 0 | F54: 0
A55: Month 15 | B55: 0 | C55: 0 | D55: 0 | E55: 0 | F55: 0
A56: Month 16 | B56: 0 | C56: 0 | D56: 0 | E56: 0 | F56: 0
A57: Month 17 | B57: 0 | C57: 0 | D57: 0 | E57: 0 | F57: 0
A58: Month 18 | B58: 0 | C58: 0 | D58: 0 | E58: 0 | F58: 0
A59: Month 19 | B59: 0 | C59: 0 | D59: 0 | E59: 0 | F59: 0
A60: Month 20 | B60: 0 | C60: 0 | D60: 0 | E60: 0 | F60: 0
A61: Month 21 | B61: 0 | C61: 0 | D61: 0 | E61: 0 | F61: 0
A62: Month 22 | B62: 0 | C62: 0 | D62: 0 | E62: 0 | F62: 0
A63: Month 23 | B63: 0 | C63: 0 | D63: 0 | E63: 0 | F63: 0
A64: Month 24 | B64: 0 | C64: 0 | D64: 0 | E64: 0 | F64: 0
A65: Total | B65: =SUM(B41:B64) -> 0 | C65: =SUM(C41:C64) -> 0 | D65: =SUM(D41:D64) -> 0 | E65: =SUM(E41:E64) -> 0 | F65: =IF(MAX($F41:$F64)<=0,"No Data",SUMIF($F41:$F64,">0")/COUNTIF($F41:$F64,">0")) -> No Data | G65: =SUM(G41:G64) -> 0 | H65: 0 | I65: 0 | J65: 0 | K65: 0 | L65: 0 | M65: 0 | N65: 0 | O65: 0 | P65: 0 | Q65: 0 | R65: =IF(MAX(R41:R64)<=0,"No Data",SUMIF(R41:R64,">0")/COUNTIF(R41:R64,">0")) -> No Data | S65: =IF(MAX(S41:S64)<=0,"No Data",SUMIF(S41:S64,">0")/COUNTIF(S41:S64,">0")) -> 100 | T65: =IF(MAX(T41:T64)<=0,"No Data",SUMIF(T41:T64,">0")/COUNTIF(T41:T64,">0")) -> No Data | U65: =IF(MAX(U41:U64)<=0,"No Data",SUMIF(U41:U64,">0")/COUNTIF(U41:U64,">0")) -> 1500 | V65: =IF(MAX(V41:V64)<=0,"No Data",SUMIF(V41:V64,">0")/COUNTIF(V41:V64,">0")) -> 1000
A66: Monthly Data Feedstock 3 | B66: Beginning Corn Oil Inventory | C66: Oil Purchased | D66: Oil Used (Calculated) | E66: Ending Corn Oil Inventory | F66: Moisture Content | R66: by HDDT | S66: by HDDT | T66: by Ocean Tanker | U66: by Rail | V66: by Barge
A67: Unit | B67: lbs. | C67: lbs. | D67: lbs. | E67: lbs. | F67: % | R67: miles | S67: miles | T67: miles | U67: miles | V67: miles
A68: Month 1 | B68: 0 | C68: 0 | D68: =B68+C68-E68 -> 0 | E68: 0 | F68: 0
A69: Month 2 | B69: 0 | C69: 0 | D69: =B69+C69-E69 -> 0 | E69: 0 | F69: 0
A70: Month 3 | B70: 0 | C70: 0 | D70: =B70+C70-E70 -> 0 | E70: 0 | F70: 0
A71: Month 4 | B71: 0 | C71: 0 | D71: 0 | E71: 0 | F71: 0
A72: Month 5 | B72: 0 | C72: 0 | D72: 0 | E72: 0 | F72: 0 | H72: Please Use Tier 2 for Oil Extraction CI Calculation
A73: Month 6 | B73: 0 | C73: 0 | D73: 0 | E73: 0 | F73: 0
A74: Month 7 | B74: 0 | C74: 0 | D74: 0 | E74: 0 | F74: 0
A75: Month 8 | B75: 0 | C75: 0 | D75: 0 | E75: 0 | F75: 0
A76: Month 9 | B76: 0 | C76: 0 | D76: 0 | E76: 0 | F76: 0
A77: Month 10 | B77: 0 | C77: 0 | D77: 0 | E77: 0 | F77: 0
A78: Month 11 | B78: 0 | C78: 0 | D78: 0 | E78: 0 | F78: 0
A79: Month 12 | B79: 0 | C79: 0 | D79: 0 | E79: 0 | F79: 0
A80: Month 13 | B80: 0 | C80: 0 | D80: 0 | E80: 0 | F80: 0
A81: Month 14 | B81: 0 | C81: 0 | D81: 0 | E81: 0 | F81: 0
A82: Month 15 | B82: 0 | C82: 0 | D82: 0 | E82: 0 | F82: 0
A83: Month 16 | B83: 0 | C83: 0 | D83: 0 | E83: 0 | F83: 0
A84: Month 17 | B84: 0 | C84: 0 | D84: 0 | E84: 0 | F84: 0
A85: Month 18 | B85: 0 | C85: 0 | D85: 0 | E85: 0 | F85: 0
A86: Month 19 | B86: 0 | C86: 0 | D86: 0 | E86: 0 | F86: 0
A87: Month 20 | B87: 0 | C87: 0 | D87: 0 | E87: 0 | F87: 0
A88: Month 21 | B88: 0 | C88: 0 | D88: 0 | E88: 0 | F88: 0
A89: Month 22 | B89: 0 | C89: 0 | D89: 0 | E89: 0 | F89: 0
A90: Month 23 | B90: 0 | C90: 0 | D90: 0 | E90: 0 | F90: 0
A91: Month 24 | B91: 0 | C91: 0 | D91: 0 | E91: 0 | F91: 0
A92: Total | B92: =SUM(B68:B91) -> 0 | C92: =SUM(C68:C91) -> 0 | D92: =SUM(D68:D91) -> 0 | E92: =SUM(E68:E91) -> 0 | F92: =IF(MAX($F68:$F91)<=0,"No Data",SUMIF($F68:$F91,">0")/COUNTIF($F68:$F91,">0")) -> No Data | G92: =SUM(G68:G91) -> 0 | H92: 0 | I92: 0 | J92: 0 | K92: 0 | L92: 0 | M92: 0 | N92: 0 | O92: 0 | P92: 0 | Q92: 0 | R92: =IF(MAX(R68:R91)<=0,"No Data",SUMIF(R68:R91,">0")/COUNTIF(R68:R91,">0")) -> No Data | S92: =IF(MAX(S68:S91)<=0,"No Data",SUMIF(S68:S91,">0")/COUNTIF(S68:S91,">0")) -> No Data | T92: =IF(MAX(T68:T91)<=0,"No Data",SUMIF(T68:T91,">0")/COUNTIF(T68:T91,">0")) -> No Data | U92: =IF(MAX(U68:U91)<=0,"No Data",SUMIF(U68:U91,">0")/COUNTIF(U68:U91,">0")) -> No Data | V92: =IF(MAX(V68:V91)<=0,"No Data",SUMIF(V68:V91,">0")/COUNTIF(V68:V91,">0")) -> No Data
A93: Monthly Data Feedstock 4 | B93: Beginning Palm Oil Inventory | C93: Oil Purchased | D93: Oil Used (Calculated) | E93: Ending Palm Oil Inventory | F93: Moisture Content | G93: NG Use from Invoices for Palm Oil Oil Extraction | H93: Biomass Use for Oil Extraction from Invoices | I93: Biomass Transport | J93: Biogas Use for Oil Extraction from Invoices | K93: Biogas Pipeline Transport | L93: Residual Oil Use for Oil Extraction from Invoices | M93: Diesel Use for Oil Extraction from Invoices | N93: Coal Use for Oil Extraction from Invoices | O93: Electricity Use for Oil Extraction from Invoices | P93: N/A | R93: by HDDT | S93: by HDDT | T93: by Ocean Tanker | U93: by Rail | V93: by Barge
A94: Unit | B94: lbs. | C94: lbs. | D94: lbs. | E94: lbs. | F94: % | G94: MMBtu (HHV) | H94: Tons (HHV) | I94: Miles | J94: MMBtu (HHV) | K94: Miles | L94: MMBtu (HHV) | M94: Gallons (HHV) | N94: Tons (HHV) | O94: kWh (HHV) | R94: miles | S94: miles | T94: miles | U94: miles | V94: miles
A95: Month 1 | B95: 0 | C95: 0 | D95: =B95+C95-E95 -> 0 | E95: 0 | F95: 0
A96: Month 2 | B96: 0 | C96: 0 | D96: =B96+C96-E96 -> 0 | E96: 0 | F96: 0
A97: Month 3 | B97: 0 | C97: 0 | D97: =B97+C97-E97 -> 0 | E97: 0 | F97: 0
A98: Month 4 | B98: 0 | C98: 0 | D98: 0 | E98: 0 | F98: 0
A99: Month 5 | B99: 0 | C99: 0 | D99: 0 | E99: 0 | F99: 0 | S99: 100 | U99: 700 | V99: 4000
A100: Month 6 | B100: 0 | C100: 0 | D100: 0 | E100: 0 | F100: 0
A101: Month 7 | B101: 0 | C101: 0 | D101: 0 | E101: 0 | F101: 0
A102: Month 8 | B102: 0 | C102: 0 | D102: 0 | E102: 0 | F102: 0
A103: Month 9 | B103: 0 | C103: 0 | D103: 0 | E103: 0 | F103: 0
A104: Month 10 | B104: 0 | C104: 0 | D104: 0 | E104: 0 | F104: 0
A105: Month 11 | B105: 0 | C105: 0 | D105: 0 | E105: 0 | F105: 0
A106: Month 12 | B106: 0 | C106: 0 | D106: 0 | E106: 0 | F106: 0
A107: Month 13 | B107: 0 | C107: 0 | D107: 0 | E107: 0 | F107: 0
A108: Month 14 | B108: 0 | C108: 0 | D108: 0 | E108: 0 | F108: 0
A109: Month 15 | B109: 0 | C109: 0 | D109: 0 | E109: 0 | F109: 0
A110: Month 16 | B110: 0 | C110: 0 | D110: 0 | E110: 0 | F110: 0
A111: Month 17 | B111: 0 | C111: 0 | D111: 0 | E111: 0 | F111: 0
A112: Month 18 | B112: 0 | C112: 0 | D112: 0 | E112: 0 | F112: 0
A113: Month 19 | B113: 0 | C113: 0 | D113: 0 | E113: 0 | F113: 0
A114: Month 20 | B114: 0 | C114: 0 | D114: 0 | E114: 0 | F114: 0
A115: Month 21 | B115: 0 | C115: 0 | D115: 0 | E115: 0 | F115: 0
A116: Month 22 | B116: 0 | C116: 0 | D116: 0 | E116: 0 | F116: 0
A117: Month 23 | B117: 0 | C117: 0 | D117: 0 | E117: 0 | F117: 0
A118: Month 24 | B118: 0 | C118: 0 | D118: 0 | E118: 0 | F118: 0
A119: Total | B119: =SUM(B95:B118) -> 0 | C119: =SUM(C95:C118) -> 0 | D119: =SUM(D95:D118) -> 0 | E119: =SUM(E95:E118) -> 0 | F119: =IF(MAX($F95:$F118)<=0,"No Data",SUMIF($F95:$F118,">0")/COUNTIF($F95:$F118,">0")) -> No Data | G119: =SUM(G95:G118) -> 0 | H119: =SUM(H95:H118) -> 0 | I119: 0 | J119: 0 | K119: 0 | L119: 0 | M119: 0 | N119: 0 | O119: 0 | P119: 0 | Q119: 0 | R119: =IF(MAX(R95:R118)<=0,"No Data",SUMIF(R95:R118,">0")/COUNTIF(R95:R118,">0")) -> No Data | S119: =IF(MAX(S95:S118)<=0,"No Data",SUMIF(S95:S118,">0")/COUNTIF(S95:S118,">0")) -> 100 | T119: =IF(MAX(T95:T118)<=0,"No Data",SUMIF(T95:T118,">0")/COUNTIF(T95:T118,">0")) -> No Data | U119: =IF(MAX(U95:U118)<=0,"No Data",SUMIF(U95:U118,">0")/COUNTIF(U95:U118,">0")) -> 700 | V119: =IF(MAX(V95:V118)<=0,"No Data",SUMIF(V95:V118,">0")/COUNTIF(V95:V118,">0")) -> 4000
A120: Monthly Data Feedstock 5 | B120: No Bio-oil Used | C120: Oil Purchased | D120: Oil Used (Calculated) | E120: No Bio-oil Used | F120: Moisture Content | R120: by HDDT | S120: by HDDT | T120: by Ocean Tanker | U120: by Rail | V120: by Barge
A121: Unit | B121: lbs. | C121: lbs. | D121: lbs. | E121: lbs. | F121: % | R121: miles | S121: miles | T121: miles | U121: miles | V121: miles
A122: Month 1 | B122: 0 | C122: 0 | D122: =B122+C122-E122 -> 0 | E122: 0 | F122: 0
A123: Month 2 | B123: 0 | C123: 0 | D123: =B123+C123-E123 -> 0 | E123: 0 | F123: 0
A124: Month 3 | B124: 0 | C124: 0 | D124: =B124+C124-E124 -> 0 | E124: 0 | F124: 0
A125: Month 4 | B125: 0 | C125: 0 | D125: 0 | E125: 0 | F125: 0
A126: Month 5 | B126: 0 | C126: 0 | D126: 0 | E126: 0 | F126: 0 | H126: Please Use Tier 2 for Oil Extraction CI Calculation
A127: Month 6 | B127: 0 | C127: 0 | D127: 0 | E127: 0 | F127: 0
A128: Month 7 | B128: 0 | C128: 0 | D128: 0 | E128: 0 | F128: 0
A129: Month 8 | B129: 0 | C129: 0 | D129: 0 | E129: 0 | F129: 0
A130: Month 9 | B130: 0 | C130: 0 | D130: 0 | E130: 0 | F130: 0
A131: Month 10 | B131: 0 | C131: 0 | D131: 0 | E131: 0 | F131: 0
A132: Month 11 | B132: 0 | C132: 0 | D132: 0 | E132: 0 | F132: 0
A133: Month 12 | B133: 0 | C133: 0 | D133: 0 | E133: 0 | F133: 0
A134: Month 13 | B134: 0 | C134: 0 | D134: 0 | E134: 0 | F134: 0
A135: Month 14 | B135: 0 | C135: 0 | D135: 0 | E135: 0 | F135: 0
A136: Month 15 | B136: 0 | C136: 0 | D136: 0 | E136: 0 | F136: 0
A137: Month 16 | B137: 0 | C137: 0 | D137: 0 | E137: 0 | F137: 0
A138: Month 17 | B138: 0 | C138: 0 | D138: 0 | E138: 0 | F138: 0
A139: Month 18 | B139: 0 | C139: 0 | D139: 0 | E139: 0 | F139: 0
A140: Month 19 | B140: 0 | C140: 0 | D140: 0 | E140: 0 | F140: 0
A141: Month 20 | B141: 0 | C141: 0 | D141: 0 | E141: 0 | F141: 0
A142: Month 21 | B142: 0 | C142: 0 | D142: 0 | E142: 0 | F142: 0
A143: Month 22 | B143: 0 | C143: 0 | D143: 0 | E143: 0 | F143: 0
A144: Month 23 | B144: 0 | C144: 0 | D144: 0 | E144: 0 | F144: 0
A145: Month 24 | B145: 0 | C145: 0 | D145: 0 | E145: 0 | F145: 0
A146: Total | B146: =SUM(B122:B145) -> 0 | C146: =SUM(C122:C145) -> 0 | D146: =SUM(D122:D145) -> 0 | E146: =SUM(E122:E145) -> 0 | F146: =IF(MAX($F122:$F145)<=0,"No Data",SUMIF($F122:$F145,">0")/COUNTIF($F122:$F145,">0")) -> No Data | G146: =SUM(G122:G145) -> 0 | H146: 0 | I146: 0 | J146: 0 | K146: 0 | L146: 0 | M146: 0 | N146: 0 | O146: 0 | P146: 0 | Q146: 0 | R146: =IF(MAX(R122:R145)<=0,"No Data",SUMIF(R122:R145,">0")/COUNTIF(R122:R145,">0")) -> No Data | S146: =IF(MAX(S122:S145)<=0,"No Data",SUMIF(S122:S145,">0")/COUNTIF(S122:S145,">0")) -> No Data | T146: =IF(MAX(T122:T145)<=0,"No Data",SUMIF(T122:T145,">0")/COUNTIF(T122:T145,">0")) -> No Data | U146: =IF(MAX(U122:U145)<=0,"No Data",SUMIF(U122:U145,">0")/COUNTIF(U122:U145,">0")) -> No Data | V146: =IF(MAX(V122:V145)<=0,"No Data",SUMIF(V122:V145,">0")/COUNTIF(V122:V145,">0")) -> No Data
A147: Monthly Data Feedstock 6 | B147: No Bio-oil Used | C147: Oil Purchased | D147: Oil Used (Calculated) | E147: No Bio-oil Used | F147: Moisture Content | R147: by HDDT | S147: by HDDT | T147: by Ocean Tanker | U147: by Rail | V147: by Barge
A148: Unit | B148: lbs. | C148: lbs. | D148: lbs. | E148: lbs. | F148: % | R148: miles | S148: miles | T148: miles | U148: miles | V148: miles
A149: Month 1 | B149: 0 | C149: 0 | D149: =B149+C149-E149 -> 0 | E149: 0 | F149: 0
A150: Month 2 | B150: 0 | C150: 0 | D150: =B150+C150-E150 -> 0 | E150: 0 | F150: 0
A151: Month 3 | B151: 0 | C151: 0 | D151: =B151+C151-E151 -> 0 | E151: 0 | F151: 0
A152: Month 4 | B152: 0 | C152: 0 | D152: 0 | E152: 0 | F152: 0
A153: Month 5 | B153: 0 | C153: 0 | D153: 0 | E153: 0 | F153: 0 | H153: Please Use Tier 2 for Oil Extraction CI Calculation
A154: Month 6 | B154: 0 | C154: 0 | D154: 0 | E154: 0 | F154: 0
A155: Month 7 | B155: 0 | C155: 0 | D155: 0 | E155: 0 | F155: 0
A156: Month 8 | B156: 0 | C156: 0 | D156: 0 | E156: 0 | F156: 0
A157: Month 9 | B157: 0 | C157: 0 | D157: 0 | E157: 0 | F157: 0
A158: Month 10 | B158: 0 | C158: 0 | D158: 0 | E158: 0 | F158: 0
A159: Month 11 | B159: 0 | C159: 0 | D159: 0 | E159: 0 | F159: 0
A160: Month 12 | B160: 0 | C160: 0 | D160: 0 | E160: 0 | F160: 0
A161: Month 13 | B161: 0 | C161: 0 | D161: 0 | E161: 0 | F161: 0
A162: Month 14 | B162: 0 | C162: 0 | D162: 0 | E162: 0 | F162: 0
A163: Month 15 | B163: 0 | C163: 0 | D163: 0 | E163: 0 | F163: 0
A164: Month 16 | B164: 0 | C164: 0 | D164: 0 | E164: 0 | F164: 0
A165: Month 17 | B165: 0 | C165: 0 | D165: =B165+C165-E165 -> 0 | E165: 0 | F165: 0
A166: Month 18 | B166: 0 | C166: 0 | D166: 0 | E166: 0 | F166: 0
A167: Month 19 | B167: 0 | C167: 0 | D167: 0 | E167: 0 | F167: 0
A168: Month 20 | B168: 0 | C168: 0 | D168: 0 | E168: 0 | F168: 0
A169: Month 21 | B169: 0 | C169: 0 | D169: 0 | E169: 0 | F169: 0
A170: Month 22 | B170: 0 | C170: 0 | D170: 0 | E170: 0 | F170: 0
A171: Month 23 | B171: 0 | C171: 0 | D171: =B171+C171-E171 -> 0 | E171: 0 | F171: 0
A172: Month 24 | B172: 0 | C172: 0 | D172: =B172+C172-E172 -> 0 | E172: 0 | F172: 0
A173: Total | B173: =SUM(B149:B172) -> 0 | C173: =SUM(C149:C172) -> 0 | D173: =SUM(D149:D172) -> 0 | E173: =SUM(E149:E172) -> 0 | F173: =IF(MAX($F149:$F172)<=0,"No Data",SUMIF($F149:$F172,">0")/COUNTIF($F149:$F172,">0")) -> No Data | G173: =SUM(G149:G172) -> 0 | H173: =SUM(H149:H172) -> 0 | I173: 0 | J173: 0 | K173: 0 | L173: 0 | M173: 0 | N173: 0 | O173: 0 | P173: 0 | Q173: 0 | R173: =IF(MAX(R149:R172)<=0,"No Data",SUMIF(R149:R172,">0")/COUNTIF(R149:R172,">0")) -> No Data | S173: =IF(MAX(S149:S172)<=0,"No Data",SUMIF(S149:S172,">0")/COUNTIF(S149:S172,">0")) -> No Data | T173: =IF(MAX(T149:T172)<=0,"No Data",SUMIF(T149:T172,">0")/COUNTIF(T149:T172,">0")) -> No Data | U173: =IF(MAX(U149:U172)<=0,"No Data",SUMIF(U149:U172,">0")/COUNTIF(U149:U172,">0")) -> No Data | V173: =IF(MAX(V149:V172)<=0,"No Data",SUMIF(V149:V172,">0")/COUNTIF(V149:V172,">0")) -> No Data
A174: Monthly Data Feedstock 7 | B174: No Bio-oil Used | C174: Oil Purchased | D174: Oil Used (Calculated) | E174: No Bio-oil Used | F174: Moisture Content | R174: by HDDT | S174: by HDDT | T174: by Ocean Tanker | U174: by Rail | V174: by Barge
A175: Unit | B175: lbs. | C175: lbs. | D175: lbs. | E175: lbs. | F175: % | R175: miles | S175: miles | T175: miles | U175: miles | V175: miles
A176: Month 1 | B176: 0 | C176: 0 | D176: =B176+C176-E176 -> 0 | E176: 0 | F176: 0
A177: Month 2 | B177: 0 | C177: 0 | D177: =B177+C177-E177 -> 0 | E177: 0 | F177: 0
A178: Month 3 | B178: 0 | C178: 0 | D178: 0 | E178: 0 | F178: 0
A179: Month 4 | B179: 0 | C179: 0 | D179: 0 | E179: 0 | F179: 0
A180: Month 5 | B180: 0 | C180: 0 | D180: 0 | E180: 0 | F180: 0 | H180: Please Use Tier 2 for Oil Extraction CI Calculation
A181: Month 6 | B181: 0 | C181: 0 | D181: 0 | E181: 0 | F181: 0
A182: Month 7 | B182: 0 | C182: 0 | D182: 0 | E182: 0 | F182: 0
A183: Month 8 | B183: 0 | C183: 0 | D183: 0 | E183: 0 | F183: 0
A184: Month 9 | B184: 0 | C184: 0 | D184: 0 | E184: 0 | F184: 0
A185: Month 10 | B185: 0 | C185: 0 | D185: 0 | E185: 0 | F185: 0
A186: Month 11 | B186: 0 | C186: 0 | D186: 0 | E186: 0 | F186: 0
A187: Month 12 | B187: 0 | C187: 0 | D187: 0 | E187: 0 | F187: 0
A188: Month 13 | B188: 0 | C188: 0 | D188: 0 | E188: 0 | F188: 0
A189: Month 14 | B189: 0 | C189: 0 | D189: 0 | E189: 0 | F189: 0
A190: Month 15 | B190: 0 | C190: 0 | D190: 0 | E190: 0 | F190: 0
A191: Month 16 | B191: 0 | C191: 0 | D191: 0 | E191: 0 | F191: 0
A192: Month 17 | B192: 0 | C192: 0 | D192: 0 | E192: 0 | F192: 0
A193: Month 18 | B193: 0 | C193: 0 | D193: 0 | E193: 0 | F193: 0
A194: Month 19 | B194: 0 | C194: 0 | D194: 0 | E194: 0 | F194: 0
A195: Month 20 | B195: 0 | C195: 0 | D195: 0 | E195: 0 | F195: 0
A196: Month 21 | B196: 0 | C196: 0 | D196: 0 | E196: 0 | F196: 0
A197: Month 22 | B197: 0 | C197: 0 | D197: 0 | E197: 0 | F197: 0
A198: Month 23 | B198: 0 | C198: 0 | D198: 0 | E198: 0 | F198: 0
A199: Month 24 | B199: 0 | C199: 0 | D199: 0 | E199: 0 | F199: 0
A200: Total | B200: =SUM(B176:B199) -> 0 | C200: =SUM(C176:C199) -> 0 | D200: =SUM(D176:D199) -> 0 | E200: =SUM(E176:E199) -> 0 | F200: =IF(MAX($F176:$F199)<=0,"No Data",SUMIF($F176:$F199,">0")/COUNTIF($F176:$F199,">0")) -> No Data | G200: =SUM(G176:G199) -> 0 | H200: 0 | I200: 0 | J200: 0 | K200: 0 | L200: 0 | M200: 0 | N200: 0 | O200: 0 | P200: 0 | Q200: 0 | R200: =IF(MAX(R176:R199)<=0,"No Data",SUMIF(R176:R199,">0")/COUNTIF(R176:R199,">0")) -> No Data | S200: =IF(MAX(S176:S199)<=0,"No Data",SUMIF(S176:S199,">0")/COUNTIF(S176:S199,">0")) -> No Data | T200: =IF(MAX(T176:T199)<=0,"No Data",SUMIF(T176:T199,">0")/COUNTIF(T176:T199,">0")) -> No Data | U200: =IF(MAX(U176:U199)<=0,"No Data",SUMIF(U176:U199,">0")/COUNTIF(U176:U199,">0")) -> No Data | V200: =IF(MAX(V176:V199)<=0,"No Data",SUMIF(V176:V199,">0")/COUNTIF(V176:V199,">0")) -> No Data
... 157 more rows

Sheet BD-Rendering (hidden)
A1: Oil Producer Operational Data Summary | D1: Applicant: | E1: ='BD RD Feedstock'!E1:F1 -> ABC Energy | F1: Rendering Plant Location: | G1: Sac, CA | H1: Feedstock Location: | I1: Sac, CA | J1: Feedstocks: | K1: UCO | L1: Biofuel Plant Location: | M1: Sac,CA
A2: Monthly Data | B2: Beginning Raw UCO Inventory | C2: Purchased | D2: Ending Raw UCO Inventory | E2: NG Use from Utility Invoices | F2: Biomass Use from Invoices | G2: Biomass Transport Distance | H2: Biogas Use from Invoices | I2: Biogas Parameters | J2: Other Thermal Energy Use (Specify) | K2: Other Thermal Energy Use (Specify) | L2: Electricity from Utility Invoices | M2: Electricity from Other Sources (Specify) | N2: Electricity from Other Sources (Specify) | O2: Beginning Raw Tallow Inventory | P2: Purchased | Q2: Ending Raw Tallow Inventory | R2: NG Use from Utility Invoices | S2: Biomass Use from Invoices | T2: Biomass Transport Distance | U2: Biogas Use from Invoices | V2: Biogas Parameters | W2: Other Thermal Energy Use (Specify) | X2: Other Thermal Energy Use (Specify) | Y2: Electricity from Utility Invoices | Z2: Electricity from Other Sources (Specify) | AA2: Electricity from Other Sources (Specify) | AB2: Beginning Other Raw Inventory (Specify) | AC2: Purchased | AD2: Ending Other Raw Inventory (Specify) | AE2: NG Use from Utility Invoices | AF2: Biomass Use from Invoices | AG2: Biomass Transport Distance | AH2: Biogas Use from Invoices | AI2: Biogas Parameters | AJ2: Other Thermal Energy Use (Specify) | AK2: Other Thermal Energy Use (Specify) | AL2: Electricity from Utility Invoices | AM2: Electricity from Other Sources (Specify) | AN2: Electricity from Other Sources (Specify) | AO2: Beginning Other Raw Inventory (Specify) | AP2: Purchased | AQ2: Ending Other Raw Inventory (Specify) | AR2: NG Use from Utility Invoices | AS2: Biomass Use from Invoices | AT2: Biomass Transport Distance | AU2: Biogas Use from Invoices | AV2: Biogas Parameters | AW2: Other Thermal Energy Use | AX2: Other Thermal Energy Use (Specify) | AY2: Electricity from Utility Invoices | AZ2: Electricity from Other Sources | BA2: Electricity from Other Sources (Specify) | BB2: Beginning Other Raw Inventory (Specify) | BC2: Purchased | BD2: Ending Other Raw Inventory (Specify) | BE2: NG Use from Utility Invoices | BF2: Biomass Use from Invoices | BG2: Biomass Transport Distance | BH2: Biogas Use from Invoices | BI2: Biogas Parameters | BJ2: Other Thermal Energy Use | BK2: Other Thermal Energy Use (Specify) | BL2: Electricity from Utility Invoices | BM2: Electricity from Other Sources | BN2: Electricity from Other Sources (Specify) | BO2: Beginning Other Raw Inventory (Specify) | BP2: Purchased | BQ2: Ending Other Raw Inventory (Specify) | BR2: NG Use from Utility Invoices | BS2: Biomass Use from Invoices | BT2: Biomass Transport Distance | BU2: Biogas Use from Invoices | BV2: Biogas Parameters | BW2: Other Thermal Energy Use | BX2: Other Thermal Energy Use (Specify) | BY2: Electricity from Utility Invoices | BZ2: Electricity from Other Sources | CA2: Electricity from Other Sources (Specify) | CB2: Beginning Other Raw Inventory (Specify) | CC2: Purchased | CD2: Ending Other Raw Inventory (Specify) | CE2: NG Use from Utility Invoices | CF2: Biomass Use from Invoices | CG2: Biomass Transport Distance | CH2: Biogas Use from Invoices | CI2: Biogas Parameters | CJ2: Other Thermal Energy Use | CK2: Other Thermal Energy Use (Specify) | CL2: Electricity from Utility Invoices | CM2: Electricity from Other Sources | CN2: Electricity from Other Sources (Specify) | CO2: Beginning Other Raw Inventory (Specify) | CP2: Purchased | CQ2: Ending Other Raw Inventory (Specify) | CR2: NG Use from Utility Invoices | CS2: Biomass Use from Invoices | CT2: Biomass Transport Distance | CU2: Biogas Use from Invoices | CV2: Biogas Parameters | CW2: Other Thermal Energy Use | CX2: Other Thermal Energy Use (Specify) | CY2: Electricity from Utility Invoices | CZ2: Electricity from Other Sources | DA2: Electricity from Other Sources (Specify)
A3: Unit | B3: LBS | C3: LBS | D3: LBS | E3: MMBTU, HHV | F3: Dry Tons | G3: Miles | H3: MMBTU, HHV | I3: Miles | J3: MMBTU, HHV | K3: MMBTU, HHV | L3: kWh | M3: kWh | N3: kWh | O3: LBS | P3: LBS | Q3: LBS | R3: MMBTU, HHV | S3: Dry Tons | T3: Miles | U3: MMBTU, HHV | V3: Miles | W3: MMBTU, HHV | X3: MMBTU, HHV | Y3: kWh | Z3: kWh | AA3: kWh | AB3: LBS | AC3: LBS | AD3: LBS | AE3: MMBTU, HHV | AF3: Dry Tons | AG3: Miles | AH3: MMBTU, HHV | AI3: Miles | AJ3: MMBTU, HHV | AK3: MMBTU, HHV | AL3: kWh | AM3: kWh | AN3: kWh | AO3: LBS | AP3: LBS | AQ3: LBS | AR3: MMBTU, HHV | AS3: Dry Tons | AT3: Miles | AU3: MMBTU, HHV | AV3: Miles | AW3: MMBTU, HHV | AX3: MMBTU, HHV | AY3: kWh | AZ3: kWh | BA3: kWh | BB3: LBS | BC3: LBS | BD3: LBS | BE3: MMBTU, HHV | BF3: Dry Tons | BG3: Miles | BH3: MMBTU, HHV | BI3: Miles | BJ3: MMBTU, HHV | BK3: MMBTU, HHV | BL3: kWh | BM3: kWh | BN3: kWh | BO3: LBS | BP3: LBS | BQ3: LBS | BR3: MMBTU, HHV | BS3: Dry Tons | BT3: Miles | BU3: MMBTU, HHV | BV3: Miles | BW3: MMBTU, HHV | BX3: MMBTU, HHV | BY3: kWh | BZ3: kWh | CA3: kWh | CB3: LBS | CC3: LBS | CD3: LBS | CE3: MMBTU, HHV | CF3: Dry Tons | CG3: Miles | CH3: MMBTU, HHV | CI3: Miles | CJ3: MMBTU, HHV | CK3: MMBTU, HHV | CL3: kWh | CM3: kWh | CN3: kWh | CO3: LBS | CP3: LBS | CQ3: LBS | CR3: MMBTU, HHV | CS3: Dry Tons | CT3: Miles | CU3: MMBTU, HHV | CV3: Miles | CW3: MMBTU, HHV | CX3: MMBTU, HHV | CY3: kWh | CZ3: kWh | DA3: kWh
A4: Month 1 | B4: 100000 | D4: 50000 | E4: 100000 | G4: By HDT Truck | I4: Pipeline | N4: 0.1 | O4: 100000 | Q4: 50000 | R4: 100000 | T4: By HDT Truck | V4: Pipeline | AA4: 0.1 | AB4: 100000 | AD4: 50000 | AE4: 100000 | AG4: By HDT Truck | AI4: Pipeline | AN4: 0.1 | AO4: 100000 | AQ4: 50000 | AR4: 100000 | AT4: By HDT Truck | AV4: Pipeline | BA4: 0.1 | BB4: 100000 | BD4: 50000 | BE4: 100000 | BG4: By HDT Truck | BI4: Pipeline | BN4: 0.1 | BO4: 100000 | BQ4: 50000 | BR4: 100000 | BT4: By HDT Truck | BV4: Pipeline | CA4: 0.1 | CB4: 100000 | CD4: 50000 | CE4: 100000 | CG4: By HDT Truck | CI4: Pipeline | CN4: 0.1 | CO4: 100000 | CQ4: 50000 | CR4: 100000 | CT4: By HDT Truck | CV4: Pipeline | DA4: 0.1
A5: Month 2 | B5: 100000 | D5: 200000 | E5: 200000 | G5: 80 | I5: 80 | N5: 0.05 | O5: 100000 | Q5: 200000 | R5: 200000 | T5: 80 | V5: 80 | AA5: 0.05 | AB5: 100000 | AD5: 200000 | AE5: 200000 | AG5: 80 | AI5: 80 | AN5: 0.05 | AO5: 100000 | AQ5: 200000 | AR5: 200000 | AT5: 80 | AV5: 80 | BA5: 0.05 | BB5: 100000 | BD5: 200000 | BE5: 200000 | BG5: 80 | BI5: 80 | BN5: 0.05 | BO5: 100000 | BQ5: 200000 | BR5: 200000 | BT5: 80 | BV5: 80 | CA5: 0.05 | CB5: 100000 | CD5: 200000 | CE5: 200000 | CG5: 80 | CI5: 80 | CN5: 0.05 | CO5: 100000 | CQ5: 200000 | CR5: 200000 | CT5: 80 | CV5: 80 | DA5: 0.05
A6: Month 3 | B6: 100000 | D6: 200000 | E6: 200000 | G6: By Rail | N6: 0.08 | O6: 100000 | Q6: 200000 | R6: 200000 | T6: By Rail | AA6: 0.08 | AB6: 100000 | AD6: 200000 | AE6: 200000 | AG6: By Rail | AN6: 0.08 | AO6: 100000 | AQ6: 200000 | AR6: 200000 | AT6: By Rail | BA6: 0.08 | BB6: 100000 | BD6: 200000 | BE6: 200000 | BG6: By Rail | BN6: 0.08 | BO6: 100000 | BQ6: 200000 | BR6: 200000 | BT6: By Rail | CA6: 0.08 | CB6: 100000 | CD6: 200000 | CE6: 200000 | CG6: By Rail | CN6: 0.08 | CO6: 100000 | CQ6: 200000 | CR6: 200000 | CT6: By Rail | DA6: 0.08
A7: Month 4 | B7: 100000 | D7: 200000 | E7: 200000 | G7: 2000 | N7: 0.06 | O7: 100000 | Q7: 200000 | R7: 200000 | T7: 2000 | AA7: 0.06 | AB7: 100000 | AD7: 200000 | AE7: 200000 | AG7: 2000 | AN7: 0.06 | AO7: 100000 | AQ7: 200000 | AR7: 200000 | AT7: 2000 | BA7: 0.06 | BB7: 100000 | BD7: 200000 | BE7: 200000 | BG7: 2000 | BN7: 0.06 | BO7: 100000 | BQ7: 200000 | BR7: 200000 | BT7: 2000 | CA7: 0.06 | CB7: 100000 | CD7: 200000 | CE7: 200000 | CG7: 2000 | CN7: 0.06 | CO7: 100000 | CQ7: 200000 | CR7: 200000 | CT7: 2000 | DA7: 0.06
A8: Month 5 | B8: 100000 | D8: 200000 | E8: 200000 | N8: 0.04 | O8: 100000 | Q8: 200000 | R8: 200000 | AA8: 0.04 | AB8: 100000 | AD8: 200000 | AE8: 200000 | AN8: 0.04 | AO8: 100000 | AQ8: 200000 | AR8: 200000 | BA8: 0.04 | BB8: 100000 | BD8: 200000 | BE8: 200000 | BN8: 0.04 | BO8: 100000 | BQ8: 200000 | BR8: 200000 | CA8: 0.04 | CB8: 100000 | CD8: 200000 | CE8: 200000 | CN8: 0.04 | CO8: 100000 | CQ8: 200000 | CR8: 200000 | DA8: 0.04
A9: Month 6 | B9: 100000 | D9: 200000 | E9: 200000 | N9: 0.08 | O9: 100000 | Q9: 200000 | R9: 200000 | AA9: 0.08 | AB9: 100000 | AD9: 200000 | AE9: 200000 | AN9: 0.08 | AO9: 100000 | AQ9: 200000 | AR9: 200000 | BA9: 0.08 | BB9: 100000 | BD9: 200000 | BE9: 200000 | BN9: 0.08 | BO9: 100000 | BQ9: 200000 | BR9: 200000 | CA9: 0.08 | CB9: 100000 | CD9: 200000 | CE9: 200000 | CN9: 0.08 | CO9: 100000 | CQ9: 200000 | CR9: 200000 | DA9: 0.08
A10: Month 7 | B10: 100000 | D10: 200000 | E10: 200000 | N10: 0.1 | O10: 100000 | Q10: 200000 | R10: 200000 | AA10: 0.1 | AB10: 100000 | AD10: 200000 | AE10: 200000 | AN10: 0.1 | AO10: 100000 | AQ10: 200000 | AR10: 200000 | BA10: 0.1 | BB10: 100000 | BD10: 200000 | BE10: 200000 | BN10: 0.1 | BO10: 100000 | BQ10: 200000 | BR10: 200000 | CA10: 0.1 | CB10: 100000 | CD10: 200000 | CE10: 200000 | CN10: 0.1 | CO10: 100000 | CQ10: 200000 | CR10: 200000 | DA10: 0.1
A11: Month 8 | B11: 100000 | D11: 200000 | E11: 200000 | N11: 0.09 | O11: 100000 | Q11: 200000 | R11: 200000 | AA11: 0.09 | AB11: 100000 | AD11: 200000 | AE11: 200000 | AN11: 0.09 | AO11: 100000 | AQ11: 200000 | AR11: 200000 | BA11: 0.09 | BB11: 100000 | BD11: 200000 | BE11: 200000 | BN11: 0.09 | BO11: 100000 | BQ11: 200000 | BR11: 200000 | CA11: 0.09 | CB11: 100000 | CD11: 200000 | CE11: 200000 | CN11: 0.09 | CO11: 100000 | CQ11: 200000 | CR11: 200000 | DA11: 0.09
A12: Month 9 | B12: 100000 | D12: 200000 | E12: 200000 | N12: 0.07 | O12: 100000 | Q12: 200000 | R12: 200000 | AA12: 0.07 | AB12: 100000 | AD12: 200000 | AE12: 200000 | AN12: 0.07 | AO12: 100000 | AQ12: 200000 | AR12: 200000 | BA12: 0.07 | BB12: 100000 | BD12: 200000 | BE12: 200000 | BN12: 0.07 | BO12: 100000 | BQ12: 200000 | BR12: 200000 | CA12: 0.07 | CB12: 100000 | CD12: 200000 | CE12: 200000 | CN12: 0.07 | CO12: 100000 | CQ12: 200000 | CR12: 200000 | DA12: 0.07
A13: Month 10 | B13: 100000 | D13: 200000 | E13: 200000 | N13: 0.06 | O13: 100000 | Q13: 200000 | R13: 200000 | AA13: 0.06 | AB13: 100000 | AD13: 200000 | AE13: 200000 | AN13: 0.06 | AO13: 100000 | AQ13: 200000 | AR13: 200000 | BA13: 0.06 | BB13: 100000 | BD13: 200000 | BE13: 200000 | BN13: 0.06 | BO13: 100000 | BQ13: 200000 | BR13: 200000 | CA13: 0.06 | CB13: 100000 | CD13: 200000 | CE13: 200000 | CN13: 0.06 | CO13: 100000 | CQ13: 200000 | CR13: 200000 | DA13: 0.06
A14: Month 11 | B14: 100000 | D14: 200000 | E14: 200000 | N14: 0.08 | O14: 100000 | Q14: 200000 | R14: 200000 | AA14: 0.08 | AB14: 100000 | AD14: 200000 | AE14: 200000 | AN14: 0.08 | AO14: 100000 | AQ14: 200000 | AR14: 200000 | BA14: 0.08 | BB14: 100000 | BD14: 200000 | BE14: 200000 | BN14: 0.08 | BO14: 100000 | BQ14: 200000 | BR14: 200000 | CA14: 0.08 | CB14: 100000 | CD14: 200000 | CE14: 200000 | CN14: 0.08 | CO14: 100000 | CQ14: 200000 | CR14: 200000 | DA14: 0.08
A15: Month 12 | B15: 100000 | D15: 200000 | E15: 200000 | N15: 0.1 | O15: 100000 | Q15: 200000 | R15: 200000 | AA15: 0.1 | AB15: 100000 | AD15: 200000 | AE15: 200000 | AN15: 0.1 | AO15: 100000 | AQ15: 200000 | AR15: 200000 | BA15: 0.1 | BB15: 100000 | BD15: 200000 | BE15: 200000 | BN15: 0.1 | BO15: 100000 | BQ15: 200000 | BR15: 200000 | CA15: 0.1 | CB15: 100000 | CD15: 200000 | CE15: 200000 | CN15: 0.1 | CO15: 100000 | CQ15: 200000 | CR15: 200000 | DA15: 0.1
A16: Month 13 | B16: 100000 | D16: 200000 | E16: 200000 | N16: 0.05 | O16: 100000 | Q16: 200000 | R16: 200000 | AA16: 0.05 | AB16: 100000 | AD16: 200000 | AE16: 200000 | AN16: 0.05 | AO16: 100000 | AQ16: 200000 | AR16: 200000 | BA16: 0.05 | BB16: 100000 | BD16: 200000 | BE16: 200000 | BN16: 0.05 | BO16: 100000 | BQ16: 200000 | BR16: 200000 | CA16: 0.05 | CB16: 100000 | CD16: 200000 | CE16: 200000 | CN16: 0.05 | CO16: 100000 | CQ16: 200000 | CR16: 200000 | DA16: 0.05
A17: Month 14 | B17: 100000 | D17: 200000 | E17: 200000 | N17: 0.04 | O17: 100000 | Q17: 200000 | R17: 200000 | AA17: 0.04 | AB17: 100000 | AD17: 200000 | AE17: 200000 | AN17: 0.04 | AO17: 100000 | AQ17: 200000 | AR17: 200000 | BA17: 0.04 | BB17: 100000 | BD17: 200000 | BE17: 200000 | BN17: 0.04 | BO17: 100000 | BQ17: 200000 | BR17: 200000 | CA17: 0.04 | CB17: 100000 | CD17: 200000 | CE17: 200000 | CN17: 0.04 | CO17: 100000 | CQ17: 200000 | CR17: 200000 | DA17: 0.04
A18: Month 15 | B18: 100000 | D18: 200000 | E18: 200000 | N18: 0.05 | O18: 100000 | Q18: 200000 | R18: 200000 | AA18: 0.05 | AB18: 100000 | AD18: 200000 | AE18: 200000 | AN18: 0.05 | AO18: 100000 | AQ18: 200000 | AR18: 200000 | BA18: 0.05 | BB18: 100000 | BD18: 200000 | BE18: 200000 | BN18: 0.05 | BO18: 100000 | BQ18: 200000 | BR18: 200000 | CA18: 0.05 | CB18: 100000 | CD18: 200000 | CE18: 200000 | CN18: 0.05 | CO18: 100000 | CQ18: 200000 | CR18: 200000 | DA18: 0.05
A19: Month 16 | B19: 100000 | D19: 200000 | E19: 200000 | N19: 0.03 | O19: 100000 | Q19: 200000 | R19: 200000 | AA19: 0.03 | AB19: 100000 | AD19: 200000 | AE19: 200000 | AN19: 0.03 | AO19: 100000 | AQ19: 200000 | AR19: 200000 | BA19: 0.03 | BB19: 100000 | BD19: 200000 | BE19: 200000 | BN19: 0.03 | BO19: 100000 | BQ19: 200000 | BR19: 200000 | CA19: 0.03 | CB19: 100000 | CD19: 200000 | CE19: 200000 | CN19: 0.03 | CO19: 100000 | CQ19: 200000 | CR19: 200000 | DA19: 0.03
A20: Month 17 | B20: 100000 | D20: 200000 | E20: 200000 | N20: 0.01 | O20: 100000 | Q20: 200000 | R20: 200000 | AA20: 0.01 | AB20: 100000 | AD20: 200000 | AE20: 200000 | AN20: 0.01 | AO20: 100000 | AQ20: 200000 | AR20: 200000 | BA20: 0.01 | BB20: 100000 | BD20: 200000 | BE20: 200000 | BN20: 0.01 | BO20: 100000 | BQ20: 200000 | BR20: 200000 | CA20: 0.01 | CB20: 100000 | CD20: 200000 | CE20: 200000 | CN20: 0.01 | CO20: 100000 | CQ20: 200000 | CR20: 200000 | DA20: 0.01
A21: Month 18 | B21: 100000 | D21: 200000 | E21: 200000 | N21: 0.05 | O21: 100000 | Q21: 200000 | R21: 200000 | AA21: 0.05 | AB21: 100000 | AD21: 200000 | AE21: 200000 | AN21: 0.05 | AO21: 100000 | AQ21: 200000 | AR21: 200000 | BA21: 0.05 | BB21: 100000 | BD21: 200000 | BE21: 200000 | BN21: 0.05 | BO21: 100000 | BQ21: 200000 | BR21: 200000 | CA21: 0.05 | CB21: 100000 | CD21: 200000 | CE21: 200000 | CN21: 0.05 | CO21: 100000 | CQ21: 200000 | CR21: 200000 | DA21: 0.05
A22: Month 19 | B22: 100000 | D22: 200000 | E22: 200000 | N22: 0.08 | O22: 100000 | Q22: 200000 | R22: 200000 | AA22: 0.08 | AB22: 100000 | AD22: 200000 | AE22: 200000 | AN22: 0.08 | AO22: 100000 | AQ22: 200000 | AR22: 200000 | BA22: 0.08 | BB22: 100000 | BD22: 200000 | BE22: 200000 | BN22: 0.08 | BO22: 100000 | BQ22: 200000 | BR22: 200000 | CA22: 0.08 | CB22: 100000 | CD22: 200000 | CE22: 200000 | CN22: 0.08 | CO22: 100000 | CQ22: 200000 | CR22: 200000 | DA22: 0.08
A23: Month 20 | B23: 100000 | D23: 200000 | E23: 200000 | N23: 0.09 | O23: 100000 | Q23: 200000 | R23: 200000 | AA23: 0.09 | AB23: 100000 | AD23: 200000 | AE23: 200000 | AN23: 0.09 | AO23: 100000 | AQ23: 200000 | AR23: 200000 | BA23: 0.09 | BB23: 100000 | BD23: 200000 | BE23: 200000 | BN23: 0.09 | BO23: 100000 | BQ23: 200000 | BR23: 200000 | CA23: 0.09 | CB23: 100000 | CD23: 200000 | CE23: 200000 | CN23: 0.09 | CO23: 100000 | CQ23: 200000 | CR23: 200000 | DA23: 0.09
A24: Month 21 | B24: 100000 | D24: 200000 | E24: 200000 | N24: 0.04 | O24: 100000 | Q24: 200000 | R24: 200000 | AA24: 0.04 | AB24: 100000 | AD24: 200000 | AE24: 200000 | AN24: 0.04 | AO24: 100000 | AQ24: 200000 | AR24: 200000 | BA24: 0.04 | BB24: 100000 | BD24: 200000 | BE24: 200000 | BN24: 0.04 | BO24: 100000 | BQ24: 200000 | BR24: 200000 | CA24: 0.04 | CB24: 100000 | CD24: 200000 | CE24: 200000 | CN24: 0.04 | CO24: 100000 | CQ24: 200000 | CR24: 200000 | DA24: 0.04
A25: Month 22 | B25: 100000 | D25: 200000 | E25: 200000 | N25: 0.03 | O25: 100000 | Q25: 200000 | R25: 200000 | AA25: 0.03 | AB25: 100000 | AD25: 200000 | AE25: 200000 | AN25: 0.03 | AO25: 100000 | AQ25: 200000 | AR25: 200000 | BA25: 0.03 | BB25: 100000 | BD25: 200000 | BE25: 200000 | BN25: 0.03 | BO25: 100000 | BQ25: 200000 | BR25: 200000 | CA25: 0.03 | CB25: 100000 | CD25: 200000 | CE25: 200000 | CN25: 0.03 | CO25: 100000 | CQ25: 200000 | CR25: 200000 | DA25: 0.03
A26: Month 23 | B26: 100000 | D26: 200000 | E26: 200000 | N26: 0.02 | O26: 100000 | Q26: 200000 | R26: 200000 | AA26: 0.02 | AB26: 100000 | AD26: 200000 | AE26: 200000 | AN26: 0.02 | AO26: 100000 | AQ26: 200000 | AR26: 200000 | BA26: 0.02 | BB26: 100000 | BD26: 200000 | BE26: 200000 | BN26: 0.02 | BO26: 100000 | BQ26: 200000 | BR26: 200000 | CA26: 0.02 | CB26: 100000 | CD26: 200000 | CE26: 200000 | CN26: 0.02 | CO26: 100000 | CQ26: 200000 | CR26: 200000 | DA26: 0.02
A27: Month 24 | B27: 100000 | D27: 200000 | E27: 200000 | N27: 0.02 | O27: 100000 | Q27: 200000 | R27: 200000 | AA27: 0.02 | AB27: 100000 | AD27: 200000 | AE27: 200000 | AN27: 0.02 | AO27: 100000 | AQ27: 200000 | AR27: 200000 | BA27: 0.02 | BB27: 100000 | BD27: 200000 | BE27: 200000 | BN27: 0.02 | BO27: 100000 | BQ27: 200000 | BR27: 200000 | CA27: 0.02 | CB27: 100000 | CD27: 200000 | CE27: 200000 | CN27: 0.02 | CO27: 100000 | CQ27: 200000 | CR27: 200000 | DA27: 0.02
A28: Total | B28: 2400000 | C28: 0 | D28: 4650000 | E28: 4700000 | F28: 0 | H28: 0 | J28: 0 | K28: 0 | L28: 0 | M28: 0 | N28: 1.42 | O28: 2400000 | P28: 0 | Q28: 4650000 | R28: 4700000 | S28: 0 | U28: 0 | W28: 0 | X28: 0 | Y28: 0 | Z28: 0 | AA28: 1.42 | AB28: 2400000 | AC28: 0 | AD28: 4650000 | AE28: 4700000 | AF28: 0 | AH28: 0 | AJ28: 0 | AK28: 0 | AL28: 0 | AM28: 0 | AN28: 1.42 | AO28: 2400000 | AP28: 0 | AQ28: 4650000 | AR28: 4700000 | AS28: 0 | AU28: 0 | AW28: 0 | AX28: 0 | AY28: 0 | AZ28: 0 | BA28: 1.42 | BB28: 2400000 | BC28: 0 | BD28: 4650000 | BE28: 4700000 | BF28: 0 | BH28: 0 | BJ28: 0 | BK28: 0 | BL28: 0 | BM28: 0 | BN28: 1.42 | BO28: 2400000 | BP28: 0 | BQ28: 4650000 | BR28: 4700000 | BS28: 0 | BU28: 0 | BW28: 0 | BX28: 0 | BY28: 0 | BZ28: 0 | CA28: 1.42 | CB28: 2400000 | CC28: 0 | CD28: 4650000 | CE28: 4700000 | CF28: 0 | CH28: 0 | CJ28: 0 | CK28: 0 | CL28: 0 | CM28: 0 | CN28: 1.42 | CO28: 2400000 | CP28: 0 | CQ28: 4650000 | CR28: 4700000 | CS28: 0 | CU28: 0 | CW28: 0 | CX28: 0 | CY28: 0 | CZ28: 0 | DA28: 1.42

Sheet BD-Production (hidden)
A1: Fuel Production Data Summary | D1: Applicant: | E1: ='BD RD Feedstock'!E1:F1 -> ABC Energy | G1: Biofuel Location: | I1: ='BD RD Feedstock'!I1:J1 -> City, State
A2: Biodiesel CI, g/MJ | C2: =IF('BD RD Feedstock'!C3="Other",'BD RD Feedstock'!C5,'BD RD Feedstock'!C3) -> Tallow | D2: =IF(D3=0,"N/A",D238) -> 31.05564907 | E2: =IF('BD RD Feedstock'!D3="Other",'BD RD Feedstock'!D5,'BD RD Feedstock'!D3) -> Tallow | F2: =IF(F3=0,"N/A",D239) -> N/A | G2: =IF('BD RD Feedstock'!E3="Other",'BD RD Feedstock'!E5,'BD RD Feedstock'!E3) -> Corn Oil | H2: =IF(H3=0,"N/A",H240) -> N/A | I2: =IF('BD RD Feedstock'!F3="Other",'BD RD Feedstock'!F5,'BD RD Feedstock'!F3) -> Palm Oil | J2: =IF(J3=0,"N/A",D241) -> N/A | K2: =IF('BD RD Feedstock'!G3="Other",'BD RD Feedstock'!G5,'BD RD Feedstock'!G3) -> None | L2: =IF(L3=0,"N/A",D242) -> N/A | M2: =IF('BD RD Feedstock'!H3="Other",'BD RD Feedstock'!H5,'BD RD Feedstock'!H3) -> None | N2: =IF(N3=0,"N/A",D243) -> N/A | O2: =IF('BD RD Feedstock'!I3="Other",'BD RD Feedstock'!I5,'BD RD Feedstock'!I3) -> None | P2: =IF(P3=0,"N/A",D244) -> N/A | Q2: =IF('BD RD Feedstock'!J3="Other",'BD RD Feedstock'!J5,'BD RD Feedstock'!J3) -> None | R2: =IF(R3=0,"N/A",D245) -> N/A | S2: =IF('BD RD Feedstock'!K3="Other",'BD RD Feedstock'!K5,'BD RD Feedstock'!K3) -> None | T2: =IF(T3=0,"N/A",D246) -> N/A | U2: =IF('BD RD Feedstock'!L3="Other",'BD RD Feedstock'!L5,'BD RD Feedstock'!L3) -> None | V2: =IF(V3=0,"N/A",D247) -> N/A | W2: =IF('BD RD Feedstock'!M3="Other",'BD RD Feedstock'!M5,'BD RD Feedstock'!M3) -> None | X2: =IF(X3=0,"N/A",D248) -> N/A | Y2: =IF('BD RD Feedstock'!N3="Other",'BD RD Feedstock'!N5,'BD RD Feedstock'!N3) -> None | Z2: =IF(Z3=0,"N/A",D249) -> N/A | AA2: Total BD, gallons
A3: BD Allocation, gallons | D3: =C35*'BD RD Feedstock'!D38/('BD RD Feedstock'!$D$38+'BD RD Feedstock'!$D$65+'BD RD Feedstock'!$D$92+'BD RD Feedstock'!$D$119+'BD RD Feedstock'!$D$146+'BD RD Feedstock'!$D$173+'BD RD Feedstock'!$D$200+'BD RD Feedstock'!$D$227+'BD RD Feedstock'!$D$254+'BD RD Feedstock'!$D$281+'BD RD Feedstock'!$D$308+'BD RD Feedstock'!$D$335)/References!$C$136 -> 2497389.707 | F3: =C35*'BD RD Feedstock'!D65/('BD RD Feedstock'!$D$38+'BD RD Feedstock'!$D$65+'BD RD Feedstock'!$D$92+'BD RD Feedstock'!$D$119+'BD RD Feedstock'!$D$146+'BD RD Feedstock'!$D$173+'BD RD Feedstock'!$D$200+'BD RD Feedstock'!$D$227+'BD RD Feedstock'!$D$254+'BD RD Feedstock'!$D$281+'BD RD Feedstock'!$D$308+'BD RD Feedstock'!$D$335)/References!$C$136 -> 0 | H3: =C35*'BD RD Feedstock'!D92/('BD RD Feedstock'!$D$38+'BD RD Feedstock'!$D$65+'BD RD Feedstock'!$D$92+'BD RD Feedstock'!$D$119+'BD RD Feedstock'!$D$146+'BD RD Feedstock'!$D$173+'BD RD Feedstock'!$D$200+'BD RD Feedstock'!$D$227+'BD RD Feedstock'!$D$254+'BD RD Feedstock'!$D$281+'BD RD Feedstock'!$D$308+'BD RD Feedstock'!$D$335)/References!$C$136 -> 0 | J3: =C35*'BD RD Feedstock'!D119/('BD RD Feedstock'!$D$38+'BD RD Feedstock'!$D$65+'BD RD Feedstock'!$D$92+'BD RD Feedstock'!$D$119+'BD RD Feedstock'!$D$146+'BD RD Feedstock'!$D$173+'BD RD Feedstock'!$D$200+'BD RD Feedstock'!$D$227+'BD RD Feedstock'!$D$254+'BD RD Feedstock'!$D$281+'BD RD Feedstock'!$D$308+'BD RD Feedstock'!$D$335)/References!$C$136 -> 0 | L3: =C35*'BD RD Feedstock'!D146/('BD RD Feedstock'!$D$38+'BD RD Feedstock'!$D$65+'BD RD Feedstock'!$D$92+'BD RD Feedstock'!$D$119+'BD RD Feedstock'!$D$146+'BD RD Feedstock'!$D$173+'BD RD Feedstock'!$D$200+'BD RD Feedstock'!$D$227+'BD RD Feedstock'!$D$254+'BD RD Feedstock'!$D$281+'BD RD Feedstock'!$D$308+'BD RD Feedstock'!$D$335)/References!$C$136 -> 0 | N3: =C35*'BD RD Feedstock'!D173/('BD RD Feedstock'!$D$38+'BD RD Feedstock'!$D$65+'BD RD Feedstock'!$D$92+'BD RD Feedstock'!$D$119+'BD RD Feedstock'!$D$146+'BD RD Feedstock'!$D$173+'BD RD Feedstock'!$D$200+'BD RD Feedstock'!$D$227+'BD RD Feedstock'!$D$254+'BD RD Feedstock'!$D$281+'BD RD Feedstock'!$D$308+'BD RD Feedstock'!$D$335)/References!$C$136 -> 0 | P3: =C35*'BD RD Feedstock'!D200/('BD RD Feedstock'!$D$38+'BD RD Feedstock'!$D$65+'BD RD Feedstock'!$D$92+'BD RD Feedstock'!$D$119+'BD RD Feedstock'!$D$146+'BD RD Feedstock'!$D$173+'BD RD Feedstock'!$D$200+'BD RD Feedstock'!$D$227+'BD RD Feedstock'!$D$254+'BD RD Feedstock'!$D$281+'BD RD Feedstock'!$D$308+'BD RD Feedstock'!$D$335)/References!$C$136 -> 0 | R3: =C35*'BD RD Feedstock'!D227/('BD RD Feedstock'!$D$38+'BD RD Feedstock'!$D$65+'BD RD Feedstock'!$D$92+'BD RD Feedstock'!$D$119+'BD RD Feedstock'!$D$146+'BD RD Feedstock'!$D$173+'BD RD Feedstock'!$D$200+'BD RD Feedstock'!$D$227+'BD RD Feedstock'!$D$254+'BD RD Feedstock'!$D$281+'BD RD Feedstock'!$D$308+'BD RD Feedstock'!$D$335)/References!$C$136 -> 0 | T3: =C35*'BD RD Feedstock'!D254/('BD RD Feedstock'!$D$38+'BD RD Feedstock'!$D$65+'BD RD Feedstock'!$D$92+'BD RD Feedstock'!$D$119+'BD RD Feedstock'!$D$146+'BD RD Feedstock'!$D$173+'BD RD Feedstock'!$D$200+'BD RD Feedstock'!$D$227+'BD RD Feedstock'!$D$254+'BD RD Feedstock'!$D$281+'BD RD Feedstock'!$D$308+'BD RD Feedstock'!$D$335)/References!$C$136 -> 0 | V3: =C35*'BD RD Feedstock'!D281/('BD RD Feedstock'!$D$38+'BD RD Feedstock'!$D$65+'BD RD Feedstock'!$D$92+'BD RD Feedstock'!$D$119+'BD RD Feedstock'!$D$146+'BD RD Feedstock'!$D$173+'BD RD Feedstock'!$D$200+'BD RD Feedstock'!$D$227+'BD RD Feedstock'!$D$254+'BD RD Feedstock'!$D$281+'BD RD Feedstock'!$D$308+'BD RD Feedstock'!$D$335)/References!$C$136 -> 0 | X3: =C35*'BD RD Feedstock'!D308/('BD RD Feedstock'!$D$38+'BD RD Feedstock'!$D$65+'BD RD Feedstock'!$D$92+'BD RD Feedstock'!$D$119+'BD RD Feedstock'!$D$146+'BD RD Feedstock'!$D$173+'BD RD Feedstock'!$D$200+'BD RD Feedstock'!$D$227+'BD RD Feedstock'!$D$254+'BD RD Feedstock'!$D$281+'BD RD Feedstock'!$D$308+'BD RD Feedstock'!$D$335)/References!$C$136 -> 0 | Z3: =C35*'BD RD Feedstock'!D335/('BD RD Feedstock'!$D$38+'BD RD Feedstock'!$D$65+'BD RD Feedstock'!$D$92+'BD RD Feedstock'!$D$119+'BD RD Feedstock'!$D$146+'BD RD Feedstock'!$D$173+'BD RD Feedstock'!$D$200+'BD RD Feedstock'!$D$227+'BD RD Feedstock'!$D$254+'BD RD Feedstock'!$D$281+'BD RD Feedstock'!$D$308+'BD RD Feedstock'!$D$335)/References!$C$136 -> 0 | AA3: =SUM(C3:Z3) -> 2497389.707
A4: BD Allocation, % | D4: =D3/$AA$3 -> 1 | F4: =F3/$AA$3 -> 0 | H4: =H3/$AA$3 -> 0 | J4: =J3/$AA$3 -> 0 | L4: =L3/$AA$3 -> 0 | N4: =N3/$AA$3 -> 0 | P4: =P3/$AA$3 -> 0 | R4: =R3/$AA$3 -> 0 | T4: =T3/$AA$3 -> 0 | V4: =V3/$AA$3 -> 0 | X4: =X3/$AA$3 -> 0 | Z4: =Z3/$AA$3 -> 0 | AA4: =SUM(C4:Z4) -> 1
A5: Data Years | B5: Select Regional Electricity Mix for Fuel | H5: 1-U.S Ave Mix
B6: Regional Crude Mix | H6: U.S Ave Crude
B7: Regional Natural Gas Source | H7: U.S Ave NG
A8: Process | B8: Inputs for Biodiesel Production | R8: Co-Products | V8: Fuel Tranpsort
A9: Monthly Data | B9: Beginning Biodiesel Inventory (60 °F) | C9: Biodiesel Produced (Calculated) (60 °F) | D9: Ending Biodiesel Inventory (60 °F) | E9: Biodiesel Sold | F9: NG Use from Utility Invoices | G9: Biomass Use from Invoices | H9: Biomass Transport Distance | I9: Biogas Use from Invoices | J9: Biogas Parameters | K9: Other Fuel Use | L9: Electricity from Utility Invoices | M9: Other Electricity | N9: Beginning Methanol Inventory | O9: Methanol Used (Calculated) | P9: Purchased | Q9: Ending Methanol Inventory | R9: Distillate Bottoms Production | S9: Free Fatty Acids Production | T9: Glycerin Production | U9: Other Co-products (Specify here) | V9: Biodiesel Transportation to or in California
A10: Unit | B10: lbs. | C10: lbs. | D10: lbs. | E10: lbs. | F10: MMBTU, HHV | G10: Dry Tons | H10: Miles | I10: MMBTU, HHV | J10: Miles | K10: MMBTU, HHV | L10: KWh | M10: KWh | N10: lbs. | O10: lbs. | P10: lbs. | Q10: lbs. | R10: lbs. | S10: lbs. | T10: lbs. | U10: lbs. | V10: Mode | W10: Select Values | X10: Miles
A11: Month 1 | B11: 10000 | C11: =D11-B11+E11 -> 935000 | D11: 850000 | E11: 95000 | F11: 551 | G11: 12 | H11: By HDT Truck | J11: Pipeline | L11: 30000 | N11: 1000 | O11: =N11+P11-Q11 -> 66295 | P11: 65300 | Q11: 5 | V11: From BD plant to port/railyard by HDD Truck | W11: Standard Values | X11: 0
A12: Month 2 | B12: =E11 -> 95000 | C12: =D12-B12+E12 -> 810000 | D12: 780000 | E12: 125000 | F12: 551 | H12: 100 | I12: 10 | J12: 80 | L12: 30000 | N12: =Q11 -> 5 | O12: =N12+P12-Q12 -> 59990 | P12: 60000 | Q12: 15 | R12: These co-products are not functional yet | V12: From BD plant blending terminal by HDD Truck | W12: Standard Values | X12: 200
A13: Month 3 | B13: =E12 -> 125000 | C13: 780000 | D13: 780000 | E13: 125000 | F13: 551 | G13: 13 | H13: By Rail | J13: Source | L13: 50000 | N13: =Q12 -> 15 | O13: =N13+P13-Q13 -> 68866 | P13: 68881 | Q13: 30
A14: Month 4 | B14: 125000 | C14: 780000 | D14: 780000 | E14: 125000 | F14: 551 | G14: 20 | H14: 5000 | I14: 12 | J14: ABC Landfill | L14: 30000 | N14: 30 | O14: 45608 | P14: 45666 | Q14: 88
A15: Month 5 | B15: 125000 | C15: 780000 | D15: 780000 | E15: 125000 | F15: 551 | G15: 11 | I15: 15 | L15: 30000 | N15: 88 | O15: 50076 | P15: 50000 | Q15: 12
A16: Month 6 | B16: 125000 | C16: 780000 | D16: 780000 | E16: 125000 | F16: 551 | G16: 12 | L16: 30000 | N16: 12 | O16: 85812 | P16: 85866 | Q16: 66
A17: Month 7 | B17: 125000 | C17: 780000 | D17: 780000 | E17: 125000 | F17: 551 | L17: 30000 | N17: 66 | O17: 21289 | P17: 22222 | Q17: 999 | V17: By Rail | W17: Standard Values | X17: 0
A18: Month 8 | B18: 125000 | C18: 780000 | D18: 780000 | E18: 125000 | F18: 551 | G18: 5 | L18: 30000 | N18: 999 | O18: 90977 | P18: 90000 | Q18: 22
A19: Month 9 | B19: 125000 | C19: 780000 | D19: 780000 | E19: 125000 | F19: 551 | G19: 10 | K19: This fuel is not functional yet | L19: 30000 | M19: This fuel is not functional yet | N19: 22 | O19: 65310 | P19: 65300 | Q19: 12 | V19: By Ocean Tanker | W19: Standard Values | X19: 0
A20: Month 10 | B20: 125000 | C20: 780000 | D20: 780000 | E20: 125000 | F20: 551 | G20: 7 | I20: 80 | L20: 30000 | N20: 12 | O20: 65090 | P20: 65300 | Q20: 222
A21: Month 11 | B21: 125000 | C21: 780000 | D21: 780000 | E21: 125000 | F21: 551 | G21: 7 | I21: 9523 | L21: 30000 | N21: 222 | O21: 77049 | P21: 77777 | Q21: 950 | V21: By Barge | W21: Standard Values | X21: 5000
A22: Month 12 | B22: 125000 | C22: 780000 | D22: 780000 | E22: 125000 | F22: 551 | G22: 8 | I22: 6355 | L22: 30000 | N22: 950 | O22: 66127 | P22: 65300 | Q22: 123
A23: Month 13 | B23: 125000 | C23: 780000 | D23: 780000 | E23: 125000 | F23: 551 | G23: 8 | I23: 2633 | L23: 30000 | N23: 123 | O23: 12445 | P23: 12355 | Q23: 33
A24: Month 14 | B24: 125000 | C24: 780000 | D24: 780000 | E24: 125000 | F24: 551 | G24: 8 | I24: 44 | L24: 30000 | N24: 33 | O24: 65308 | P24: 65300 | Q24: 25
A25: Month 15 | B25: 125000 | C25: 780000 | D25: 780000 | E25: 125000 | F25: 551 | I25: 11 | L25: 30000 | N25: 25 | O25: 65266 | P25: 65300 | Q25: 59
A26: Month 16 | B26: 125000 | C26: 780000 | D26: 780000 | E26: 125000 | F26: 551 | I26: 223 | L26: 30000 | N26: 59 | O26: 65344 | P26: 65300 | Q26: 15
A27: Month 17 | B27: 125000 | C27: 780000 | D27: 780000 | E27: 125000 | F27: 551 | G27: 5 | I27: 99 | L27: 30000 | N27: 15 | O27: 65227 | P27: 65300 | Q27: 88
A28: Month 18 | B28: 125000 | C28: 780000 | D28: 780000 | E28: 125000 | F28: 551 | L28: 30000 | N28: 88 | O28: 65238 | P28: 65300 | Q28: 150
A29: Month 19 | B29: 125000 | C29: 780000 | D29: 780000 | E29: 125000 | F29: 551 | L29: 30000 | N29: 150 | O29: 24984 | P29: 25000 | Q29: 166
A30: Month 20 | B30: 125000 | C30: 780000 | D30: 780000 | E30: 125000 | F30: 551 | G30: 9 | L30: 30000 | N30: 166 | O30: 92166 | P30: 98000 | Q30: 6000
A31: Month 21 | B31: 125000 | C31: 780000 | D31: 780000 | E31: 125000 | F31: 551 | L31: 30000 | N31: 6000 | O31: 32549 | P31: 26555 | Q31: 6
A32: Month 22 | B32: 125000 | C32: 780000 | D32: 780000 | E32: 125000 | F32: 551 | G32: 10 | L32: 30000 | N32: 6 | O32: 36555 | P32: 36555 | Q32: 6
A33: Month 23 | B33: 125000 | C33: 780000 | D33: 780000 | E33: 125000 | F33: 551 | G33: 10 | L33: 30000 | N33: 6 | O33: 66660 | P33: 66666 | Q33: 12
A34: Month 24 | B34: =E33 -> 125000 | C34: 380000 | D34: 380000 | E34: 125000 | F34: 551 | L34: 30000 | N34: =Q33 -> 12 | O34: 15866 | P34: 15879 | Q34: 25
A35: Total | B35: =SUM(B11:B34) -> 2855000 | C35: =SUM(C11:C34) -> 18505000 | D35: =SUM(D11:D34) -> 18390000 | E35: =SUM(E11:E34) -> 2970000 | F35: =SUM(F11:F34) -> 13224 | G35: =SUM(G11:G34) -> 155 | H35: 5100 | I35: 19005 | K35: 0 | L35: 740000 | M35: 0 | N35: 10104 | O35: =SUM(O11:O34) -> 1370097 | P35: =SUM(P11:P34) -> 1369122 | Q35: 9129 | R35: 0 | S35: 0 | T35: 0 | U35: 0
A37: Carbon Intensity Breakdown to each Process | H37: Feedstock 1 | K37: Feedstock 2 | N37: Feedstock 3 | Q37: Feedstock 4 | T37: Feedstock 5 | W37: Feedstock 6 | Z37: Feedstock 7 | AC37: Feedstock 8 | AF37: Feedstock 9 | AI37: Feedstock 10 | AL37: Feedstock 11 | AO37: Feedstock 12
A38: Feedstock Production | B38: Process | D38: Inputs | F38: Values | G38: Region | H38: CI Outputs, g/MJ | I38: Values | J38: Region | K38: CI Outputs, g/MJ | L38: Values | M38: Region | N38: CI Outputs, g/MJ | O38: Values | P38: Region | Q38: CI Outputs, g/MJ | R38: Values | S38: Region | T38: CI Outputs, g/MJ | U38: Values | V38: Region | W38: CI Outputs, g/MJ | X38: Values | Y38: Region | Z38: CI Outputs, g/MJ | AA38: Values | AB38: Region | AC38: CI Outputs, g/MJ | AD38: Values | AE38: Region | AF38: CI Outputs, g/MJ | AG38: Values | AH38: Region | AI38: CI Outputs, g/MJ | AJ38: Values | AK38: Region | AL38: CI Outputs, g/MJ | AM38: Values | AN38: Region | AO38: CI Outputs, g/MJ
B39: Feedstock Production | F39: =IF('BD RD Feedstock'!C3="Soy Oil","Soy Oil 1","") ->  | G39: =IF(F39="Soy Oil 1",'BD RD Feedstock'!C8,"") ->  | H39: =H40+H41+H42+H43+H53 -> 1.298403949 | I39: =IF('BD RD Feedstock'!D3="Soy Oil","Soy Oil 2","") ->  | J39: =IF(I39="Soy Oil 2",'BD RD Feedstock'!D8,"") ->  | K39: =K40+K41+K42+K43+K53 -> 5.347678255 | L39: =IF('BD RD Feedstock'!E3="Soy Oil","Soy Oil 3","") ->  | M39: =IF(L39="Soy Oil 3",'BD RD Feedstock'!E8,"") ->  | N39: =N40+N41+N42+N43+N55+N56+N57+N58 -> 0 | O39: =IF('BD RD Feedstock'!F3="Soy Oil","Soy Oil 4","") ->  | P39: =IF(O39="Soy Oil 4",'BD RD Feedstock'!F8,"") ->  | Q39: =Q40+Q41+Q42+Q43+Q53 -> 0.02967308789 | R39: =IF('BD RD Feedstock'!G3="Soy Oil","Soy Oil 5","") ->  | S39: =IF(R39="Soy Oil 5",'BD RD Feedstock'!G8,"") ->  | T39: =T40+T41+T42+T43+T53 -> 0 | U39: =IF('BD RD Feedstock'!H3="Soy Oil","Soy Oil 6","") ->  | V39: =IF(U39="Soy Oil 6",'BD RD Feedstock'!H8,"") ->  | W39: =W40+W41+W42+W43+W53 -> 0 | X39: =IF('BD RD Feedstock'!I3="Soy Oil","Soy Oil 7","") ->  | Y39: =IF(X39="Soy Oil 7",'BD RD Feedstock'!I8,"") ->  | Z39: =Z40+Z41+Z42+Z43+Z53 -> 0 | AA39: =IF('BD RD Feedstock'!J3="Soy Oil","Soy Oil 8","") ->  | AB39: =IF(AA39="Soy Oil 8",'BD RD Feedstock'!J8,"") ->  | AC39: =AC40+AC41+AC42+AC43+AC53 -> 0 | AD39: =IF('BD RD Feedstock'!K3="Soy Oil","Soy Oil 9","") ->  | AE39: =IF(AD39="Soy Oil 9",'BD RD Feedstock'!K8,"") ->  | AF39: =AF40+AF41+AF42+AF43+AF53 -> 0 | AG39: =IF('BD RD Feedstock'!L3="Soy Oil","Soy Oil 10","") ->  | AH39: =IF(AG39="Soy Oil 10",'BD RD Feedstock'!L8,"") ->  | AI39: =AI40+AI41+AI42+AI43+AI53 -> 0 | AJ39: =IF('BD RD Feedstock'!M3="Soy Oil","Soy Oil 11","") ->  | AK39: =IF(AJ39="Soy Oil 11",'BD RD Feedstock'!M8,"") ->  | AL39: =AL40+AL41+AL42+AL43+AL53 -> 0 | AM39: =IF('BD RD Feedstock'!N3="Soy Oil","Soy Oil 12","") ->  | AN39: =IF(AM39="Soy Oil 12",'BD RD Feedstock'!N8,"") ->  | AO39: =AO40+AO41+AO42+AO43+AO53 -> 0
B40: Soybean Farming and Fertilizers | D40: Oil Yield, lb oil/lb soybean | F40: 0.2 | H40: =Ag_Inputs!P114 -> 0 | I40: 0.2 | K40: =Ag_Inputs!Q114 -> 4.748171572 | N40: =Ag_Inputs!R114 -> 0 | Q40: =Ag_Inputs!S114 -> 0 | T40: =Ag_Inputs!T114 -> 0 | W40: =Ag_Inputs!U114 -> 0 | Z40: =Ag_Inputs!V114 -> 0 | AC40: =Ag_Inputs!W114 -> 0 | AF40: =Ag_Inputs!X114 -> 0 | AI40: =Ag_Inputs!Y114 -> 0 | AL40: =Ag_Inputs!Z114 -> 0 | AO40: =Ag_Inputs!AA114 -> 0
A41: Soy Oil | B41: Soybean Transport, miles | D41: Soybean transported by Medium Truck, miles | F41: 10 | H41: ='T&D'!$B$58*F41/10 -> 0 | I41: 10 | K41: ='T&D'!$B$58*F41/10 -> 0 | L41: 10 | N41: ='T&D'!$B$58*I41/10 -> 0 | O41: 10 | Q41: ='T&D'!$B$58*L41/10 -> 0 | R41: 10 | T41: ='T&D'!$B$58*O41/10 -> 0 | W41: ='T&D'!$B$58*U41/10 -> 0 | X41: 10 | Z41: ='T&D'!$B$58*X41/10 -> 0 | AA41: 10 | AC41: ='T&D'!$B$58*AA41/10 -> 0 | AD41: 10 | AF41: ='T&D'!$B$58*AD41/10 -> 0 | AG41: 10 | AI41: ='T&D'!$B$58*AG41/10 -> 0 | AJ41: 10 | AL41: ='T&D'!$B$58*AJ41/10 -> 0 | AO41: ='T&D'!$B$58*AM41/10 -> 0
A42: =IF('BD RD Feedstock'!C3="Others",'BD RD Feedstock'!C5,"") ->  | D42: Soybean transported by Heavy Duty Diesel Truck, miles | F42: 50 | H42: ='T&D'!$J$96*F42/50 -> 0 | I42: 50 | K42: ='T&D'!$K$96*I42/50 -> 0.5359214945 | L42: 50 | N42: ='T&D'!$L$96*L42/50 -> 0 | O42: 50 | Q42: ='T&D'!$M$96*O42/50 -> 0 | R42: 50 | T42: ='T&D'!$N$96*R42/50 -> 0 | W42: ='T&D'!$O$96*U42/50 -> 0 | Z42: ='T&D'!$P$96*X42/50 -> 0 | AC42: ='T&D'!$Q$96*AA42/50 -> 0 | AF42: ='T&D'!$R$96*AD42/50 -> 0 | AI42: ='T&D'!$S$96*AG42/50 -> 0 | AL42: ='T&D'!$T$96*AJ42/50 -> 0 | AO42: ='T&D'!$U$96*AM42/50 -> 0
B43: Soybean Extraction, Btu/lb oil | D43: Total, Btu/lb oil | F43: 3687 | H43: =IF('BD RD Feedstock'!C6="Use Standard Values",Ag_Inputs!AK114,SUM(H44:H52)) -> 0.8745026932 | K43: =IF('BD RD Feedstock'!F6="Use Standard Values",Ag_Inputs!AL114,K44+K45+K46+K47+K48+K49+K50+K51+K52) -> 0 | N43: =IF('BD RD Feedstock'!E6="Use Standard Values",Ag_Inputs!AM114,N44+N45+N46+N47+N48+N49+N50+N51) -> 0 | Q43: =IF('BD RD Feedstock'!F6="Use Standard Values",Ag_Inputs!AN114,Q44+Q45+Q46+Q47+Q48+Q49+Q50+Q51) -> 0 | T43: =IF('BD RD Feedstock'!G6="Use Standard Values",Ag_Inputs!AO114,T44+T45+T46+T47+T48+T49+T50+T51) -> 0 | W43: =IF('BD RD Feedstock'!H6="Use Standard Values",Ag_Inputs!AP114,W44+W45+W46+W47+W48+W49+W50+W51) -> 0 | Z43: =IF('BD RD Feedstock'!K6="Use Standard Values",Ag_Inputs!AQ114,Z44+Z45+Z46+Z47+Z48+Z49+Z50+Z51) -> 0 | AC43: =IF('BD RD Feedstock'!N6="Use Standard Values",Ag_Inputs!AR114,AC44+AC45+AC46+AC47+AC48+AC49+AC50+AC51) -> 0 | AF43: =IF('BD RD Feedstock'!Q6="Use Standard Values",Ag_Inputs!AS114,AF44+AF45+AF46+AF47+AF48+AF49+AF50+AF51) -> 0 | AI43: =IF('BD RD Feedstock'!T6="Use Standard Values",Ag_Inputs!AT114,AI44+AI45+AI46+AI47+AI48+AI49+AI50+AI51) -> 0 | AL43: =IF('BD RD Feedstock'!W6="Use Standard Values",Ag_Inputs!AU114,AL44+AL45+AL46+AL47+AL48+AL49+AL50+AL51) -> 0 | AO43: =IF('BD RD Feedstock'!Z6="Use Standard Values",Ag_Inputs!AV114,AO44+AO45+AO46+AO47+AO48+AO49+AO50+AO51) -> 0
D44: Residual Oil | F44: =$F$43*G44 -> 32.0769 | G44: 0.0087 | H44: =F44*(100%*EF!$M16+Petroleum!$B$21*Petroleum!$I$4+Petroleum!$I$21)/10^6*LossFactor!$P$4*(1-LossFactor!M4)/$F$173*$F$40/Fuel_Specs!$B$39*Fuel_Specs!$E$39/Fuel_Specs!$E$121*1000000 -> 0.006807811863
D45: Diesel | F45: =$F$43*G45 -> 15.8541 | G45: 0.0043 | H45: =F45*(33%*EF!$Q16+33%*EF!$R16+34%*EF!$S16+Petroleum!$B$21*Petroleum!$J$4+Petroleum!$J$21)/1000000*LossFactor!$P$4*(1-LossFactor!$M$4)/$F$173*$F$40/Fuel_Specs!$B$39*Fuel_Specs!$E$39/Fuel_Specs!$E$121*1000000 -> 0.003395017502
E46: Gasoline | F46: 0 | G46: 0 | H46: =F46*((EF!$V16+Petroleum!$B$21*Petroleum!$F$4+Petroleum!$F$21)/1000000)/Fuel_Specs!$B$145*(Fuel_Specs!$E$39/Fuel_Specs!$E$121)/Fuel_Specs!$B$39*(1-LossFactor!$M$4)/$F$173*$F$40/Fuel_Specs!$B$39*Fuel_Specs!$E$39/Fuel_Specs!$E$121*1000000 -> 0
D47: Natural Gas | F47: 2068.0383 | G47: 0.5609 | H47: =F47*(0*EF!$G16+0*EF!$D16+50%*EF!$B16+50%*EF!$C16+NG!$AO$5)/1000000*LossFactor!$P$4*(1-LossFactor!M4)/$F$173*$F$40/Fuel_Specs!$B$39*Fuel_Specs!$E$39/Fuel_Specs!$E$121*1000000 -> 0.3179823765
D48: Coal | F48: 1017.9807 | G48: 0.2761 | H48: =F48*(100%*EF!$AC16+Coal!AH$5)/1000000*LossFactor!$P$4*(1-LossFactor!M4)/$F$173*$F$40/Fuel_Specs!$B$39*Fuel_Specs!$E$39/Fuel_Specs!$E$121*1000000 -> 0.2178526011
E49: LPG | F49: 0 | G49: 0
D50: N-Hexane | F50: 58.992 | G50: 0.016 | H50: =F50*(Petroleum!$B$21*Petroleum!$H$4+Petroleum!$H$21)/1000000*LossFactor!$P$4*(1-LossFactor!M4)/$F$173*$F$40/Fuel_Specs!$B$39*Fuel_Specs!$E$39/Fuel_Specs!$E$121*1000000+F50/Fuel_Specs!$B$56*Fuel_Specs!$E$56*LossFactor!$P$4*(1-LossFactor!M4)/$F$173*$F$40/Fuel_Specs!$B$39*Fuel_Specs!$E$39/Fuel_Specs!$E$121*1000000/Fuel_Specs!$H$137 -> 0.005797676729
D51: Eletricity | F51: 446.127 | G51: 0.121 | H51: =F51*(Electricity!BP$6+Electricity!BP$7)/1000000*LossFactor!$P$4*(1-LossFactor!M4)/$F$173*$F$40/Fuel_Specs!$B$39*Fuel_Specs!$E$39/Fuel_Specs!$E$121*1000000 -> 0.3226672095
D52: Renewable NG | F52: 0 | G52: 0 | H52: =F52*(0*EF!$G16+0*EF!$D16+50%*EF!$B16+50%*EF!$C16+NG!AO6)/10^6*LossFactor!$P$4*(1-LossFactor!M4)*$F$173*$F$40/Fuel_Specs!$B$39*Fuel_Specs!$E$39/Fuel_Specs!$E$121*1000000 -> 0
B53: Soybean Oil Transport, miles | H53: =SUM(H54:H58) -> 0.4239012556 | K53: =SUM(K54:K58) -> 0.06358518834 | N53: =SUM(N54:N58) -> 0 | Q53: =SUM(Q54:Q58) -> 0.02967308789 | T53: =SUM(T54:T58) -> 0 | W53: =SUM(W54:W58) -> 0 | Z53: =SUM(Z54:Z58) -> 0 | AC53: =SUM(AC54:AC58) -> 0 | AF53: =SUM(AF54:AF58) -> 0 | AI53: =SUM(AI54:AI58) -> 0 | AL53: =SUM(AL54:AL58) -> 0 | AO53: =SUM(AO54:AO58) -> 0
D54: Soy Oil transported by Medium Truck, miles | F54: ='BD RD Feedstock'!R38 -> No Data | H54: =IF(F54="No Data",0,F54/10*'T&D'!$C$58*$F$173/'T&D'!$E$45*LossFactor!$P$4*(1-LossFactor!$M$4)) -> 0 | I54: ='BD RD Feedstock'!R65 -> No Data | K54: =IF(I54="No Data",0,I54/10*'T&D'!$C$58*$F$173/'T&D'!$E$45*LossFactor!$P$4*(1-LossFactor!$M$4)) -> 0 | L54: ='BD RD Feedstock'!R92 -> No Data | N54: =IF(L54="No Data",0,L54/10*'T&D'!$C$58*$F$173/'T&D'!$E$45*LossFactor!$P$4*(1-LossFactor!$M$4)) -> 0 | O54: ='BD RD Feedstock'!R119 -> No Data | Q54: =IF(O54="No Data",0,O54/10*'T&D'!$C$58*$F$173/'T&D'!$E$45*LossFactor!$P$4*(1-LossFactor!$M$4)) -> 0 | R54: ='BD RD Feedstock'!R146 -> No Data | T54: =IF(R54="No Data",0,R54/10*'T&D'!$C$58*$F$173/'T&D'!$E$45*LossFactor!$P$4*(1-LossFactor!$M$4)) -> 0 | U54: ='BD RD Feedstock'!R173 -> No Data | W54: =IF(U54="No Data",0,U54/10*'T&D'!$C$58*$F$173/'T&D'!$E$45*LossFactor!$P$4*(1-LossFactor!$M$4)) -> 0 | X54: ='BD RD Feedstock'!$R$200 -> No Data | Z54: =IF(X54="No Data",0,X54/10*'T&D'!$C$58*$F$173/'T&D'!$E$45*LossFactor!$P$4*(1-LossFactor!$M$4)) -> 0 | AA54: ='BD RD Feedstock'!$R$200 -> No Data | AC54: =IF(AA54="No Data",0,AA54/10*'T&D'!$C$58*$F$173/'T&D'!$E$45*LossFactor!$P$4*(1-LossFactor!$M$4)) -> 0 | AD54: ='BD RD Feedstock'!$R$200 -> No Data | AF54: =IF(AD54="No Data",0,AD54/10*'T&D'!$C$58*$F$173/'T&D'!$E$45*LossFactor!$P$4*(1-LossFactor!$M$4)) -> 0 | AG54: ='BD RD Feedstock'!$R$200 -> No Data | AI54: =IF(AG54="No Data",0,AG54/10*'T&D'!$C$58*$F$173/'T&D'!$E$45*LossFactor!$P$4*(1-LossFactor!$M$4)) -> 0 | AJ54: ='BD RD Feedstock'!$R$200 -> No Data | AL54: =IF(AJ54="No Data",0,AJ54/10*'T&D'!$C$58*$F$173/'T&D'!$E$45*LossFactor!$P$4*(1-LossFactor!$M$4)) -> 0 | AM54: ='BD RD Feedstock'!$R$200 -> No Data | AO54: =IF(AM54="No Data",0,AM54/10*'T&D'!$C$58*$F$173/'T&D'!$E$45*LossFactor!$P$4*(1-LossFactor!$M$4)) -> 0
D55: Soy Oil transported by Heavy Duty Diesel Truck, miles | F55: ='BD RD Feedstock'!S38 -> 50 | H55: =IF(F55="No Data",0,F55/50*'T&D'!$J$92/Fuel_Specs!$C$124/$F$173/Fuel_Specs!$B$39*Fuel_Specs!$E$39/Fuel_Specs!$E$121*1000000*LossFactor!$P$4*(1-LossFactor!$M$4))/Fuel_Specs!$H$137 -> 0 | I55: ='BD RD Feedstock'!S65 -> 100 | K55: =IF(I55="No Data",0,I55/50*'T&D'!$J$92/Fuel_Specs!$C$124/$F$173/Fuel_Specs!$B$39*Fuel_Specs!$E$39/Fuel_Specs!$E$121*1000000*LossFactor!$P$4*(1-LossFactor!$M$4))/Fuel_Specs!$H$137 -> 0 | L55: ='BD RD Feedstock'!S92 -> No Data | N55: =IF(L55="No Data",0,L55/50*'T&D'!$J$92/Fuel_Specs!$C$124/$F$173/Fuel_Specs!$B$39*Fuel_Specs!$E$39/Fuel_Specs!$E$121*1000000*LossFactor!$P$4*(1-LossFactor!$M$4))/Fuel_Specs!$H$137 -> 0 | O55: ='BD RD Feedstock'!S119 -> 100 | Q55: =IF(O55="No Data",0,O55/50*'T&D'!$J$92/Fuel_Specs!$C$124/$F$173/Fuel_Specs!$B$39*Fuel_Specs!$E$39/Fuel_Specs!$E$121*1000000*LossFactor!$P$4*(1-LossFactor!$M$4))/Fuel_Specs!$H$137 -> 0 | R55: ='BD RD Feedstock'!S146 -> No Data | T55: =IF(R55="No Data",0,R55/50*'T&D'!$J$92/Fuel_Specs!$C$124/$F$173/Fuel_Specs!$B$39*Fuel_Specs!$E$39/Fuel_Specs!$E$121*1000000*LossFactor!$P$4*(1-LossFactor!$M$4))/Fuel_Specs!$H$137 -> 0 | U55: ='BD RD Feedstock'!S173 -> No Data | W55: =IF(U55="No Data",0,U55/50*'T&D'!$J$92/Fuel_Specs!$C$124/$F$173/Fuel_Specs!$B$39*Fuel_Specs!$E$39/Fuel_Specs!$E$121*1000000*LossFactor!$P$4*(1-LossFactor!$M$4))/Fuel_Specs!$H$137 -> 0 | X55: ='BD RD Feedstock'!$S$200 -> No Data | Z55: =IF(X55="No Data",0,X55/50*'T&D'!$J$92/Fuel_Specs!$C$124/$F$173/Fuel_Specs!$B$39*Fuel_Specs!$E$39/Fuel_Specs!$E$121*1000000*LossFactor!$P$4*(1-LossFactor!$M$4))/Fuel_Specs!$H$137 -> 0 | AA55: ='BD RD Feedstock'!$S$200 -> No Data | AC55: =IF(AA55="No Data",0,AA55/50*'T&D'!$J$92/Fuel_Specs!$C$124/$F$173/Fuel_Specs!$B$39*Fuel_Specs!$E$39/Fuel_Specs!$E$121*1000000*LossFactor!$P$4*(1-LossFactor!$M$4))/Fuel_Specs!$H$137 -> 0 | AD55: ='BD RD Feedstock'!$S$200 -> No Data | AF55: =IF(AD55="No Data",0,AD55/50*'T&D'!$J$92/Fuel_Specs!$C$124/$F$173/Fuel_Specs!$B$39*Fuel_Specs!$E$39/Fuel_Specs!$E$121*1000000*LossFactor!$P$4*(1-LossFactor!$M$4))/Fuel_Specs!$H$137 -> 0 | AG55: ='BD RD Feedstock'!$S$200 -> No Data | AI55: =IF(AG55="No Data",0,AG55/50*'T&D'!$J$92/Fuel_Specs!$C$124/$F$173/Fuel_Specs!$B$39*Fuel_Specs!$E$39/Fuel_Specs!$E$121*1000000*LossFactor!$P$4*(1-LossFactor!$M$4))/Fuel_Specs!$H$137 -> 0 | AJ55: ='BD RD Feedstock'!$S$200 -> No Data | AL55: =IF(AJ55="No Data",0,AJ55/50*'T&D'!$J$92/Fuel_Specs!$C$124/$F$173/Fuel_Specs!$B$39*Fuel_Specs!$E$39/Fuel_Specs!$E$121*1000000*LossFactor!$P$4*(1-LossFactor!$M$4))/Fuel_Specs!$H$137 -> 0 | AM55: ='BD RD Feedstock'!$S$200 -> No Data | AO55: =IF(AM55="No Data",0,AM55/50*'T&D'!$J$92/Fuel_Specs!$C$124/$F$173/Fuel_Specs!$B$39*Fuel_Specs!$E$39/Fuel_Specs!$E$121*1000000*LossFactor!$P$4*(1-LossFactor!$M$4))/Fuel_Specs!$H$137 -> 0
D56: Soy Oil transported by Ocean Tanker, miles | F56: ='BD RD Feedstock'!T38 -> 1000 | H56: =IF(F56="No Data",0,F56/1000*'T&D'!$J$93/Fuel_Specs!$C$124/$F$173/Fuel_Specs!$B$39*Fuel_Specs!$E$39/Fuel_Specs!$E$121*1000000*LossFactor!$P$4*(1-LossFactor!$M$4))/Fuel_Specs!$H$137 -> 0 | I56: ='BD RD Feedstock'!T65 -> No Data | K56: =IF(I56="No Data",0,I56/1000*'T&D'!$J$93/Fuel_Specs!$C$124/$F$173/Fuel_Specs!$B$39*Fuel_Specs!$E$39/Fuel_Specs!$E$121*1000000*LossFactor!$P$4*(1-LossFactor!$M$4))/Fuel_Specs!$H$137 -> 0 | L56: ='BD RD Feedstock'!T92 -> No Data | N56: =IF(L56="No Data",0,L56/1000*'T&D'!$J$93/Fuel_Specs!$C$124/$F$173/Fuel_Specs!$B$39*Fuel_Specs!$E$39/Fuel_Specs!$E$121*1000000*LossFactor!$P$4*(1-LossFactor!$M$4))/Fuel_Specs!$H$137 -> 0 | O56: ='BD RD Feedstock'!T119 -> No Data | Q56: =IF(O56="No Data",0,O56/1000*'T&D'!$J$93/Fuel_Specs!$C$124/$F$173/Fuel_Specs!$B$39*Fuel_Specs!$E$39/Fuel_Specs!$E$121*1000000*LossFactor!$P$4*(1-LossFactor!$M$4))/Fuel_Specs!$H$137 -> 0 | R56: ='BD RD Feedstock'!T146 -> No Data | T56: =IF(R56="No Data",0,R56/1000*'T&D'!$J$93/Fuel_Specs!$C$124/$F$173/Fuel_Specs!$B$39*Fuel_Specs!$E$39/Fuel_Specs!$E$121*1000000*LossFactor!$P$4*(1-LossFactor!$M$4))/Fuel_Specs!$H$137 -> 0 | U56: ='BD RD Feedstock'!T173 -> No Data | W56: =IF(U56="No Data",0,U56/1000*'T&D'!$J$93/Fuel_Specs!$C$124/$F$173/Fuel_Specs!$B$39*Fuel_Specs!$E$39/Fuel_Specs!$E$121*1000000*LossFactor!$P$4*(1-LossFactor!$M$4))/Fuel_Specs!$H$137 -> 0 | X56: ='BD RD Feedstock'!$T$200 -> No Data | Z56: =IF(X56="No Data",0,X56/1000*'T&D'!$J$93/Fuel_Specs!$C$124/$F$173/Fuel_Specs!$B$39*Fuel_Specs!$E$39/Fuel_Specs!$E$121*1000000*LossFactor!$P$4*(1-LossFactor!$M$4))/Fuel_Specs!$H$137 -> 0 | AA56: ='BD RD Feedstock'!$T$200 -> No Data | AC56: =IF(AA56="No Data",0,AA56/1000*'T&D'!$J$93/Fuel_Specs!$C$124/$F$173/Fuel_Specs!$B$39*Fuel_Specs!$E$39/Fuel_Specs!$E$121*1000000*LossFactor!$P$4*(1-LossFactor!$M$4))/Fuel_Specs!$H$137 -> 0 | AD56: ='BD RD Feedstock'!$T$200 -> No Data | AF56: =IF(AD56="No Data",0,AD56/1000*'T&D'!$J$93/Fuel_Specs!$C$124/$F$173/Fuel_Specs!$B$39*Fuel_Specs!$E$39/Fuel_Specs!$E$121*1000000*LossFactor!$P$4*(1-LossFactor!$M$4))/Fuel_Specs!$H$137 -> 0 | AG56: ='BD RD Feedstock'!$T$200 -> No Data | AI56: =IF(AG56="No Data",0,AG56/1000*'T&D'!$J$93/Fuel_Specs!$C$124/$F$173/Fuel_Specs!$B$39*Fuel_Specs!$E$39/Fuel_Specs!$E$121*1000000*LossFactor!$P$4*(1-LossFactor!$M$4))/Fuel_Specs!$H$137 -> 0 | AJ56: ='BD RD Feedstock'!$T$200 -> No Data | AL56: =IF(AJ56="No Data",0,AJ56/1000*'T&D'!$J$93/Fuel_Specs!$C$124/$F$173/Fuel_Specs!$B$39*Fuel_Specs!$E$39/Fuel_Specs!$E$121*1000000*LossFactor!$P$4*(1-LossFactor!$M$4))/Fuel_Specs!$H$137 -> 0 | AM56: ='BD RD Feedstock'!$T$200 -> No Data | AO56: =IF(AM56="No Data",0,AM56/1000*'T&D'!$J$93/Fuel_Specs!$C$124/$F$173/Fuel_Specs!$B$39*Fuel_Specs!$E$39/Fuel_Specs!$E$121*1000000*LossFactor!$P$4*(1-LossFactor!$M$4))/Fuel_Specs!$H$137 -> 0
D57: Soy Oil transported by Rail, miles | F57: ='BD RD Feedstock'!U38 -> 10000 | H57: =IF(F57="No Data",0,F57/10000*'T&D'!$J$94/Fuel_Specs!$C$124/$F$173/Fuel_Specs!$B$39*Fuel_Specs!$E$39/Fuel_Specs!$E$121*1000000*LossFactor!$P$4*(1-LossFactor!$M$4))/Fuel_Specs!$H$137 -> 0.4239012556 | I57: ='BD RD Feedstock'!U65 -> 1500 | K57: =IF(I57="No Data",0,I57/10000*'T&D'!$J$94/Fuel_Specs!$C$124/$F$173/Fuel_Specs!$B$39*Fuel_Specs!$E$39/Fuel_Specs!$E$121*1000000*LossFactor!$P$4*(1-LossFactor!$M$4))/Fuel_Specs!$H$137 -> 0.06358518834 | L57: ='BD RD Feedstock'!U92 -> No Data | N57: =IF(L57="No Data",0,L57/10000*'T&D'!$J$94/Fuel_Specs!$C$124/$F$173/Fuel_Specs!$B$39*Fuel_Specs!$E$39/Fuel_Specs!$E$121*1000000*LossFactor!$P$4*(1-LossFactor!$M$4))/Fuel_Specs!$H$137 -> 0 | O57: ='BD RD Feedstock'!U119 -> 700 | Q57: =IF(O57="No Data",0,O57/10000*'T&D'!$J$94/Fuel_Specs!$C$124/$F$173/Fuel_Specs!$B$39*Fuel_Specs!$E$39/Fuel_Specs!$E$121*1000000*LossFactor!$P$4*(1-LossFactor!$M$4))/Fuel_Specs!$H$137 -> 0.02967308789 | R57: ='BD RD Feedstock'!U146 -> No Data | T57: =IF(R57="No Data",0,R57/10000*'T&D'!$J$94/Fuel_Specs!$C$124/$F$173/Fuel_Specs!$B$39*Fuel_Specs!$E$39/Fuel_Specs!$E$121*1000000*LossFactor!$P$4*(1-LossFactor!$M$4))/Fuel_Specs!$H$137 -> 0 | U57: ='BD RD Feedstock'!U173 -> No Data | W57: =IF(U57="No Data",0,U57/10000*'T&D'!$J$94/Fuel_Specs!$C$124/$F$173/Fuel_Specs!$B$39*Fuel_Specs!$E$39/Fuel_Specs!$E$121*1000000*LossFactor!$P$4*(1-LossFactor!$M$4))/Fuel_Specs!$H$137 -> 0 | X57: ='BD RD Feedstock'!$U$200 -> No Data | Z57: =IF(X57="No Data",0,X57/10000*'T&D'!$J$94/Fuel_Specs!$C$124/$F$173/Fuel_Specs!$B$39*Fuel_Specs!$E$39/Fuel_Specs!$E$121*1000000*LossFactor!$P$4*(1-LossFactor!$M$4))/Fuel_Specs!$H$137 -> 0 | AA57: ='BD RD Feedstock'!$U$200 -> No Data | AC57: =IF(AA57="No Data",0,AA57/10000*'T&D'!$J$94/Fuel_Specs!$C$124/$F$173/Fuel_Specs!$B$39*Fuel_Specs!$E$39/Fuel_Specs!$E$121*1000000*LossFactor!$P$4*(1-LossFactor!$M$4))/Fuel_Specs!$H$137 -> 0 | AD57: ='BD RD Feedstock'!$U$200 -> No Data | AF57: =IF(AD57="No Data",0,AD57/10000*'T&D'!$J$94/Fuel_Specs!$C$124/$F$173/Fuel_Specs!$B$39*Fuel_Specs!$E$39/Fuel_Specs!$E$121*1000000*LossFactor!$P$4*(1-LossFactor!$M$4))/Fuel_Specs!$H$137 -> 0 | AG57: ='BD RD Feedstock'!$U$200 -> No Data | AI57: =IF(AG57="No Data",0,AG57/10000*'T&D'!$J$94/Fuel_Specs!$C$124/$F$173/Fuel_Specs!$B$39*Fuel_Specs!$E$39/Fuel_Specs!$E$121*1000000*LossFactor!$P$4*(1-LossFactor!$M$4))/Fuel_Specs!$H$137 -> 0 | AJ57: ='BD RD Feedstock'!$U$200 -> No Data | AL57: =IF(AJ57="No Data",0,AJ57/10000*'T&D'!$J$94/Fuel_Specs!$C$124/$F$173/Fuel_Specs!$B$39*Fuel_Specs!$E$39/Fuel_Specs!$E$121*1000000*LossFactor!$P$4*(1-LossFactor!$M$4))/Fuel_Specs!$H$137 -> 0 | AM57: ='BD RD Feedstock'!$U$200 -> No Data | AO57: =IF(AM57="No Data",0,AM57/10000*'T&D'!$J$94/Fuel_Specs!$C$124/$F$173/Fuel_Specs!$B$39*Fuel_Specs!$E$39/Fuel_Specs!$E$121*1000000*LossFactor!$P$4*(1-LossFactor!$M$4))/Fuel_Specs!$H$137 -> 0
D58: Soy Oil transported by Barge, miles | F58: ='BD RD Feedstock'!V38 -> 1000 | H58: =IF(F58="No Data",0,F58/1000*'T&D'!$J$95/Fuel_Specs!$C$124/$F$173/Fuel_Specs!$B$39*Fuel_Specs!$E$39/Fuel_Specs!$E$121*1000000*LossFactor!$P$4*(1-LossFactor!$M$4))/Fuel_Specs!$H$137 -> 0 | I58: ='BD RD Feedstock'!V65 -> 1000 | K58: =IF(I58="No Data",0,I58/1000*'T&D'!$J$95/Fuel_Specs!$C$124/$F$173/Fuel_Specs!$B$39*Fuel_Specs!$E$39/Fuel_Specs!$E$121*1000000*LossFactor!$P$4*(1-LossFactor!$M$4))/Fuel_Specs!$H$137 -> 0 | L58: ='BD RD Feedstock'!V92 -> No Data | N58: =IF(L58="No Data",0,L58/1000*'T&D'!$J$95/Fuel_Specs!$C$124/$F$173/Fuel_Specs!$B$39*Fuel_Specs!$E$39/Fuel_Specs!$E$121*1000000*LossFactor!$P$4*(1-LossFactor!$M$4))/Fuel_Specs!$H$137 -> 0 | O58: ='BD RD Feedstock'!V119 -> 4000 | Q58: =IF(O58="No Data",0,O58/1000*'T&D'!$J$95/Fuel_Specs!$C$124/$F$173/Fuel_Specs!$B$39*Fuel_Specs!$E$39/Fuel_Specs!$E$121*1000000*LossFactor!$P$4*(1-LossFactor!$M$4))/Fuel_Specs!$H$137 -> 0 | R58: ='BD RD Feedstock'!V146 -> No Data | T58: =IF(R58="No Data",0,R58/1000*'T&D'!$J$95/Fuel_Specs!$C$124/$F$173/Fuel_Specs!$B$39*Fuel_Specs!$E$39/Fuel_Specs!$E$121*1000000*LossFactor!$P$4*(1-LossFactor!$M$4))/Fuel_Specs!$H$137 -> 0 | U58: ='BD RD Feedstock'!V173 -> No Data | W58: =IF(U58="No Data",0,U58/1000*'T&D'!$J$95/Fuel_Specs!$C$124/$F$173/Fuel_Specs!$B$39*Fuel_Specs!$E$39/Fuel_Specs!$E$121*1000000*LossFactor!$P$4*(1-LossFactor!$M$4))/Fuel_Specs!$H$137 -> 0 | X58: ='BD RD Feedstock'!$V$200 -> No Data | Z58: =IF(X58="No Data",0,X58/1000*'T&D'!$J$95/Fuel_Specs!$C$124/$F$173/Fuel_Specs!$B$39*Fuel_Specs!$E$39/Fuel_Specs!$E$121*1000000*LossFactor!$P$4*(1-LossFactor!$M$4))/Fuel_Specs!$H$137 -> 0 | AA58: ='BD RD Feedstock'!$V$200 -> No Data | AC58: =IF(AA58="No Data",0,AA58/1000*'T&D'!$J$95/Fuel_Specs!$C$124/$F$173/Fuel_Specs!$B$39*Fuel_Specs!$E$39/Fuel_Specs!$E$121*1000000*LossFactor!$P$4*(1-LossFactor!$M$4))/Fuel_Specs!$H$137 -> 0 | AD58: ='BD RD Feedstock'!$V$200 -> No Data | AF58: =IF(AD58="No Data",0,AD58/1000*'T&D'!$J$95/Fuel_Specs!$C$124/$F$173/Fuel_Specs!$B$39*Fuel_Specs!$E$39/Fuel_Specs!$E$121*1000000*LossFactor!$P$4*(1-LossFactor!$M$4))/Fuel_Specs!$H$137 -> 0 | AG58: ='BD RD Feedstock'!$V$200 -> No Data | AI58: =IF(AG58="No Data",0,AG58/1000*'T&D'!$J$95/Fuel_Specs!$C$124/$F$173/Fuel_Specs!$B$39*Fuel_Specs!$E$39/Fuel_Specs!$E$121*1000000*LossFactor!$P$4*(1-LossFactor!$M$4))/Fuel_Specs!$H$137 -> 0 | AJ58: ='BD RD Feedstock'!$V$200 -> No Data | AL58: =IF(AJ58="No Data",0,AJ58/1000*'T&D'!$J$95/Fuel_Specs!$C$124/$F$173/Fuel_Specs!$B$39*Fuel_Specs!$E$39/Fuel_Specs!$E$121*1000000*LossFactor!$P$4*(1-LossFactor!$M$4))/Fuel_Specs!$H$137 -> 0 | AM58: ='BD RD Feedstock'!$V$200 -> No Data | AO58: =IF(AM58="No Data",0,AM58/1000*'T&D'!$J$95/Fuel_Specs!$C$124/$F$173/Fuel_Specs!$B$39*Fuel_Specs!$E$39/Fuel_Specs!$E$121*1000000*LossFactor!$P$4*(1-LossFactor!$M$4))/Fuel_Specs!$H$137 -> 0
B59: ILUC | H59: 29.1 | K59: =H59 -> 29.1 | N59: =H59 -> 29.1 | Q59: =H59 -> 29.1 | T59: =K59 -> 29.1 | W59: =N59 -> 29.1 | Z59: =Q59 -> 29.1 | AC59: =T59 -> 29.1 | AF59: =W59 -> 29.1 | AI59: =Z59 -> 29.1 | AL59: =AC59 -> 29.1 | AO59: =AF59 -> 29.1
B60: Feedstock Production | F60: =IF('BD RD Feedstock'!C3="Canola Oil","Canola Oil 1","") ->  | G60: =IF(F60="Canola Oil 1",'BD RD Feedstock'!C8,"") ->  | H60: =H61+H62+H63+H64+H74 -> 17.7274156 | I60: =IF('BD RD Feedstock'!D3="Canola Oil","Canola Oil 2","") ->  | J60: =IF(I60="Canola Oil 2",'BD RD Feedstock'!D8,"") ->  | K60: =K61+K62+K63+K64+K74 -> 22.7850193 | L60: =IF('BD RD Feedstock'!E3="Canola Oil","Canola Oil 3","") ->  | M60: =IF(L60="Canola Oil 3",'BD RD Feedstock'!E8,"") ->  | N60: =N61+N62+N63+N64+N74 -> 0 | O60: =IF('BD RD Feedstock'!F3="Canola Oil","Canola Oil 4","") ->  | P60: =IF(O60="Canola Oil 4",'BD RD Feedstock'!F8,"") ->  | Q60: =Q61+Q62+Q63+Q64+Q74 -> 0.02967308789 | R60: =IF('BD RD Feedstock'!G3="Canola Oil","Canola Oil 5","") ->  | S60: =IF(R60="Canola Oil 5",'BD RD Feedstock'!G8,"") ->  | T60: =T61+T62+T63+T64+T74 -> 0 | U60: =IF('BD RD Feedstock'!H3="Canola Oil","Canola Oil 6","") ->  | V60: =IF(U60="Canola Oil 6",'BD RD Feedstock'!H8,"") ->  | W60: =W61+W62+W63+W64+W74 -> 0 | X60: =IF('BD RD Feedstock'!I3="Canola Oil","Canola Oil 7","") ->  | Y60: =IF(X60="Canola Oil 7",'BD RD Feedstock'!I8,"") ->  | Z60: =Z61+Z62+Z63+Z64+Z74 -> 0 | AA60: =IF('BD RD Feedstock'!J3="Canola Oil","Canola Oil 8","") ->  | AB60: =IF(AA60="Canola Oil 8",'BD RD Feedstock'!J8,"") ->  | AC60: =AC61+AC62+AC63+AC64+AC74 -> 0 | AD60: =IF('BD RD Feedstock'!K3="Canola Oil","Canola Oil 9","") ->  | AE60: =IF(AD60="Canola Oil 9",'BD RD Feedstock'!K8,"") ->  | AF60: =AF61+AF62+AF63+AF64+AF74 -> 0 | AG60: =IF('BD RD Feedstock'!L3="Canola Oil","Canola Oil 9","") ->  | AH60: =IF(AG60="Canola Oil 9",'BD RD Feedstock'!L8,"") ->  | AI60: =AI61+AI62+AI63+AI64+AI74 -> 0 | AJ60: =IF('BD RD Feedstock'!M3="Canola Oil","Canola Oil 11","") ->  | AK60: =IF(AJ60="Canola Oil 11",'BD RD Feedstock'!M8,"") ->  | AL60: =AL61+AL62+AL63+AL64+AL74 -> 0 | AM60: =IF('BD RD Feedstock'!N3="Canola Oil","Canola Oil 12","") ->  | AN60: =IF(AM60="Canola Oil 12",'BD RD Feedstock'!N8,"") ->  | AO60: =AO61+AO62+AO63+AO64+AO74 -> 0
B61: Canola Farming and Fertilizers | D61: Oil Yield, lb oil/lb canola | F61: 0.428 | H61: =Ag_Inputs!P115 -> 0 | I61: =F61 -> 0.428 | K61: =Ag_Inputs!Q115 -> 22.18551262 | L61: =F61 -> 0.428 | N61: =Ag_Inputs!R115 -> 0 | O61: =F61 -> 0.428 | Q61: =Ag_Inputs!S115 -> 0 | T61: =Ag_Inputs!T115 -> 0 | U61: =F61 -> 0.428 | W61: =Ag_Inputs!U115 -> 0 | X61: =F61 -> 0.428 | Z61: =Ag_Inputs!V115 -> 0 | AA61: =F61 -> 0.428 | AC61: =Ag_Inputs!W115 -> 0 | AD61: =F61 -> 0.428 | AF61: =Ag_Inputs!X115 -> 0 | AG61: =F61 -> 0.428 | AI61: =Ag_Inputs!Y115 -> 0 | AJ61: =F61 -> 0.428 | AL61: =Ag_Inputs!Z115 -> 0 | AO61: =Ag_Inputs!AA115 -> 0
A62: Canola Oil | B62: Canola Transport | D62: Canola transported by Medium Truck, miles | F62: 10 | H62: ='T&D'!$B$58*F62/10 -> 0 | I62: 10 | K62: ='T&D'!$B$58*I62/10 -> 0 | L62: 10 | N62: ='T&D'!$B$58*L62/10 -> 0 | O62: 10 | Q62: ='T&D'!$B$58*O62/10 -> 0 | R62: 10 | T62: ='T&D'!$B$58*R62/10 -> 0 | U62: 10 | W62: ='T&D'!$B$58*U62/10 -> 0 | X62: 10 | Z62: ='T&D'!$B$58*X62/10 -> 0 | AA62: 10 | AC62: ='T&D'!$B$58*AA62/10 -> 0 | AD62: 10 | AF62: ='T&D'!$B$58*AD62/10 -> 0 | AG62: 10 | AI62: ='T&D'!$B$58*AG62/10 -> 0 | AJ62: 10 | AL62: ='T&D'!$B$58*AJ62/10 -> 0 | AM62: 10 | AO62: ='T&D'!$B$58*AM62/10 -> 0
A63: =IF('BD RD Feedstock'!D3="Others",'BD RD Feedstock'!D5,"") ->  | D63: Canola transported by Heavy Duty Diesel Truck, miles | F63: 50 | H63: ='T&D'!$J$96*F63/50 -> 0 | I63: 50 | K63: ='T&D'!$K$96*I63/50 -> 0.5359214945 | L63: 50 | N63: ='T&D'!$L$96*L63/50 -> 0 | O63: 50 | Q63: ='T&D'!$M$96*O63/50 -> 0 | R63: 50 | T63: ='T&D'!$N$96*R63/50 -> 0 | U63: 50 | W63: ='T&D'!$O$96*U63/50 -> 0 | X63: 50 | Z63: ='T&D'!$P$96*X63/50 -> 0 | AA63: 50 | AC63: ='T&D'!$Q$96*AA63/50 -> 0 | AD63: 50 | AF63: ='T&D'!$R$96*AD63/50 -> 0 | AG63: 50 | AI63: ='T&D'!$S$96*AG63/50 -> 0 | AJ63: 50 | AL63: ='T&D'!$T$96*AJ63/50 -> 0 | AM63: 50 | AO63: ='T&D'!$U$96*AM63/50 -> 0
B64: Canola Oil Extraction | D64: Total, Btu/lb oil | F64: 1238 | H64: =IF('BD RD Feedstock'!C6="Use Standard Values",Ag_Inputs!AK115,SUM(H65:H73)) -> 17.30351434 | K64: =IF('BD RD Feedstock'!D6="Use Standard Values",Ag_Inputs!AL115,SUM(K65:K73)) -> 0 | N64: =IF('BD RD Feedstock'!E6="Use Standard Values",Ag_Inputs!AM115,SUM(N65:N73)) -> 0 | Q64: =IF('BD RD Feedstock'!F6="Use Standard Values",Ag_Inputs!AN115,SUM(Q65:Q73)) -> 0 | T64: =IF('BD RD Feedstock'!E6="Use Standard Values",Ag_Inputs!AO115,SUM(T65:T73)) -> 0 | W64: =IF('BD RD Feedstock'!F6="Use Standard Values",Ag_Inputs!AP115,SUM(W65:W73)) -> 0 | Z64: =IF('BD RD Feedstock'!G6="Use Standard Values",Ag_Inputs!AQ115,SUM(Z65:Z73)) -> 0 | AC64: =IF('BD RD Feedstock'!J6="Use Standard Values",Ag_Inputs!AR115,SUM(AC65:AC73)) -> 0 | AF64: =IF('BD RD Feedstock'!M6="Use Standard Values",Ag_Inputs!AS115,SUM(AF65:AF73)) -> 0 | AI64: =IF('BD RD Feedstock'!P6="Use Standard Values",Ag_Inputs!AT115,SUM(AI65:AI73)) -> 0 | AL64: =IF('BD RD Feedstock'!S6="Use Standard Values",Ag_Inputs!AU115,SUM(AL65:AL73)) -> 0 | AO64: =IF('BD RD Feedstock'!V6="Use Standard Values",Ag_Inputs!AV115,SUM(AO65:AO73)) -> 0
D65: Residual Oil | F65: =$F$64*G65 -> 0
D66: Diesel | F66: 0
E67: Gasoline | F67: 0
D68: Natural Gas | F68: 1005.256 | G68: 0.812 | H68: =F68*(0*EF!$G16+0*EF!$D16+50%*EF!$B16+50%*EF!$C16+NG!$AO$5)/1000000*LossFactor!$P$4*(1-LossFactor!M4)*$F$173*$F$61/Fuel_Specs!$B$39*Fuel_Specs!$E$39/Fuel_Specs!$E$121*1000000 -> 9.076877287
D69: Coal | F69: 0
E70: LPG | F70: 0
D71: N-Hexane | F71: 54.472 | G71: 0.044 | H71: =F71*(Petroleum!$B$21*Petroleum!$H$4+Petroleum!$H$21)/1000000*LossFactor!$P$4*(1-LossFactor!M4)*$F$173*$F$61/Fuel_Specs!$B$39*Fuel_Specs!$E$39/Fuel_Specs!$E$121*1000000+F71/Fuel_Specs!$B$56*Fuel_Specs!$E$56*Fuel_Specs!B94*LossFactor!$P$4*(1-LossFactor!M4)*$F$173*$F$61/Fuel_Specs!$B$39*Fuel_Specs!$E$39/Fuel_Specs!$E$121*1000000/Fuel_Specs!$H$137 -> 0.6549129851
D72: Eletricity | F72: 178.272 | G72: 0.144 | H72: =F72*(Electricity!BP$6+Electricity!BP$7)/1000000*LossFactor!$P$4*(1-LossFactor!$M$4)*$F$173*$F$61/Fuel_Specs!$B$39*Fuel_Specs!$E$39/Fuel_Specs!$E$121*1000000 -> 7.571724072
D73: Renewable NG | F73: 0
B74: Canola Oil Transport | H74: =SUM(H75:H79) -> 0.4239012556 | K74: =SUM(K75:K79) -> 0.06358518834 | N74: =SUM(N75:N79) -> 0 | Q74: =SUM(Q75:Q79) -> 0.02967308789 | T74: =SUM(T75:T79) -> 0 | W74: =SUM(W75:W79) -> 0 | Z74: =SUM(Z75:Z79) -> 0 | AC74: =SUM(AC75:AC79) -> 0 | AF74: =SUM(AF75:AF79) -> 0 | AI74: =SUM(AI75:AI79) -> 0 | AL74: =SUM(AL75:AL79) -> 0 | AO74: =SUM(AO75:AO79) -> 0
D75: Canola Oil transported by Medium Truck, miles | F75: ='BD RD Feedstock'!R38 -> No Data | H75: =IF(F75="No Data",0,F75/10*'T&D'!$C$58*$F$173/'T&D'!$E$45*LossFactor!$P$4*(1-LossFactor!$M$4)) -> 0 | I75: ='BD RD Feedstock'!R65 -> No Data | K75: =IF(I75="No Data",0,I75/10*'T&D'!$C$58*$F$173/'T&D'!$E$45*LossFactor!$P$4*(1-LossFactor!$M$4)) -> 0 | L75: ='BD RD Feedstock'!R92 -> No Data | N75: =IF(L75="No Data",0,L75/10*'T&D'!$C$58*$F$173/'T&D'!$E$45*LossFactor!$P$4*(1-LossFactor!$M$4)) -> 0 | O75: ='BD RD Feedstock'!R119 -> No Data | Q75: =IF(O75="No Data",0,O75/10*'T&D'!$C$58*$F$173/'T&D'!$E$45*LossFactor!$P$4*(1-LossFactor!$M$4)) -> 0 | R75: ='BD RD Feedstock'!R146 -> No Data | T75: =IF(R75="No Data",0,R75/10*'T&D'!$C$58*$F$173/'T&D'!$E$45*LossFactor!$P$4*(1-LossFactor!$M$4)) -> 0 | U75: ='BD RD Feedstock'!R173 -> No Data | W75: =IF(U75="No Data",0,U75/10*'T&D'!$C$58*$F$173/'T&D'!$E$45*LossFactor!$P$4*(1-LossFactor!$M$4)) -> 0 | X75: ='BD RD Feedstock'!$R$200 -> No Data | Z75: =IF(X75="No Data",0,X75/10*'T&D'!$C$58*$F$173/'T&D'!$E$45*LossFactor!$P$4*(1-LossFactor!$M$4)) -> 0 | AA75: ='BD RD Feedstock'!$R$200 -> No Data | AC75: =IF(AA75="No Data",0,AA75/10*'T&D'!$C$58*$F$173/'T&D'!$E$45*LossFactor!$P$4*(1-LossFactor!$M$4)) -> 0 | AD75: ='BD RD Feedstock'!$R$200 -> No Data | AF75: =IF(AD75="No Data",0,AD75/10*'T&D'!$C$58*$F$173/'T&D'!$E$45*LossFactor!$P$4*(1-LossFactor!$M$4)) -> 0 | AG75: ='BD RD Feedstock'!$R$200 -> No Data | AI75: =IF(AG75="No Data",0,AG75/10*'T&D'!$C$58*$F$173/'T&D'!$E$45*LossFactor!$P$4*(1-LossFactor!$M$4)) -> 0 | AJ75: ='BD RD Feedstock'!$R$200 -> No Data | AL75: =IF(AJ75="No Data",0,AJ75/10*'T&D'!$C$58*$F$173/'T&D'!$E$45*LossFactor!$P$4*(1-LossFactor!$M$4)) -> 0 | AM75: ='BD RD Feedstock'!$R$200 -> No Data | AO75: =IF(AM75="No Data",0,AM75/10*'T&D'!$C$58*$F$173/'T&D'!$E$45*LossFactor!$P$4*(1-LossFactor!$M$4)) -> 0
D76: Canola Oil transported by Heavy Duty Diesel Truck, miles | F76: ='BD RD Feedstock'!S38 -> 50 | H76: =IF(F76="No Data",0,F76/50*'T&D'!$J$92/Fuel_Specs!$C$124/$F$173/Fuel_Specs!$B$39*Fuel_Specs!$E$39/Fuel_Specs!$E$121*1000000*LossFactor!$P$4*(1-LossFactor!$M$4))/Fuel_Specs!$H$137 -> 0 | I76: ='BD RD Feedstock'!S65 -> 100 | K76: =IF(I76="No Data",0,I76/50*'T&D'!$J$92/Fuel_Specs!$C$124/$F$173/Fuel_Specs!$B$39*Fuel_Specs!$E$39/Fuel_Specs!$E$121*1000000*LossFactor!$P$4*(1-LossFactor!$M$4))/Fuel_Specs!$H$137 -> 0 | L76: ='BD RD Feedstock'!S92 -> No Data | N76: =IF(L76="No Data",0,L76/50*'T&D'!$J$92/Fuel_Specs!$C$124/$F$173/Fuel_Specs!$B$39*Fuel_Specs!$E$39/Fuel_Specs!$E$121*1000000*LossFactor!$P$4*(1-LossFactor!$M$4))/Fuel_Specs!$H$137 -> 0 | O76: ='BD RD Feedstock'!S119 -> 100 | Q76: =IF(O76="No Data",0,O76/50*'T&D'!$J$92/Fuel_Specs!$C$124/$F$173/Fuel_Specs!$B$39*Fuel_Specs!$E$39/Fuel_Specs!$E$121*1000000*LossFactor!$P$4*(1-LossFactor!$M$4))/Fuel_Specs!$H$137 -> 0 | R76: ='BD RD Feedstock'!S146 -> No Data | T76: =IF(R76="No Data",0,R76/50*'T&D'!$J$92/Fuel_Specs!$C$124/$F$173/Fuel_Specs!$B$39*Fuel_Specs!$E$39/Fuel_Specs!$E$121*1000000*LossFactor!$P$4*(1-LossFactor!$M$4))/Fuel_Specs!$H$137 -> 0 | U76: ='BD RD Feedstock'!S173 -> No Data | W76: =IF(U76="No Data",0,U76/50*'T&D'!$J$92/Fuel_Specs!$C$124/$F$173/Fuel_Specs!$B$39*Fuel_Specs!$E$39/Fuel_Specs!$E$121*1000000*LossFactor!$P$4*(1-LossFactor!$M$4))/Fuel_Specs!$H$137 -> 0 | X76: ='BD RD Feedstock'!$S$200 -> No Data | Z76: =IF(X76="No Data",0,X76/50*'T&D'!$J$92/Fuel_Specs!$C$124/$F$173/Fuel_Specs!$B$39*Fuel_Specs!$E$39/Fuel_Specs!$E$121*1000000*LossFactor!$P$4*(1-LossFactor!$M$4))/Fuel_Specs!$H$137 -> 0 | AA76: ='BD RD Feedstock'!$S$200 -> No Data | AC76: =IF(AA76="No Data",0,AA76/50*'T&D'!$J$92/Fuel_Specs!$C$124/$F$173/Fuel_Specs!$B$39*Fuel_Specs!$E$39/Fuel_Specs!$E$121*1000000*LossFactor!$P$4*(1-LossFactor!$M$4))/Fuel_Specs!$H$137 -> 0 | AD76: ='BD RD Feedstock'!$S$200 -> No Data | AF76: =IF(AD76="No Data",0,AD76/50*'T&D'!$J$92/Fuel_Specs!$C$124/$F$173/Fuel_Specs!$B$39*Fuel_Specs!$E$39/Fuel_Specs!$E$121*1000000*LossFactor!$P$4*(1-LossFactor!$M$4))/Fuel_Specs!$H$137 -> 0 | AG76: ='BD RD Feedstock'!$S$200 -> No Data | AI76: =IF(AG76="No Data",0,AG76/50*'T&D'!$J$92/Fuel_Specs!$C$124/$F$173/Fuel_Specs!$B$39*Fuel_Specs!$E$39/Fuel_Specs!$E$121*1000000*LossFactor!$P$4*(1-LossFactor!$M$4))/Fuel_Specs!$H$137 -> 0 | AJ76: ='BD RD Feedstock'!$S$200 -> No Data | AL76: =IF(AJ76="No Data",0,AJ76/50*'T&D'!$J$92/Fuel_Specs!$C$124/$F$173/Fuel_Specs!$B$39*Fuel_Specs!$E$39/Fuel_Specs!$E$121*1000000*LossFactor!$P$4*(1-LossFactor!$M$4))/Fuel_Specs!$H$137 -> 0 | AM76: ='BD RD Feedstock'!$S$200 -> No Data | AO76: =IF(AM76="No Data",0,AM76/50*'T&D'!$J$92/Fuel_Specs!$C$124/$F$173/Fuel_Specs!$B$39*Fuel_Specs!$E$39/Fuel_Specs!$E$121*1000000*LossFactor!$P$4*(1-LossFactor!$M$4))/Fuel_Specs!$H$137 -> 0
D77: Canola Oil transported by Ocean Tanker, miles | F77: ='BD RD Feedstock'!T38 -> 1000 | H77: =IF(F77="No Data",0,F77/1000*'T&D'!$J$93/Fuel_Specs!$C$124/$F$173/Fuel_Specs!$B$39*Fuel_Specs!$E$39/Fuel_Specs!$E$121*1000000*LossFactor!$P$4*(1-LossFactor!$M$4))/Fuel_Specs!$H$137 -> 0 | I77: ='BD RD Feedstock'!T65 -> No Data | K77: =IF(I77="No Data",0,I77/1000*'T&D'!$J$93/Fuel_Specs!$C$124/$F$173/Fuel_Specs!$B$39*Fuel_Specs!$E$39/Fuel_Specs!$E$121*1000000*LossFactor!$P$4*(1-LossFactor!$M$4))/Fuel_Specs!$H$137 -> 0 | L77: ='BD RD Feedstock'!T92 -> No Data | N77: =IF(L77="No Data",0,L77/1000*'T&D'!$J$93/Fuel_Specs!$C$124/$F$173/Fuel_Specs!$B$39*Fuel_Specs!$E$39/Fuel_Specs!$E$121*1000000*LossFactor!$P$4*(1-LossFactor!$M$4))/Fuel_Specs!$H$137 -> 0 | O77: ='BD RD Feedstock'!T119 -> No Data | Q77: =IF(O77="No Data",0,O77/1000*'T&D'!$J$93/Fuel_Specs!$C$124/$F$173/Fuel_Specs!$B$39*Fuel_Specs!$E$39/Fuel_Specs!$E$121*1000000*LossFactor!$P$4*(1-LossFactor!$M$4))/Fuel_Specs!$H$137 -> 0 | R77: ='BD RD Feedstock'!T146 -> No Data | T77: =IF(R77="No Data",0,R77/1000*'T&D'!$J$93/Fuel_Specs!$C$124/$F$173/Fuel_Specs!$B$39*Fuel_Specs!$E$39/Fuel_Specs!$E$121*1000000*LossFactor!$P$4*(1-LossFactor!$M$4))/Fuel_Specs!$H$137 -> 0 | U77: ='BD RD Feedstock'!T173 -> No Data | W77: =IF(U77="No Data",0,U77/1000*'T&D'!$J$93/Fuel_Specs!$C$124/$F$173/Fuel_Specs!$B$39*Fuel_Specs!$E$39/Fuel_Specs!$E$121*1000000*LossFactor!$P$4*(1-LossFactor!$M$4))/Fuel_Specs!$H$137 -> 0 | X77: ='BD RD Feedstock'!$T$200 -> No Data | Z77: =IF(X77="No Data",0,X77/1000*'T&D'!$J$93/Fuel_Specs!$C$124/$F$173/Fuel_Specs!$B$39*Fuel_Specs!$E$39/Fuel_Specs!$E$121*1000000*LossFactor!$P$4*(1-LossFactor!$M$4))/Fuel_Specs!$H$137 -> 0 | AA77: ='BD RD Feedstock'!$T$200 -> No Data | AC77: =IF(AA77="No Data",0,AA77/1000*'T&D'!$J$93/Fuel_Specs!$C$124/$F$173/Fuel_Specs!$B$39*Fuel_Specs!$E$39/Fuel_Specs!$E$121*1000000*LossFactor!$P$4*(1-LossFactor!$M$4))/Fuel_Specs!$H$137 -> 0 | AD77: ='BD RD Feedstock'!$T$200 -> No Data | AF77: =IF(AD77="No Data",0,AD77/1000*'T&D'!$J$93/Fuel_Specs!$C$124/$F$173/Fuel_Specs!$B$39*Fuel_Specs!$E$39/Fuel_Specs!$E$121*1000000*LossFactor!$P$4*(1-LossFactor!$M$4))/Fuel_Specs!$H$137 -> 0 | AG77: ='BD RD Feedstock'!$T$200 -> No Data | AI77: =IF(AG77="No Data",0,AG77/1000*'T&D'!$J$93/Fuel_Specs!$C$124/$F$173/Fuel_Specs!$B$39*Fuel_Specs!$E$39/Fuel_Specs!$E$121*1000000*LossFactor!$P$4*(1-LossFactor!$M$4))/Fuel_Specs!$H$137 -> 0 | AJ77: ='BD RD Feedstock'!$T$200 -> No Data | AL77: =IF(AJ77="No Data",0,AJ77/1000*'T&D'!$J$93/Fuel_Specs!$C$124/$F$173/Fuel_Specs!$B$39*Fuel_Specs!$E$39/Fuel_Specs!$E$121*1000000*LossFactor!$P$4*(1-LossFactor!$M$4))/Fuel_Specs!$H$137 -> 0 | AM77: ='BD RD Feedstock'!$T$200 -> No Data | AO77: =IF(AM77="No Data",0,AM77/1000*'T&D'!$J$93/Fuel_Specs!$C$124/$F$173/Fuel_Specs!$B$39*Fuel_Specs!$E$39/Fuel_Specs!$E$121*1000000*LossFactor!$P$4*(1-LossFactor!$M$4))/Fuel_Specs!$H$137 -> 0
D78: Canola Oil transported by Rail, miles | F78: ='BD RD Feedstock'!U38 -> 10000 | H78: =IF(F78="No Data",0,F78/10000*'T&D'!$J$94/Fuel_Specs!$C$124/$F$173/Fuel_Specs!$B$39*Fuel_Specs!$E$39/Fuel_Specs!$E$121*1000000*LossFactor!$P$4*(1-LossFactor!$M$4))/Fuel_Specs!$H$137 -> 0.4239012556 | I78: ='BD RD Feedstock'!U65 -> 1500 | K78: =IF(I78="No Data",0,I78/10000*'T&D'!$J$94/Fuel_Specs!$C$124/$F$173/Fuel_Specs!$B$39*Fuel_Specs!$E$39/Fuel_Specs!$E$121*1000000*LossFactor!$P$4*(1-LossFactor!$M$4))/Fuel_Specs!$H$137 -> 0.06358518834 | L78: ='BD RD Feedstock'!U92 -> No Data | N78: =IF(L78="No Data",0,L78/10000*'T&D'!$J$94/Fuel_Specs!$C$124/$F$173/Fuel_Specs!$B$39*Fuel_Specs!$E$39/Fuel_Specs!$E$121*1000000*LossFactor!$P$4*(1-LossFactor!$M$4))/Fuel_Specs!$H$137 -> 0 | O78: ='BD RD Feedstock'!U119 -> 700 | Q78: =IF(O78="No Data",0,O78/10000*'T&D'!$J$94/Fuel_Specs!$C$124/$F$173/Fuel_Specs!$B$39*Fuel_Specs!$E$39/Fuel_Specs!$E$121*1000000*LossFactor!$P$4*(1-LossFactor!$M$4))/Fuel_Specs!$H$137 -> 0.02967308789 | R78: ='BD RD Feedstock'!U146 -> No Data | T78: =IF(R78="No Data",0,R78/10000*'T&D'!$J$94/Fuel_Specs!$C$124/$F$173/Fuel_Specs!$B$39*Fuel_Specs!$E$39/Fuel_Specs!$E$121*1000000*LossFactor!$P$4*(1-LossFactor!$M$4))/Fuel_Specs!$H$137 -> 0 | U78: ='BD RD Feedstock'!U173 -> No Data | W78: =IF(U78="No Data",0,U78/10000*'T&D'!$J$94/Fuel_Specs!$C$124/$F$173/Fuel_Specs!$B$39*Fuel_Specs!$E$39/Fuel_Specs!$E$121*1000000*LossFactor!$P$4*(1-LossFactor!$M$4))/Fuel_Specs!$H$137 -> 0 | X78: ='BD RD Feedstock'!$U$200 -> No Data | Z78: =IF(X78="No Data",0,X78/10000*'T&D'!$J$94/Fuel_Specs!$C$124/$F$173/Fuel_Specs!$B$39*Fuel_Specs!$E$39/Fuel_Specs!$E$121*1000000*LossFactor!$P$4*(1-LossFactor!$M$4))/Fuel_Specs!$H$137 -> 0 | AA78: ='BD RD Feedstock'!$U$200 -> No Data | AC78: =IF(AA78="No Data",0,AA78/10000*'T&D'!$J$94/Fuel_Specs!$C$124/$F$173/Fuel_Specs!$B$39*Fuel_Specs!$E$39/Fuel_Specs!$E$121*1000000*LossFactor!$P$4*(1-LossFactor!$M$4))/Fuel_Specs!$H$137 -> 0 | AD78: ='BD RD Feedstock'!$U$200 -> No Data | AF78: =IF(AD78="No Data",0,AD78/10000*'T&D'!$J$94/Fuel_Specs!$C$124/$F$173/Fuel_Specs!$B$39*Fuel_Specs!$E$39/Fuel_Specs!$E$121*1000000*LossFactor!$P$4*(1-LossFactor!$M$4))/Fuel_Specs!$H$137 -> 0 | AG78: ='BD RD Feedstock'!$U$200 -> No Data | AI78: =IF(AG78="No Data",0,AG78/10000*'T&D'!$J$94/Fuel_Specs!$C$124/$F$173/Fuel_Specs!$B$39*Fuel_Specs!$E$39/Fuel_Specs!$E$121*1000000*LossFactor!$P$4*(1-LossFactor!$M$4))/Fuel_Specs!$H$137 -> 0 | AJ78: ='BD RD Feedstock'!$U$200 -> No Data | AL78: =IF(AJ78="No Data",0,AJ78/10000*'T&D'!$J$94/Fuel_Specs!$C$124/$F$173/Fuel_Specs!$B$39*Fuel_Specs!$E$39/Fuel_Specs!$E$121*1000000*LossFactor!$P$4*(1-LossFactor!$M$4))/Fuel_Specs!$H$137 -> 0 | AM78: ='BD RD Feedstock'!$U$200 -> No Data | AO78: =IF(AM78="No Data",0,AM78/10000*'T&D'!$J$94/Fuel_Specs!$C$124/$F$173/Fuel_Specs!$B$39*Fuel_Specs!$E$39/Fuel_Specs!$E$121*1000000*LossFactor!$P$4*(1-LossFactor!$M$4))/Fuel_Specs!$H$137 -> 0
D79: Canola Oil transported by Barge, miles | F79: ='BD RD Feedstock'!V38 -> 1000 | H79: =IF(F79="No Data",0,F79/1000*'T&D'!$J$95/Fuel_Specs!$C$124/$F$173/Fuel_Specs!$B$39*Fuel_Specs!$E$39/Fuel_Specs!$E$121*1000000*LossFactor!$P$4*(1-LossFactor!$M$4))/Fuel_Specs!$H$137 -> 0 | I79: ='BD RD Feedstock'!V65 -> 1000 | K79: =IF(I79="No Data",0,I79/1000*'T&D'!$J$95/Fuel_Specs!$C$124/$F$173/Fuel_Specs!$B$39*Fuel_Specs!$E$39/Fuel_Specs!$E$121*1000000*LossFactor!$P$4*(1-LossFactor!$M$4))/Fuel_Specs!$H$137 -> 0 | L79: ='BD RD Feedstock'!V92 -> No Data | N79: =IF(L79="No Data",0,L79/1000*'T&D'!$J$95/Fuel_Specs!$C$124/$F$173/Fuel_Specs!$B$39*Fuel_Specs!$E$39/Fuel_Specs!$E$121*1000000*LossFactor!$P$4*(1-LossFactor!$M$4))/Fuel_Specs!$H$137 -> 0 | O79: ='BD RD Feedstock'!V119 -> 4000 | Q79: =IF(O79="No Data",0,O79/1000*'T&D'!$J$95/Fuel_Specs!$C$124/$F$173/Fuel_Specs!$B$39*Fuel_Specs!$E$39/Fuel_Specs!$E$121*1000000*LossFactor!$P$4*(1-LossFactor!$M$4))/Fuel_Specs!$H$137 -> 0 | R79: ='BD RD Feedstock'!V146 -> No Data | T79: =IF(R79="No Data",0,R79/1000*'T&D'!$J$95/Fuel_Specs!$C$124/$F$173/Fuel_Specs!$B$39*Fuel_Specs!$E$39/Fuel_Specs!$E$121*1000000*LossFactor!$P$4*(1-LossFactor!$M$4))/Fuel_Specs!$H$137 -> 0 | U79: ='BD RD Feedstock'!V173 -> No Data | W79: =IF(U79="No Data",0,U79/1000*'T&D'!$J$95/Fuel_Specs!$C$124/$F$173/Fuel_Specs!$B$39*Fuel_Specs!$E$39/Fuel_Specs!$E$121*1000000*LossFactor!$P$4*(1-LossFactor!$M$4))/Fuel_Specs!$H$137 -> 0 | X79: ='BD RD Feedstock'!$V$200 -> No Data | Z79: =IF(X79="No Data",0,X79/1000*'T&D'!$J$95/Fuel_Specs!$C$124/$F$173/Fuel_Specs!$B$39*Fuel_Specs!$E$39/Fuel_Specs!$E$121*1000000*LossFactor!$P$4*(1-LossFactor!$M$4))/Fuel_Specs!$H$137 -> 0 | AA79: ='BD RD Feedstock'!$V$200 -> No Data | AC79: =IF(AA79="No Data",0,AA79/1000*'T&D'!$J$95/Fuel_Specs!$C$124/$F$173/Fuel_Specs!$B$39*Fuel_Specs!$E$39/Fuel_Specs!$E$121*1000000*LossFactor!$P$4*(1-LossFactor!$M$4))/Fuel_Specs!$H$137 -> 0 | AD79: ='BD RD Feedstock'!$V$200 -> No Data | AF79: =IF(AD79="No Data",0,AD79/1000*'T&D'!$J$95/Fuel_Specs!$C$124/$F$173/Fuel_Specs!$B$39*Fuel_Specs!$E$39/Fuel_Specs!$E$121*1000000*LossFactor!$P$4*(1-LossFactor!$M$4))/Fuel_Specs!$H$137 -> 0 | AG79: ='BD RD Feedstock'!$V$200 -> No Data | AI79: =IF(AG79="No Data",0,AG79/1000*'T&D'!$J$95/Fuel_Specs!$C$124/$F$173/Fuel_Specs!$B$39*Fuel_Specs!$E$39/Fuel_Specs!$E$121*1000000*LossFactor!$P$4*(1-LossFactor!$M$4))/Fuel_Specs!$H$137 -> 0 | AJ79: ='BD RD Feedstock'!$V$200 -> No Data | AL79: =IF(AJ79="No Data",0,AJ79/1000*'T&D'!$J$95/Fuel_Specs!$C$124/$F$173/Fuel_Specs!$B$39*Fuel_Specs!$E$39/Fuel_Specs!$E$121*1000000*LossFactor!$P$4*(1-LossFactor!$M$4))/Fuel_Specs!$H$137 -> 0 | AM79: ='BD RD Feedstock'!$V$200 -> No Data | AO79: =IF(AM79="No Data",0,AM79/1000*'T&D'!$J$95/Fuel_Specs!$C$124/$F$173/Fuel_Specs!$B$39*Fuel_Specs!$E$39/Fuel_Specs!$E$121*1000000*LossFactor!$P$4*(1-LossFactor!$M$4))/Fuel_Specs!$H$137 -> 0
B80: ILUC | H80: =14.5 -> 14.5 | K80: =H80 -> 14.5 | N80: =H80 -> 14.5 | Q80: =H80 -> 14.5 | T80: =H80 -> 14.5 | W80: =H80 -> 14.5 | Z80: =K80 -> 14.5 | AC80: =N80 -> 14.5 | AF80: =Q80 -> 14.5 | AI80: =T80 -> 14.5 | AL80: =W80 -> 14.5 | AO80: =Z80 -> 14.5
B81: Feedstock Production | F81: =IF('BD RD Feedstock'!C3="Corn Oil","Corn Oil 1","") ->  | G81: =IF(F81="Corn Oil 1",'BD RD Feedstock'!C8,"") ->  | H81: =H82+H83+H84+H85+H95 -> 6.542136681 | I81: =IF('BD RD Feedstock'!D3="Corn Oil","Corn Oil 2","") ->  | J81: =IF(I81="Corn Oil 2",'BD RD Feedstock'!D8,"") ->  | K81: =K82+K83+K84+K85+K95 -> 0.5995066829 | L81: =IF('BD RD Feedstock'!E3="Corn Oil","Corn Oil 3","") -> Corn Oil 3 | M81: =IF(L81="Corn Oil 3",'BD RD Feedstock'!E8,"") -> None | N81: =N82+N83+N84+N85+N95 -> 0 | O81: =IF('BD RD Feedstock'!F3="Corn Oil","Corn Oil 4","") ->  | P81: =IF(O81="Corn Oil 4",'BD RD Feedstock'!F8,"") ->  | Q81: =Q82+Q83+Q84+Q85+Q95 -> 0.02967308789 | R81: =IF('BD RD Feedstock'!G3="Corn Oil","Corn Oil 5","") ->  | S81: =IF(R81="Corn Oil 5",'BD RD Feedstock'!G8,"") ->  | T81: =T82+T83+T84+T85+T95 -> 0 | U81: =IF('BD RD Feedstock'!H3="Corn Oil","Corn Oil 6","") ->  | V81: =IF(U81="Corn Oil 6",'BD RD Feedstock'!H8,"") ->  | W81: =W82+W83+W84+W85+W95 -> 0 | X81: =IF('BD RD Feedstock'!I3="Corn Oil","Corn Oil 7","") ->  | Y81: =IF(X81="Corn Oil 7",'BD RD Feedstock'!I8,"") ->  | Z81: =Z82+Z83+Z84+Z85+Z95 -> 0 | AA81: =IF('BD RD Feedstock'!J3="Corn Oil","Corn Oil 8","") ->  | AB81: =IF(AA81="Corn Oil 8",'BD RD Feedstock'!J8,"") ->  | AC81: =AC82+AC83+AC84+AC85+AC95 -> 0 | AD81: =IF('BD RD Feedstock'!K3="Corn Oil","Corn Oil 9","") ->  | AE81: =IF(AD81="Corn Oil 9",'BD RD Feedstock'!K8,"") ->  | AF81: =AF82+AF83+AF84+AF85+AF95 -> 0 | AG81: =IF('BD RD Feedstock'!L3="Corn Oil","Corn Oil 10","") ->  | AH81: =IF(AG81="Corn Oil 10",'BD RD Feedstock'!L8,"") ->  | AI81: =AI82+AI83+AI84+AI85+AI95 -> 0 | AJ81: =IF('BD RD Feedstock'!M3="Corn Oil","Corn Oil 11","") ->  | AK81: =IF(AJ81="Corn Oil 11",'BD RD Feedstock'!M8,"") ->  | AL81: =AL82+AL83+AL84+AL85+AL95 -> 0 | AM81: =IF('BD RD Feedstock'!N3="Corn Oil","Corn Oil 12","") ->  | AN81: =IF(AM81="Corn Oil 12",'BD RD Feedstock'!N8,"") ->  | AO81: =AO82+AO83+AO84+AO85+AO95 -> 0
B82: Corn Oil Extraction Yield | D82: Oil Yield, lb oil/lb DGS | F82: =0.02/5.635 -> 0.003549245785
A83: Corn Oil | B83: Corn Oil Transport | D83: Corn Oil transported by Medium Truck, miles | F83: 10 | H83: ='T&D'!$B$58*F83/10 -> 0 | I83: 10 | K83: ='T&D'!$B$58*I83/10 -> 0 | L83: 10 | N83: ='T&D'!$B$58*L83/10 -> 0 | O83: 10 | Q83: ='T&D'!$B$58*O83/10 -> 0 | R83: 10 | T83: ='T&D'!$B$58*R83/10 -> 0 | U83: 10 | W83: ='T&D'!$B$58*U83/10 -> 0 | X83: 10 | Z83: ='T&D'!$B$58*X83/10 -> 0 | AA83: 10 | AC83: ='T&D'!$B$58*AA83/10 -> 0 | AD83: 10 | AF83: ='T&D'!$B$58*AD83/10 -> 0 | AG83: 10 | AI83: ='T&D'!$B$58*AG83/10 -> 0 | AJ83: 10 | AL83: ='T&D'!$B$58*AJ83/10 -> 0 | AM83: 10 | AO83: ='T&D'!$B$58*AM83/10 -> 0
D84: Corn Oil transported by Heavy Duty Diesel Truck, miles | F84: 50 | H84: ='T&D'!$J$96*F84/50 -> 0 | I84: 50 | K84: ='T&D'!$K$96*I84/50 -> 0.5359214945 | L84: 50 | N84: ='T&D'!$L$96*L84/50 -> 0 | O84: 50 | Q84: ='T&D'!$M$96*O84/50 -> 0 | R84: 50 | T84: ='T&D'!$N$96*R84/50 -> 0 | U84: 50 | W84: ='T&D'!$O$96*U84/50 -> 0 | X84: 50 | Z84: ='T&D'!$P$96*X84/50 -> 0 | AA84: 50 | AC84: ='T&D'!$Q$96*AA84/50 -> 0 | AD84: 50 | AF84: ='T&D'!$R$96*AD84/50 -> 0 | AG84: 50 | AI84: ='T&D'!$S$96*AG84/50 -> 0 | AJ84: 50 | AL84: ='T&D'!$T$96*AJ84/50 -> 0 | AM84: 50 | AO84: ='T&D'!$U$96*AM84/50 -> 0
B85: Corn Oil Extraction | D85: Total, Btu/lb oil | F85: 924.29 | H85: =IF('BD RD Feedstock'!C6="Use Standard Values",Ag_Inputs!B149,SUM(H86:H94)) -> 6.118235426 | K85: =IF('BD RD Feedstock'!D6="Use Standard Values",Ag_Inputs!C149,SUM(K86:K94)) -> 0 | N85: =IF('BD RD Feedstock'!E6="Use Standard Values",Ag_Inputs!D149,SUM(N86:N94)) -> 0 | Q85: =IF('BD RD Feedstock'!F6="Use Standard Values",Ag_Inputs!E149,SUM(Q86:Q94)) -> 0 | T85: =IF('BD RD Feedstock'!G6="Use Standard Values",Ag_Inputs!F149,SUM(T86:T94)) -> 0 | W85: =IF('BD RD Feedstock'!H6="Use Standard Values",Ag_Inputs!G149,SUM(W86:W94)) -> 0 | Z85: =IF('BD RD Feedstock'!I6="Use Standard Values",Ag_Inputs!H149,SUM(Z86:Z94)) -> 0 | AC85: =IF('BD RD Feedstock'!L6="Use Standard Values",Ag_Inputs!I149,SUM(AC86:AC94)) -> 0 | AF85: =IF('BD RD Feedstock'!O6="Use Standard Values",Ag_Inputs!J149,SUM(AF86:AF94)) -> 0 | AI85: =IF('BD RD Feedstock'!R6="Use Standard Values",Ag_Inputs!K149,SUM(AI86:AI94)) -> 0 | AL85: =IF('BD RD Feedstock'!U6="Use Standard Values",Ag_Inputs!L149,SUM(AL86:AL94)) -> 0 | AO85: =IF('BD RD Feedstock'!X6="Use Standard Values",Ag_Inputs!M149,SUM(AO86:AO94)) -> 0
D86: Residual Oil
D87: Diesel
E88: Gasoline
D89: Natural Gas | F89: 767.25 | G89: =F89/F85 -> 0.8300966147 | H89: =F89*(0*EF!$G16+0*EF!$D16+50%*EF!$B16+50%*EF!$C16+NG!$AO$5)/Fuel_Specs!$B$149*LossFactor!$P$4*(1-LossFactor!$M$4) -> 3.117231224
D90: Coal | H90: =F90*(100%*EF!$AC6+Coal!$AH$5)/1000000*LossFactor!$P$4*(1-LossFactor!$M$4) -> 0
E91: LPG
D92: N-Hexane
D93: Eletricity | F93: 157.03 | G93: =F93/F85 -> 0.1698925662 | H93: =F93*(Electricity!BP$6+Electricity!BP$7)/Fuel_Specs!$B$149*LossFactor!$P$4*(1-LossFactor!$M$4) -> 3.001004201
D94: Renewable NG
B95: Corn Oil Transport | H95: =SUM(H96:H100) -> 0.4239012556 | K95: =SUM(K96:K100) -> 0.06358518834 | N95: =SUM(N96:N100) -> 0 | Q95: =SUM(Q96:Q100) -> 0.02967308789 | T95: =SUM(T96:T100) -> 0 | W95: =SUM(W96:W100) -> 0 | Z95: =SUM(Z96:Z100) -> 0 | AC95: =SUM(AC96:AC100) -> 0 | AF95: =SUM(AF96:AF100) -> 0 | AI95: =SUM(AI96:AI100) -> 0 | AL95: =SUM(AL96:AL100) -> 0 | AO95: =SUM(AO96:AO100) -> 0
D96: Corn Oil transported by Medium Truck, miles | F96: ='BD RD Feedstock'!R38 -> No Data | H96: =IF(F96="No Data",0,F96/10*'T&D'!$C$58/Fuel_Specs!$C$124/$F$173/Fuel_Specs!$B$39*Fuel_Specs!$E$39/Fuel_Specs!$E$121*1000000*LossFactor!$P$4*(1-LossFactor!$M$4))/Fuel_Specs!$H$137 -> 0 | I96: ='BD RD Feedstock'!R65 -> No Data | K96: =IF(I96="No Data",0,I96/10*'T&D'!$C$58*$F$173/'T&D'!$E$45*LossFactor!$P$4*(1-LossFactor!$M$4)) -> 0 | L96: ='BD RD Feedstock'!R92 -> No Data | N96: =IF(L96="No Data",0,L96/10*'T&D'!$C$58*$F$173/'T&D'!$E$45*LossFactor!$P$4*(1-LossFactor!$M$4)) -> 0 | O96: ='BD RD Feedstock'!R119 -> No Data | Q96: =IF(O96="No Data",0,O96/10*'T&D'!$C$58*$F$173/'T&D'!$E$45*LossFactor!$P$4*(1-LossFactor!$M$4)) -> 0 | R96: ='BD RD Feedstock'!R146 -> No Data | T96: =IF(R96="No Data",0,R96/10*'T&D'!$C$58*$F$173/'T&D'!$E$45*LossFactor!$P$4*(1-LossFactor!$M$4)) -> 0 | U96: ='BD RD Feedstock'!R173 -> No Data | W96: =IF(U96="No Data",0,U96/10*'T&D'!$C$58*$F$173/'T&D'!$E$45*LossFactor!$P$4*(1-LossFactor!$M$4)) -> 0 | X96: ='BD RD Feedstock'!$R$200 -> No Data | Z96: =IF(X96="No Data",0,X96/10*'T&D'!$C$58*$F$173/'T&D'!$E$45*LossFactor!$P$4*(1-LossFactor!$M$4)) -> 0 | AA96: ='BD RD Feedstock'!$R$200 -> No Data | AC96: =IF(AA96="No Data",0,AA96/10*'T&D'!$C$58*$F$173/'T&D'!$E$45*LossFactor!$P$4*(1-LossFactor!$M$4)) -> 0 | AD96: ='BD RD Feedstock'!$R$200 -> No Data | AF96: =IF(AD96="No Data",0,AD96/10*'T&D'!$C$58*$F$173/'T&D'!$E$45*LossFactor!$P$4*(1-LossFactor!$M$4)) -> 0 | AG96: ='BD RD Feedstock'!$R$200 -> No Data | AI96: =IF(AG96="No Data",0,AG96/10*'T&D'!$C$58*$F$173/'T&D'!$E$45*LossFactor!$P$4*(1-LossFactor!$M$4)) -> 0 | AJ96: ='BD RD Feedstock'!$R$200 -> No Data | AL96: =IF(AJ96="No Data",0,AJ96/10*'T&D'!$C$58*$F$173/'T&D'!$E$45*LossFactor!$P$4*(1-LossFactor!$M$4)) -> 0 | AM96: ='BD RD Feedstock'!$R$200 -> No Data | AO96: =IF(AM96="No Data",0,AM96/10*'T&D'!$C$58*$F$173/'T&D'!$E$45*LossFactor!$P$4*(1-LossFactor!$M$4)) -> 0
D97: Corn Oil transported by Heavy Duty Diesel Truck, miles | F97: ='BD RD Feedstock'!S38 -> 50 | H97: =IF(F97="No Data",0,F97/50*'T&D'!$J$92/Fuel_Specs!$C$124/$F$173/Fuel_Specs!$B$39*Fuel_Specs!$E$39/Fuel_Specs!$E$121*1000000*LossFactor!$P$4*(1-LossFactor!$M$4))/Fuel_Specs!$H$137 -> 0 | I97: ='BD RD Feedstock'!S65 -> 100 | K97: =IF(I97="No Data",0,I97/50*'T&D'!$J$92/Fuel_Specs!$C$124/$F$173/Fuel_Specs!$B$39*Fuel_Specs!$E$39/Fuel_Specs!$E$121*1000000*LossFactor!$P$4*(1-LossFactor!$M$4))/Fuel_Specs!$H$137 -> 0 | L97: ='BD RD Feedstock'!S92 -> No Data | N97: =IF(L97="No Data",0,L97/50*'T&D'!$J$92/Fuel_Specs!$C$124/$F$173/Fuel_Specs!$B$39*Fuel_Specs!$E$39/Fuel_Specs!$E$121*1000000*LossFactor!$P$4*(1-LossFactor!$M$4))/Fuel_Specs!$H$137 -> 0 | O97: ='BD RD Feedstock'!S119 -> 100 | Q97: =IF(O97="No Data",0,O97/50*'T&D'!$J$92/Fuel_Specs!$C$124/$F$173/Fuel_Specs!$B$39*Fuel_Specs!$E$39/Fuel_Specs!$E$121*1000000*LossFactor!$P$4*(1-LossFactor!$M$4))/Fuel_Specs!$H$137 -> 0 | R97: ='BD RD Feedstock'!S146 -> No Data | T97: =IF(R97="No Data",0,R97/50*'T&D'!$J$92/Fuel_Specs!$C$124/$F$173/Fuel_Specs!$B$39*Fuel_Specs!$E$39/Fuel_Specs!$E$121*1000000*LossFactor!$P$4*(1-LossFactor!$M$4))/Fuel_Specs!$H$137 -> 0 | U97: ='BD RD Feedstock'!S173 -> No Data | W97: =IF(U97="No Data",0,U97/50*'T&D'!$J$92/Fuel_Specs!$C$124/$F$173/Fuel_Specs!$B$39*Fuel_Specs!$E$39/Fuel_Specs!$E$121*1000000*LossFactor!$P$4*(1-LossFactor!$M$4))/Fuel_Specs!$H$137 -> 0 | X97: ='BD RD Feedstock'!$S$200 -> No Data | Z97: =IF(X97="No Data",0,X97/50*'T&D'!$J$92/Fuel_Specs!$C$124/$F$173/Fuel_Specs!$B$39*Fuel_Specs!$E$39/Fuel_Specs!$E$121*1000000*LossFactor!$P$4*(1-LossFactor!$M$4))/Fuel_Specs!$H$137 -> 0 | AA97: ='BD RD Feedstock'!$S$200 -> No Data | AC97: =IF(AA97="No Data",0,AA97/50*'T&D'!$J$92/Fuel_Specs!$C$124/$F$173/Fuel_Specs!$B$39*Fuel_Specs!$E$39/Fuel_Specs!$E$121*1000000*LossFactor!$P$4*(1-LossFactor!$M$4))/Fuel_Specs!$H$137 -> 0 | AD97: ='BD RD Feedstock'!$S$200 -> No Data | AF97: =IF(AD97="No Data",0,AD97/50*'T&D'!$J$92/Fuel_Specs!$C$124/$F$173/Fuel_Specs!$B$39*Fuel_Specs!$E$39/Fuel_Specs!$E$121*1000000*LossFactor!$P$4*(1-LossFactor!$M$4))/Fuel_Specs!$H$137 -> 0 | AG97: ='BD RD Feedstock'!$S$200 -> No Data | AI97: =IF(AG97="No Data",0,AG97/50*'T&D'!$J$92/Fuel_Specs!$C$124/$F$173/Fuel_Specs!$B$39*Fuel_Specs!$E$39/Fuel_Specs!$E$121*1000000*LossFactor!$P$4*(1-LossFactor!$M$4))/Fuel_Specs!$H$137 -> 0 | AJ97: ='BD RD Feedstock'!$S$200 -> No Data | AL97: =IF(AJ97="No Data",0,AJ97/50*'T&D'!$J$92/Fuel_Specs!$C$124/$F$173/Fuel_Specs!$B$39*Fuel_Specs!$E$39/Fuel_Specs!$E$121*1000000*LossFactor!$P$4*(1-LossFactor!$M$4))/Fuel_Specs!$H$137 -> 0 | AM97: ='BD RD Feedstock'!$S$200 -> No Data | AO97: =IF(AM97="No Data",0,AM97/50*'T&D'!$J$92/Fuel_Specs!$C$124/$F$173/Fuel_Specs!$B$39*Fuel_Specs!$E$39/Fuel_Specs!$E$121*1000000*LossFactor!$P$4*(1-LossFactor!$M$4))/Fuel_Specs!$H$137 -> 0
D98: Corn Oil transported by Ocean Tanker, miles | F98: ='BD RD Feedstock'!T38 -> 1000 | H98: =IF(F98="No Data",0,F98/1000*'T&D'!$J$93/Fuel_Specs!$C$124/$F$173/Fuel_Specs!$B$39*Fuel_Specs!$E$39/Fuel_Specs!$E$121*1000000*LossFactor!$P$4*(1-LossFactor!$M$4))/Fuel_Specs!$H$137 -> 0 | I98: ='BD RD Feedstock'!T65 -> No Data | K98: =IF(I98="No Data",0,I98/1000*'T&D'!$J$93/Fuel_Specs!$C$124/$F$173/Fuel_Specs!$B$39*Fuel_Specs!$E$39/Fuel_Specs!$E$121*1000000*LossFactor!$P$4*(1-LossFactor!$M$4))/Fuel_Specs!$H$137 -> 0 | L98: ='BD RD Feedstock'!T92 -> No Data | N98: =IF(L98="No Data",0,L98/1000*'T&D'!$J$93/Fuel_Specs!$C$124/$F$173/Fuel_Specs!$B$39*Fuel_Specs!$E$39/Fuel_Specs!$E$121*1000000*LossFactor!$P$4*(1-LossFactor!$M$4))/Fuel_Specs!$H$137 -> 0 | O98: ='BD RD Feedstock'!T119 -> No Data | Q98: =IF(O98="No Data",0,O98/1000*'T&D'!$J$93/Fuel_Specs!$C$124/$F$173/Fuel_Specs!$B$39*Fuel_Specs!$E$39/Fuel_Specs!$E$121*1000000*LossFactor!$P$4*(1-LossFactor!$M$4))/Fuel_Specs!$H$137 -> 0 | R98: ='BD RD Feedstock'!T146 -> No Data | T98: =IF(R98="No Data",0,R98/1000*'T&D'!$J$93/Fuel_Specs!$C$124/$F$173/Fuel_Specs!$B$39*Fuel_Specs!$E$39/Fuel_Specs!$E$121*1000000*LossFactor!$P$4*(1-LossFactor!$M$4))/Fuel_Specs!$H$137 -> 0 | U98: ='BD RD Feedstock'!T173 -> No Data | W98: =IF(U98="No Data",0,U98/1000*'T&D'!$J$93/Fuel_Specs!$C$124/$F$173/Fuel_Specs!$B$39*Fuel_Specs!$E$39/Fuel_Specs!$E$121*1000000*LossFactor!$P$4*(1-LossFactor!$M$4))/Fuel_Specs!$H$137 -> 0 | X98: ='BD RD Feedstock'!$T$200 -> No Data | Z98: =IF(X98="No Data",0,X98/1000*'T&D'!$J$93/Fuel_Specs!$C$124/$F$173/Fuel_Specs!$B$39*Fuel_Specs!$E$39/Fuel_Specs!$E$121*1000000*LossFactor!$P$4*(1-LossFactor!$M$4))/Fuel_Specs!$H$137 -> 0 | AA98: ='BD RD Feedstock'!$T$200 -> No Data | AC98: =IF(AA98="No Data",0,AA98/1000*'T&D'!$J$93/Fuel_Specs!$C$124/$F$173/Fuel_Specs!$B$39*Fuel_Specs!$E$39/Fuel_Specs!$E$121*1000000*LossFactor!$P$4*(1-LossFactor!$M$4))/Fuel_Specs!$H$137 -> 0 | AD98: ='BD RD Feedstock'!$T$200 -> No Data | AF98: =IF(AD98="No Data",0,AD98/1000*'T&D'!$J$93/Fuel_Specs!$C$124/$F$173/Fuel_Specs!$B$39*Fuel_Specs!$E$39/Fuel_Specs!$E$121*1000000*LossFactor!$P$4*(1-LossFactor!$M$4))/Fuel_Specs!$H$137 -> 0 | AG98: ='BD RD Feedstock'!$T$200 -> No Data | AI98: =IF(AG98="No Data",0,AG98/1000*'T&D'!$J$93/Fuel_Specs!$C$124/$F$173/Fuel_Specs!$B$39*Fuel_Specs!$E$39/Fuel_Specs!$E$121*1000000*LossFactor!$P$4*(1-LossFactor!$M$4))/Fuel_Specs!$H$137 -> 0 | AJ98: ='BD RD Feedstock'!$T$200 -> No Data | AL98: =IF(AJ98="No Data",0,AJ98/1000*'T&D'!$J$93/Fuel_Specs!$C$124/$F$173/Fuel_Specs!$B$39*Fuel_Specs!$E$39/Fuel_Specs!$E$121*1000000*LossFactor!$P$4*(1-LossFactor!$M$4))/Fuel_Specs!$H$137 -> 0 | AM98: ='BD RD Feedstock'!$T$200 -> No Data | AO98: =IF(AM98="No Data",0,AM98/1000*'T&D'!$J$93/Fuel_Specs!$C$124/$F$173/Fuel_Specs!$B$39*Fuel_Specs!$E$39/Fuel_Specs!$E$121*1000000*LossFactor!$P$4*(1-LossFactor!$M$4))/Fuel_Specs!$H$137 -> 0
D99: Corn Oil transported by Rail, miles | F99: ='BD RD Feedstock'!U38 -> 10000 | H99: =IF(F99="No Data",0,F99/10000*'T&D'!$J$94/Fuel_Specs!$C$124/$F$173/Fuel_Specs!$B$39*Fuel_Specs!$E$39/Fuel_Specs!$E$121*1000000*LossFactor!$P$4*(1-LossFactor!$M$4))/Fuel_Specs!$H$137 -> 0.4239012556 | I99: ='BD RD Feedstock'!U65 -> 1500 | K99: =IF(I99="No Data",0,I99/10000*'T&D'!$J$94/Fuel_Specs!$C$124/$F$173/Fuel_Specs!$B$39*Fuel_Specs!$E$39/Fuel_Specs!$E$121*1000000*LossFactor!$P$4*(1-LossFactor!$M$4))/Fuel_Specs!$H$137 -> 0.06358518834 | L99: ='BD RD Feedstock'!U92 -> No Data | N99: =IF(L99="No Data",0,L99/10000*'T&D'!$J$94/Fuel_Specs!$C$124/$F$173/Fuel_Specs!$B$39*Fuel_Specs!$E$39/Fuel_Specs!$E$121*1000000*LossFactor!$P$4*(1-LossFactor!$M$4))/Fuel_Specs!$H$137 -> 0 | O99: ='BD RD Feedstock'!U119 -> 700 | Q99: =IF(O99="No Data",0,O99/10000*'T&D'!$J$94/Fuel_Specs!$C$124/$F$173/Fuel_Specs!$B$39*Fuel_Specs!$E$39/Fuel_Specs!$E$121*1000000*LossFactor!$P$4*(1-LossFactor!$M$4))/Fuel_Specs!$H$137 -> 0.02967308789 | R99: ='BD RD Feedstock'!U146 -> No Data | T99: =IF(R99="No Data",0,R99/10000*'T&D'!$J$94/Fuel_Specs!$C$124/$F$173/Fuel_Specs!$B$39*Fuel_Specs!$E$39/Fuel_Specs!$E$121*1000000*LossFactor!$P$4*(1-LossFactor!$M$4))/Fuel_Specs!$H$137 -> 0 | U99: ='BD RD Feedstock'!U173 -> No Data | W99: =IF(U99="No Data",0,U99/10000*'T&D'!$J$94/Fuel_Specs!$C$124/$F$173/Fuel_Specs!$B$39*Fuel_Specs!$E$39/Fuel_Specs!$E$121*1000000*LossFactor!$P$4*(1-LossFactor!$M$4))/Fuel_Specs!$H$137 -> 0 | X99: ='BD RD Feedstock'!$U$200 -> No Data | Z99: =IF(X99="No Data",0,X99/10000*'T&D'!$J$94/Fuel_Specs!$C$124/$F$173/Fuel_Specs!$B$39*Fuel_Specs!$E$39/Fuel_Specs!$E$121*1000000*LossFactor!$P$4*(1-LossFactor!$M$4))/Fuel_Specs!$H$137 -> 0 | AA99: ='BD RD Feedstock'!$U$200 -> No Data | AC99: =IF(AA99="No Data",0,AA99/10000*'T&D'!$J$94/Fuel_Specs!$C$124/$F$173/Fuel_Specs!$B$39*Fuel_Specs!$E$39/Fuel_Specs!$E$121*1000000*LossFactor!$P$4*(1-LossFactor!$M$4))/Fuel_Specs!$H$137 -> 0 | AD99: ='BD RD Feedstock'!$U$200 -> No Data | AF99: =IF(AD99="No Data",0,AD99/10000*'T&D'!$J$94/Fuel_Specs!$C$124/$F$173/Fuel_Specs!$B$39*Fuel_Specs!$E$39/Fuel_Specs!$E$121*1000000*LossFactor!$P$4*(1-LossFactor!$M$4))/Fuel_Specs!$H$137 -> 0 | AG99: ='BD RD Feedstock'!$U$200 -> No Data | AI99: =IF(AG99="No Data",0,AG99/10000*'T&D'!$J$94/Fuel_Specs!$C$124/$F$173/Fuel_Specs!$B$39*Fuel_Specs!$E$39/Fuel_Specs!$E$121*1000000*LossFactor!$P$4*(1-LossFactor!$M$4))/Fuel_Specs!$H$137 -> 0 | AJ99: ='BD RD Feedstock'!$U$200 -> No Data | AL99: =IF(AJ99="No Data",0,AJ99/10000*'T&D'!$J$94/Fuel_Specs!$C$124/$F$173/Fuel_Specs!$B$39*Fuel_Specs!$E$39/Fuel_Specs!$E$121*1000000*LossFactor!$P$4*(1-LossFactor!$M$4))/Fuel_Specs!$H$137 -> 0 | AM99: ='BD RD Feedstock'!$U$200 -> No Data | AO99: =IF(AM99="No Data",0,AM99/10000*'T&D'!$J$94/Fuel_Specs!$C$124/$F$173/Fuel_Specs!$B$39*Fuel_Specs!$E$39/Fuel_Specs!$E$121*1000000*LossFactor!$P$4*(1-LossFactor!$M$4))/Fuel_Specs!$H$137 -> 0
D100: Corn Oil transported by Barge, miles | F100: ='BD RD Feedstock'!V38 -> 1000 | H100: =IF(F100="No Data",0,F100/1000*'T&D'!$J$95/Fuel_Specs!$C$124/$F$173/Fuel_Specs!$B$39*Fuel_Specs!$E$39/Fuel_Specs!$E$121*1000000*LossFactor!$P$4*(1-LossFactor!$M$4))/Fuel_Specs!$H$137 -> 0 | I100: ='BD RD Feedstock'!V65 -> 1000 | K100: =IF(I100="No Data",0,I100/1000*'T&D'!$J$95/Fuel_Specs!$C$124/$F$173/Fuel_Specs!$B$39*Fuel_Specs!$E$39/Fuel_Specs!$E$121*1000000*LossFactor!$P$4*(1-LossFactor!$M$4))/Fuel_Specs!$H$137 -> 0 | L100: ='BD RD Feedstock'!V92 -> No Data | N100: =IF(L100="No Data",0,L100/1000*'T&D'!$J$95/Fuel_Specs!$C$124/$F$173/Fuel_Specs!$B$39*Fuel_Specs!$E$39/Fuel_Specs!$E$121*1000000*LossFactor!$P$4*(1-LossFactor!$M$4))/Fuel_Specs!$H$137 -> 0 | O100: ='BD RD Feedstock'!V119 -> 4000 | Q100: =IF(O100="No Data",0,O100/1000*'T&D'!$J$95/Fuel_Specs!$C$124/$F$173/Fuel_Specs!$B$39*Fuel_Specs!$E$39/Fuel_Specs!$E$121*1000000*LossFactor!$P$4*(1-LossFactor!$M$4))/Fuel_Specs!$H$137 -> 0 | R100: ='BD RD Feedstock'!V146 -> No Data | T100: =IF(R100="No Data",0,R100/1000*'T&D'!$J$95/Fuel_Specs!$C$124/$F$173/Fuel_Specs!$B$39*Fuel_Specs!$E$39/Fuel_Specs!$E$121*1000000*LossFactor!$P$4*(1-LossFactor!$M$4))/Fuel_Specs!$H$137 -> 0 | U100: ='BD RD Feedstock'!V173 -> No Data | W100: =IF(U100="No Data",0,U100/1000*'T&D'!$J$95/Fuel_Specs!$C$124/$F$173/Fuel_Specs!$B$39*Fuel_Specs!$E$39/Fuel_Specs!$E$121*1000000*LossFactor!$P$4*(1-LossFactor!$M$4))/Fuel_Specs!$H$137 -> 0 | X100: ='BD RD Feedstock'!$V$200 -> No Data | Z100: =IF(X100="No Data",0,X100/1000*'T&D'!$J$95/Fuel_Specs!$C$124/$F$173/Fuel_Specs!$B$39*Fuel_Specs!$E$39/Fuel_Specs!$E$121*1000000*LossFactor!$P$4*(1-LossFactor!$M$4))/Fuel_Specs!$H$137 -> 0 | AA100: ='BD RD Feedstock'!$V$200 -> No Data | AC100: =IF(AA100="No Data",0,AA100/1000*'T&D'!$J$95/Fuel_Specs!$C$124/$F$173/Fuel_Specs!$B$39*Fuel_Specs!$E$39/Fuel_Specs!$E$121*1000000*LossFactor!$P$4*(1-LossFactor!$M$4))/Fuel_Specs!$H$137 -> 0 | AD100: ='BD RD Feedstock'!$V$200 -> No Data | AF100: =IF(AD100="No Data",0,AD100/1000*'T&D'!$J$95/Fuel_Specs!$C$124/$F$173/Fuel_Specs!$B$39*Fuel_Specs!$E$39/Fuel_Specs!$E$121*1000000*LossFactor!$P$4*(1-LossFactor!$M$4))/Fuel_Specs!$H$137 -> 0 | AG100: ='BD RD Feedstock'!$V$200 -> No Data | AI100: =IF(AG100="No Data",0,AG100/1000*'T&D'!$J$95/Fuel_Specs!$C$124/$F$173/Fuel_Specs!$B$39*Fuel_Specs!$E$39/Fuel_Specs!$E$121*1000000*LossFactor!$P$4*(1-LossFactor!$M$4))/Fuel_Specs!$H$137 -> 0 | AJ100: ='BD RD Feedstock'!$V$200 -> No Data | AL100: =IF(AJ100="No Data",0,AJ100/1000*'T&D'!$J$95/Fuel_Specs!$C$124/$F$173/Fuel_Specs!$B$39*Fuel_Specs!$E$39/Fuel_Specs!$E$121*1000000*LossFactor!$P$4*(1-LossFactor!$M$4))/Fuel_Specs!$H$137 -> 0 | AM100: ='BD RD Feedstock'!$V$200 -> No Data | AO100: =IF(AM100="No Data",0,AM100/1000*'T&D'!$J$95/Fuel_Specs!$C$124/$F$173/Fuel_Specs!$B$39*Fuel_Specs!$E$39/Fuel_Specs!$E$121*1000000*LossFactor!$P$4*(1-LossFactor!$M$4))/Fuel_Specs!$H$137 -> 0
B101: ILUC | H101: 0 | K101: =H101 -> 0 | N101: =K101 -> 0
B102: Feedstock Production | F102: =IF('BD RD Feedstock'!C3="Used Cooking Oil","UCO 1","") ->  | G102: =IF(F81="UCO 1",'BD RD Feedstock'!C8,"") ->  | H102: =H103+H104+H105+H106+H115 -> 20.84611981 | I102: =IF('BD RD Feedstock'!D3="Used Cooking Oil","UCO 2","") ->  | J102: =IF(I102="UCO 2",'BD RD Feedstock'!D8,"") ->  | K102: =K103+K104+K105+K106+K115 -> 0.5995066829 | L102: =IF('BD RD Feedstock'!E3="Used Cooking Oil","UCO 3","") ->  | M102: =IF(L102="UCO 3",'BD RD Feedstock'!E8,"") ->  | N102: =N103+N104+N105+N106+N115 -> 0 | O102: =IF('BD RD Feedstock'!F3="Used Cooking Oil","UCO 4","") ->  | P102: =IF(O102="UCO 4",'BD RD Feedstock'!F8,"") ->  | Q102: =Q103+Q104+Q105+Q106+Q115 -> 0.02967308789 | R102: =IF('BD RD Feedstock'!G3="Used Cooking Oil","UCO 5","") ->  | S102: =IF(R102="UCO 5",'BD RD Feedstock'!G8,"") ->  | T102: =T103+T104+T105+T106+T115 -> 0 | U102: =IF('BD RD Feedstock'!H3="Used Cooking Oil","UCO 6","") ->  | V102: =IF(U102="UCO 6",'BD RD Feedstock'!H8,"") ->  | W102: =W103+W104+W105+W106+W115 -> 0 | X102: =IF('BD RD Feedstock'!I3="Used Cooking Oil","UCO 7","") ->  | Y102: =IF(X102="UCO 7",'BD RD Feedstock'!I8,"") ->  | Z102: =Z103+Z104+Z105+Z106+Z115 -> 0 | AA102: =IF('BD RD Feedstock'!J3="Used Cooking Oil","UCO 8","") ->  | AB102: =IF(AA102="UCO8",'BD RD Feedstock'!J8,"") ->  | AC102: =AC103+AC104+AC105+AC106+AC115 -> 0 | AD102: =IF('BD RD Feedstock'!K3="Used Cooking Oil","UCO 9","") ->  | AE102: =IF(AD102="UCO 9",'BD RD Feedstock'!K8,"") ->  | AF102: =AF103+AF104+AF105+AF106+AF115 -> 0 | AG102: =IF('BD RD Feedstock'!L3="Used Cooking Oil","UCO 10","") ->  | AH102: =IF(AG102="UCO 10",'BD RD Feedstock'!L8,"") ->  | AI102: =AI103+AI104+AI105+AI106+AI115 -> 0 | AJ102: =IF('BD RD Feedstock'!M3="Used Cooking Oil","UCO 11","") ->  | AK102: =IF(AJ102="UCO 11",'BD RD Feedstock'!M8,"") ->  | AL102: =AL103+AL104+AL105+AL106+AL115 -> 0 | AM102: =IF('BD RD Feedstock'!N3="Used Cooking Oil","UCO 12","") ->  | AN102: =IF(AM102="UCO 12",'BD RD Feedstock'!N8,"") ->  | AO102: =AO103+AO104+AO105+AO106+AO115 -> 0
B103: Raw UCO Collection | D103: Oil Yield, lb oil/lb raw UCO | F103: 1.25 | I103: =F103 -> 1.25 | L103: =F103 -> 1.25 | O103: =F103 -> 1.25 | R103: =L103 -> 1.25 | U103: =R103 -> 1.25 | X103: =U103 -> 1.25 | AA103: =X103 -> 1.25 | AD103: =AA103 -> 1.25 | AG103: =AD103 -> 1.25 | AJ103: =AG103 -> 1.25 | AM103: =AJ103 -> 1.25
A104: Used Cooking Oil | B104: Raw UCO Transport | D104: Raw UCO transported by Heavy Truck, miles | F104: 50 | H104: ='T&D'!$J$96*F104/50 -> 0 | I104: 50 | K104: ='T&D'!$K$96*I104/50 -> 0.5359214945 | L104: 50 | N104: ='T&D'!$L$96*L104/50 -> 0 | O104: 50 | Q104: ='T&D'!$M$96*O104/50 -> 0 | R104: 50 | T104: ='T&D'!$N$96*R104/50 -> 0 | U104: 50 | W104: ='T&D'!$O$96*U104/50 -> 0 | X104: 50 | Z104: ='T&D'!$P$96*X104/50 -> 0 | AA104: 50 | AC104: ='T&D'!$Q$96*AA104/50 -> 0 | AD104: 50 | AF104: ='T&D'!$R$96*AD104/50 -> 0 | AG104: 50 | AI104: ='T&D'!$S$96*AG104/50 -> 0 | AJ104: 50 | AL104: ='T&D'!$T$96*AJ104/50 -> 0 | AM104: 50 | AO104: ='T&D'!$U$96*AM104/50 -> 0
B105: UCO Treatment | D105: Total, Btu/lb oil | F105: 1073 | H105: =IF('BD RD Feedstock'!C6="Use Standard Values",4.15,SUM(H106:H114)) -> 20.42221855 | K105: =IF('BD RD Feedstock'!D6="Use Standard Values",4.15,SUM(K106:K114)) -> 0 | N105: =IF('BD RD Feedstock'!E6="Use Standard Values",4.15,SUM(N106:N114)) -> 0 | Q105: =IF('BD RD Feedstock'!F6="Use Standard Values",4.15,SUM(Q106:Q114)) -> 0 | T105: =IF('BD RD Feedstock'!G6="Use Standard Values",4.15,SUM(T106:T114)) -> 0 | W105: =IF('BD RD Feedstock'!H6="Use Standard Values",4.15,SUM(W106:W114)) -> 0 | Z105: =IF('BD RD Feedstock'!I6="Use Standard Values",4.15,SUM(Z106:Z114)) -> 0 | AC105: =IF('BD RD Feedstock'!L6="Use Standard Values",4.15,SUM(AC106:AC114)) -> 0 | AF105: =IF('BD RD Feedstock'!O6="Use Standard Values",4.15,SUM(AF106:AF114)) -> 0 | AI105: =IF('BD RD Feedstock'!R6="Use Standard Values",4.15,SUM(AI106:AI114)) -> 0 | AL105: =IF('BD RD Feedstock'!U6="Use Standard Values",4.15,SUM(AL106:AL114)) -> 0 | AO105: =IF('BD RD Feedstock'!X6="Use Standard Values",4.15,SUM(AO106:AO114)) -> 0
D106: Residual Oil
D107: Diesel
E108: Gasoline
D109: Natural Gas | F109: 963 | G109: =F109/F105 -> 0.8974836906 | H109: =F109*(0*EF!$G35+0*EF!$D35+50%*EF!$B35+50%*EF!$C35+NG!$AO$5)/1000000*LossFactor!$P$4*(1-LossFactor!M23)*$F$173*$F$61/Fuel_Specs!$B$39*Fuel_Specs!$E$39/Fuel_Specs!$E$121*1000000 -> 9.506293168
D110: Coal
E111: LPG
D112: N-Hexane
D113: Eletricity | F113: 110 | G113: =F113/F105 -> 0.1025163094 | H113: =F113*(Electricity!BP$6+Electricity!BP$7)/1000000*LossFactor!$P$4*(1-LossFactor!$M$4)*$F$173*1/Fuel_Specs!$B$39*Fuel_Specs!$E$39/Fuel_Specs!$E$121*1000000 -> 10.91592539
D114: Renewable NG
B115: Rendered Oill Transport | H115: =SUM(H116:H120) -> 0.4239012556 | K115: =SUM(K116:K120) -> 0.06358518834 | N115: =SUM(N116:N120) -> 0 | Q115: =SUM(Q116:Q120) -> 0.02967308789 | T115: =SUM(T116:T120) -> 0 | W115: =SUM(W116:W120) -> 0 | Z115: =SUM(Z116:Z120) -> 0 | AC115: =SUM(AC116:AC120) -> 0 | AF115: =SUM(AF116:AF120) -> 0 | AI115: =SUM(AI116:AI120) -> 0 | AL115: =SUM(AL116:AL120) -> 0 | AO115: =SUM(AO116:AO120) -> 0
D116: Rendered Oil transported by Medium Truck, miles | F116: ='BD RD Feedstock'!R38 -> No Data | H116: =IF(F116="No Data",0,F116/10*'T&D'!$C$58/Fuel_Specs!$C$124/$F$173/Fuel_Specs!$B$39*Fuel_Specs!$E$39/Fuel_Specs!$E$121*1000000*LossFactor!$P$4*(1-LossFactor!$M$4))/Fuel_Specs!$H$137 -> 0 | I116: ='BD RD Feedstock'!R65 -> No Data | K116: =IF(I116="No Data",0,I116/10*'T&D'!$C$58/Fuel_Specs!$C$124/$F$173/Fuel_Specs!$B$39*Fuel_Specs!$E$39/Fuel_Specs!$E$121*1000000*LossFactor!$P$4*(1-LossFactor!$M$4))/Fuel_Specs!$H$137 -> 0 | L116: ='BD RD Feedstock'!R92 -> No Data | N116: =IF(L116="No Data",0,L116/10*'T&D'!$C$58/Fuel_Specs!$C$124/$F$173/Fuel_Specs!$B$39*Fuel_Specs!$E$39/Fuel_Specs!$E$121*1000000*LossFactor!$P$4*(1-LossFactor!$M$4))/Fuel_Specs!$H$137 -> 0 | O116: ='BD RD Feedstock'!R119 -> No Data | Q116: =IF(O116="No Data",0,O116/10*'T&D'!$C$58/Fuel_Specs!$C$124/$F$173/Fuel_Specs!$B$39*Fuel_Specs!$E$39/Fuel_Specs!$E$121*1000000*LossFactor!$P$4*(1-LossFactor!$M$4))/Fuel_Specs!$H$137 -> 0 | R116: ='BD RD Feedstock'!R146 -> No Data | T116: =IF(R116="No Data",0,R116/10*'T&D'!$C$58/Fuel_Specs!$C$124/$F$173/Fuel_Specs!$B$39*Fuel_Specs!$E$39/Fuel_Specs!$E$121*1000000*LossFactor!$P$4*(1-LossFactor!$M$4))/Fuel_Specs!$H$137 -> 0 | U116: ='BD RD Feedstock'!R173 -> No Data | W116: =IF(U116="No Data",0,U116/10*'T&D'!$C$58/Fuel_Specs!$C$124/$F$173/Fuel_Specs!$B$39*Fuel_Specs!$E$39/Fuel_Specs!$E$121*1000000*LossFactor!$P$4*(1-LossFactor!$M$4))/Fuel_Specs!$H$137 -> 0 | X116: ='BD RD Feedstock'!$R$200 -> No Data | Z116: =IF(X116="No Data",0,X116/10*'T&D'!$C$58/Fuel_Specs!$C$124/$F$173/Fuel_Specs!$B$39*Fuel_Specs!$E$39/Fuel_Specs!$E$121*1000000*LossFactor!$P$4*(1-LossFactor!$M$4))/Fuel_Specs!$H$137 -> 0 | AA116: ='BD RD Feedstock'!$R$200 -> No Data | AC116: =IF(AA116="No Data",0,AA116/10*'T&D'!$C$58/Fuel_Specs!$C$124/$F$173/Fuel_Specs!$B$39*Fuel_Specs!$E$39/Fuel_Specs!$E$121*1000000*LossFactor!$P$4*(1-LossFactor!$M$4))/Fuel_Specs!$H$137 -> 0 | AD116: ='BD RD Feedstock'!$R$200 -> No Data | AF116: =IF(AD116="No Data",0,AD116/10*'T&D'!$C$58/Fuel_Specs!$C$124/$F$173/Fuel_Specs!$B$39*Fuel_Specs!$E$39/Fuel_Specs!$E$121*1000000*LossFactor!$P$4*(1-LossFactor!$M$4))/Fuel_Specs!$H$137 -> 0 | AG116: ='BD RD Feedstock'!$R$200 -> No Data | AI116: =IF(AG116="No Data",0,AG116/10*'T&D'!$C$58/Fuel_Specs!$C$124/$F$173/Fuel_Specs!$B$39*Fuel_Specs!$E$39/Fuel_Specs!$E$121*1000000*LossFactor!$P$4*(1-LossFactor!$M$4))/Fuel_Specs!$H$137 -> 0 | AJ116: ='BD RD Feedstock'!$R$200 -> No Data | AL116: =IF(AJ116="No Data",0,AJ116/10*'T&D'!$C$58/Fuel_Specs!$C$124/$F$173/Fuel_Specs!$B$39*Fuel_Specs!$E$39/Fuel_Specs!$E$121*1000000*LossFactor!$P$4*(1-LossFactor!$M$4))/Fuel_Specs!$H$137 -> 0 | AM116: ='BD RD Feedstock'!$R$200 -> No Data | AO116: =IF(AM116="No Data",0,AM116/10*'T&D'!$C$58/Fuel_Specs!$C$124/$F$173/Fuel_Specs!$B$39*Fuel_Specs!$E$39/Fuel_Specs!$E$121*1000000*LossFactor!$P$4*(1-LossFactor!$M$4))/Fuel_Specs!$H$137 -> 0
D117: Rendered UCO transported by Heavy Duty Diesel Truck, miles | F117: ='BD RD Feedstock'!S38 -> 50 | H117: =IF(F117="No Data",0,F117/50*'T&D'!$J$92/Fuel_Specs!$C$124/$F$173/Fuel_Specs!$B$39*Fuel_Specs!$E$39/Fuel_Specs!$E$121*1000000*LossFactor!$P$4*(1-LossFactor!$M$4))/Fuel_Specs!$H$137 -> 0 | I117: ='BD RD Feedstock'!S65 -> 100 | K117: =IF(I117="No Data",0,I117/50*'T&D'!$J$92/Fuel_Specs!$C$124/$F$173/Fuel_Specs!$B$39*Fuel_Specs!$E$39/Fuel_Specs!$E$121*1000000*LossFactor!$P$4*(1-LossFactor!$M$4))/Fuel_Specs!$H$137 -> 0 | L117: ='BD RD Feedstock'!S92 -> No Data | N117: =IF(L117="No Data",0,L117/50*'T&D'!$J$92/Fuel_Specs!$C$124/$F$173/Fuel_Specs!$B$39*Fuel_Specs!$E$39/Fuel_Specs!$E$121*1000000*LossFactor!$P$4*(1-LossFactor!$M$4))/Fuel_Specs!$H$137 -> 0 | O117: ='BD RD Feedstock'!S119 -> 100 | Q117: =IF(O117="No Data",0,O117/50*'T&D'!$J$92/Fuel_Specs!$C$124/$F$173/Fuel_Specs!$B$39*Fuel_Specs!$E$39/Fuel_Specs!$E$121*1000000*LossFactor!$P$4*(1-LossFactor!$M$4))/Fuel_Specs!$H$137 -> 0 | R117: ='BD RD Feedstock'!S146 -> No Data | T117: =IF(R117="No Data",0,R117/50*'T&D'!$J$92/Fuel_Specs!$C$124/$F$173/Fuel_Specs!$B$39*Fuel_Specs!$E$39/Fuel_Specs!$E$121*1000000*LossFactor!$P$4*(1-LossFactor!$M$4))/Fuel_Specs!$H$137 -> 0 | U117: ='BD RD Feedstock'!S173 -> No Data | W117: =IF(U117="No Data",0,U117/50*'T&D'!$J$92/Fuel_Specs!$C$124/$F$173/Fuel_Specs!$B$39*Fuel_Specs!$E$39/Fuel_Specs!$E$121*1000000*LossFactor!$P$4*(1-LossFactor!$M$4))/Fuel_Specs!$H$137 -> 0 | X117: ='BD RD Feedstock'!$S$200 -> No Data | Z117: =IF(X117="No Data",0,X117/50*'T&D'!$J$92/Fuel_Specs!$C$124/$F$173/Fuel_Specs!$B$39*Fuel_Specs!$E$39/Fuel_Specs!$E$121*1000000*LossFactor!$P$4*(1-LossFactor!$M$4))/Fuel_Specs!$H$137 -> 0 | AA117: ='BD RD Feedstock'!$S$200 -> No Data | AC117: =IF(AA117="No Data",0,AA117/50*'T&D'!$J$92/Fuel_Specs!$C$124/$F$173/Fuel_Specs!$B$39*Fuel_Specs!$E$39/Fuel_Specs!$E$121*1000000*LossFactor!$P$4*(1-LossFactor!$M$4))/Fuel_Specs!$H$137 -> 0 | AD117: ='BD RD Feedstock'!$S$200 -> No Data | AF117: =IF(AD117="No Data",0,AD117/50*'T&D'!$J$92/Fuel_Specs!$C$124/$F$173/Fuel_Specs!$B$39*Fuel_Specs!$E$39/Fuel_Specs!$E$121*1000000*LossFactor!$P$4*(1-LossFactor!$M$4))/Fuel_Specs!$H$137 -> 0 | AG117: ='BD RD Feedstock'!$S$200 -> No Data | AI117: =IF(AG117="No Data",0,AG117/50*'T&D'!$J$92/Fuel_Specs!$C$124/$F$173/Fuel_Specs!$B$39*Fuel_Specs!$E$39/Fuel_Specs!$E$121*1000000*LossFactor!$P$4*(1-LossFactor!$M$4))/Fuel_Specs!$H$137 -> 0 | AJ117: ='BD RD Feedstock'!$S$200 -> No Data | AL117: =IF(AJ117="No Data",0,AJ117/50*'T&D'!$J$92/Fuel_Specs!$C$124/$F$173/Fuel_Specs!$B$39*Fuel_Specs!$E$39/Fuel_Specs!$E$121*1000000*LossFactor!$P$4*(1-LossFactor!$M$4))/Fuel_Specs!$H$137 -> 0 | AM117: ='BD RD Feedstock'!$S$200 -> No Data | AO117: =IF(AM117="No Data",0,AM117/50*'T&D'!$J$92/Fuel_Specs!$C$124/$F$173/Fuel_Specs!$B$39*Fuel_Specs!$E$39/Fuel_Specs!$E$121*1000000*LossFactor!$P$4*(1-LossFactor!$M$4))/Fuel_Specs!$H$137 -> 0
D118: Rendered UCO transported by Ocean Tanker, miles | F118: ='BD RD Feedstock'!T38 -> 1000 | H118: =IF(F118="No Data",0,F118/1000*'T&D'!$J$93/Fuel_Specs!$C$124/$F$173/Fuel_Specs!$B$39*Fuel_Specs!$E$39/Fuel_Specs!$E$121*1000000*LossFactor!$P$4*(1-LossFactor!$M$4))/Fuel_Specs!$H$137 -> 0 | I118: ='BD RD Feedstock'!T65 -> No Data | K118: =IF(I118="No Data",0,I118/1000*'T&D'!$J$93/Fuel_Specs!$C$124/$F$173/Fuel_Specs!$B$39*Fuel_Specs!$E$39/Fuel_Specs!$E$121*1000000*LossFactor!$P$4*(1-LossFactor!$M$4))/Fuel_Specs!$H$137 -> 0 | L118: ='BD RD Feedstock'!T92 -> No Data | N118: =IF(L118="No Data",0,L118/1000*'T&D'!$J$93/Fuel_Specs!$C$124/$F$173/Fuel_Specs!$B$39*Fuel_Specs!$E$39/Fuel_Specs!$E$121*1000000*LossFactor!$P$4*(1-LossFactor!$M$4))/Fuel_Specs!$H$137 -> 0 | O118: ='BD RD Feedstock'!T119 -> No Data | Q118: =IF(O118="No Data",0,O118/1000*'T&D'!$J$93/Fuel_Specs!$C$124/$F$173/Fuel_Specs!$B$39*Fuel_Specs!$E$39/Fuel_Specs!$E$121*1000000*LossFactor!$P$4*(1-LossFactor!$M$4))/Fuel_Specs!$H$137 -> 0 | R118: ='BD RD Feedstock'!T146 -> No Data | T118: =IF(R118="No Data",0,R118/1000*'T&D'!$J$93/Fuel_Specs!$C$124/$F$173/Fuel_Specs!$B$39*Fuel_Specs!$E$39/Fuel_Specs!$E$121*1000000*LossFactor!$P$4*(1-LossFactor!$M$4))/Fuel_Specs!$H$137 -> 0 | U118: ='BD RD Feedstock'!T173 -> No Data | W118: =IF(U118="No Data",0,U118/1000*'T&D'!$J$93/Fuel_Specs!$C$124/$F$173/Fuel_Specs!$B$39*Fuel_Specs!$E$39/Fuel_Specs!$E$121*1000000*LossFactor!$P$4*(1-LossFactor!$M$4))/Fuel_Specs!$H$137 -> 0 | X118: ='BD RD Feedstock'!$T$200 -> No Data | Z118: =IF(X118="No Data",0,X118/1000*'T&D'!$J$93/Fuel_Specs!$C$124/$F$173/Fuel_Specs!$B$39*Fuel_Specs!$E$39/Fuel_Specs!$E$121*1000000*LossFactor!$P$4*(1-LossFactor!$M$4))/Fuel_Specs!$H$137 -> 0 | AA118: ='BD RD Feedstock'!$T$200 -> No Data | AC118: =IF(AA118="No Data",0,AA118/1000*'T&D'!$J$93/Fuel_Specs!$C$124/$F$173/Fuel_Specs!$B$39*Fuel_Specs!$E$39/Fuel_Specs!$E$121*1000000*LossFactor!$P$4*(1-LossFactor!$M$4))/Fuel_Specs!$H$137 -> 0 | AD118: ='BD RD Feedstock'!$T$200 -> No Data | AF118: =IF(AD118="No Data",0,AD118/1000*'T&D'!$J$93/Fuel_Specs!$C$124/$F$173/Fuel_Specs!$B$39*Fuel_Specs!$E$39/Fuel_Specs!$E$121*1000000*LossFactor!$P$4*(1-LossFactor!$M$4))/Fuel_Specs!$H$137 -> 0 | AG118: ='BD RD Feedstock'!$T$200 -> No Data | AI118: =IF(AG118="No Data",0,AG118/1000*'T&D'!$J$93/Fuel_Specs!$C$124/$F$173/Fuel_Specs!$B$39*Fuel_Specs!$E$39/Fuel_Specs!$E$121*1000000*LossFactor!$P$4*(1-LossFactor!$M$4))/Fuel_Specs!$H$137 -> 0 | AJ118: ='BD RD Feedstock'!$T$200 -> No Data | AL118: =IF(AJ118="No Data",0,AJ118/1000*'T&D'!$J$93/Fuel_Specs!$C$124/$F$173/Fuel_Specs!$B$39*Fuel_Specs!$E$39/Fuel_Specs!$E$121*1000000*LossFactor!$P$4*(1-LossFactor!$M$4))/Fuel_Specs!$H$137 -> 0 | AM118: ='BD RD Feedstock'!$T$200 -> No Data | AO118: =IF(AM118="No Data",0,AM118/1000*'T&D'!$J$93/Fuel_Specs!$C$124/$F$173/Fuel_Specs!$B$39*Fuel_Specs!$E$39/Fuel_Specs!$E$121*1000000*LossFactor!$P$4*(1-LossFactor!$M$4))/Fuel_Specs!$H$137 -> 0
D119: Rendered UCO transported by Rail, miles | F119: ='BD RD Feedstock'!U38 -> 10000 | H119: =IF(F119="No Data",0,F119/10000*'T&D'!$J$94/Fuel_Specs!$C$124/$F$173/Fuel_Specs!$B$39*Fuel_Specs!$E$39/Fuel_Specs!$E$121*1000000*LossFactor!$P$4*(1-LossFactor!$M$4))/Fuel_Specs!$H$137 -> 0.4239012556 | I119: ='BD RD Feedstock'!U65 -> 1500 | K119: =IF(I119="No Data",0,I119/10000*'T&D'!$J$94/Fuel_Specs!$C$124/$F$173/Fuel_Specs!$B$39*Fuel_Specs!$E$39/Fuel_Specs!$E$121*1000000*LossFactor!$P$4*(1-LossFactor!$M$4))/Fuel_Specs!$H$137 -> 0.06358518834 | L119: ='BD RD Feedstock'!U92 -> No Data | N119: =IF(L119="No Data",0,L119/10000*'T&D'!$J$94/Fuel_Specs!$C$124/$F$173/Fuel_Specs!$B$39*Fuel_Specs!$E$39/Fuel_Specs!$E$121*1000000*LossFactor!$P$4*(1-LossFactor!$M$4))/Fuel_Specs!$H$137 -> 0 | O119: ='BD RD Feedstock'!U119 -> 700 | Q119: =IF(O119="No Data",0,O119/10000*'T&D'!$J$94/Fuel_Specs!$C$124/$F$173/Fuel_Specs!$B$39*Fuel_Specs!$E$39/Fuel_Specs!$E$121*1000000*LossFactor!$P$4*(1-LossFactor!$M$4))/Fuel_Specs!$H$137 -> 0.02967308789 | R119: ='BD RD Feedstock'!U146 -> No Data | T119: =IF(R119="No Data",0,R119/10000*'T&D'!$J$94/Fuel_Specs!$C$124/$F$173/Fuel_Specs!$B$39*Fuel_Specs!$E$39/Fuel_Specs!$E$121*1000000*LossFactor!$P$4*(1-LossFactor!$M$4))/Fuel_Specs!$H$137 -> 0 | U119: ='BD RD Feedstock'!U173 -> No Data | W119: =IF(U119="No Data",0,U119/10000*'T&D'!$J$94/Fuel_Specs!$C$124/$F$173/Fuel_Specs!$B$39*Fuel_Specs!$E$39/Fuel_Specs!$E$121*1000000*LossFactor!$P$4*(1-LossFactor!$M$4))/Fuel_Specs!$H$137 -> 0 | X119: ='BD RD Feedstock'!$U$200 -> No Data | Z119: =IF(X119="No Data",0,X119/10000*'T&D'!$J$94/Fuel_Specs!$C$124/$F$173/Fuel_Specs!$B$39*Fuel_Specs!$E$39/Fuel_Specs!$E$121*1000000*LossFactor!$P$4*(1-LossFactor!$M$4))/Fuel_Specs!$H$137 -> 0 | AA119: ='BD RD Feedstock'!$U$200 -> No Data | AC119: =IF(AA119="No Data",0,AA119/10000*'T&D'!$J$94/Fuel_Specs!$C$124/$F$173/Fuel_Specs!$B$39*Fuel_Specs!$E$39/Fuel_Specs!$E$121*1000000*LossFactor!$P$4*(1-LossFactor!$M$4))/Fuel_Specs!$H$137 -> 0 | AD119: ='BD RD Feedstock'!$U$200 -> No Data | AF119: =IF(AD119="No Data",0,AD119/10000*'T&D'!$J$94/Fuel_Specs!$C$124/$F$173/Fuel_Specs!$B$39*Fuel_Specs!$E$39/Fuel_Specs!$E$121*1000000*LossFactor!$P$4*(1-LossFactor!$M$4))/Fuel_Specs!$H$137 -> 0 | AG119: ='BD RD Feedstock'!$U$200 -> No Data | AI119: =IF(AG119="No Data",0,AG119/10000*'T&D'!$J$94/Fuel_Specs!$C$124/$F$173/Fuel_Specs!$B$39*Fuel_Specs!$E$39/Fuel_Specs!$E$121*1000000*LossFactor!$P$4*(1-LossFactor!$M$4))/Fuel_Specs!$H$137 -> 0 | AJ119: ='BD RD Feedstock'!$U$200 -> No Data | AL119: =IF(AJ119="No Data",0,AJ119/10000*'T&D'!$J$94/Fuel_Specs!$C$124/$F$173/Fuel_Specs!$B$39*Fuel_Specs!$E$39/Fuel_Specs!$E$121*1000000*LossFactor!$P$4*(1-LossFactor!$M$4))/Fuel_Specs!$H$137 -> 0 | AM119: ='BD RD Feedstock'!$U$200 -> No Data | AO119: =IF(AM119="No Data",0,AM119/10000*'T&D'!$J$94/Fuel_Specs!$C$124/$F$173/Fuel_Specs!$B$39*Fuel_Specs!$E$39/Fuel_Specs!$E$121*1000000*LossFactor!$P$4*(1-LossFactor!$M$4))/Fuel_Specs!$H$137 -> 0
D120: Rendered UCO transported by Barge, miles | F120: ='BD RD Feedstock'!V38 -> 1000 | H120: =IF(F120="No Data",0,F120/1000*'T&D'!$J$95/Fuel_Specs!$C$124/$F$173/Fuel_Specs!$B$39*Fuel_Specs!$E$39/Fuel_Specs!$E$121*1000000*LossFactor!$P$4*(1-LossFactor!$M$4))/Fuel_Specs!$H$137 -> 0 | I120: ='BD RD Feedstock'!V65 -> 1000 | K120: =IF(I120="No Data",0,I120/1000*'T&D'!$J$95/Fuel_Specs!$C$124/$F$173/Fuel_Specs!$B$39*Fuel_Specs!$E$39/Fuel_Specs!$E$121*1000000*LossFactor!$P$4*(1-LossFactor!$M$4))/Fuel_Specs!$H$137 -> 0 | L120: ='BD RD Feedstock'!V92 -> No Data | N120: =IF(L120="No Data",0,L120/1000*'T&D'!$J$95/Fuel_Specs!$C$124/$F$173/Fuel_Specs!$B$39*Fuel_Specs!$E$39/Fuel_Specs!$E$121*1000000*LossFactor!$P$4*(1-LossFactor!$M$4))/Fuel_Specs!$H$137 -> 0 | O120: ='BD RD Feedstock'!V119 -> 4000 | Q120: =IF(O120="No Data",0,O120/1000*'T&D'!$J$95/Fuel_Specs!$C$124/$F$173/Fuel_Specs!$B$39*Fuel_Specs!$E$39/Fuel_Specs!$E$121*1000000*LossFactor!$P$4*(1-LossFactor!$M$4))/Fuel_Specs!$H$137 -> 0 | R120: ='BD RD Feedstock'!V146 -> No Data | T120: =IF(R120="No Data",0,R120/1000*'T&D'!$J$95/Fuel_Specs!$C$124/$F$173/Fuel_Specs!$B$39*Fuel_Specs!$E$39/Fuel_Specs!$E$121*1000000*LossFactor!$P$4*(1-LossFactor!$M$4))/Fuel_Specs!$H$137 -> 0 | U120: ='BD RD Feedstock'!V173 -> No Data | W120: =IF(U120="No Data",0,U120/1000*'T&D'!$J$95/Fuel_Specs!$C$124/$F$173/Fuel_Specs!$B$39*Fuel_Specs!$E$39/Fuel_Specs!$E$121*1000000*LossFactor!$P$4*(1-LossFactor!$M$4))/Fuel_Specs!$H$137 -> 0 | X120: ='BD RD Feedstock'!$V$200 -> No Data | Z120: =IF(X120="No Data",0,X120/1000*'T&D'!$J$95/Fuel_Specs!$C$124/$F$173/Fuel_Specs!$B$39*Fuel_Specs!$E$39/Fuel_Specs!$E$121*1000000*LossFactor!$P$4*(1-LossFactor!$M$4))/Fuel_Specs!$H$137 -> 0 | AA120: ='BD RD Feedstock'!$V$200 -> No Data | AC120: =IF(AA120="No Data",0,AA120/1000*'T&D'!$J$95/Fuel_Specs!$C$124/$F$173/Fuel_Specs!$B$39*Fuel_Specs!$E$39/Fuel_Specs!$E$121*1000000*LossFactor!$P$4*(1-LossFactor!$M$4))/Fuel_Specs!$H$137 -> 0 | AD120: ='BD RD Feedstock'!$V$200 -> No Data | AF120: =IF(AD120="No Data",0,AD120/1000*'T&D'!$J$95/Fuel_Specs!$C$124/$F$173/Fuel_Specs!$B$39*Fuel_Specs!$E$39/Fuel_Specs!$E$121*1000000*LossFactor!$P$4*(1-LossFactor!$M$4))/Fuel_Specs!$H$137 -> 0 | AG120: ='BD RD Feedstock'!$V$200 -> No Data | AI120: =IF(AG120="No Data",0,AG120/1000*'T&D'!$J$95/Fuel_Specs!$C$124/$F$173/Fuel_Specs!$B$39*Fuel_Specs!$E$39/Fuel_Specs!$E$121*1000000*LossFactor!$P$4*(1-LossFactor!$M$4))/Fuel_Specs!$H$137 -> 0 | AJ120: ='BD RD Feedstock'!$V$200 -> No Data | AL120: =IF(AJ120="No Data",0,AJ120/1000*'T&D'!$J$95/Fuel_Specs!$C$124/$F$173/Fuel_Specs!$B$39*Fuel_Specs!$E$39/Fuel_Specs!$E$121*1000000*LossFactor!$P$4*(1-LossFactor!$M$4))/Fuel_Specs!$H$137 -> 0 | AM120: ='BD RD Feedstock'!$V$200 -> No Data | AO120: =IF(AM120="No Data",0,AM120/1000*'T&D'!$J$95/Fuel_Specs!$C$124/$F$173/Fuel_Specs!$B$39*Fuel_Specs!$E$39/Fuel_Specs!$E$121*1000000*LossFactor!$P$4*(1-LossFactor!$M$4))/Fuel_Specs!$H$137 -> 0
B121: ILUC
B122: Feedstock Production | F122: =IF('BD RD Feedstock'!C3="Tallow","Tallow 1","") -> Tallow 1 | G122: =IF(F122="Tallow 1",'BD RD Feedstock'!C8,"") -> 2-User Defined Mix | H122: =H123+H124+H125+H126+H136 -> 5.509277395 | I122: =IF('BD RD Feedstock'!D3="Tallow","Tallow 2","") -> Tallow 2 | J122: =IF(I122="Tallow 2",'BD RD Feedstock'!D8,"") -> 3-CAMX Mix | K122: =K123+K124+K125+K126+K136 -> 0.5995066829 | L122: =IF('BD RD Feedstock'!E3="Tallow","Tallow 3","") ->  | M122: =IF(L122="Tallow 3",'BD RD Feedstock'!E8,"") ->  | N122: =N123+N124+N125+N126+N136 -> 0 | O122: =IF('BD RD Feedstock'!F3="Tallow","Tallow 4","") ->  | P122: =IF(O122="Tallow 4",'BD RD Feedstock'!F8,"") ->  | Q122: =Q123+Q124+Q125+Q126+Q136 -> 0.02967308789 | R122: =IF('BD RD Feedstock'!G3="Tallow","Tallow 5","") ->  | S122: =IF(R122="Tallow 5",'BD RD Feedstock'!G8,"") ->  | T122: =T123+T124+T125+T126+T136 -> 0 | U122: =IF('BD RD Feedstock'!H3="Tallow","Tallow 6","") ->  | V122: =IF(U122="Tallow 6",'BD RD Feedstock'!H8,"") ->  | W122: =W123+W124+W125+W126+W136 -> 0 | X122: =IF('BD RD Feedstock'!I3="Tallow","Tallow 7","") ->  | Y122: =IF(X122="Tallow 7",'BD RD Feedstock'!I8,"") ->  | Z122: =Z123+Z124+Z125+Z126+Z136 -> 0 | AA122: =IF('BD RD Feedstock'!J3="Tallow","Tallow 8","") ->  | AB122: =IF(AA122="Tallow 8",'BD RD Feedstock'!J8,"") ->  | AC122: =AC123+AC124+AC125+AC126+AC136 -> 0 | AD122: =IF('BD RD Feedstock'!K3="Tallow","Tallow 9","") ->  | AE122: =IF(AD122="Tallow 9",'BD RD Feedstock'!K8,"") ->  | AF122: =AF123+AF124+AF125+AF126+AF136 -> 0 | AG122: =IF('BD RD Feedstock'!L3="Tallow","Tallow 10","") ->  | AH122: =IF(AG122="Tallow 10",'BD RD Feedstock'!L8,"") ->  | AI122: =AI123+AI124+AI125+AI126+AI136 -> 0 | AJ122: =IF('BD RD Feedstock'!M3="Tallow","Tallow 11","") ->  | AK122: =IF(AJ122="Tallow 11",'BD RD Feedstock'!M8,"") ->  | AL122: =AL123+AL124+AL125+AL126+AL136 -> 0 | AM122: =IF('BD RD Feedstock'!N3="Tallow","Tallow 12","") ->  | AN122: =IF(AM122="Tallow 12",'BD RD Feedstock'!N8,"") ->  | AO122: =AO123+AO124+AO125+AO126+AO136 -> 0
B123: Tallow Collection | D123: Oil Yield, lb oil/lb raw Tallow | F123: =1/3.37 -> 0.296735905
A124: Tallow | B124: Raw Tallow Transport | D124: Raw tallow transported by Heavy Truck, miles | F124: 50 | H124: ='T&D'!$J$96*F124/50 -> 0 | I124: 50 | K124: ='T&D'!$K$96*I124/50 -> 0.5359214945 | L124: 50 | N124: ='T&D'!$L$96*L124/50 -> 0 | O124: 50 | Q124: ='T&D'!$M$96*O124/50 -> 0 | R124: 50 | T124: ='T&D'!$N$96*R124/50 -> 0 | U124: 50 | W124: ='T&D'!$O$96*U124/50 -> 0 | X124: 50 | Z124: ='T&D'!$P$96*X124/50 -> 0 | AA124: 50 | AC124: ='T&D'!$Q$96*AA124/50 -> 0 | AD124: 50 | AF124: ='T&D'!$R$96*AD124/50 -> 0 | AG124: 50 | AI124: ='T&D'!$S$96*AG124/50 -> 0 | AJ124: 50 | AL124: ='T&D'!$T$96*AJ124/50 -> 0 | AM124: 50 | AO124: ='T&D'!$U$96*AM124/50 -> 0
